Workbook

Sheet Auction-Rank (hidden)
A1: PLAYERNAME | B1: PlayerID | C1: Pos | D1: OF Pos | E1: TEAM | F1: Age | G1: 1.RotoChamp | H1: 2.CBS | I1: 4.ESPN | J1: 5.Yahoo_Proj | K1: 6.Yahoo_Mock | L1: 7.FantasyPro_Exp | M1: 8.FantasyPro_Proj | N1: 9.Exp_Avg | O1: 10.Import | P1: RotoChamp | Q1: Yahoo Staff | R1: ESPN Tristan | S1: ESPN Karabell | T1: Fantasy Pros Avg | U1: MC | V1: Team In Sheet? | W1: Rank Chosen | X1: Filtered-Rank | Y1: Chosen Auction | Z1: Filtered Auction | AA1: Adjusted Filter | AB1: =IF(VLOOKUP(A2,'Name-Sort'!$D$2:$E$961,2,FALSE)="",A2,"") -> Jose Abreu | AC1: =IFERROR(INDEX($AB$1:$AB$961,SMALL(IF($AB$1:$AB$961<>"",ROW($AB$1:$AB$961)),ROW(AB1))),"") -> Jose Abreu
A2: Jose Abreu | B2: abreujo02 | C2: 1B | E2: CWS | F2: 32 | G2: 0.004036111111 | H2: 0.005277777778 | I2: 0.003638888889 | J2: 0.005277777778 | K2: 0.0055 | M2: 0.005 | N2: 0.004104365079 | O2: =IFERROR(VLOOKUP(A2,'Import (Values)'!$B$2:$C$999,2,FALSE)/3120,"") ->  | P2: 79 | Q2: 48 | R2: 75 | S2: 51 | T2: 52 | V2: =IFERROR(INDEX('Guts-2'!$K$1:$K$30,MATCH(E2,'Guts-2'!$J$1:$J$30,0)),TRUE) -> TRUE | W2: =IF(V2=FALSE,"",IFERROR(CHOOSE('Guts-2'!$D$27,P2,Q2,R2,S2,T2,U2),"")) -> 52 | X2: =IFERROR(RANK(W2,$W$2:$W$961,1),"") -> 52 | Y2: =IFERROR(IF(INDEX('Auction-Rank'!$G$1:$O$961,MATCH($A2,'Auction-Rank'!$A$1:$A$961,0),'Guts-2'!$D$26)="","",INDEX('Auction-Rank'!$G$1:$O$961,MATCH($A2,'Auction-Rank'!$A$1:$A$961,0),'Guts-2'!$D$26)),"") -> 0.004104365079 | Z2: =IF(V2=FALSE,"",IFERROR(IF(INDEX('Auction-Rank'!$G$1:$O$961,MATCH($A2,'Auction-Rank'!$A$1:$A$961,0),'Guts-2'!$D$26)="","",INDEX('Auction-Rank'!$G$1:$O$961,MATCH($A2,'Auction-Rank'!$A$1:$A$961,0),'Guts-2'!$D$26)),"")) -> 0.004104365079 | AA2: =IF(Z2="","",IF(V2=FALSE,"",Z2*(SUMIF($Y$2:$Y$961,"<>""",$Y$2:$Y$961)/SUMIF($Z$2:$Z$961,"<>""",$Z$2:$Z$961)))) -> 0.004104365079 | AB2: =IF(VLOOKUP(A3,'Name-Sort'!$D$2:$E$961,2,FALSE)="",A3,"") -> Ronald Acuna | AC2: =IFERROR(INDEX($AB$1:$AB$961,SMALL(IF($AB$1:$AB$961<>"",ROW($AB$1:$AB$961)),ROW(AB2))),"") -> Ronald Acuna
A3: Ronald Acuna | B3: acunaro01 | C3: OF | D3: LF,CF | E3: ATL | F3: 21 | G3: 0.008794444444 | H3: 0.008333333333 | I3: 0.00825 | J3: 0.01 | K3: 0.01133333333 | M3: 0.009722222222 | N3: 0.008061904762 | O3: =IFERROR(VLOOKUP(A3,'Import (Values)'!$B$2:$C$999,2,FALSE)/3120,"") ->  | P3: 12 | Q3: 9 | R3: 15 | S3: 9 | T3: 9 | V3: =IFERROR(INDEX('Guts-2'!$K$1:$K$30,MATCH(E3,'Guts-2'!$J$1:$J$30,0)),TRUE) -> TRUE | W3: =IF(V3=FALSE,"",IFERROR(CHOOSE('Guts-2'!$D$27,P3,Q3,R3,S3,T3,U3),"")) -> 9 | X3: 9 | Y3: =IFERROR(IF(INDEX('Auction-Rank'!$G$1:$O$961,MATCH($A3,'Auction-Rank'!$A$1:$A$961,0),'Guts-2'!$D$26)="","",INDEX('Auction-Rank'!$G$1:$O$961,MATCH($A3,'Auction-Rank'!$A$1:$A$961,0),'Guts-2'!$D$26)),"") -> 0.008061904762 | Z3: =IF(V3=FALSE,"",IFERROR(IF(INDEX('Auction-Rank'!$G$1:$O$961,MATCH($A3,'Auction-Rank'!$A$1:$A$961,0),'Guts-2'!$D$26)="","",INDEX('Auction-Rank'!$G$1:$O$961,MATCH($A3,'Auction-Rank'!$A$1:$A$961,0),'Guts-2'!$D$26)),"")) -> 0.008061904762 | AA3: =IF(Z3="","",IF(V3=FALSE,"",Z3*(SUMIF($Y$2:$Y$961,"<>""",$Y$2:$Y$961)/SUMIF($Z$2:$Z$961,"<>""",$Z$2:$Z$961)))) -> 0.008061904762 | AB3: =IF(VLOOKUP(A4,'Name-Sort'!$D$2:$E$961,2,FALSE)="",A4,"") -> Willy Adames | AC3: =IFERROR(INDEX($AB$1:$AB$961,SMALL(IF($AB$1:$AB$961<>"",ROW($AB$1:$AB$961)),ROW(AB3))),"") -> Willy Adames
A4: Willy Adames | B4: adamewi01 | C4: SS | E4: TB | F4: 23 | G4: 0.0006944444444 | I4: 2.777777778e-05 | J4: 0.0002777777778 | K4: 0.0003333333333 | M4: 0.0002777777778 | N4: 0.0002685185185 | O4: =IFERROR(VLOOKUP(A4,'Import (Values)'!$B$2:$C$999,2,FALSE)/3120,"") ->  | P4: 228 | Q4: 277 | R4: 262 | S4: 179 | T4: 254 | V4: =IFERROR(INDEX('Guts-2'!$K$1:$K$30,MATCH(E4,'Guts-2'!$J$1:$J$30,0)),TRUE) -> TRUE | W4: =IF(V4=FALSE,"",IFERROR(CHOOSE('Guts-2'!$D$27,P4,Q4,R4,S4,T4,U4),"")) -> 254 | X4: 254 | Y4: =IFERROR(IF(INDEX('Auction-Rank'!$G$1:$O$961,MATCH($A4,'Auction-Rank'!$A$1:$A$961,0),'Guts-2'!$D$26)="","",INDEX('Auction-Rank'!$G$1:$O$961,MATCH($A4,'Auction-Rank'!$A$1:$A$961,0),'Guts-2'!$D$26)),"") -> 0.0002685185185 | Z4: =IF(V4=FALSE,"",IFERROR(IF(INDEX('Auction-Rank'!$G$1:$O$961,MATCH($A4,'Auction-Rank'!$A$1:$A$961,0),'Guts-2'!$D$26)="","",INDEX('Auction-Rank'!$G$1:$O$961,MATCH($A4,'Auction-Rank'!$A$1:$A$961,0),'Guts-2'!$D$26)),"")) -> 0.0002685185185 | AA4: =IF(Z4="","",IF(V4=FALSE,"",Z4*(SUMIF($Y$2:$Y$961,"<>""",$Y$2:$Y$961)/SUMIF($Z$2:$Z$961,"<>""",$Z$2:$Z$961)))) -> 0.0002685185185 | AB4: =IF(VLOOKUP(A5,'Name-Sort'!$D$2:$E$961,2,FALSE)="",A5,"") -> Matt Adams | AC4: =IFERROR(INDEX($AB$1:$AB$961,SMALL(IF($AB$1:$AB$961<>"",ROW($AB$1:$AB$961)),ROW(AB4))),"") -> Matt Adams
A5: Matt Adams | B5: adamsma01 | C5: 1B | D5: LF | E5: WAS | F5: 30 | N5: 0 | O5: =IFERROR(VLOOKUP(A5,'Import (Values)'!$B$2:$C$999,2,FALSE)/3120,"") ->  | T5: 589 | V5: =IFERROR(INDEX('Guts-2'!$K$1:$K$30,MATCH(E5,'Guts-2'!$J$1:$J$30,0)),TRUE) -> TRUE | W5: =IF(V5=FALSE,"",IFERROR(CHOOSE('Guts-2'!$D$27,P5,Q5,R5,S5,T5,U5),"")) -> 589 | X5: 575 | Y5: =IFERROR(IF(INDEX('Auction-Rank'!$G$1:$O$961,MATCH($A5,'Auction-Rank'!$A$1:$A$961,0),'Guts-2'!$D$26)="","",INDEX('Auction-Rank'!$G$1:$O$961,MATCH($A5,'Auction-Rank'!$A$1:$A$961,0),'Guts-2'!$D$26)),"") -> 0 | Z5: =IF(V5=FALSE,"",IFERROR(IF(INDEX('Auction-Rank'!$G$1:$O$961,MATCH($A5,'Auction-Rank'!$A$1:$A$961,0),'Guts-2'!$D$26)="","",INDEX('Auction-Rank'!$G$1:$O$961,MATCH($A5,'Auction-Rank'!$A$1:$A$961,0),'Guts-2'!$D$26)),"")) -> 0 | AA5: =IF(Z5="","",IF(V5=FALSE,"",Z5*(SUMIF($Y$2:$Y$961,"<>""",$Y$2:$Y$961)/SUMIF($Z$2:$Z$961,"<>""",$Z$2:$Z$961)))) -> 0 | AB5: =IF(VLOOKUP(A6,'Name-Sort'!$D$2:$E$961,2,FALSE)="",A6,"") -> Ehire Adrianza | AC5: =IFERROR(INDEX($AB$1:$AB$961,SMALL(IF($AB$1:$AB$961<>"",ROW($AB$1:$AB$961)),ROW(AB5))),"") -> Ehire Adrianza
A6: Ehire Adrianza | B6: adriaeh01 | C6: SS | D6: LF | E6: MIN | F6: 29 | N6: 0 | O6: =IFERROR(VLOOKUP(A6,'Import (Values)'!$B$2:$C$999,2,FALSE)/3120,"") ->  | T6: 607 | V6: =IFERROR(INDEX('Guts-2'!$K$1:$K$30,MATCH(E6,'Guts-2'!$J$1:$J$30,0)),TRUE) -> TRUE | W6: =IF(V6=FALSE,"",IFERROR(CHOOSE('Guts-2'!$D$27,P6,Q6,R6,S6,T6,U6),"")) -> 607 | X6: 589 | Y6: =IFERROR(IF(INDEX('Auction-Rank'!$G$1:$O$961,MATCH($A6,'Auction-Rank'!$A$1:$A$961,0),'Guts-2'!$D$26)="","",INDEX('Auction-Rank'!$G$1:$O$961,MATCH($A6,'Auction-Rank'!$A$1:$A$961,0),'Guts-2'!$D$26)),"") -> 0 | Z6: =IF(V6=FALSE,"",IFERROR(IF(INDEX('Auction-Rank'!$G$1:$O$961,MATCH($A6,'Auction-Rank'!$A$1:$A$961,0),'Guts-2'!$D$26)="","",INDEX('Auction-Rank'!$G$1:$O$961,MATCH($A6,'Auction-Rank'!$A$1:$A$961,0),'Guts-2'!$D$26)),"")) -> 0 | AA6: =IF(Z6="","",IF(V6=FALSE,"",Z6*(SUMIF($Y$2:$Y$961,"<>""",$Y$2:$Y$961)/SUMIF($Z$2:$Z$961,"<>""",$Z$2:$Z$961)))) -> 0 | AB6: =IF(VLOOKUP(A7,'Name-Sort'!$D$2:$E$961,2,FALSE)="",A7,"") -> Jesus Aguilar | AC6: =IFERROR(INDEX($AB$1:$AB$961,SMALL(IF($AB$1:$AB$961<>"",ROW($AB$1:$AB$961)),ROW(AB6))),"") -> Jesus Aguilar
A7: Jesus Aguilar | B7: aguilje01 | C7: 1B | E7: MIL | F7: 28 | G7: 0.004483333333 | H7: 0.003888888889 | I7: 0.003555555556 | J7: 0.004166666667 | K7: 0.00425 | M7: 0.003888888889 | N7: 0.003461904762 | O7: =IFERROR(VLOOKUP(A7,'Import (Values)'!$B$2:$C$999,2,FALSE)/3120,"") ->  | P7: 66 | Q7: 76 | R7: 79 | S7: 85 | T7: 79 | V7: =IFERROR(INDEX('Guts-2'!$K$1:$K$30,MATCH(E7,'Guts-2'!$J$1:$J$30,0)),TRUE) -> TRUE | W7: =IF(V7=FALSE,"",IFERROR(CHOOSE('Guts-2'!$D$27,P7,Q7,R7,S7,T7,U7),"")) -> 79 | X7: 79 | Y7: =IFERROR(IF(INDEX('Auction-Rank'!$G$1:$O$961,MATCH($A7,'Auction-Rank'!$A$1:$A$961,0),'Guts-2'!$D$26)="","",INDEX('Auction-Rank'!$G$1:$O$961,MATCH($A7,'Auction-Rank'!$A$1:$A$961,0),'Guts-2'!$D$26)),"") -> 0.003461904762 | Z7: =IF(V7=FALSE,"",IFERROR(IF(INDEX('Auction-Rank'!$G$1:$O$961,MATCH($A7,'Auction-Rank'!$A$1:$A$961,0),'Guts-2'!$D$26)="","",INDEX('Auction-Rank'!$G$1:$O$961,MATCH($A7,'Auction-Rank'!$A$1:$A$961,0),'Guts-2'!$D$26)),"")) -> 0.003461904762 | AA7: =IF(Z7="","",IF(V7=FALSE,"",Z7*(SUMIF($Y$2:$Y$961,"<>""",$Y$2:$Y$961)/SUMIF($Z$2:$Z$961,"<>""",$Z$2:$Z$961)))) -> 0.003461904762 | AB7: =IF(VLOOKUP(A8,'Name-Sort'!$D$2:$E$961,2,FALSE)="",A8,"") -> Nick Ahmed | AC7: =IFERROR(INDEX($AB$1:$AB$961,SMALL(IF($AB$1:$AB$961<>"",ROW($AB$1:$AB$961)),ROW(AB7))),"") -> Nick Ahmed
A8: Nick Ahmed | B8: ahmedni01 | C8: SS | E8: ARI | F8: 29 | N8: 0 | O8: =IFERROR(VLOOKUP(A8,'Import (Values)'!$B$2:$C$999,2,FALSE)/3120,"") ->  | T8: 406 | V8: =IFERROR(INDEX('Guts-2'!$K$1:$K$30,MATCH(E8,'Guts-2'!$J$1:$J$30,0)),TRUE) -> TRUE | W8: =IF(V8=FALSE,"",IFERROR(CHOOSE('Guts-2'!$D$27,P8,Q8,R8,S8,T8,U8),"")) -> 406 | X8: 406 | Y8: =IFERROR(IF(INDEX('Auction-Rank'!$G$1:$O$961,MATCH($A8,'Auction-Rank'!$A$1:$A$961,0),'Guts-2'!$D$26)="","",INDEX('Auction-Rank'!$G$1:$O$961,MATCH($A8,'Auction-Rank'!$A$1:$A$961,0),'Guts-2'!$D$26)),"") -> 0 | Z8: =IF(V8=FALSE,"",IFERROR(IF(INDEX('Auction-Rank'!$G$1:$O$961,MATCH($A8,'Auction-Rank'!$A$1:$A$961,0),'Guts-2'!$D$26)="","",INDEX('Auction-Rank'!$G$1:$O$961,MATCH($A8,'Auction-Rank'!$A$1:$A$961,0),'Guts-2'!$D$26)),"")) -> 0 | AA8: =IF(Z8="","",IF(V8=FALSE,"",Z8*(SUMIF($Y$2:$Y$961,"<>""",$Y$2:$Y$961)/SUMIF($Z$2:$Z$961,"<>""",$Z$2:$Z$961)))) -> 0 | AB8: =IF(VLOOKUP(A9,'Name-Sort'!$D$2:$E$961,2,FALSE)="",A9,"") -> Ozzie Albies | AC8: =IFERROR(INDEX($AB$1:$AB$961,SMALL(IF($AB$1:$AB$961<>"",ROW($AB$1:$AB$961)),ROW(AB8))),"") -> Ozzie Albies
A9: Ozzie Albies | B9: albieoz01 | C9: 2B | E9: ATL | F9: 22 | G9: 0.003608333333 | H9: 0.004722222222 | I9: 0.004527777778 | J9: 0.005 | K9: 0.005777777778 | M9: 0.004444444444 | N9: 0.004011507937 | O9: =IFERROR(VLOOKUP(A9,'Import (Values)'!$B$2:$C$999,2,FALSE)/3120,"") ->  | P9: 93 | Q9: 56 | R9: 44 | S9: 54 | T9: 51 | V9: =IFERROR(INDEX('Guts-2'!$K$1:$K$30,MATCH(E9,'Guts-2'!$J$1:$J$30,0)),TRUE) -> TRUE | W9: =IF(V9=FALSE,"",IFERROR(CHOOSE('Guts-2'!$D$27,P9,Q9,R9,S9,T9,U9),"")) -> 51 | X9: 51 | Y9: =IFERROR(IF(INDEX('Auction-Rank'!$G$1:$O$961,MATCH($A9,'Auction-Rank'!$A$1:$A$961,0),'Guts-2'!$D$26)="","",INDEX('Auction-Rank'!$G$1:$O$961,MATCH($A9,'Auction-Rank'!$A$1:$A$961,0),'Guts-2'!$D$26)),"") -> 0.004011507937 | Z9: =IF(V9=FALSE,"",IFERROR(IF(INDEX('Auction-Rank'!$G$1:$O$961,MATCH($A9,'Auction-Rank'!$A$1:$A$961,0),'Guts-2'!$D$26)="","",INDEX('Auction-Rank'!$G$1:$O$961,MATCH($A9,'Auction-Rank'!$A$1:$A$961,0),'Guts-2'!$D$26)),"")) -> 0.004011507937 | AA9: =IF(Z9="","",IF(V9=FALSE,"",Z9*(SUMIF($Y$2:$Y$961,"<>""",$Y$2:$Y$961)/SUMIF($Z$2:$Z$961,"<>""",$Z$2:$Z$961)))) -> 0.004011507937 | AB9: =IF(VLOOKUP(A10,'Name-Sort'!$D$2:$E$961,2,FALSE)="",A10,"") -> Sandy Alcantara | AC9: =IFERROR(INDEX($AB$1:$AB$961,SMALL(IF($AB$1:$AB$961<>"",ROW($AB$1:$AB$961)),ROW(AB9))),"") -> Sandy Alcantara
A10: Sandy Alcantara | B10: alcansa01 | C10: SP | E10: MIA | F10: 23 | N10: 0 | O10: =IFERROR(VLOOKUP(A10,'Import (Values)'!$B$2:$C$999,2,FALSE)/3120,"") ->  | T10: 494 | V10: =IFERROR(INDEX('Guts-2'!$K$1:$K$30,MATCH(E10,'Guts-2'!$J$1:$J$30,0)),TRUE) -> TRUE | W10: =IF(V10=FALSE,"",IFERROR(CHOOSE('Guts-2'!$D$27,P10,Q10,R10,S10,T10,U10),"")) -> 494 | X10: 492 | Y10: =IFERROR(IF(INDEX('Auction-Rank'!$G$1:$O$961,MATCH($A10,'Auction-Rank'!$A$1:$A$961,0),'Guts-2'!$D$26)="","",INDEX('Auction-Rank'!$G$1:$O$961,MATCH($A10,'Auction-Rank'!$A$1:$A$961,0),'Guts-2'!$D$26)),"") -> 0 | Z10: =IF(V10=FALSE,"",IFERROR(IF(INDEX('Auction-Rank'!$G$1:$O$961,MATCH($A10,'Auction-Rank'!$A$1:$A$961,0),'Guts-2'!$D$26)="","",INDEX('Auction-Rank'!$G$1:$O$961,MATCH($A10,'Auction-Rank'!$A$1:$A$961,0),'Guts-2'!$D$26)),"")) -> 0 | AA10: =IF(Z10="","",IF(V10=FALSE,"",Z10*(SUMIF($Y$2:$Y$961,"<>""",$Y$2:$Y$961)/SUMIF($Z$2:$Z$961,"<>""",$Z$2:$Z$961)))) -> 0 | AB10: =IF(VLOOKUP(A11,'Name-Sort'!$D$2:$E$961,2,FALSE)="",A11,"") -> Jorge Alfaro | AC10: =IFERROR(INDEX($AB$1:$AB$961,SMALL(IF($AB$1:$AB$961<>"",ROW($AB$1:$AB$961)),ROW(AB10))),"") -> Jorge Alfaro
A11: Jorge Alfaro | B11: alfarjo01 | C11: C | E11: PHI | F11: 25 | G11: 0.0008222222222 | H11: 0.0002777777778 | I11: 5.555555556e-05 | J11: 0.0002777777778 | K11: 0.0003333333333 | N11: 0.0002944444444 | O11: =IFERROR(VLOOKUP(A11,'Import (Values)'!$B$2:$C$999,2,FALSE)/3120,"") ->  | P11: 215 | R11: 278 | S11: 248 | T11: 308 | V11: =IFERROR(INDEX('Guts-2'!$K$1:$K$30,MATCH(E11,'Guts-2'!$J$1:$J$30,0)),TRUE) -> TRUE | W11: =IF(V11=FALSE,"",IFERROR(CHOOSE('Guts-2'!$D$27,P11,Q11,R11,S11,T11,U11),"")) -> 308 | X11: 308 | Y11: =IFERROR(IF(INDEX('Auction-Rank'!$G$1:$O$961,MATCH($A11,'Auction-Rank'!$A$1:$A$961,0),'Guts-2'!$D$26)="","",INDEX('Auction-Rank'!$G$1:$O$961,MATCH($A11,'Auction-Rank'!$A$1:$A$961,0),'Guts-2'!$D$26)),"") -> 0.0002944444444 | Z11: =IF(V11=FALSE,"",IFERROR(IF(INDEX('Auction-Rank'!$G$1:$O$961,MATCH($A11,'Auction-Rank'!$A$1:$A$961,0),'Guts-2'!$D$26)="","",INDEX('Auction-Rank'!$G$1:$O$961,MATCH($A11,'Auction-Rank'!$A$1:$A$961,0),'Guts-2'!$D$26)),"")) -> 0.0002944444444 | AA11: =IF(Z11="","",IF(V11=FALSE,"",Z11*(SUMIF($Y$2:$Y$961,"<>""",$Y$2:$Y$961)/SUMIF($Z$2:$Z$961,"<>""",$Z$2:$Z$961)))) -> 0.0002944444444 | AB11: =IF(VLOOKUP(A12,'Name-Sort'!$D$2:$E$961,2,FALSE)="",A12,"") -> Anthony Alford | AC11: =IFERROR(INDEX($AB$1:$AB$961,SMALL(IF($AB$1:$AB$961<>"",ROW($AB$1:$AB$961)),ROW(AB11))),"") -> Anthony Alford
A12: Anthony Alford | B12: alforan01 | C12: OF | D12: LF | E12: TOR | F12: 24 | N12: 0 | O12: =IFERROR(VLOOKUP(A12,'Import (Values)'!$B$2:$C$999,2,FALSE)/3120,"") ->  | V12: =IFERROR(INDEX('Guts-2'!$K$1:$K$30,MATCH(E12,'Guts-2'!$J$1:$J$30,0)),TRUE) -> TRUE | W12: =IF(V12=FALSE,"",IFERROR(CHOOSE('Guts-2'!$D$27,P12,Q12,R12,S12,T12,U12),"")) ->  | Y12: =IFERROR(IF(INDEX('Auction-Rank'!$G$1:$O$961,MATCH($A12,'Auction-Rank'!$A$1:$A$961,0),'Guts-2'!$D$26)="","",INDEX('Auction-Rank'!$G$1:$O$961,MATCH($A12,'Auction-Rank'!$A$1:$A$961,0),'Guts-2'!$D$26)),"") -> 0 | Z12: =IF(V12=FALSE,"",IFERROR(IF(INDEX('Auction-Rank'!$G$1:$O$961,MATCH($A12,'Auction-Rank'!$A$1:$A$961,0),'Guts-2'!$D$26)="","",INDEX('Auction-Rank'!$G$1:$O$961,MATCH($A12,'Auction-Rank'!$A$1:$A$961,0),'Guts-2'!$D$26)),"")) -> 0 | AA12: =IF(Z12="","",IF(V12=FALSE,"",Z12*(SUMIF($Y$2:$Y$961,"<>""",$Y$2:$Y$961)/SUMIF($Z$2:$Z$961,"<>""",$Z$2:$Z$961)))) -> 0 | AB12: =IF(VLOOKUP(A13,'Name-Sort'!$D$2:$E$961,2,FALSE)="",A13,"") -> Kolby Allard | AC12: =IFERROR(INDEX($AB$1:$AB$961,SMALL(IF($AB$1:$AB$961<>"",ROW($AB$1:$AB$961)),ROW(AB12))),"") -> Kolby Allard
A13: Kolby Allard | B13: allarko01 | C13: SP | E13: ATL | F13: 21 | N13: 0 | O13: =IFERROR(VLOOKUP(A13,'Import (Values)'!$B$2:$C$999,2,FALSE)/3120,"") ->  | T13: 758 | V13: =IFERROR(INDEX('Guts-2'!$K$1:$K$30,MATCH(E13,'Guts-2'!$J$1:$J$30,0)),TRUE) -> TRUE | W13: =IF(V13=FALSE,"",IFERROR(CHOOSE('Guts-2'!$D$27,P13,Q13,R13,S13,T13,U13),"")) -> 758 | X13: 700 | Y13: =IFERROR(IF(INDEX('Auction-Rank'!$G$1:$O$961,MATCH($A13,'Auction-Rank'!$A$1:$A$961,0),'Guts-2'!$D$26)="","",INDEX('Auction-Rank'!$G$1:$O$961,MATCH($A13,'Auction-Rank'!$A$1:$A$961,0),'Guts-2'!$D$26)),"") -> 0 | Z13: =IF(V13=FALSE,"",IFERROR(IF(INDEX('Auction-Rank'!$G$1:$O$961,MATCH($A13,'Auction-Rank'!$A$1:$A$961,0),'Guts-2'!$D$26)="","",INDEX('Auction-Rank'!$G$1:$O$961,MATCH($A13,'Auction-Rank'!$A$1:$A$961,0),'Guts-2'!$D$26)),"")) -> 0 | AA13: =IF(Z13="","",IF(V13=FALSE,"",Z13*(SUMIF($Y$2:$Y$961,"<>""",$Y$2:$Y$961)/SUMIF($Z$2:$Z$961,"<>""",$Z$2:$Z$961)))) -> 0 | AB13: =IF(VLOOKUP(A14,'Name-Sort'!$D$2:$E$961,2,FALSE)="",A14,"") -> Cody Allen | AC13: =IFERROR(INDEX($AB$1:$AB$961,SMALL(IF($AB$1:$AB$961<>"",ROW($AB$1:$AB$961)),ROW(AB13))),"") -> Cody Allen
A14: Cody Allen | B14: allenco01 | C14: RP | E14: LAA | F14: 30 | G14: 0.003069444444 | H14: 0.001666666667 | I14: 0.0008055555556 | J14: 0.001666666667 | K14: 0.001111111111 | M14: 0.001388888889 | N14: 0.001386904762 | O14: =IFERROR(VLOOKUP(A14,'Import (Values)'!$B$2:$C$999,2,FALSE)/3120,"") ->  | P14: 107 | Q14: 167 | R14: 196 | S14: 165 | T14: 167 | V14: =IFERROR(INDEX('Guts-2'!$K$1:$K$30,MATCH(E14,'Guts-2'!$J$1:$J$30,0)),TRUE) -> TRUE | W14: =IF(V14=FALSE,"",IFERROR(CHOOSE('Guts-2'!$D$27,P14,Q14,R14,S14,T14,U14),"")) -> 167 | X14: 167 | Y14: =IFERROR(IF(INDEX('Auction-Rank'!$G$1:$O$961,MATCH($A14,'Auction-Rank'!$A$1:$A$961,0),'Guts-2'!$D$26)="","",INDEX('Auction-Rank'!$G$1:$O$961,MATCH($A14,'Auction-Rank'!$A$1:$A$961,0),'Guts-2'!$D$26)),"") -> 0.001386904762 | Z14: =IF(V14=FALSE,"",IFERROR(IF(INDEX('Auction-Rank'!$G$1:$O$961,MATCH($A14,'Auction-Rank'!$A$1:$A$961,0),'Guts-2'!$D$26)="","",INDEX('Auction-Rank'!$G$1:$O$961,MATCH($A14,'Auction-Rank'!$A$1:$A$961,0),'Guts-2'!$D$26)),"")) -> 0.001386904762 | AA14: =IF(Z14="","",IF(V14=FALSE,"",Z14*(SUMIF($Y$2:$Y$961,"<>""",$Y$2:$Y$961)/SUMIF($Z$2:$Z$961,"<>""",$Z$2:$Z$961)))) -> 0.001386904762 | AB14: =IF(VLOOKUP(A15,'Name-Sort'!$D$2:$E$961,2,FALSE)="",A15,"") -> Greg Allen | AC14: =IFERROR(INDEX($AB$1:$AB$961,SMALL(IF($AB$1:$AB$961<>"",ROW($AB$1:$AB$961)),ROW(AB14))),"") -> Greg Allen
A15: Greg Allen | B15: allengr01 | C15: OF | D15: CF,RF | E15: CLE | F15: 26 | H15: 0.001944444444 | J15: 0 | K15: 0.0004166666667 | N15: 0.0005902777778 | O15: =IFERROR(VLOOKUP(A15,'Import (Values)'!$B$2:$C$999,2,FALSE)/3120,"") ->  | T15: 358 | V15: =IFERROR(INDEX('Guts-2'!$K$1:$K$30,MATCH(E15,'Guts-2'!$J$1:$J$30,0)),TRUE) -> TRUE | W15: =IF(V15=FALSE,"",IFERROR(CHOOSE('Guts-2'!$D$27,P15,Q15,R15,S15,T15,U15),"")) -> 358 | X15: 358 | Y15: =IFERROR(IF(INDEX('Auction-Rank'!$G$1:$O$961,MATCH($A15,'Auction-Rank'!$A$1:$A$961,0),'Guts-2'!$D$26)="","",INDEX('Auction-Rank'!$G$1:$O$961,MATCH($A15,'Auction-Rank'!$A$1:$A$961,0),'Guts-2'!$D$26)),"") -> 0.0005902777778 | Z15: =IF(V15=FALSE,"",IFERROR(IF(INDEX('Auction-Rank'!$G$1:$O$961,MATCH($A15,'Auction-Rank'!$A$1:$A$961,0),'Guts-2'!$D$26)="","",INDEX('Auction-Rank'!$G$1:$O$961,MATCH($A15,'Auction-Rank'!$A$1:$A$961,0),'Guts-2'!$D$26)),"")) -> 0.0005902777778 | AA15: =IF(Z15="","",IF(V15=FALSE,"",Z15*(SUMIF($Y$2:$Y$961,"<>""",$Y$2:$Y$961)/SUMIF($Z$2:$Z$961,"<>""",$Z$2:$Z$961)))) -> 0.0005902777778 | AB15: =IF(VLOOKUP(A16,'Name-Sort'!$D$2:$E$961,2,FALSE)="",A16,"") -> Albert Almora | AC15: =IFERROR(INDEX($AB$1:$AB$961,SMALL(IF($AB$1:$AB$961<>"",ROW($AB$1:$AB$961)),ROW(AB15))),"") -> Albert Almora
A16: Albert Almora | B16: almoral01 | C16: OF | D16: CF | E16: CHC | F16: 24 | I16: 0 | N16: 0 | O16: =IFERROR(VLOOKUP(A16,'Import (Values)'!$B$2:$C$999,2,FALSE)/3120,"") ->  | T16: 436 | V16: =IFERROR(INDEX('Guts-2'!$K$1:$K$30,MATCH(E16,'Guts-2'!$J$1:$J$30,0)),TRUE) -> TRUE | W16: =IF(V16=FALSE,"",IFERROR(CHOOSE('Guts-2'!$D$27,P16,Q16,R16,S16,T16,U16),"")) -> 436 | X16: 436 | Y16: =IFERROR(IF(INDEX('Auction-Rank'!$G$1:$O$961,MATCH($A16,'Auction-Rank'!$A$1:$A$961,0),'Guts-2'!$D$26)="","",INDEX('Auction-Rank'!$G$1:$O$961,MATCH($A16,'Auction-Rank'!$A$1:$A$961,0),'Guts-2'!$D$26)),"") -> 0 | Z16: =IF(V16=FALSE,"",IFERROR(IF(INDEX('Auction-Rank'!$G$1:$O$961,MATCH($A16,'Auction-Rank'!$A$1:$A$961,0),'Guts-2'!$D$26)="","",INDEX('Auction-Rank'!$G$1:$O$961,MATCH($A16,'Auction-Rank'!$A$1:$A$961,0),'Guts-2'!$D$26)),"")) -> 0 | AA16: =IF(Z16="","",IF(V16=FALSE,"",Z16*(SUMIF($Y$2:$Y$961,"<>""",$Y$2:$Y$961)/SUMIF($Z$2:$Z$961,"<>""",$Z$2:$Z$961)))) -> 0 | AB16: =IF(VLOOKUP(A17,'Name-Sort'!$D$2:$E$961,2,FALSE)="",A17,"") -> Peter Alonso | AC16: =IFERROR(INDEX($AB$1:$AB$961,SMALL(IF($AB$1:$AB$961<>"",ROW($AB$1:$AB$961)),ROW(AB16))),"") -> Peter Alonso
A17: Peter Alonso | B17: alonspe01 | C17: 1B | E17: NYM | F17: 24 | H17: 0.0008333333333 | I17: 8.333333333e-05 | J17: 0.0002777777778 | K17: 0.0003888888889 | N17: 0.0003166666667 | O17: =IFERROR(VLOOKUP(A17,'Import (Values)'!$B$2:$C$999,2,FALSE)/3120,"") ->  | S17: 220 | T17: 266 | V17: =IFERROR(INDEX('Guts-2'!$K$1:$K$30,MATCH(E17,'Guts-2'!$J$1:$J$30,0)),TRUE) -> TRUE | W17: =IF(V17=FALSE,"",IFERROR(CHOOSE('Guts-2'!$D$27,P17,Q17,R17,S17,T17,U17),"")) -> 266 | X17: 266 | Y17: =IFERROR(IF(INDEX('Auction-Rank'!$G$1:$O$961,MATCH($A17,'Auction-Rank'!$A$1:$A$961,0),'Guts-2'!$D$26)="","",INDEX('Auction-Rank'!$G$1:$O$961,MATCH($A17,'Auction-Rank'!$A$1:$A$961,0),'Guts-2'!$D$26)),"") -> 0.0003166666667 | Z17: =IF(V17=FALSE,"",IFERROR(IF(INDEX('Auction-Rank'!$G$1:$O$961,MATCH($A17,'Auction-Rank'!$A$1:$A$961,0),'Guts-2'!$D$26)="","",INDEX('Auction-Rank'!$G$1:$O$961,MATCH($A17,'Auction-Rank'!$A$1:$A$961,0),'Guts-2'!$D$26)),"")) -> 0.0003166666667 | AA17: =IF(Z17="","",IF(V17=FALSE,"",Z17*(SUMIF($Y$2:$Y$961,"<>""",$Y$2:$Y$961)/SUMIF($Z$2:$Z$961,"<>""",$Z$2:$Z$961)))) -> 0.0003166666667 | AB17: =IF(VLOOKUP(A18,'Name-Sort'!$D$2:$E$961,2,FALSE)="",A18,"") -> Yonder Alonso | AC17: =IFERROR(INDEX($AB$1:$AB$961,SMALL(IF($AB$1:$AB$961<>"",ROW($AB$1:$AB$961)),ROW(AB17))),"") -> Yonder Alonso
A18: Yonder Alonso | B18: alonsyo01 | C18: 1B | E18: CWS | F18: 31 | G18: 0.0001638888889 | I18: 2.777777778e-05 | J18: 0.0005555555556 | K18: 0.0003055555556 | M18: 0.0002777777778 | N18: 0.0002217592593 | O18: =IFERROR(VLOOKUP(A18,'Import (Values)'!$B$2:$C$999,2,FALSE)/3120,"") ->  | P18: 273 | Q18: 251 | R18: 286 | S18: 218 | T18: 277 | V18: =IFERROR(INDEX('Guts-2'!$K$1:$K$30,MATCH(E18,'Guts-2'!$J$1:$J$30,0)),TRUE) -> TRUE | W18: =IF(V18=FALSE,"",IFERROR(CHOOSE('Guts-2'!$D$27,P18,Q18,R18,S18,T18,U18),"")) -> 277 | X18: 277 | Y18: =IFERROR(IF(INDEX('Auction-Rank'!$G$1:$O$961,MATCH($A18,'Auction-Rank'!$A$1:$A$961,0),'Guts-2'!$D$26)="","",INDEX('Auction-Rank'!$G$1:$O$961,MATCH($A18,'Auction-Rank'!$A$1:$A$961,0),'Guts-2'!$D$26)),"") -> 0.0002217592593 | Z18: =IF(V18=FALSE,"",IFERROR(IF(INDEX('Auction-Rank'!$G$1:$O$961,MATCH($A18,'Auction-Rank'!$A$1:$A$961,0),'Guts-2'!$D$26)="","",INDEX('Auction-Rank'!$G$1:$O$961,MATCH($A18,'Auction-Rank'!$A$1:$A$961,0),'Guts-2'!$D$26)),"")) -> 0.0002217592593 | AA18: =IF(Z18="","",IF(V18=FALSE,"",Z18*(SUMIF($Y$2:$Y$961,"<>""",$Y$2:$Y$961)/SUMIF($Z$2:$Z$961,"<>""",$Z$2:$Z$961)))) -> 0.0002217592593 | AB18: =IF(VLOOKUP(A19,'Name-Sort'!$D$2:$E$961,2,FALSE)="",A19,"") -> Aaron Altherr | AC18: =IFERROR(INDEX($AB$1:$AB$961,SMALL(IF($AB$1:$AB$961<>"",ROW($AB$1:$AB$961)),ROW(AB18))),"") -> Aaron Altherr
A19: Aaron Altherr | B19: altheaa01 | C19: OF | D19: LF,CF,RF | E19: PHI | F19: 28 | N19: 0 | O19: =IFERROR(VLOOKUP(A19,'Import (Values)'!$B$2:$C$999,2,FALSE)/3120,"") ->  | T19: 546 | V19: =IFERROR(INDEX('Guts-2'!$K$1:$K$30,MATCH(E19,'Guts-2'!$J$1:$J$30,0)),TRUE) -> TRUE | W19: =IF(V19=FALSE,"",IFERROR(CHOOSE('Guts-2'!$D$27,P19,Q19,R19,S19,T19,U19),"")) -> 546 | X19: 538 | Y19: =IFERROR(IF(INDEX('Auction-Rank'!$G$1:$O$961,MATCH($A19,'Auction-Rank'!$A$1:$A$961,0),'Guts-2'!$D$26)="","",INDEX('Auction-Rank'!$G$1:$O$961,MATCH($A19,'Auction-Rank'!$A$1:$A$961,0),'Guts-2'!$D$26)),"") -> 0 | Z19: =IF(V19=FALSE,"",IFERROR(IF(INDEX('Auction-Rank'!$G$1:$O$961,MATCH($A19,'Auction-Rank'!$A$1:$A$961,0),'Guts-2'!$D$26)="","",INDEX('Auction-Rank'!$G$1:$O$961,MATCH($A19,'Auction-Rank'!$A$1:$A$961,0),'Guts-2'!$D$26)),"")) -> 0 | AA19: =IF(Z19="","",IF(V19=FALSE,"",Z19*(SUMIF($Y$2:$Y$961,"<>""",$Y$2:$Y$961)/SUMIF($Z$2:$Z$961,"<>""",$Z$2:$Z$961)))) -> 0 | AB19: =IF(VLOOKUP(A20,'Name-Sort'!$D$2:$E$961,2,FALSE)="",A20,"") -> Jose Altuve | AC19: =IFERROR(INDEX($AB$1:$AB$961,SMALL(IF($AB$1:$AB$961<>"",ROW($AB$1:$AB$961)),ROW(AB19))),"") -> Jose Altuve
A20: Jose Altuve | B20: altuvjo01 | C20: 2B | E20: HOU | F20: 28 | G20: 0.009372222222 | H20: 0.01027777778 | I20: 0.008305555556 | J20: 0.009444444444 | K20: 0.01069444444 | M20: 0.008888888889 | N20: 0.00814047619 | O20: =IFERROR(VLOOKUP(A20,'Import (Values)'!$B$2:$C$999,2,FALSE)/3120,"") -> 0.0141025641 | P20: 9 | Q20: 11 | R20: 11 | S20: 11 | T20: 14 | V20: =IFERROR(INDEX('Guts-2'!$K$1:$K$30,MATCH(E20,'Guts-2'!$J$1:$J$30,0)),TRUE) -> TRUE | W20: =IF(V20=FALSE,"",IFERROR(CHOOSE('Guts-2'!$D$27,P20,Q20,R20,S20,T20,U20),"")) -> 14 | X20: 14 | Y20: =IFERROR(IF(INDEX('Auction-Rank'!$G$1:$O$961,MATCH($A20,'Auction-Rank'!$A$1:$A$961,0),'Guts-2'!$D$26)="","",INDEX('Auction-Rank'!$G$1:$O$961,MATCH($A20,'Auction-Rank'!$A$1:$A$961,0),'Guts-2'!$D$26)),"") -> 0.00814047619 | Z20: =IF(V20=FALSE,"",IFERROR(IF(INDEX('Auction-Rank'!$G$1:$O$961,MATCH($A20,'Auction-Rank'!$A$1:$A$961,0),'Guts-2'!$D$26)="","",INDEX('Auction-Rank'!$G$1:$O$961,MATCH($A20,'Auction-Rank'!$A$1:$A$961,0),'Guts-2'!$D$26)),"")) -> 0.00814047619 | AA20: =IF(Z20="","",IF(V20=FALSE,"",Z20*(SUMIF($Y$2:$Y$961,"<>""",$Y$2:$Y$961)/SUMIF($Z$2:$Z$961,"<>""",$Z$2:$Z$961)))) -> 0.00814047619 | AB20: =IF(VLOOKUP(A21,'Name-Sort'!$D$2:$E$961,2,FALSE)="",A21,"") -> Jose Alvarado | AC20: =IFERROR(INDEX($AB$1:$AB$961,SMALL(IF($AB$1:$AB$961<>"",ROW($AB$1:$AB$961)),ROW(AB20))),"") -> Jose Alvarado
A21: Jose Alvarado | B21: alvarjo03 | C21: RP | E21: TB | F21: 23 | G21: 0.002188888889 | H21: 0.001111111111 | I21: 0.0009444444444 | J21: 0.0005555555556 | K21: 0.0005833333333 | M21: 0.001944444444 | N21: 0.001046825397 | O21: =IFERROR(VLOOKUP(A21,'Import (Values)'!$B$2:$C$999,2,FALSE)/3120,"") ->  | P21: 144 | Q21: 213 | R21: 184 | S21: 156 | T21: 194 | V21: =IFERROR(INDEX('Guts-2'!$K$1:$K$30,MATCH(E21,'Guts-2'!$J$1:$J$30,0)),TRUE) -> TRUE | W21: =IF(V21=FALSE,"",IFERROR(CHOOSE('Guts-2'!$D$27,P21,Q21,R21,S21,T21,U21),"")) -> 194 | X21: 194 | Y21: =IFERROR(IF(INDEX('Auction-Rank'!$G$1:$O$961,MATCH($A21,'Auction-Rank'!$A$1:$A$961,0),'Guts-2'!$D$26)="","",INDEX('Auction-Rank'!$G$1:$O$961,MATCH($A21,'Auction-Rank'!$A$1:$A$961,0),'Guts-2'!$D$26)),"") -> 0.001046825397 | Z21: =IF(V21=FALSE,"",IFERROR(IF(INDEX('Auction-Rank'!$G$1:$O$961,MATCH($A21,'Auction-Rank'!$A$1:$A$961,0),'Guts-2'!$D$26)="","",INDEX('Auction-Rank'!$G$1:$O$961,MATCH($A21,'Auction-Rank'!$A$1:$A$961,0),'Guts-2'!$D$26)),"")) -> 0.001046825397 | AA21: =IF(Z21="","",IF(V21=FALSE,"",Z21*(SUMIF($Y$2:$Y$961,"<>""",$Y$2:$Y$961)/SUMIF($Z$2:$Z$961,"<>""",$Z$2:$Z$961)))) -> 0.001046825397 | AB21: =IF(VLOOKUP(A22,'Name-Sort'!$D$2:$E$961,2,FALSE)="",A22,"") -> Brett Anderson | AC21: =IFERROR(INDEX($AB$1:$AB$961,SMALL(IF($AB$1:$AB$961<>"",ROW($AB$1:$AB$961)),ROW(AB21))),"") -> Brett Anderson
A22: Brett Anderson | B22: anderbr04 | C22: SP | E22: OAK | F22: 31 | N22: 0 | O22: =IFERROR(VLOOKUP(A22,'Import (Values)'!$B$2:$C$999,2,FALSE)/3120,"") ->  | V22: =IFERROR(INDEX('Guts-2'!$K$1:$K$30,MATCH(E22,'Guts-2'!$J$1:$J$30,0)),TRUE) -> TRUE | W22: =IF(V22=FALSE,"",IFERROR(CHOOSE('Guts-2'!$D$27,P22,Q22,R22,S22,T22,U22),"")) ->  | Y22: =IFERROR(IF(INDEX('Auction-Rank'!$G$1:$O$961,MATCH($A22,'Auction-Rank'!$A$1:$A$961,0),'Guts-2'!$D$26)="","",INDEX('Auction-Rank'!$G$1:$O$961,MATCH($A22,'Auction-Rank'!$A$1:$A$961,0),'Guts-2'!$D$26)),"") -> 0 | Z22: =IF(V22=FALSE,"",IFERROR(IF(INDEX('Auction-Rank'!$G$1:$O$961,MATCH($A22,'Auction-Rank'!$A$1:$A$961,0),'Guts-2'!$D$26)="","",INDEX('Auction-Rank'!$G$1:$O$961,MATCH($A22,'Auction-Rank'!$A$1:$A$961,0),'Guts-2'!$D$26)),"")) -> 0 | AA22: =IF(Z22="","",IF(V22=FALSE,"",Z22*(SUMIF($Y$2:$Y$961,"<>""",$Y$2:$Y$961)/SUMIF($Z$2:$Z$961,"<>""",$Z$2:$Z$961)))) -> 0 | AB22: =IF(VLOOKUP(A23,'Name-Sort'!$D$2:$E$961,2,FALSE)="",A23,"") -> Brian Anderson | AC22: =IFERROR(INDEX($AB$1:$AB$961,SMALL(IF($AB$1:$AB$961<>"",ROW($AB$1:$AB$961)),ROW(AB22))),"") -> Brian Anderson
A23: Brian Anderson | B23: anderbr06 | C23: 3B | D23: RF | E23: MIA | F23: 25 | G23: 0.0003083333333 | I23: 0.00025 | J23: 0 | K23: 0.0003611111111 | M23: 0.0005555555556 | N23: 0.0002458333333 | O23: =IFERROR(VLOOKUP(A23,'Import (Values)'!$B$2:$C$999,2,FALSE)/3120,"") ->  | P23: 255 | Q23: 274 | R23: 226 | S23: 231 | T23: 276 | V23: =IFERROR(INDEX('Guts-2'!$K$1:$K$30,MATCH(E23,'Guts-2'!$J$1:$J$30,0)),TRUE) -> TRUE | W23: =IF(V23=FALSE,"",IFERROR(CHOOSE('Guts-2'!$D$27,P23,Q23,R23,S23,T23,U23),"")) -> 276 | X23: 276 | Y23: =IFERROR(IF(INDEX('Auction-Rank'!$G$1:$O$961,MATCH($A23,'Auction-Rank'!$A$1:$A$961,0),'Guts-2'!$D$26)="","",INDEX('Auction-Rank'!$G$1:$O$961,MATCH($A23,'Auction-Rank'!$A$1:$A$961,0),'Guts-2'!$D$26)),"") -> 0.0002458333333 | Z23: =IF(V23=FALSE,"",IFERROR(IF(INDEX('Auction-Rank'!$G$1:$O$961,MATCH($A23,'Auction-Rank'!$A$1:$A$961,0),'Guts-2'!$D$26)="","",INDEX('Auction-Rank'!$G$1:$O$961,MATCH($A23,'Auction-Rank'!$A$1:$A$961,0),'Guts-2'!$D$26)),"")) -> 0.0002458333333 | AA23: =IF(Z23="","",IF(V23=FALSE,"",Z23*(SUMIF($Y$2:$Y$961,"<>""",$Y$2:$Y$961)/SUMIF($Z$2:$Z$961,"<>""",$Z$2:$Z$961)))) -> 0.0002458333333 | AB23: =IF(VLOOKUP(A24,'Name-Sort'!$D$2:$E$961,2,FALSE)="",A24,"") -> Chase Anderson | AC23: =IFERROR(INDEX($AB$1:$AB$961,SMALL(IF($AB$1:$AB$961<>"",ROW($AB$1:$AB$961)),ROW(AB23))),"") -> Chase Anderson
A24: Chase Anderson | B24: anderch01 | C24: SP | E24: MIL | F24: 31 | J24: 0.0002777777778 | K24: 0.0003333333333 | N24: 0.0002037037037 | O24: =IFERROR(VLOOKUP(A24,'Import (Values)'!$B$2:$C$999,2,FALSE)/3120,"") ->  | T24: 359 | V24: =IFERROR(INDEX('Guts-2'!$K$1:$K$30,MATCH(E24,'Guts-2'!$J$1:$J$30,0)),TRUE) -> TRUE | W24: =IF(V24=FALSE,"",IFERROR(CHOOSE('Guts-2'!$D$27,P24,Q24,R24,S24,T24,U24),"")) -> 359 | X24: 359 | Y24: =IFERROR(IF(INDEX('Auction-Rank'!$G$1:$O$961,MATCH($A24,'Auction-Rank'!$A$1:$A$961,0),'Guts-2'!$D$26)="","",INDEX('Auction-Rank'!$G$1:$O$961,MATCH($A24,'Auction-Rank'!$A$1:$A$961,0),'Guts-2'!$D$26)),"") -> 0.0002037037037 | Z24: =IF(V24=FALSE,"",IFERROR(IF(INDEX('Auction-Rank'!$G$1:$O$961,MATCH($A24,'Auction-Rank'!$A$1:$A$961,0),'Guts-2'!$D$26)="","",INDEX('Auction-Rank'!$G$1:$O$961,MATCH($A24,'Auction-Rank'!$A$1:$A$961,0),'Guts-2'!$D$26)),"")) -> 0.0002037037037 | AA24: =IF(Z24="","",IF(V24=FALSE,"",Z24*(SUMIF($Y$2:$Y$961,"<>""",$Y$2:$Y$961)/SUMIF($Z$2:$Z$961,"<>""",$Z$2:$Z$961)))) -> 0.0002037037037 | AB24: =IF(VLOOKUP(A25,'Name-Sort'!$D$2:$E$961,2,FALSE)="",A25,"") -> Ian Anderson | AC24: =IFERROR(INDEX($AB$1:$AB$961,SMALL(IF($AB$1:$AB$961<>"",ROW($AB$1:$AB$961)),ROW(AB24))),"") -> Ian Anderson
A25: Ian Anderson | B25: anderia01 | C25: SP | E25: ATL | F25: 20 | N25: 0 | O25: =IFERROR(VLOOKUP(A25,'Import (Values)'!$B$2:$C$999,2,FALSE)/3120,"") ->  | V25: =IFERROR(INDEX('Guts-2'!$K$1:$K$30,MATCH(E25,'Guts-2'!$J$1:$J$30,0)),TRUE) -> TRUE | W25: =IF(V25=FALSE,"",IFERROR(CHOOSE('Guts-2'!$D$27,P25,Q25,R25,S25,T25,U25),"")) ->  | Y25: =IFERROR(IF(INDEX('Auction-Rank'!$G$1:$O$961,MATCH($A25,'Auction-Rank'!$A$1:$A$961,0),'Guts-2'!$D$26)="","",INDEX('Auction-Rank'!$G$1:$O$961,MATCH($A25,'Auction-Rank'!$A$1:$A$961,0),'Guts-2'!$D$26)),"") -> 0 | Z25: =IF(V25=FALSE,"",IFERROR(IF(INDEX('Auction-Rank'!$G$1:$O$961,MATCH($A25,'Auction-Rank'!$A$1:$A$961,0),'Guts-2'!$D$26)="","",INDEX('Auction-Rank'!$G$1:$O$961,MATCH($A25,'Auction-Rank'!$A$1:$A$961,0),'Guts-2'!$D$26)),"")) -> 0 | AA25: =IF(Z25="","",IF(V25=FALSE,"",Z25*(SUMIF($Y$2:$Y$961,"<>""",$Y$2:$Y$961)/SUMIF($Z$2:$Z$961,"<>""",$Z$2:$Z$961)))) -> 0 | AB25: =IF(VLOOKUP(A26,'Name-Sort'!$D$2:$E$961,2,FALSE)="",A26,"") -> Justin Anderson | AC25: =IFERROR(INDEX($AB$1:$AB$961,SMALL(IF($AB$1:$AB$961<>"",ROW($AB$1:$AB$961)),ROW(AB25))),"") -> Justin Anderson
A26: Justin Anderson | B26: anderju01 | C26: RP | E26: LAA | F26: 26 | N26: 0 | O26: =IFERROR(VLOOKUP(A26,'Import (Values)'!$B$2:$C$999,2,FALSE)/3120,"") ->  | T26: 720 | V26: =IFERROR(INDEX('Guts-2'!$K$1:$K$30,MATCH(E26,'Guts-2'!$J$1:$J$30,0)),TRUE) -> TRUE | W26: =IF(V26=FALSE,"",IFERROR(CHOOSE('Guts-2'!$D$27,P26,Q26,R26,S26,T26,U26),"")) -> 720 | X26: 680 | Y26: =IFERROR(IF(INDEX('Auction-Rank'!$G$1:$O$961,MATCH($A26,'Auction-Rank'!$A$1:$A$961,0),'Guts-2'!$D$26)="","",INDEX('Auction-Rank'!$G$1:$O$961,MATCH($A26,'Auction-Rank'!$A$1:$A$961,0),'Guts-2'!$D$26)),"") -> 0 | Z26: =IF(V26=FALSE,"",IFERROR(IF(INDEX('Auction-Rank'!$G$1:$O$961,MATCH($A26,'Auction-Rank'!$A$1:$A$961,0),'Guts-2'!$D$26)="","",INDEX('Auction-Rank'!$G$1:$O$961,MATCH($A26,'Auction-Rank'!$A$1:$A$961,0),'Guts-2'!$D$26)),"")) -> 0 | AA26: =IF(Z26="","",IF(V26=FALSE,"",Z26*(SUMIF($Y$2:$Y$961,"<>""",$Y$2:$Y$961)/SUMIF($Z$2:$Z$961,"<>""",$Z$2:$Z$961)))) -> 0 | AB26: =IF(VLOOKUP(A27,'Name-Sort'!$D$2:$E$961,2,FALSE)="",A27,"") -> Tim Anderson | AC26: =IFERROR(INDEX($AB$1:$AB$961,SMALL(IF($AB$1:$AB$961<>"",ROW($AB$1:$AB$961)),ROW(AB26))),"") -> Tim Anderson
A27: Tim Anderson | B27: anderti01 | C27: SS | E27: CWS | F27: 25 | G27: 0.001425 | H27: 0.001388888889 | I27: 0.001388888889 | J27: 0.002777777778 | K27: 0.002222222222 | M27: 0.001666666667 | N27: 0.001552777778 | O27: =IFERROR(VLOOKUP(A27,'Import (Values)'!$B$2:$C$999,2,FALSE)/3120,"") ->  | P27: 177 | Q27: 109 | R27: 110 | S27: 95 | T27: 136 | V27: =IFERROR(INDEX('Guts-2'!$K$1:$K$30,MATCH(E27,'Guts-2'!$J$1:$J$30,0)),TRUE) -> TRUE | W27: =IF(V27=FALSE,"",IFERROR(CHOOSE('Guts-2'!$D$27,P27,Q27,R27,S27,T27,U27),"")) -> 136 | X27: 136 | Y27: =IFERROR(IF(INDEX('Auction-Rank'!$G$1:$O$961,MATCH($A27,'Auction-Rank'!$A$1:$A$961,0),'Guts-2'!$D$26)="","",INDEX('Auction-Rank'!$G$1:$O$961,MATCH($A27,'Auction-Rank'!$A$1:$A$961,0),'Guts-2'!$D$26)),"") -> 0.001552777778 | Z27: =IF(V27=FALSE,"",IFERROR(IF(INDEX('Auction-Rank'!$G$1:$O$961,MATCH($A27,'Auction-Rank'!$A$1:$A$961,0),'Guts-2'!$D$26)="","",INDEX('Auction-Rank'!$G$1:$O$961,MATCH($A27,'Auction-Rank'!$A$1:$A$961,0),'Guts-2'!$D$26)),"")) -> 0.001552777778 | AA27: =IF(Z27="","",IF(V27=FALSE,"",Z27*(SUMIF($Y$2:$Y$961,"<>""",$Y$2:$Y$961)/SUMIF($Z$2:$Z$961,"<>""",$Z$2:$Z$961)))) -> 0.001552777778 | AB27: =IF(VLOOKUP(A28,'Name-Sort'!$D$2:$E$961,2,FALSE)="",A28,"") -> Tyler Anderson | AC27: =IFERROR(INDEX($AB$1:$AB$961,SMALL(IF($AB$1:$AB$961<>"",ROW($AB$1:$AB$961)),ROW(AB27))),"") -> Tyler Anderson
A28: Tyler Anderson | B28: anderty01 | C28: SP | E28: COL | F28: 29 | G28: 0.0001972222222 | N28: 9.861111111e-05 | O28: =IFERROR(VLOOKUP(A28,'Import (Values)'!$B$2:$C$999,2,FALSE)/3120,"") ->  | P28: 265 | T28: 372 | V28: =IFERROR(INDEX('Guts-2'!$K$1:$K$30,MATCH(E28,'Guts-2'!$J$1:$J$30,0)),TRUE) -> TRUE | W28: =IF(V28=FALSE,"",IFERROR(CHOOSE('Guts-2'!$D$27,P28,Q28,R28,S28,T28,U28),"")) -> 372 | X28: 372 | Y28: =IFERROR(IF(INDEX('Auction-Rank'!$G$1:$O$961,MATCH($A28,'Auction-Rank'!$A$1:$A$961,0),'Guts-2'!$D$26)="","",INDEX('Auction-Rank'!$G$1:$O$961,MATCH($A28,'Auction-Rank'!$A$1:$A$961,0),'Guts-2'!$D$26)),"") -> 9.861111111e-05 | Z28: =IF(V28=FALSE,"",IFERROR(IF(INDEX('Auction-Rank'!$G$1:$O$961,MATCH($A28,'Auction-Rank'!$A$1:$A$961,0),'Guts-2'!$D$26)="","",INDEX('Auction-Rank'!$G$1:$O$961,MATCH($A28,'Auction-Rank'!$A$1:$A$961,0),'Guts-2'!$D$26)),"")) -> 9.861111111e-05 | AA28: =IF(Z28="","",IF(V28=FALSE,"",Z28*(SUMIF($Y$2:$Y$961,"<>""",$Y$2:$Y$961)/SUMIF($Z$2:$Z$961,"<>""",$Z$2:$Z$961)))) -> 9.861111111e-05 | AB28: =IF(VLOOKUP(A29,'Name-Sort'!$D$2:$E$961,2,FALSE)="",A29,"") -> Matt Andriese | AC28: =IFERROR(INDEX($AB$1:$AB$961,SMALL(IF($AB$1:$AB$961<>"",ROW($AB$1:$AB$961)),ROW(AB28))),"") -> Matt Andriese
A29: Matt Andriese | B29: andrima01 | C29: RP | E29: ARI | F29: 29 | N29: 0 | O29: =IFERROR(VLOOKUP(A29,'Import (Values)'!$B$2:$C$999,2,FALSE)/3120,"") ->  | T29: 671 | V29: =IFERROR(INDEX('Guts-2'!$K$1:$K$30,MATCH(E29,'Guts-2'!$J$1:$J$30,0)),TRUE) -> TRUE | W29: =IF(V29=FALSE,"",IFERROR(CHOOSE('Guts-2'!$D$27,P29,Q29,R29,S29,T29,U29),"")) -> 671 | X29: 646 | Y29: =IFERROR(IF(INDEX('Auction-Rank'!$G$1:$O$961,MATCH($A29,'Auction-Rank'!$A$1:$A$961,0),'Guts-2'!$D$26)="","",INDEX('Auction-Rank'!$G$1:$O$961,MATCH($A29,'Auction-Rank'!$A$1:$A$961,0),'Guts-2'!$D$26)),"") -> 0 | Z29: =IF(V29=FALSE,"",IFERROR(IF(INDEX('Auction-Rank'!$G$1:$O$961,MATCH($A29,'Auction-Rank'!$A$1:$A$961,0),'Guts-2'!$D$26)="","",INDEX('Auction-Rank'!$G$1:$O$961,MATCH($A29,'Auction-Rank'!$A$1:$A$961,0),'Guts-2'!$D$26)),"")) -> 0 | AA29: =IF(Z29="","",IF(V29=FALSE,"",Z29*(SUMIF($Y$2:$Y$961,"<>""",$Y$2:$Y$961)/SUMIF($Z$2:$Z$961,"<>""",$Z$2:$Z$961)))) -> 0 | AB29: =IF(VLOOKUP(A30,'Name-Sort'!$D$2:$E$961,2,FALSE)="",A30,"") -> Elvis Andrus | AC29: =IFERROR(INDEX($AB$1:$AB$961,SMALL(IF($AB$1:$AB$961<>"",ROW($AB$1:$AB$961)),ROW(AB29))),"") -> Elvis Andrus
A30: Elvis Andrus | B30: andruel01 | C30: SS | E30: TEX | F30: 30 | G30: 0.0007027777778 | H30: 0.002222222222 | I30: 0.001027777778 | J30: 0.0025 | K30: 0.001777777778 | M30: 0.0008333333333 | N30: 0.00129484127 | O30: =IFERROR(VLOOKUP(A30,'Import (Values)'!$B$2:$C$999,2,FALSE)/3120,"") ->  | P30: 224 | Q30: 147 | R30: 131 | S30: 106 | T30: 140 | V30: =IFERROR(INDEX('Guts-2'!$K$1:$K$30,MATCH(E30,'Guts-2'!$J$1:$J$30,0)),TRUE) -> TRUE | W30: =IF(V30=FALSE,"",IFERROR(CHOOSE('Guts-2'!$D$27,P30,Q30,R30,S30,T30,U30),"")) -> 140 | X30: 140 | Y30: =IFERROR(IF(INDEX('Auction-Rank'!$G$1:$O$961,MATCH($A30,'Auction-Rank'!$A$1:$A$961,0),'Guts-2'!$D$26)="","",INDEX('Auction-Rank'!$G$1:$O$961,MATCH($A30,'Auction-Rank'!$A$1:$A$961,0),'Guts-2'!$D$26)),"") -> 0.00129484127 | Z30: =IF(V30=FALSE,"",IFERROR(IF(INDEX('Auction-Rank'!$G$1:$O$961,MATCH($A30,'Auction-Rank'!$A$1:$A$961,0),'Guts-2'!$D$26)="","",INDEX('Auction-Rank'!$G$1:$O$961,MATCH($A30,'Auction-Rank'!$A$1:$A$961,0),'Guts-2'!$D$26)),"")) -> 0.00129484127 | AA30: =IF(Z30="","",IF(V30=FALSE,"",Z30*(SUMIF($Y$2:$Y$961,"<>""",$Y$2:$Y$961)/SUMIF($Z$2:$Z$961,"<>""",$Z$2:$Z$961)))) -> 0.00129484127 | AB30: =IF(VLOOKUP(A31,'Name-Sort'!$D$2:$E$961,2,FALSE)="",A31,"") -> Miguel Andujar | AC30: =IFERROR(INDEX($AB$1:$AB$961,SMALL(IF($AB$1:$AB$961<>"",ROW($AB$1:$AB$961)),ROW(AB30))),"") -> Miguel Andujar
A31: Miguel Andujar | B31: andujmi01 | C31: 3B | E31: NYY | F31: 24 | G31: 0.004186111111 | H31: 0.003333333333 | I31: 0.003472222222 | J31: 0.003888888889 | K31: 0.004166666667 | M31: 0.004444444444 | N31: 0.003355952381 | O31: =IFERROR(VLOOKUP(A31,'Import (Values)'!$B$2:$C$999,2,FALSE)/3120,"") ->  | P31: 71 | Q31: 80 | R31: 76 | S31: 78 | T31: 89 | V31: =IFERROR(INDEX('Guts-2'!$K$1:$K$30,MATCH(E31,'Guts-2'!$J$1:$J$30,0)),TRUE) -> TRUE | W31: =IF(V31=FALSE,"",IFERROR(CHOOSE('Guts-2'!$D$27,P31,Q31,R31,S31,T31,U31),"")) -> 89 | X31: 89 | Y31: =IFERROR(IF(INDEX('Auction-Rank'!$G$1:$O$961,MATCH($A31,'Auction-Rank'!$A$1:$A$961,0),'Guts-2'!$D$26)="","",INDEX('Auction-Rank'!$G$1:$O$961,MATCH($A31,'Auction-Rank'!$A$1:$A$961,0),'Guts-2'!$D$26)),"") -> 0.003355952381 | Z31: =IF(V31=FALSE,"",IFERROR(IF(INDEX('Auction-Rank'!$G$1:$O$961,MATCH($A31,'Auction-Rank'!$A$1:$A$961,0),'Guts-2'!$D$26)="","",INDEX('Auction-Rank'!$G$1:$O$961,MATCH($A31,'Auction-Rank'!$A$1:$A$961,0),'Guts-2'!$D$26)),"")) -> 0.003355952381 | AA31: =IF(Z31="","",IF(V31=FALSE,"",Z31*(SUMIF($Y$2:$Y$961,"<>""",$Y$2:$Y$961)/SUMIF($Z$2:$Z$961,"<>""",$Z$2:$Z$961)))) -> 0.003355952381 | AB31: =IF(VLOOKUP(A32,'Name-Sort'!$D$2:$E$961,2,FALSE)="",A32,"") -> Victor Arano | AC31: =IFERROR(INDEX($AB$1:$AB$961,SMALL(IF($AB$1:$AB$961<>"",ROW($AB$1:$AB$961)),ROW(AB31))),"") -> Victor Arano
... 38 more rows

Sheet Guts-1 (hidden)
A1: AVG | B1: =IFERROR(IF(VLOOKUP(A1,Settings!$C$5:$D$16,2,FALSE)="Full",1,IF(VLOOKUP(A1,Settings!$C$5:$D$16,2,FALSE)="Half",0.5,0)),0) -> 1 | C1: 16 | D1: 22 | E1: 37 | F1: W | G1: =IFERROR(IF(VLOOKUP(F1,Settings!$C$19:$D$30,2,FALSE)="Full",1,IF(VLOOKUP(F1,Settings!$C$19:$D$30,2,FALSE)="Half",0.5,0)),0) -> 1 | H1: 2 | I1: 2 | J1: 10 | M1: Stats or WERTH or Hide? | N1: =IF('Your Roto Auction'!Q7=R5,1,IF('Your Roto Auction'!Q7=R6,2,IF('Your Roto Auction'!Q7=R7,3,""))) -> 1 | O1: =MAX(COUNTIF(N2:N13,">"""),COUNTIF(N14:N25,">""")) -> 5 | Q1: List | R1: List | S1: Pos | T1: Sort by Original Projected Auction Value | U1: Show All Positions | V1: =IFERROR(INDEX($U$1:$U$24,SMALL(IF($U$1:$U$24<>"",ROW($U$1:$U$24)),ROW(B1))),"") -> Show All Positions
A2: HR | B2: =IFERROR(IF(VLOOKUP(A2,Settings!$C$5:$D$16,2,FALSE)="Full",1,IF(VLOOKUP(A2,Settings!$C$5:$D$16,2,FALSE)="Half",0.5,0)),0) -> 1 | C2: 10 | D2: 10 | E2: 27 | F2: SV | G2: =IFERROR(IF(VLOOKUP(F2,Settings!$C$19:$D$30,2,FALSE)="Full",1,IF(VLOOKUP(F2,Settings!$C$19:$D$30,2,FALSE)="Half",0.5,0)),0) -> 1 | H2: 9 | I2: 9 | J2: 17 | M2: H1 | N2: =IF(ISBLANK(Settings!C5),"",Settings!C5) -> AVG | O2: =IF(N$1=2,1,IF(OR(N2="AVG",N2="OBP",N2="SLG",N2="OPS"),2,IF(N2="","",1))) -> 2 | P2: =IF(OR(N2="AVG",N2="OBP",N2="SLG",N2="OPS"),2,IF(N2="","",1)) -> 2 | Q2: =IFERROR(INDEX($N$1:$N$25,SMALL(IF($N$1:$N$25<>"",ROW($N$1:$N$25)),ROW(B2))),"") -> AVG | R2: Stats | S2: =IF('Guts-2'!$N$2>=ROW(S1),"C","") -> C | T2: Sort by WERTH | U2: =IF('Guts-2'!$N2>0,"Only Show: "&'Guts-2'!M2,"") -> Only Show: C | V2: =IFERROR(INDEX($U$1:$U$24,SMALL(IF($U$1:$U$24<>"",ROW($U$1:$U$24)),ROW(B2))),"") -> Only Show: C | W2: =IF(ISERROR(VLOOKUP(A1,$N$2:$O$25,2,FALSE)),A1,"") ->  | X2: =IF(ISERROR(VLOOKUP(F1,$N$2:$O$25,2,FALSE)),F1,"") ->  | Y2: =IFERROR(INDEX($W$1:$W$26,SMALL(IF($W$1:$W$26<>"",ROW($W$1:$W$26)),ROW(B1))),"") -> SLG | Z2: =IFERROR(INDEX($X$1:$X$28,SMALL(IF($X$1:$X$28<>"",ROW($X$1:$X$28)),ROW(B1))),"") -> QS
A3: R | B3: =IFERROR(IF(VLOOKUP(A3,Settings!$C$5:$D$16,2,FALSE)="Full",1,IF(VLOOKUP(A3,Settings!$C$5:$D$16,2,FALSE)="Half",0.5,0)),0) -> 1 | C3: 5 | D3: 5 | E3: 22 | F3: K | G3: =IFERROR(IF(VLOOKUP(F3,Settings!$C$19:$D$30,2,FALSE)="Full",1,IF(VLOOKUP(F3,Settings!$C$19:$D$30,2,FALSE)="Half",0.5,0)),0) -> 1 | H3: 7 | I3: 7 | J3: 15 | M3: H2 | N3: =IF(ISBLANK(Settings!C6),"",Settings!C6) -> HR | O3: =IF(N$1=2,1,IF(OR(N3="AVG",N3="OBP",N3="SLG",N3="OPS"),2,IF(N3="","",1))) -> 1 | P3: =IF(OR(N3="AVG",N3="OBP",N3="SLG",N3="OPS"),2,IF(N3="","",1)) -> 1 | Q3: =IFERROR(INDEX($N$1:$N$25,SMALL(IF($N$1:$N$25<>"",ROW($N$1:$N$25)),ROW(B3))),"") -> HR | R3: Ranks | S3: =IF('Guts-2'!$N$2>=ROW(S2),"C","") ->  | T3: Sort by Expert Ranking | U3: =IF('Guts-2'!$N3>0,"Only Show: "&'Guts-2'!M3,"") -> Only Show: 1B | V3: =IFERROR(INDEX($U$1:$U$24,SMALL(IF($U$1:$U$24<>"",ROW($U$1:$U$24)),ROW(B3))),"") -> Only Show: 1B | W3: =IF(ISERROR(VLOOKUP(A2,$N$2:$O$25,2,FALSE)),A2,"") ->  | X3: =IF(ISERROR(VLOOKUP(F2,$N$2:$O$25,2,FALSE)),F2,"") ->  | Y3: =IFERROR(INDEX($W$1:$W$26,SMALL(IF($W$1:$W$26<>"",ROW($W$1:$W$26)),ROW(B2))),"") -> OBP | Z3: =IFERROR(INDEX($X$1:$X$28,SMALL(IF($X$1:$X$28<>"",ROW($X$1:$X$28)),ROW(B2))),"") -> Holds
A4: RBI | B4: =IFERROR(IF(VLOOKUP(A4,Settings!$C$5:$D$16,2,FALSE)="Full",1,IF(VLOOKUP(A4,Settings!$C$5:$D$16,2,FALSE)="Half",0.5,0)),0) -> 1 | C4: 11 | D4: 11 | E4: 28 | F4: ERA | G4: =IFERROR(IF(VLOOKUP(F4,Settings!$C$19:$D$30,2,FALSE)="Full",1,IF(VLOOKUP(F4,Settings!$C$19:$D$30,2,FALSE)="Half",0.5,0)),0) -> 1 | H4: 10 | I4: 29 | J4: 21 | M4: H3 | N4: =IF(ISBLANK(Settings!C7),"",Settings!C7) -> R | O4: 1 | P4: 1 | Q4: =IFERROR(INDEX($N$1:$N$25,SMALL(IF($N$1:$N$25<>"",ROW($N$1:$N$25)),ROW(B4))),"") -> R | R4: List | S4: =IF('Guts-2'!$N$2>=ROW(S3),"C","") ->  | T4: =IF(Q2="","","Sort by "&Q2) -> Sort by AVG | U4: =IF('Guts-2'!$N4>0,"Only Show: "&'Guts-2'!M4,"") -> Only Show: 2B | V4: =IFERROR(INDEX($U$1:$U$24,SMALL(IF($U$1:$U$24<>"",ROW($U$1:$U$24)),ROW(B4))),"") -> Only Show: 2B | Y4: =IFERROR(INDEX($W$1:$W$26,SMALL(IF($W$1:$W$26<>"",ROW($W$1:$W$26)),ROW(B3))),"") -> OPS | Z4: =IFERROR(INDEX($X$1:$X$28,SMALL(IF($X$1:$X$28<>"",ROW($X$1:$X$28)),ROW(B3))),"") -> Sv + Hld
A5: SB | B5: =IFERROR(IF(VLOOKUP(A5,Settings!$C$5:$D$16,2,FALSE)="Full",1,IF(VLOOKUP(A5,Settings!$C$5:$D$16,2,FALSE)="Half",0.5,0)),0) -> 1 | C5: 12 | D5: 12 | E5: 29 | F5: WHIP | G5: =IFERROR(IF(VLOOKUP(F5,Settings!$C$19:$D$30,2,FALSE)="Full",1,IF(VLOOKUP(F5,Settings!$C$19:$D$30,2,FALSE)="Half",0.5,0)),0) -> 1 | H5: 11 | I5: 30 | J5: 22 | M5: H4 | N5: =IF(ISBLANK(Settings!C8),"",Settings!C8) -> RBI | O5: 1 | P5: 1 | Q5: =IFERROR(INDEX($N$1:$N$25,SMALL(IF($N$1:$N$25<>"",ROW($N$1:$N$25)),ROW(B5))),"") -> RBI | R5: Show Stats | S5: =IF('Guts-2'!$N$2>=ROW(S4),"C","") ->  | T5: =IF(Q3="","","Sort by "&Q3) -> Sort by HR | U5: =IF('Guts-2'!$N5>0,"Only Show: "&'Guts-2'!M5,"") -> Only Show: 3B | V5: =IFERROR(INDEX($U$1:$U$24,SMALL(IF($U$1:$U$24<>"",ROW($U$1:$U$24)),ROW(B5))),"") -> Only Show: 3B | Y5: =IFERROR(INDEX($W$1:$W$26,SMALL(IF($W$1:$W$26<>"",ROW($W$1:$W$26)),ROW(B4))),"") -> Net SB | Z5: =IFERROR(INDEX($X$1:$X$28,SMALL(IF($X$1:$X$28<>"",ROW($X$1:$X$28)),ROW(B4))),"") -> K-BB
A6: SLG | B6: =IFERROR(IF(VLOOKUP(A6,Settings!$C$5:$D$16,2,FALSE)="Full",1,IF(VLOOKUP(A6,Settings!$C$5:$D$16,2,FALSE)="Half",0.5,0)),0) -> 0 | C6: 18 | D6: 24 | E6: 39 | F6: QS | G6: =IFERROR(IF(VLOOKUP(F6,Settings!$C$19:$D$30,2,FALSE)="Full",1,IF(VLOOKUP(F6,Settings!$C$19:$D$30,2,FALSE)="Half",0.5,0)),0) -> 0 | H6: 13 | I6: 13 | J6: 24 | M6: H5 | N6: =IF(ISBLANK(Settings!C9),"",Settings!C9) -> SB | O6: 1 | P6: 1 | Q6: =IFERROR(INDEX($N$1:$N$25,SMALL(IF($N$1:$N$25<>"",ROW($N$1:$N$25)),ROW(B6))),"") -> SB | R6: Show WERTH Values | S6: =IF('Guts-2'!$N$3>=ROW(S1),"1B","") -> 1B | T6: Sort by R | U6: =IF('Guts-2'!$N6>0,"Only Show: "&'Guts-2'!M6,"") -> Only Show: SS | V6: =IFERROR(INDEX($U$1:$U$24,SMALL(IF($U$1:$U$24<>"",ROW($U$1:$U$24)),ROW(B6))),"") -> Only Show: SS | Y6: =IFERROR(INDEX($W$1:$W$26,SMALL(IF($W$1:$W$26<>"",ROW($W$1:$W$26)),ROW(B5))),"") -> Total Bases | Z6: =IFERROR(INDEX($X$1:$X$28,SMALL(IF($X$1:$X$28<>"",ROW($X$1:$X$28)),ROW(B5))),"") -> K/BB
A7: OBP | B7: =IFERROR(IF(VLOOKUP(A7,Settings!$C$5:$D$16,2,FALSE)="Full",1,IF(VLOOKUP(A7,Settings!$C$5:$D$16,2,FALSE)="Half",0.5,0)),0) -> 0 | C7: 17 | D7: 23 | E7: 38 | F7: Holds | G7: =IFERROR(IF(VLOOKUP(F7,Settings!$C$19:$D$30,2,FALSE)="Full",1,IF(VLOOKUP(F7,Settings!$C$19:$D$30,2,FALSE)="Half",0.5,0)),0) -> 0 | H7: 17 | I7: 17 | J7: 27 | M7: H6 | N7: =IF(ISBLANK(Settings!C10),"",Settings!C10) ->  | Q7: =IFERROR(INDEX($N$1:$N$25,SMALL(IF($N$1:$N$25<>"",ROW($N$1:$N$25)),ROW(B7))),"") -> W | R7: Show Neither | S7: =IF('Guts-2'!$N$3>=ROW(S2),"1B","") ->  | T7: Sort by RBI | U7: =IF('Guts-2'!$N7>0,"Only Show: "&'Guts-2'!M7,"") -> Only Show: CI | V7: =IFERROR(INDEX($U$1:$U$24,SMALL(IF($U$1:$U$24<>"",ROW($U$1:$U$24)),ROW(B7))),"") -> Only Show: CI | W7: SLG | X7: QS | Y7: =IFERROR(INDEX($W$1:$W$26,SMALL(IF($W$1:$W$26<>"",ROW($W$1:$W$26)),ROW(B6))),"") -> K's | Z7: =IFERROR(INDEX($X$1:$X$28,SMALL(IF($X$1:$X$28<>"",ROW($X$1:$X$28)),ROW(B6))),"") -> K/9
A8: OPS | B8: =IFERROR(IF(VLOOKUP(A8,Settings!$C$5:$D$16,2,FALSE)="Full",1,IF(VLOOKUP(A8,Settings!$C$5:$D$16,2,FALSE)="Half",0.5,0)),0) -> 0 | C8: 19 | D8: 25 | E8: 40 | F8: Sv + Hld | G8: =IFERROR(IF(VLOOKUP(F8,Settings!$C$19:$D$30,2,FALSE)="Full",1,IF(VLOOKUP(F8,Settings!$C$19:$D$30,2,FALSE)="Half",0.5,0)),0) -> 0 | H8: 24 | I8: 24 | J8: 28 | M8: H7 | N8: =IF(ISBLANK(Settings!C11),"",Settings!C11) ->  | Q8: =IFERROR(INDEX($N$1:$N$25,SMALL(IF($N$1:$N$25<>"",ROW($N$1:$N$25)),ROW(B8))),"") -> SV | R8: List | S8: =IF('Guts-2'!$N$3>=ROW(S3),"1B","") ->  | T8: Sort by SB | U8: =IF('Guts-2'!$N8>0,"Only Show: "&'Guts-2'!M8,"") -> Only Show: MI | V8: =IFERROR(INDEX($U$1:$U$24,SMALL(IF($U$1:$U$24<>"",ROW($U$1:$U$24)),ROW(B8))),"") -> Only Show: MI | W8: OBP | X8: Holds | Y8: =IFERROR(INDEX($W$1:$W$26,SMALL(IF($W$1:$W$26<>"",ROW($W$1:$W$26)),ROW(B7))),"") -> Hits | Z8: =IFERROR(INDEX($X$1:$X$28,SMALL(IF($X$1:$X$28<>"",ROW($X$1:$X$28)),ROW(B7))),"") -> CG
A9: Net SB | B9: =IFERROR(IF(VLOOKUP(A9,Settings!$C$5:$D$16,2,FALSE)="Full",1,IF(VLOOKUP(A9,Settings!$C$5:$D$16,2,FALSE)="Half",0.5,0)),0) -> 0 | C9: 31 | D9: 31 | E9: 48 | F9: K-BB | G9: =IFERROR(IF(VLOOKUP(F9,Settings!$C$19:$D$30,2,FALSE)="Full",1,IF(VLOOKUP(F9,Settings!$C$19:$D$30,2,FALSE)="Half",0.5,0)),0) -> 0 | H9: 25 | I9: 25 | J9: 29 | M9: H8 | N9: =IF(ISBLANK(Settings!C12),"",Settings!C12) ->  | Q9: =IFERROR(INDEX($N$1:$N$25,SMALL(IF($N$1:$N$25<>"",ROW($N$1:$N$25)),ROW(B9))),"") -> K | R9: Mixed (Standard) | S9: =IF('Guts-2'!$N$4>=ROW(S1),"2B","") -> 2B | T9: Sort by W | U9: =IF('Guts-2'!$N9>0,"Only Show: "&'Guts-2'!M9,"") -> Only Show: OF | V9: =IFERROR(INDEX($U$1:$U$24,SMALL(IF($U$1:$U$24<>"",ROW($U$1:$U$24)),ROW(B9))),"") -> Only Show: OF | W9: OPS | X9: Sv + Hld | Y9: =IFERROR(INDEX($W$1:$W$26,SMALL(IF($W$1:$W$26<>"",ROW($W$1:$W$26)),ROW(B8))),"") -> BB | Z9: =IFERROR(INDEX($X$1:$X$28,SMALL(IF($X$1:$X$28<>"",ROW($X$1:$X$28)),ROW(B8))),"") -> Shutouts
A10: Total Bases | B10: =IFERROR(IF(VLOOKUP(A10,Settings!$C$5:$D$16,2,FALSE)="Full",1,IF(VLOOKUP(A10,Settings!$C$5:$D$16,2,FALSE)="Half",0.5,0)),0) -> 0 | C10: 20 | D10: 20 | E10: 45 | F10: K/BB | G10: =IFERROR(IF(VLOOKUP(F10,Settings!$C$19:$D$30,2,FALSE)="Full",1,IF(VLOOKUP(F10,Settings!$C$19:$D$30,2,FALSE)="Half",0.5,0)),0) -> 0 | H10: 26 | I10: 33 | J10: 34 | M10: H9 | N10: =IF(ISBLANK(Settings!C13),"",Settings!C13) ->  | Q10: =IFERROR(INDEX($N$1:$N$25,SMALL(IF($N$1:$N$25<>"",ROW($N$1:$N$25)),ROW(B10))),"") -> ERA | R10: AL-Only | S10: =IF('Guts-2'!$N$4>=ROW(S2),"2B","") ->  | T10: Sort by SV | U10: =IF('Guts-2'!$N10>0,"Only Show: "&'Guts-2'!M10,"") -> Only Show: DH | V10: =IFERROR(INDEX($U$1:$U$24,SMALL(IF($U$1:$U$24<>"",ROW($U$1:$U$24)),ROW(B10))),"") -> Only Show: DH | W10: Net SB | X10: K-BB | Y10: =IFERROR(INDEX($W$1:$W$26,SMALL(IF($W$1:$W$26<>"",ROW($W$1:$W$26)),ROW(B9))),"") -> 1B | Z10: =IFERROR(INDEX($X$1:$X$28,SMALL(IF($X$1:$X$28<>"",ROW($X$1:$X$28)),ROW(B9))),"") -> ER
A11: K's | B11: =IFERROR(IF(VLOOKUP(A11,Settings!$C$5:$D$16,2,FALSE)="Full",1,IF(VLOOKUP(A11,Settings!$C$5:$D$16,2,FALSE)="Half",0.5,0)),0) -> 0 | C11: 15 | D11: 15 | E11: 32 | F11: K/9 | G11: =IFERROR(IF(VLOOKUP(F11,Settings!$C$19:$D$30,2,FALSE)="Full",1,IF(VLOOKUP(F11,Settings!$C$19:$D$30,2,FALSE)="Half",0.5,0)),0) -> 0 | H11: 12 | I11: 31 | J11: 23 | M11: H10 | N11: =IF(ISBLANK(Settings!C14),"",Settings!C14) ->  | Q11: =IFERROR(INDEX($N$1:$N$25,SMALL(IF($N$1:$N$25<>"",ROW($N$1:$N$25)),ROW(B11))),"") -> WHIP | R11: NL-Only | S11: =IF('Guts-2'!$N$4>=ROW(S3),"2B","") ->  | T11: Sort by K | U11: Only Show: SP | V11: =IFERROR(INDEX($U$1:$U$24,SMALL(IF($U$1:$U$24<>"",ROW($U$1:$U$24)),ROW(B11))),"") -> Only Show: SP | W11: Total Bases | X11: K/BB | Y11: =IFERROR(INDEX($W$1:$W$26,SMALL(IF($W$1:$W$26<>"",ROW($W$1:$W$26)),ROW(B10))),"") -> 2B | Z11: =IFERROR(INDEX($X$1:$X$28,SMALL(IF($X$1:$X$28<>"",ROW($X$1:$X$28)),ROW(B10))),"") -> BAA
A12: Hits | B12: =IFERROR(IF(VLOOKUP(A12,Settings!$C$5:$D$16,2,FALSE)="Full",1,IF(VLOOKUP(A12,Settings!$C$5:$D$16,2,FALSE)="Half",0.5,0)),0) -> 0 | C12: 6 | D12: 6 | E12: 23 | F12: CG | G12: =IFERROR(IF(VLOOKUP(F12,Settings!$C$19:$D$30,2,FALSE)="Full",1,IF(VLOOKUP(F12,Settings!$C$19:$D$30,2,FALSE)="Half",0.5,0)),0) -> 0 | H12: 19 | I12: 19 | J12: 37 | M12: H11 | N12: =IF(ISBLANK(Settings!C15),"",Settings!C15) ->  | Q12: =IFERROR(INDEX($N$1:$N$25,SMALL(IF($N$1:$N$25<>"",ROW($N$1:$N$25)),ROW(B12))),"") ->  | R12: Specific Teams Only | S12: =IF('Guts-2'!$N$5>=ROW(S1),"3B","") -> 3B | T12: Sort by ERA | U12: Only Show: RP | V12: =IFERROR(INDEX($U$1:$U$24,SMALL(IF($U$1:$U$24<>"",ROW($U$1:$U$24)),ROW(B12))),"") -> Only Show: RP | W12: K's | X12: K/9 | Y12: =IFERROR(INDEX($W$1:$W$26,SMALL(IF($W$1:$W$26<>"",ROW($W$1:$W$26)),ROW(B11))),"") -> 3B | Z12: =IFERROR(INDEX($X$1:$X$28,SMALL(IF($X$1:$X$28<>"",ROW($X$1:$X$28)),ROW(B11))),"") -> Hits Allw
A13: BB | B13: =IFERROR(IF(VLOOKUP(A13,Settings!$C$5:$D$16,2,FALSE)="Full",1,IF(VLOOKUP(A13,Settings!$C$5:$D$16,2,FALSE)="Half",0.5,0)),0) -> 0 | C13: 14 | D13: 14 | E13: 31 | F13: Shutouts | G13: =IFERROR(IF(VLOOKUP(F13,Settings!$C$19:$D$30,2,FALSE)="Full",1,IF(VLOOKUP(F13,Settings!$C$19:$D$30,2,FALSE)="Half",0.5,0)),0) -> 0 | H13: 20 | I13: 20 | J13: 36 | M13: H12 | N13: =IF(ISBLANK(Settings!C16),"",Settings!C16) ->  | Q13: =IFERROR(INDEX($N$1:$N$25,SMALL(IF($N$1:$N$25<>"",ROW($N$1:$N$25)),ROW(B13))),"") ->  | R13: Y | S13: =IF('Guts-2'!$N$5>=ROW(S2),"3B","") ->  | T13: Sort by WHIP | U13: Only Show: P | V13: =IFERROR(INDEX($U$1:$U$24,SMALL(IF($U$1:$U$24<>"",ROW($U$1:$U$24)),ROW(B13))),"") -> Only Show: P | W13: Hits | X13: CG | Y13: =IFERROR(INDEX($W$1:$W$26,SMALL(IF($W$1:$W$26<>"",ROW($W$1:$W$26)),ROW(B12))),"") -> 2B + 3B | Z13: =IFERROR(INDEX($X$1:$X$28,SMALL(IF($X$1:$X$28<>"",ROW($X$1:$X$28)),ROW(B12))),"") -> HR's
A14: 1B | B14: =IFERROR(IF(VLOOKUP(A14,Settings!$C$5:$D$16,2,FALSE)="Full",1,IF(VLOOKUP(A14,Settings!$C$5:$D$16,2,FALSE)="Half",0.5,0)),0) -> 0 | C14: 7 | D14: 7 | E14: 24 | F14: ER | G14: =IFERROR(IF(VLOOKUP(F14,Settings!$C$19:$D$30,2,FALSE)="Full",1,IF(VLOOKUP(F14,Settings!$C$19:$D$30,2,FALSE)="Half",0.5,0)),0) -> 0 | H14: 8 | I14: 8 | J14: 16 | M14: P1 | N14: =IF(ISBLANK(Settings!C19),"",Settings!C19) -> W | O14: =IF(N$1=2,1,IF(OR(N14="ERA",N14="WHIP"),4,IF(OR(N14="K/9",N14="K/BB"),3,IF(N14="BAA",2,IF(N14="","",1))))) -> 1 | P14: =IF(OR(N14="ERA",N14="WHIP"),4,IF(OR(N14="K/9",N14="K/BB"),3,IF(N14="BAA",2,IF(N14="","",1)))) -> 1 | Q14: =IFERROR(INDEX($N$1:$N$25,SMALL(IF($N$1:$N$25<>"",ROW($N$1:$N$25)),ROW(B14))),"") ->  | R14: N | S14: =IF('Guts-2'!$N$5>=ROW(S3),"3B","") ->  | U14: =IF('Guts-2'!$N14>0,"Only Show: "&'Guts-2'!M14,"") ->  | V14: =IFERROR(INDEX($U$1:$U$24,SMALL(IF($U$1:$U$24<>"",ROW($U$1:$U$24)),ROW(B14))),"") ->  | W14: BB | X14: Shutouts | Y14: =IFERROR(INDEX($W$1:$W$26,SMALL(IF($W$1:$W$26<>"",ROW($W$1:$W$26)),ROW(B13))),"") -> R + RBI - HR | Z14: =IFERROR(INDEX($X$1:$X$28,SMALL(IF($X$1:$X$28<>"",ROW($X$1:$X$28)),ROW(B13))),"") -> Walks
A15: 2B | B15: =IFERROR(IF(VLOOKUP(A15,Settings!$C$5:$D$16,2,FALSE)="Full",1,IF(VLOOKUP(A15,Settings!$C$5:$D$16,2,FALSE)="Half",0.5,0)),0) -> 0 | C15: 8 | D15: 8 | E15: 25 | F15: BAA | G15: =IFERROR(IF(VLOOKUP(F15,Settings!$C$19:$D$30,2,FALSE)="Full",1,IF(VLOOKUP(F15,Settings!$C$19:$D$30,2,FALSE)="Half",0.5,0)),0) -> 0 | H15: 18 | I15: 32 | J15: 33 | M15: P2 | N15: =IF(ISBLANK(Settings!C20),"",Settings!C20) -> SV | O15: =IF(N$1=2,1,IF(OR(N15="ERA",N15="WHIP"),4,IF(OR(N15="K/9",N15="K/BB"),3,IF(N15="BAA",2,IF(N15="","",1))))) -> 1 | P15: =IF(OR(N15="ERA",N15="WHIP"),4,IF(OR(N15="K/9",N15="K/BB"),3,IF(N15="BAA",2,IF(N15="","",1)))) -> 1 | Q15: =IFERROR(INDEX($N$1:$N$25,SMALL(IF($N$1:$N$25<>"",ROW($N$1:$N$25)),ROW(B15))),"") ->  | R15: Full | S15: =IF('Guts-2'!$N$6>=ROW(S1),"SS","") -> SS | U15: =IF('Guts-2'!$N15>0,"Only Show: "&'Guts-2'!M15,"") ->  | V15: =IFERROR(INDEX($U$1:$U$24,SMALL(IF($U$1:$U$24<>"",ROW($U$1:$U$24)),ROW(B15))),"") ->  | W15: 1B | X15: ER | Y15: =IFERROR(INDEX($W$1:$W$26,SMALL(IF($W$1:$W$26<>"",ROW($W$1:$W$26)),ROW(B14))),"") -> SB + BB - K | Z15: =IFERROR(INDEX($X$1:$X$28,SMALL(IF($X$1:$X$28<>"",ROW($X$1:$X$28)),ROW(B14))),"") -> L
A16: 3B | B16: =IFERROR(IF(VLOOKUP(A16,Settings!$C$5:$D$16,2,FALSE)="Full",1,IF(VLOOKUP(A16,Settings!$C$5:$D$16,2,FALSE)="Half",0.5,0)),0) -> 0 | C16: 9 | D16: 9 | E16: 26 | F16: Hits Allw | G16: =IFERROR(IF(VLOOKUP(F16,Settings!$C$19:$D$30,2,FALSE)="Full",1,IF(VLOOKUP(F16,Settings!$C$19:$D$30,2,FALSE)="Half",0.5,0)),0) -> 0 | H16: 5 | I16: 5 | J16: 13 | M16: P3 | N16: =IF(ISBLANK(Settings!C21),"",Settings!C21) -> K | O16: 1 | P16: 1 | Q16: =IFERROR(INDEX($N$1:$N$25,SMALL(IF($N$1:$N$25<>"",ROW($N$1:$N$25)),ROW(B16))),"") ->  | R16: Half | S16: =IF('Guts-2'!$N$6>=ROW(S2),"SS","") ->  | U16: =IF('Guts-2'!$N16>0,"Only Show: "&'Guts-2'!M16,"") ->  | V16: =IFERROR(INDEX($U$1:$U$24,SMALL(IF($U$1:$U$24<>"",ROW($U$1:$U$24)),ROW(B16))),"") ->  | W16: 2B | X16: BAA | Y16: =IFERROR(INDEX($W$1:$W$26,SMALL(IF($W$1:$W$26<>"",ROW($W$1:$W$26)),ROW(B15))),"") -> CS | Z16: =IFERROR(INDEX($X$1:$X$28,SMALL(IF($X$1:$X$28<>"",ROW($X$1:$X$28)),ROW(B15))),"") -> IP
A17: 2B + 3B | B17: =IFERROR(IF(VLOOKUP(A17,Settings!$C$5:$D$16,2,FALSE)="Full",1,IF(VLOOKUP(A17,Settings!$C$5:$D$16,2,FALSE)="Half",0.5,0)),0) -> 0 | C17: 30 | D17: 30 | E17: 47 | F17: HR's | G17: =IFERROR(IF(VLOOKUP(F17,Settings!$C$19:$D$30,2,FALSE)="Full",1,IF(VLOOKUP(F17,Settings!$C$19:$D$30,2,FALSE)="Half",0.5,0)),0) -> 0 | H17: 16 | I17: 16 | J17: 31 | M17: P4 | N17: =IF(ISBLANK(Settings!C22),"",Settings!C22) -> ERA | O17: 4 | P17: 4 | Q17: =IFERROR(INDEX($N$1:$N$25,SMALL(IF($N$1:$N$25<>"",ROW($N$1:$N$25)),ROW(B17))),"") ->  | R17: Snake Draft | S17: =IF('Guts-2'!$N$6>=ROW(S3),"SS","") ->  | U17: =IF('Guts-2'!$N17>0,"Only Show: "&'Guts-2'!M17,"") ->  | V17: =IFERROR(INDEX($U$1:$U$24,SMALL(IF($U$1:$U$24<>"",ROW($U$1:$U$24)),ROW(B17))),"") ->  | W17: 3B | X17: Hits Allw | Y17: =IFERROR(INDEX($W$1:$W$26,SMALL(IF($W$1:$W$26<>"",ROW($W$1:$W$26)),ROW(B16))),"") -> Errors | Z17: =IFERROR(INDEX($X$1:$X$28,SMALL(IF($X$1:$X$28<>"",ROW($X$1:$X$28)),ROW(B16))),"") -> GS
A18: R + RBI - HR | B18: =IFERROR(IF(VLOOKUP(A18,Settings!$C$5:$D$16,2,FALSE)="Full",1,IF(VLOOKUP(A18,Settings!$C$5:$D$16,2,FALSE)="Half",0.5,0)),0) -> 0 | C18: 21 | D18: 21 | E18: 46 | F18: Walks | G18: =IFERROR(IF(VLOOKUP(F18,Settings!$C$19:$D$30,2,FALSE)="Full",1,IF(VLOOKUP(F18,Settings!$C$19:$D$30,2,FALSE)="Half",0.5,0)),0) -> 0 | H18: 6 | I18: 6 | J18: 14 | M18: P5 | N18: =IF(ISBLANK(Settings!C23),"",Settings!C23) -> WHIP | O18: 4 | P18: 4 | Q18: =IFERROR(INDEX($N$1:$N$25,SMALL(IF($N$1:$N$25<>"",ROW($N$1:$N$25)),ROW(B18))),"") ->  | R18: Same Order Every Round | S18: =IF('Guts-2'!$N$7>=ROW(S1),"CI","") -> CI | W18: 2B + 3B | X18: HR's | Y18: =IFERROR(INDEX($W$1:$W$26,SMALL(IF($W$1:$W$26<>"",ROW($W$1:$W$26)),ROW(B17))),"") -> XBH | Z18: =IFERROR(INDEX($X$1:$X$28,SMALL(IF($X$1:$X$28<>"",ROW($X$1:$X$28)),ROW(B17))),"") -> Games
A19: SB + BB - K | B19: =IFERROR(IF(VLOOKUP(A19,Settings!$C$5:$D$16,2,FALSE)="Full",1,IF(VLOOKUP(A19,Settings!$C$5:$D$16,2,FALSE)="Half",0.5,0)),0) -> 0 | C19: 32 | D19: 32 | E19: 49 | F19: L | G19: =IFERROR(IF(VLOOKUP(F19,Settings!$C$19:$D$30,2,FALSE)="Full",1,IF(VLOOKUP(F19,Settings!$C$19:$D$30,2,FALSE)="Half",0.5,0)),0) -> 0 | H19: 3 | I19: 3 | J19: 11 | M19: P6 | N19: =IF(ISBLANK(Settings!C24),"",Settings!C24) ->  | Q19: =IFERROR(INDEX($N$1:$N$25,SMALL(IF($N$1:$N$25<>"",ROW($N$1:$N$25)),ROW(B19))),"") ->  | R19: Show Drafted Players | S19: =IF('Guts-2'!$N$7>=ROW(S2),"CI","") ->  | W19: R + RBI - HR | X19: Walks | Y19: =IFERROR(INDEX($W$1:$W$26,SMALL(IF($W$1:$W$26<>"",ROW($W$1:$W$26)),ROW(B18))),"") -> HBP | Z19: =IFERROR(INDEX($X$1:$X$28,SMALL(IF($X$1:$X$28<>"",ROW($X$1:$X$28)),ROW(B18))),"") -> GF
A20: CS | B20: =IFERROR(IF(VLOOKUP(A20,Settings!$C$5:$D$16,2,FALSE)="Full",1,IF(VLOOKUP(A20,Settings!$C$5:$D$16,2,FALSE)="Half",0.5,0)),0) -> 0 | C20: 13 | D20: 13 | E20: 30 | F20: IP | G20: =IFERROR(IF(VLOOKUP(F20,Settings!$C$19:$D$30,2,FALSE)="Full",1,IF(VLOOKUP(F20,Settings!$C$19:$D$30,2,FALSE)="Half",0.5,0)),0) -> 0 | H20: 4 | I20: 4 | J20: 12 | M20: P7 | N20: =IF(ISBLANK(Settings!C25),"",Settings!C25) ->  | Q20: =IFERROR(INDEX($N$1:$N$25,SMALL(IF($N$1:$N$25<>"",ROW($N$1:$N$25)),ROW(B20))),"") ->  | R20: Hide Drafted Players | S20: =IF('Guts-2'!$N$7>=ROW(S3),"CI","") ->  | W20: SB + BB - K | X20: L | Y20: =IFERROR(INDEX($W$1:$W$26,SMALL(IF($W$1:$W$26<>"",ROW($W$1:$W$26)),ROW(B19))),"") ->  | Z20: =IFERROR(INDEX($X$1:$X$28,SMALL(IF($X$1:$X$28<>"",ROW($X$1:$X$28)),ROW(B19))),"") -> Blown Sv
A21: Errors | B21: =IFERROR(IF(VLOOKUP(A21,Settings!$C$5:$D$16,2,FALSE)="Full",1,IF(VLOOKUP(A21,Settings!$C$5:$D$16,2,FALSE)="Half",0.5,0)),0) -> 0 | C21: 33 | D21: 33 | E21: 50 | F21: GS | G21: =IFERROR(IF(VLOOKUP(F21,Settings!$C$19:$D$30,2,FALSE)="Full",1,IF(VLOOKUP(F21,Settings!$C$19:$D$30,2,FALSE)="Half",0.5,0)),0) -> 0 | H21: 14 | I21: 14 | J21: 35 | M21: P8 | N21: =IF(ISBLANK(Settings!C26),"",Settings!C26) ->  | Q21: =IFERROR(INDEX($N$1:$N$25,SMALL(IF($N$1:$N$25<>"",ROW($N$1:$N$25)),ROW(B21))),"") ->  | R21: All Teams Have Same Budget | S21: =IF('Guts-2'!$N$8>=ROW(S1),"MI","") -> MI | W21: CS | X21: IP | Y21: =IFERROR(INDEX($W$1:$W$26,SMALL(IF($W$1:$W$26<>"",ROW($W$1:$W$26)),ROW(B20))),"") ->  | Z21: =IFERROR(INDEX($X$1:$X$28,SMALL(IF($X$1:$X$28<>"",ROW($X$1:$X$28)),ROW(B20))),"") -> Net Sv
A22: XBH | B22: =IFERROR(IF(VLOOKUP(A22,Settings!$C$5:$D$16,2,FALSE)="Full",1,IF(VLOOKUP(A22,Settings!$C$5:$D$16,2,FALSE)="Half",0.5,0)),0) -> 0 | C22: 34 | D22: 34 | E22: 51 | F22: Games | G22: =IFERROR(IF(VLOOKUP(F22,Settings!$C$19:$D$30,2,FALSE)="Full",1,IF(VLOOKUP(F22,Settings!$C$19:$D$30,2,FALSE)="Half",0.5,0)),0) -> 0 | H22: 15 | I22: 15 | J22: 38 | M22: P9 | N22: =IF(ISBLANK(Settings!C27),"",Settings!C27) ->  | Q22: =IFERROR(INDEX($N$1:$N$25,SMALL(IF($N$1:$N$25<>"",ROW($N$1:$N$25)),ROW(B26))),"") ->  | R22: Budgets Vary By Team | S22: =IF('Guts-2'!$N$8>=ROW(S2),"MI","") ->  | W22: Errors | X22: GS | Y22: =IFERROR(INDEX($W$1:$W$26,SMALL(IF($W$1:$W$26<>"",ROW($W$1:$W$26)),ROW(B21))),"") ->  | Z22: =IFERROR(INDEX($X$1:$X$28,SMALL(IF($X$1:$X$28<>"",ROW($X$1:$X$28)),ROW(B21))),"") -> H/9
A23: HBP | B23: =IFERROR(IF(VLOOKUP(A23,Settings!$C$5:$D$16,2,FALSE)="Full",1,IF(VLOOKUP(A23,Settings!$C$5:$D$16,2,FALSE)="Half",0.5,0)),0) -> 0 | C23: 35 | D23: 35 | E23: 52 | F23: GF | G23: =IFERROR(IF(VLOOKUP(F23,Settings!$C$19:$D$30,2,FALSE)="Full",1,IF(VLOOKUP(F23,Settings!$C$19:$D$30,2,FALSE)="Half",0.5,0)),0) -> 0 | H23: 21 | I23: 21 | J23: 39 | M23: P10 | N23: =IF(ISBLANK(Settings!C28),"",Settings!C28) ->  | Q23: =IFERROR(INDEX($N$1:$N$25,SMALL(IF($N$1:$N$25<>"",ROW($N$1:$N$25)),ROW(B27))),"") ->  | R23: Values Adjusted By Position | S23: =IF('Guts-2'!$N$8>=ROW(S3),"MI","") ->  | W23: XBH | X23: Games | Z23: =IFERROR(INDEX($X$1:$X$28,SMALL(IF($X$1:$X$28<>"",ROW($X$1:$X$28)),ROW(B22))),"") -> IP-ER
F24: Blown Sv | G24: =IFERROR(IF(VLOOKUP(F24,Settings!$C$19:$D$30,2,FALSE)="Full",1,IF(VLOOKUP(F24,Settings!$C$19:$D$30,2,FALSE)="Half",0.5,0)),0) -> 0 | H24: 22 | I24: 22 | J24: 40 | M24: P11 | N24: =IF(ISBLANK(Settings!C29),"",Settings!C29) ->  | Q24: =IFERROR(INDEX($N$1:$N$25,SMALL(IF($N$1:$N$25<>"",ROW($N$1:$N$25)),ROW(B28))),"") ->  | R24: Turn Off Position Adjustments | S24: =IF('Guts-2'!$N$17>=ROW(S1),"IF","") ->  | W24: HBP | X24: GF | Z24: =IFERROR(INDEX($X$1:$X$27,SMALL(IF($X$1:$X$27<>"",ROW($X$1:$X$27)),ROW(B23))),"") -> 
F25: Net Sv | G25: =IFERROR(IF(VLOOKUP(F25,Settings!$C$19:$D$30,2,FALSE)="Full",1,IF(VLOOKUP(F25,Settings!$C$19:$D$30,2,FALSE)="Half",0.5,0)),0) -> 0 | H25: 23 | I25: 23 | J25: 41 | M25: P12 | N25: =IF(ISBLANK(Settings!C30),"",Settings!C30) ->  | Q25: =IFERROR(INDEX($N$1:$N$25,SMALL(IF($N$1:$N$25<>"",ROW($N$1:$N$25)),ROW(B29))),"") ->  | S25: =IF('Guts-2'!$N$17>=ROW(S2),"IF","") ->  | X25: Blown Sv | Z25: =IFERROR(INDEX($X$1:$X$27,SMALL(IF($X$1:$X$27<>"",ROW($X$1:$X$27)),ROW(B24))),"") -> 
A26: Budget Per Team | B26: =Settings!K6 -> 260 | F26: H/9 | G26: =IFERROR(IF(VLOOKUP(F26,Settings!$C$19:$D$30,2,FALSE)="Full",1,IF(VLOOKUP(F26,Settings!$C$19:$D$30,2,FALSE)="Half",0.5,0)),0) -> 0 | H26: 27 | I26: 28 | J26: 43 | R26: Hot | S26: =IF('Guts-2'!$N$17>=ROW(S3),"IF","") ->  | X26: Net Sv | Z26: =IFERROR(INDEX($X$1:$X$27,SMALL(IF($X$1:$X$27<>"",ROW($X$1:$X$27)),ROW(B25))),"") -> 
A27: Players Per Team | B27: =Settings!G26 -> 22 | C27: =SUM('Guts-2'!N2:N17) -> 18 | F27: IP-ER | G27: =IFERROR(IF(VLOOKUP(F27,Settings!$C$19:$D$30,2,FALSE)="Full",1,IF(VLOOKUP(F27,Settings!$C$19:$D$30,2,FALSE)="Half",0.5,0)),0) -> 0 | H27: 34 | I27: 34 | J27: 44 | R27: Cold | S27: =IF('Guts-2'!$N$17>=ROW(S4),"IF","") ->  | X27: H/9 | Z27: =IFERROR(INDEX($X$1:$X$27,SMALL(IF($X$1:$X$27<>"",ROW($X$1:$X$27)),ROW(B26))),"") -> 
A28: Total League Money | B28: =IF(Settings!K8="All Teams Have Same Budget",Settings!K5*Settings!K6,SUM(Settings!L12:L35)) -> 3120 | R28: Target | S28: =IF('Guts-2'!$N$17>=ROW(S5),"IF","") ->  | X28: IP-ER
A29: Minimum Bid | B29: =Settings!K7 -> 1 | F29: Budget Per Team | R29: Avoid | S29: =IF('Guts-2'!$N$17>=ROW(S6),"IF","") -> 
A30: Minimum Amount To Spend | B30: =B27*'Guts-2'!N1*B29 -> 264 | F30: Players Per Team | R30: Injury | S30: =IF('Guts-2'!$N$9>=ROW(S1),"OF","") -> OF
A31: Hitter Min | B31: ='Filtered-H'!AP17 -> 132 | R31: Note | S31: =IF('Guts-2'!$N$9>=ROW(S2),"OF","") -> OF
... 38 more rows

Sheet Guts-2 (hidden)
B1: RotoChamp (Projected Value) | D1: THE BAT | E1: Teams | F1: Starters | G1: THE BAT | H1: =IF(OR(Settings!$P$35<>100,Settings!$O$35<>100),0,Settings!O26) -> 20 | I1: =IF(OR(Settings!$P$35<>100,Settings!$O$35<>100),0,Settings!P26) -> 20 | J1: LAA | K1: =IF(OR(Settings!$R$5="AL-Only",Settings!$R$5="Mixed (Standard)"),TRUE,IF(Settings!$R$5="Specific Teams Only",IF(Settings!T6="Y",TRUE,FALSE),FALSE)) -> TRUE | L1: C | M1: # of Teams | N1: =Settings!K5 -> 12 | P1: =IFERROR(INDEX($O$1:$O$19,SMALL(IF($O$1:$O$19<>"",ROW($O$1:$O$19)),ROW(O1))),"") -> C
A2: =IF($N$1>=ROW(A1),Settings!K12,#N/A) -> Team 1 | B2: CBS (Projected Value) | C2: ESPN - T. Cockcroft | D2: Clay Davenport | E2: 6 | F2: 0 | G2: Clay Davenport | H2: =IF(OR(Settings!$P$35<>100,Settings!$O$35<>100),0,Settings!O27) -> 20 | I2: =IF(OR(Settings!$P$35<>100,Settings!$O$35<>100),0,Settings!P27) -> 20 | J2: ARI | K2: =IF(OR(Settings!$R$5="NL-Only",Settings!$R$5="Mixed (Standard)"),TRUE,IF(Settings!$R$5="Specific Teams Only",IF(Settings!T7="Y",TRUE,FALSE),FALSE)) -> TRUE | L2: 1B | M2: C | N2: =Settings!G5 -> 1 | O2: =IF(N2>0,M2,"") -> C | P2: =IFERROR(INDEX($O$1:$O$19,SMALL(IF($O$1:$O$19<>"",ROW($O$1:$O$19)),ROW(O2))),"") -> 1B
A3: =IF($N$1>=ROW(A2),Settings!K13,#N/A) -> Team 2 | B3: ESPN (Avg Mock Draft Value) | C3: ESPN - E. Karabell | D3: Fangraphs - Depth Chart | E3: 7 | F3: 1 | G3: Fangraphs - Depth Chart | H3: =IF(OR(Settings!$P$35<>100,Settings!$O$35<>100),0,Settings!O28) -> 0 | I3: =IF(OR(Settings!$P$35<>100,Settings!$O$35<>100),0,Settings!P28) -> 0 | J3: ATL | K3: =IF(OR(Settings!$R$5="NL-Only",Settings!$R$5="Mixed (Standard)"),TRUE,IF(Settings!$R$5="Specific Teams Only",IF(Settings!T8="Y",TRUE,FALSE),FALSE)) -> TRUE | L3: 2B | M3: 1B | N3: =Settings!G6 -> 1 | O3: =IF(N3>0,M3,"") -> 1B | P3: =IFERROR(INDEX($O$1:$O$19,SMALL(IF($O$1:$O$19<>"",ROW($O$1:$O$19)),ROW(O3))),"") -> 2B
A4: =IF($N$1>=ROW(A3),Settings!K14,#N/A) -> Team 3 | B4: Yahoo (Projected Value) | D4: Fangraphs - Fan Projections | E4: 8 | F4: 2 | G4: Fangraphs - Fan Projections | H4: =IF(OR(Settings!$P$35<>100,Settings!$O$35<>100),0,Settings!O29) -> 0 | I4: =IF(OR(Settings!$P$35<>100,Settings!$O$35<>100),0,Settings!P29) -> 0 | J4: BAL | K4: =IF(OR(Settings!$R$5="AL-Only",Settings!$R$5="Mixed (Standard)"),TRUE,IF(Settings!$R$5="Specific Teams Only",IF(Settings!T9="Y",TRUE,FALSE),FALSE)) -> TRUE | L4: 3B | M4: 2B | N4: =Settings!G7 -> 1 | O4: 2B | P4: =IFERROR(INDEX($O$1:$O$19,SMALL(IF($O$1:$O$19<>"",ROW($O$1:$O$19)),ROW(O4))),"") -> 3B
A5: =IF($N$1>=ROW(A4),Settings!K15,#N/A) -> Team 4 | B5: Yahoo (Avg Mock Draft Value) | D5: Mr. Cheatsheet's Special Blend | E5: 9 | F5: 3 | G5: Steamer | H5: =IF(OR(Settings!$P$35<>100,Settings!$O$35<>100),0,Settings!O30) -> 40 | I5: =IF(OR(Settings!$P$35<>100,Settings!$O$35<>100),0,Settings!P30) -> 40 | J5: BOS | K5: =IF(OR(Settings!$R$5="AL-Only",Settings!$R$5="Mixed (Standard)"),TRUE,IF(Settings!$R$5="Specific Teams Only",IF(Settings!T10="Y",TRUE,FALSE),FALSE)) -> TRUE | L5: SS | M5: 3B | N5: =Settings!G8 -> 1 | O5: 3B | P5: =IFERROR(INDEX($O$1:$O$19,SMALL(IF($O$1:$O$19<>"",ROW($O$1:$O$19)),ROW(O5))),"") -> SS
A6: =IF($N$1>=ROW(A5),Settings!K16,#N/A) -> Team 5 | C6: RotoChamp | D6: Special Blend w/ Steamer Replacements | E6: 10 | F6: 4 | G6: Steamer - 600 PA | H6: =IF(OR(Settings!$P$35<>100,Settings!$O$35<>100),0,Settings!O31) -> 0 | I6: =IF(OR(Settings!$P$35<>100,Settings!$O$35<>100),0,Settings!P31) -> 0 | J6: CHC | K6: =IF(OR(Settings!$R$5="NL-Only",Settings!$R$5="Mixed (Standard)"),TRUE,IF(Settings!$R$5="Specific Teams Only",IF(Settings!T11="Y",TRUE,FALSE),FALSE)) -> TRUE | L6: OF | M6: SS | N6: =Settings!G9 -> 1 | O6: SS | P6: =IFERROR(INDEX($O$1:$O$19,SMALL(IF($O$1:$O$19<>"",ROW($O$1:$O$19)),ROW(O6))),"") -> CI
A7: =IF($N$1>=ROW(A6),Settings!K17,#N/A) -> Team 6 | B7: FantasyPros (Projected Value) | C7: Yahoo Staff | D7: Steamer | E7: 11 | F7: 5 | G7: ZiPS | H7: =IF(OR(Settings!$P$35<>100,Settings!$O$35<>100),0,Settings!O32) -> 20 | I7: =IF(OR(Settings!$P$35<>100,Settings!$O$35<>100),0,Settings!P32) -> 20 | J7: CWS | K7: =IF(OR(Settings!$R$5="AL-Only",Settings!$R$5="Mixed (Standard)"),TRUE,IF(Settings!$R$5="Specific Teams Only",IF(Settings!T12="Y",TRUE,FALSE),FALSE)) -> TRUE | L7: SP | M7: CI | N7: =Settings!G12 -> 1 | O7: CI | P7: =IFERROR(INDEX($O$1:$O$19,SMALL(IF($O$1:$O$19<>"",ROW($O$1:$O$19)),ROW(O7))),"") -> MI
A8: =IF($N$1>=ROW(A7),Settings!K18,#N/A) -> Team 7 | B8: Average of All Options | C8: FantasyPros Avg | D8: Steamer - 600 PA | E8: 12 | F8: 6 | J8: CIN | K8: =IF(OR(Settings!$R$5="NL-Only",Settings!$R$5="Mixed (Standard)"),TRUE,IF(Settings!$R$5="Specific Teams Only",IF(Settings!T13="Y",TRUE,FALSE),FALSE)) -> TRUE | L8: RP | M8: MI | N8: =Settings!G13 -> 1 | O8: MI | P8: =IFERROR(INDEX($O$1:$O$19,SMALL(IF($O$1:$O$19<>"",ROW($O$1:$O$19)),ROW(O8))),"") -> OF
A9: =IF($N$1>=ROW(A8),Settings!K19,#N/A) -> Team 8 | B9: Imported Values | C9: =IFERROR(INDEX($C$1:$C$8,SMALL(IF($C$1:$C$8<>"",ROW($C$1:$C$8)),ROW(C1))),"") -> ESPN - T. Cockcroft | D9: ZiPS | E9: 13 | F9: 7 | J9: CLE | K9: =IF(OR(Settings!$R$5="AL-Only",Settings!$R$5="Mixed (Standard)"),TRUE,IF(Settings!$R$5="Specific Teams Only",IF(Settings!T14="Y",TRUE,FALSE),FALSE)) -> TRUE | L9: DH | M9: OF | N9: =Settings!G10 -> 3 | O9: OF | P9: =IFERROR(INDEX($O$1:$O$19,SMALL(IF($O$1:$O$19<>"",ROW($O$1:$O$19)),ROW(O9))),"") -> DH
A10: =IF($N$1>=ROW(A9),Settings!K20,#N/A) -> Team 9 | C10: =IFERROR(INDEX($C$1:$C$8,SMALL(IF($C$1:$C$8<>"",ROW($C$1:$C$8)),ROW(C2))),"") -> ESPN - E. Karabell | D10: Import Your Own Projections | E10: 14 | F10: 8 | J10: COL | K10: =IF(OR(Settings!$R$5="NL-Only",Settings!$R$5="Mixed (Standard)"),TRUE,IF(Settings!$R$5="Specific Teams Only",IF(Settings!T15="Y",TRUE,FALSE),FALSE)) -> TRUE | M10: DH | N10: =Settings!G11 -> 1 | O10: DH | P10: =IFERROR(INDEX($O$1:$O$19,SMALL(IF($O$1:$O$19<>"",ROW($O$1:$O$19)),ROW(O10))),"") -> SP
A11: =IF($N$1>=ROW(A10),Settings!K21,#N/A) -> Team 10 | B11: =IFERROR(INDEX($B$1:$B$10,SMALL(IF($B$1:$B$10<>"",ROW($B$1:$B$10)),ROW(B1))),"") -> RotoChamp (Projected Value) | C11: =IFERROR(INDEX($C$1:$C$8,SMALL(IF($C$1:$C$8<>"",ROW($C$1:$C$8)),ROW(C3))),"") -> RotoChamp | D11: Your Own Custom Combination | E11: 15 | F11: 9 | J11: DET | K11: =IF(OR(Settings!$R$5="AL-Only",Settings!$R$5="Mixed (Standard)"),TRUE,IF(Settings!$R$5="Specific Teams Only",IF(Settings!T16="Y",TRUE,FALSE),FALSE)) -> TRUE | M11: SP | N11: =Settings!G19 -> 4 | O11: SP | P11: =IFERROR(INDEX($O$1:$O$19,SMALL(IF($O$1:$O$19<>"",ROW($O$1:$O$19)),ROW(O11))),"") -> RP
A12: =IF($N$1>=ROW(A11),Settings!K22,#N/A) -> Team 11 | B12: =IFERROR(INDEX($B$1:$B$10,SMALL(IF($B$1:$B$10<>"",ROW($B$1:$B$10)),ROW(B2))),"") -> CBS (Projected Value) | C12: =IFERROR(INDEX($C$1:$C$8,SMALL(IF($C$1:$C$8<>"",ROW($C$1:$C$8)),ROW(C4))),"") -> Yahoo Staff | E12: 16 | F12: 10 | J12: HOU | K12: =IF(OR(Settings!$R$5="AL-Only",Settings!$R$5="Mixed (Standard)"),TRUE,IF(Settings!$R$5="Specific Teams Only",IF(Settings!T17="Y",TRUE,FALSE),FALSE)) -> TRUE | M12: RP | N12: =Settings!G20 -> 2 | O12: RP | P12: =IFERROR(INDEX($O$1:$O$19,SMALL(IF($O$1:$O$19<>"",ROW($O$1:$O$19)),ROW(O12))),"") -> P
A13: =IF($N$1>=ROW(A12),Settings!K23,#N/A) -> Team 12 | B13: =IFERROR(INDEX($B$1:$B$10,SMALL(IF($B$1:$B$10<>"",ROW($B$1:$B$10)),ROW(B3))),"") -> ESPN (Avg Mock Draft Value) | C13: =IFERROR(INDEX($C$1:$C$8,SMALL(IF($C$1:$C$8<>"",ROW($C$1:$C$8)),ROW(C5))),"") -> FantasyPros Avg | E13: 17 | F13: 11 | J13: KC | K13: =IF(OR(Settings!$R$5="AL-Only",Settings!$R$5="Mixed (Standard)"),TRUE,IF(Settings!$R$5="Specific Teams Only",IF(Settings!T18="Y",TRUE,FALSE),FALSE)) -> TRUE | M13: P | N13: =Settings!G21 -> 1 | O13: P | P13: =IFERROR(INDEX($O$1:$O$19,SMALL(IF($O$1:$O$19<>"",ROW($O$1:$O$19)),ROW(O13))),"") -> Bench
A14: =IF($N$1>=ROW(A13),Settings!K24,#N/A) ->  | B14: =IFERROR(INDEX($B$1:$B$10,SMALL(IF($B$1:$B$10<>"",ROW($B$1:$B$10)),ROW(B4))),"") -> Yahoo (Projected Value) | C14: =IFERROR(INDEX($C$1:$C$8,SMALL(IF($C$1:$C$8<>"",ROW($C$1:$C$8)),ROW(C6))),"") ->  | D14: =IFERROR(INDEX($D$1:$D$12,SMALL(IF($D$1:$D$12<>"",ROW($D$1:$D$12)),ROW(D1))),"") -> THE BAT | E14: 18 | F14: 12 | J14: LAD | K14: =IF(OR(Settings!$R$5="NL-Only",Settings!$R$5="Mixed (Standard)"),TRUE,IF(Settings!$R$5="Specific Teams Only",IF(Settings!T19="Y",TRUE,FALSE),FALSE)) -> TRUE | M14: LF | N14: =Settings!G15 -> 0 | P14: =IFERROR(INDEX($O$1:$O$19,SMALL(IF($O$1:$O$19<>"",ROW($O$1:$O$19)),ROW(O14))),"") -> 
A15: =IF($N$1>=ROW(A14),Settings!K25,#N/A) ->  | B15: =IFERROR(INDEX($B$1:$B$10,SMALL(IF($B$1:$B$10<>"",ROW($B$1:$B$10)),ROW(B5))),"") -> Yahoo (Avg Mock Draft Value) | C15: =IFERROR(INDEX($C$1:$C$8,SMALL(IF($C$1:$C$8<>"",ROW($C$1:$C$8)),ROW(C7))),"") ->  | D15: =IFERROR(INDEX($D$1:$D$12,SMALL(IF($D$1:$D$12<>"",ROW($D$1:$D$12)),ROW(D2))),"") -> Clay Davenport | E15: 19 | F15: 13 | J15: MIA | K15: =IF(OR(Settings!$R$5="NL-Only",Settings!$R$5="Mixed (Standard)"),TRUE,IF(Settings!$R$5="Specific Teams Only",IF(Settings!T20="Y",TRUE,FALSE),FALSE)) -> TRUE | M15: CF | N15: =Settings!G16 -> 0 | P15: =IFERROR(INDEX($O$1:$O$19,SMALL(IF($O$1:$O$19<>"",ROW($O$1:$O$19)),ROW(O15))),"") -> 
A16: =IF($N$1>=ROW(A15),Settings!K26,#N/A) ->  | B16: =IFERROR(INDEX($B$1:$B$10,SMALL(IF($B$1:$B$10<>"",ROW($B$1:$B$10)),ROW(B6))),"") -> FantasyPros (Projected Value) | C16: =IFERROR(INDEX($C$1:$C$8,SMALL(IF($C$1:$C$8<>"",ROW($C$1:$C$8)),ROW(C8))),"") ->  | D16: =IFERROR(INDEX($D$1:$D$12,SMALL(IF($D$1:$D$12<>"",ROW($D$1:$D$12)),ROW(D3))),"") -> Fangraphs - Depth Chart | E16: 20 | F16: 14 | J16: MIL | K16: =IF(OR(Settings!$R$5="NL-Only",Settings!$R$5="Mixed (Standard)"),TRUE,IF(Settings!$R$5="Specific Teams Only",IF(Settings!T21="Y",TRUE,FALSE),FALSE)) -> TRUE | M16: RF | N16: =Settings!G17 -> 0 | P16: =IFERROR(INDEX($O$1:$O$19,SMALL(IF($O$1:$O$19<>"",ROW($O$1:$O$19)),ROW(O16))),"") -> 
A17: =IF($N$1>=ROW(A16),Settings!K27,#N/A) ->  | B17: =IFERROR(INDEX($B$1:$B$10,SMALL(IF($B$1:$B$10<>"",ROW($B$1:$B$10)),ROW(B7))),"") -> Average of All Options | D17: =IFERROR(INDEX($D$1:$D$12,SMALL(IF($D$1:$D$12<>"",ROW($D$1:$D$12)),ROW(D4))),"") -> Fangraphs - Fan Projections | E17: 21 | F17: 15 | J17: MIN | K17: =IF(OR(Settings!$R$5="AL-Only",Settings!$R$5="Mixed (Standard)"),TRUE,IF(Settings!$R$5="Specific Teams Only",IF(Settings!T22="Y",TRUE,FALSE),FALSE)) -> TRUE | M17: IF | N17: =Settings!G14 -> 0 | P17: =IFERROR(INDEX($O$1:$O$19,SMALL(IF($O$1:$O$19<>"",ROW($O$1:$O$19)),ROW(O17))),"") -> 
A18: =IF($N$1>=ROW(A17),Settings!K28,#N/A) ->  | B18: =IFERROR(INDEX($B$1:$B$10,SMALL(IF($B$1:$B$10<>"",ROW($B$1:$B$10)),ROW(B8))),"") -> Imported Values | D18: =IFERROR(INDEX($D$1:$D$12,SMALL(IF($D$1:$D$12<>"",ROW($D$1:$D$12)),ROW(D5))),"") -> Mr. Cheatsheet's Special Blend | E18: 22 | F18: 16 | J18: NYM | K18: =IF(OR(Settings!$R$5="NL-Only",Settings!$R$5="Mixed (Standard)"),TRUE,IF(Settings!$R$5="Specific Teams Only",IF(Settings!T23="Y",TRUE,FALSE),FALSE)) -> TRUE | O18: Bench | P18: =IFERROR(INDEX($O$1:$O$19,SMALL(IF($O$1:$O$19<>"",ROW($O$1:$O$19)),ROW(O18))),"") -> 
A19: =IF($N$1>=ROW(A18),Settings!K29,#N/A) ->  | B19: =IFERROR(INDEX($B$1:$B$10,SMALL(IF($B$1:$B$10<>"",ROW($B$1:$B$10)),ROW(B9))),"") ->  | D19: =IFERROR(INDEX($D$1:$D$12,SMALL(IF($D$1:$D$12<>"",ROW($D$1:$D$12)),ROW(D6))),"") -> Special Blend w/ Steamer Replacements | E19: 23 | F19: 17 | J19: NYY | K19: =IF(OR(Settings!$R$5="AL-Only",Settings!$R$5="Mixed (Standard)"),TRUE,IF(Settings!$R$5="Specific Teams Only",IF(Settings!T24="Y",TRUE,FALSE),FALSE)) -> TRUE
A20: =IF($N$1>=ROW(A19),Settings!K30,#N/A) ->  | B20: =IFERROR(INDEX($B$1:$B$10,SMALL(IF($B$1:$B$10<>"",ROW($B$1:$B$10)),ROW(B10))),"") ->  | D20: =IFERROR(INDEX($D$1:$D$12,SMALL(IF($D$1:$D$12<>"",ROW($D$1:$D$12)),ROW(D7))),"") -> Steamer | E20: 24 | F20: 18 | J20: OAK | K20: =IF(OR(Settings!$R$5="AL-Only",Settings!$R$5="Mixed (Standard)"),TRUE,IF(Settings!$R$5="Specific Teams Only",IF(Settings!T25="Y",TRUE,FALSE),FALSE)) -> TRUE
A21: =IF($N$1>=ROW(A20),Settings!K31,#N/A) ->  | B21: =IFERROR(INDEX($B$1:$B$10,SMALL(IF($B$1:$B$10<>"",ROW($B$1:$B$10)),ROW(B11))),"") ->  | D21: =IFERROR(INDEX($D$1:$D$12,SMALL(IF($D$1:$D$12<>"",ROW($D$1:$D$12)),ROW(D8))),"") -> Steamer - 600 PA | F21: 19 | J21: PHI | K21: =IF(OR(Settings!$R$5="NL-Only",Settings!$R$5="Mixed (Standard)"),TRUE,IF(Settings!$R$5="Specific Teams Only",IF(Settings!T26="Y",TRUE,FALSE),FALSE)) -> TRUE
A22: =IF($N$1>=ROW(A21),Settings!K32,#N/A) ->  | D22: =IFERROR(INDEX($D$1:$D$12,SMALL(IF($D$1:$D$12<>"",ROW($D$1:$D$12)),ROW(D9))),"") -> ZiPS | F22: 20 | J22: PIT | K22: =IF(OR(Settings!$R$5="NL-Only",Settings!$R$5="Mixed (Standard)"),TRUE,IF(Settings!$R$5="Specific Teams Only",IF(Settings!T27="Y",TRUE,FALSE),FALSE)) -> TRUE
A23: =IF($N$1>=ROW(A22),Settings!K33,#N/A) ->  | D23: =IFERROR(INDEX($D$1:$D$12,SMALL(IF($D$1:$D$12<>"",ROW($D$1:$D$12)),ROW(D10))),"") -> Import Your Own Projections | F23: 21 | J23: SD | K23: =IF(OR(Settings!$R$5="NL-Only",Settings!$R$5="Mixed (Standard)"),TRUE,IF(Settings!$R$5="Specific Teams Only",IF(Settings!T28="Y",TRUE,FALSE),FALSE)) -> TRUE
A24: =IF($N$1>=ROW(A23),Settings!K34,#N/A) ->  | D24: =IFERROR(INDEX($D$1:$D$12,SMALL(IF($D$1:$D$12<>"",ROW($D$1:$D$12)),ROW(D11))),"") -> Your Own Custom Combination | F24: 22 | J24: SEA | K24: =IF(OR(Settings!$R$5="AL-Only",Settings!$R$5="Mixed (Standard)"),TRUE,IF(Settings!$R$5="Specific Teams Only",IF(Settings!T29="Y",TRUE,FALSE),FALSE)) -> TRUE
A25: =IF($N$1>=ROW(A24),Settings!K35,#N/A) ->  | D25: =IFERROR(INDEX($D$1:$D$12,SMALL(IF($D$1:$D$12<>"",ROW($D$1:$D$12)),ROW(D12))),"") ->  | F25: 23 | J25: SF | K25: =IF(OR(Settings!$R$5="NL-Only",Settings!$R$5="Mixed (Standard)"),TRUE,IF(Settings!$R$5="Specific Teams Only",IF(Settings!T30="Y",TRUE,FALSE),FALSE)) -> TRUE
A26: From Settings | B26: =Settings!O16 -> Average of All Options | C26: Auction Vl: | D26: =IF(B26="RotoChamp",1,IF(B26="CBS (Projected Value)",2,IF(B26="ESPN (Avg Mock Draft Value)",3,IF(B26="Yahoo (Projected Value)",4,IF(B26="Yahoo (Avg Mock Draft Value)",5,IF(B26="FantasyPros (Projected Value)",7,IF(B26="Average of All Options",8,IF(B26="Imported Values",9,"")))))))) -> 8 | F26: 24 | J26: STL | K26: =IF(OR(Settings!$R$5="NL-Only",Settings!$R$5="Mixed (Standard)"),TRUE,IF(Settings!$R$5="Specific Teams Only",IF(Settings!T31="Y",TRUE,FALSE),FALSE)) -> TRUE
A27: For a List | B27: =Settings!O20 -> FantasyPros Avg | C27: Rankings: | D27: =IF(B27="RotoChamp",1,IF(B27="Yahoo Staff",2,IF(B27="ESPN - T. Cockcroft",3,IF(B27="ESPN - E. Karabell",4,IF(B27="FantasyPros Avg",5,IF(B27="Mr. Cheatsheet",6)))))) -> 5 | J27: TB | K27: =IF(OR(Settings!$R$5="AL-Only",Settings!$R$5="Mixed (Standard)"),TRUE,IF(Settings!$R$5="Specific Teams Only",IF(Settings!T32="Y",TRUE,FALSE),FALSE)) -> TRUE
A28: Controlled by Formulas | B28: =Settings!O18 -> Mr. Cheatsheet's Special Blend | C28: Projections: | D28: =IF(B28="THE BAT",1,IF(B28="Steamer",2,IF(B28="Steamer - 600 PA",7,IF(B28="ZiPS",4,IF(B28="Fangraphs - Depth Chart",5,IF(B28="Your Own Custom Combination",8,IF(B28="Mr. Cheatsheet's Special Blend",9,IF(B28="Special Blend w/ Steamer Replacements",10,IF(B28="Fangraphs - Fan Projections",3,IF(B28="Clay Davenport",6,IF(B28="Import Your Own Projections",11,0))))))))))) -> 9 | J28: TEX | K28: =IF(OR(Settings!$R$5="AL-Only",Settings!$R$5="Mixed (Standard)"),TRUE,IF(Settings!$R$5="Specific Teams Only",IF(Settings!T33="Y",TRUE,FALSE),FALSE)) -> TRUE
J29: TOR | K29: =IF(OR(Settings!$R$5="AL-Only",Settings!$R$5="Mixed (Standard)"),TRUE,IF(Settings!$R$5="Specific Teams Only",IF(Settings!T34="Y",TRUE,FALSE),FALSE)) -> TRUE
J30: WAS | K30: =IF(OR(Settings!$R$5="NL-Only",Settings!$R$5="Mixed (Standard)"),TRUE,IF(Settings!$R$5="Specific Teams Only",IF(Settings!T35="Y",TRUE,FALSE),FALSE)) -> TRUE

Sheet Name-Sort (hidden)
C1: ORDER | D1: PLAYERNAME | E1: Team | F1: Original Pos | G1: New Pos | H1: Pos to Use | I1: New Pos | J1: Show Team? | K1: Drafted | L1: Show or No | M1: Original Projected Auction Value | N1: WERTH | O1: Expert Ranking | P1: ='Your Roto Auction'!Q10 -> AVG | Q1: ='Your Roto Auction'!R10 -> HR | R1: ='Your Roto Auction'!S10 -> R | S1: ='Your Roto Auction'!T10 -> RBI | T1: ='Your Roto Auction'!U10 -> SB | U1: ='Your Roto Auction'!V10 ->  | V1: ='Your Roto Auction'!W10 ->  | W1: ='Your Roto Auction'!X10 ->  | X1: ='Your Roto Auction'!Y10 ->  | Y1: ='Your Roto Auction'!Z10 ->  | Z1: ='Your Roto Auction'!AA10 ->  | AA1: ='Your Roto Auction'!AB10 ->  | AB1: ='Your Roto Auction'!Q9 -> W | AC1: ='Your Roto Auction'!R9 -> SV | AD1: ='Your Roto Auction'!S9 -> K | AE1: ='Your Roto Auction'!T9 -> ERA | AF1: ='Your Roto Auction'!U9 -> WHIP | AG1: ='Your Roto Auction'!V9 ->  | AH1: ='Your Roto Auction'!W9 ->  | AI1: ='Your Roto Auction'!X9 ->  | AJ1: ='Your Roto Auction'!Y9 ->  | AK1: ='Your Roto Auction'!Z9 ->  | AL1: ='Your Roto Auction'!AA9 ->  | AM1: ='Your Roto Auction'!AB9 -> 
A2: =IFERROR(IF(VLOOKUP(ROW($A1),$C$2:$N$961,9,FALSE)=FALSE,VLOOKUP(ROW($A1),$C$2:$N$961,2,FALSE),""),"") -> Mookie Betts | B2: =IFERROR(INDEX($A$1:$A$961,SMALL(IF($A$1:$A$961<>"",ROW($A$1:$A$961)),ROW(A1))),"") -> Mookie Betts | C2: =IFERROR(IF(L2=FALSE,"",CHOOSE(MATCH(RIGHT('Your Roto Auction'!$Q$4,LEN('Your Roto Auction'!$Q$4)-8),$M$1:$AM$1,0),1+SUMPRODUCT(($L$2:$L$962=TRUE)*($M$2:$M$962>M2))+COUNTIFS($L$2:L2,L2,$M$2:M2,M2)-1,1+SUMPRODUCT(($L$2:$L$962=TRUE)*($N$2:$N$962>N2))+COUNTIFS($L$2:L2,L2,$N$2:N2,N2)-1,1+SUMPRODUCT(($L$2:$L$962=TRUE)*($O$2:$O$962<O2))+COUNTIFS($L$2:L2,L2,$O$2:O2,O2)-1,1+SUMPRODUCT(($L$2:$L$962=TRUE)*($P$2:$P$962>P2))+COUNTIFS($L$2:L2,L2,$P$2:P2,P2)-1,1+SUMPRODUCT(($L$2:$L$962=TRUE)*($Q$2:$Q$962>Q2))+COUNTIFS($L$2:L2,L2,$Q$2:Q2,Q2)-1,1+SUMPRODUCT(($L$2:$L$962=TRUE)*($R$2:$R$962>R2))+COUNTIFS($L$2:L2,L2,$R$2:R2,R2)-1,1+SUMPRODUCT(($L$2:$L$962=TRUE)*($S$2:$S$962>S2))+COUNTIFS($L$2:L2,L2,$S$2:S2,S2)-1,1+SUMPRODUCT(($L$2:$L$962=TRUE)*($T$2:$T$962>T2))+COUNTIFS($L$2:L2,L2,$T$2:T2,T2)-1,1+SUMPRODUCT(($L$2:$L$962=TRUE)*($U$2:$U$962>U2))+COUNTIFS($L$2:L2,L2,$U$2:U2,U2)-1,1+SUMPRODUCT(($L$2:$L$962=TRUE)*($V$2:$V$962>V2))+COUNTIFS($L$2:L2,L2,$V$2:V2,V2)-1,1+SUMPRODUCT(($L$2:$L$962=TRUE)*($W$2:$W$962>W2))+COUNTIFS($L$2:L2,L2,$W$2:W2,W2)-1,1+SUMPRODUCT(($L$2:$L$962=TRUE)*($X$2:$X$962>X2))+COUNTIFS($L$2:L2,L2,$X$2:X2,X2)-1,1+SUMPRODUCT(($L$2:$L$962=TRUE)*($Y$2:$Y$962>Y2))+COUNTIFS($L$2:L2,L2,$Y$2:Y2,Y2)-1,1+SUMPRODUCT(($L$2:$L$962=TRUE)*($Z$2:$Z$962>Z2))+COUNTIFS($L$2:L2,L2,$Z$2:Z2,Z2)-1,1+SUMPRODUCT(($L$2:$L$962=TRUE)*($AA$2:$AA$962>AA2))+COUNTIFS($L$2:L2,L2,$AA$2:AA2,AA2)-1,1+SUMPRODUCT(($L$2:$L$962=TRUE)*($AB$2:$AB$962>AB2))+COUNTIFS($L$2:L2,L2,$AB$2:AB2,AB2)-1,1+SUMPRODUCT(($L$2:$L$962=TRUE)*($AC$2:$AC$962>AC2))+COUNTIFS($L$2:L2,L2,$AC$2:AC2,AC2)-1,1+SUMPRODUCT(($L$2:$L$962=TRUE)*($AD$2:$AD$962>AD2))+COUNTIFS($L$2:L2,L2,$AD$2:AD2,AD2)-1,1+SUMPRODUCT(($L$2:$L$962=TRUE)*($AE$2:$AE$962>AE2))+COUNTIFS($L$2:L2,L2,$AE$2:AE2,AE2)-1,1+SUMPRODUCT(($L$2:$L$962=TRUE)*($AF$2:$AF$962>AF2))+COUNTIFS($L$2:L2,L2,$AF$2:AF2,AF2)-1,1+SUMPRODUCT(($L$2:$L$962=TRUE)*($AG$2:$AG$962>AG2))+COUNTIFS($L$2:L2,L2,$AG$2:AG2,AG2)-1,1+SUMPRODUCT(($L$2:$L$962=TRUE)*($AH$2:$AH$962>AH2))+COUNTIFS($L$2:L2,L2,$AH$2:AH2,AH2)-1,1+SUMPRODUCT(($L$2:$L$962=TRUE)*($AI$2:$AI$962>AI2))+COUNTIFS($L$2:L2,L2,$AI$2:AI2,AI2)-1,1+SUMPRODUCT(($L$2:$L$962=TRUE)*($AJ$2:$AJ$962>AJ2))+COUNTIFS($L$2:L2,L2,$AJ$2:AJ2,AJ2)-1,1+SUMPRODUCT(($L$2:$L$962=TRUE)*($AK$2:$AK$962>AK2))+COUNTIFS($L$2:L2,L2,$AK$2:AK2,AK2)-1,1+SUMPRODUCT(($L$2:$L$962=TRUE)*($AL$2:$AL$962>AL2))+COUNTIFS($L$2:L2,L2,$AL$2:AL2,AL2)-1,1+SUMPRODUCT(($L$2:$L$962=TRUE)*($AM$2:$AM$962>AM2))+COUNTIFS($L$2:L2,L2,$AM$2:AM2,AM2)-1,)),"") -> 60 | D2: Jose Abreu | E2: =IFERROR(INDEX('Auction Log'!$C$4:$C$806,MATCH(D2,'Auction Log'!$B$4:$B$806,0)),"") ->  | F2: =IFERROR(INDEX('Auction-Rank'!$C$2:$C$961,MATCH(D2,'Auction-Rank'!$A$2:$A$961,0)),"") -> 1B | G2: =IFERROR(IF(F2=I2,"",IF(INDEX('Your Roto Auction'!$C$11:$C$634,MATCH(D2,'Your Roto Auction'!$D$11:$D$634,0))="",IF(I2<>"",I2,""),INDEX('Your Roto Auction'!$C$11:$C$634,MATCH(D2,'Your Roto Auction'!$D$11:$D$634,0)))),"") ->  | H2: =IFERROR(IF(I2="",F2,IF(I2<>F2,I2,F2)),"") -> 1B | J2: =INDEX('Auction-Rank'!$V$2:$V$961,MATCH(D2,'Auction-Rank'!$A$2:$A$961,0)) -> TRUE | K2: =IF(E2="",FALSE,TRUE) -> FALSE | L2: =IF(J2=FALSE,FALSE,IF(AND('Your Roto Auction'!$Q$6="Hide Drafted Players",K2=TRUE),FALSE,IF(OR('Your Roto Auction'!$Q$5="Show All Positions",AND('Your Roto Auction'!$Q$5="Only Show: C",H2="C"),AND('Your Roto Auction'!$Q$5="Only Show: 1B",H2="1B"),AND('Your Roto Auction'!$Q$5="Only Show: 2B",H2="2B"),AND('Your Roto Auction'!$Q$5="Only Show: 3B",H2="3B"),AND('Your Roto Auction'!$Q$5="Only Show: SS",H2="SS"),AND('Your Roto Auction'!$Q$5="Only Show: OF",H2="OF"),AND('Your Roto Auction'!$Q$5="Only Show: SP",H2="SP"),AND('Your Roto Auction'!$Q$5="Only Show: RP",H2="RP"),AND('Your Roto Auction'!$Q$5="Only Show: CI",OR(H2={"1B","3B"})),AND('Your Roto Auction'!$Q$5="Only Show: MI",OR(H2={"2B","SS"})),AND('Your Roto Auction'!$Q$5="Only Show: IF",OR(H2={"C","1B","2B","3B","SS"})),AND('Your Roto Auction'!$Q$5="Only Show: DH",OR(H2={"C","1B","2B","3B","SS","OF","DH"})),AND('Your Roto Auction'!$Q$5="Only Show: P",OR(H2={"SP","RP"})),AND('Your Roto Auction'!$Q$5="Only Show: LF",ISERROR(SEARCH("LF",VLOOKUP($D2,'Auction-Rank'!$A$2:$D$961,4,FALSE)))=FALSE),AND('Your Roto Auction'!$Q$5="Only Show: RF",ISERROR(SEARCH("RF",VLOOKUP($D2,'Auction-Rank'!$A$2:$D$961,4,FALSE)))=FALSE),AND('Your Roto Auction'!$Q$5="Only Show: CF",ISERROR(SEARCH("CF",VLOOKUP($D2,'Auction-Rank'!$A$2:$D$961,4,FALSE)))=FALSE)),TRUE,FALSE))) -> TRUE | M2: =IFERROR(IF(VLOOKUP($D2,'Inflation-Tracking'!$A$5:$AD$862,22,FALSE)="",-9999,VLOOKUP($D2,'Inflation-Tracking'!$A$5:$AD$862,22,FALSE)),-9999) -> 18.9436928 | N2: =IF(D2="Non-Ranked Player",-1001,IFERROR(VLOOKUP($D2,'All-WERTH'!$C$2:$E$806,3,FALSE),-1000)) -> 1.21938141 | O2: =IF(D2="Non-Ranked Player",10000,IFERROR(IF(VLOOKUP(D2,'Auction-Rank'!$A$2:$X$961,24,FALSE)="",9999,VLOOKUP(D2,'Auction-Rank'!$A$2:$X$961,24,FALSE)),9999)) -> 52 | P2: =IF($D2="Unlisted Player",-1001,IFERROR(IF(VLOOKUP($D2,'All-WERTH'!$C$2:$AC$806,4,FALSE)="",-1000,VLOOKUP($D2,'All-WERTH'!$C$2:$AC$806,4,FALSE)),-1000)) -> 0.8509238405 | Q2: =IF($D2="Unlisted Player",-1001,IFERROR(IF(VLOOKUP($D2,'All-WERTH'!$C$2:$AC$806,5,FALSE)="",-1000,VLOOKUP($D2,'All-WERTH'!$C$2:$AC$806,5,FALSE)),-1000)) -> 0.5709470593 | R2: =IF($D2="Unlisted Player",-1001,IFERROR(IF(VLOOKUP($D2,'All-WERTH'!$C$2:$AC$806,6,FALSE)="",-1000,VLOOKUP($D2,'All-WERTH'!$C$2:$AC$806,6,FALSE)),-1000)) -> -0.1639914365 | S2: =IF($D2="Unlisted Player",-1001,IFERROR(IF(VLOOKUP($D2,'All-WERTH'!$C$2:$AC$806,7,FALSE)="",-1000,VLOOKUP($D2,'All-WERTH'!$C$2:$AC$806,7,FALSE)),-1000)) -> 0.8761039412 | T2: =IF($D2="Unlisted Player",-1001,IFERROR(IF(VLOOKUP($D2,'All-WERTH'!$C$2:$AC$806,8,FALSE)="",-1000,VLOOKUP($D2,'All-WERTH'!$C$2:$AC$806,8,FALSE)),-1000)) -> -0.9146019949 | U2: =IF($D2="Unlisted Player",-1001,IFERROR(IF(VLOOKUP($D2,'All-WERTH'!$C$2:$AC$806,9,FALSE)="",-1000,VLOOKUP($D2,'All-WERTH'!$C$2:$AC$806,9,FALSE)),-1000)) -> -1000 | V2: =IF($D2="Unlisted Player",-1001,IFERROR(IF(VLOOKUP($D2,'All-WERTH'!$C$2:$AC$806,10,FALSE)="",-1000,VLOOKUP($D2,'All-WERTH'!$C$2:$AC$806,10,FALSE)),-1000)) -> -1000 | W2: =IF($D2="Unlisted Player",-1001,IFERROR(IF(VLOOKUP($D2,'All-WERTH'!$C$2:$AC$806,11,FALSE)="",-1000,VLOOKUP($D2,'All-WERTH'!$C$2:$AC$806,11,FALSE)),-1000)) -> -1000 | X2: =IF($D2="Unlisted Player",-1001,IFERROR(IF(VLOOKUP($D2,'All-WERTH'!$C$2:$AC$806,12,FALSE)="",-1000,VLOOKUP($D2,'All-WERTH'!$C$2:$AC$806,12,FALSE)),-1000)) -> -1000 | Y2: =IF($D2="Unlisted Player",-1001,IFERROR(IF(VLOOKUP($D2,'All-WERTH'!$C$2:$AC$806,13,FALSE)="",-1000,VLOOKUP($D2,'All-WERTH'!$C$2:$AC$806,13,FALSE)),-1000)) -> -1000 | Z2: =IF($D2="Unlisted Player",-1001,IFERROR(IF(VLOOKUP($D2,'All-WERTH'!$C$2:$AC$806,14,FALSE)="",-1000,VLOOKUP($D2,'All-WERTH'!$C$2:$AC$806,14,FALSE)),-1000)) -> -1000 | AA2: =IF($D2="Unlisted Player",-1001,IFERROR(IF(VLOOKUP($D2,'All-WERTH'!$C$2:$AC$806,15,FALSE)="",-1000,VLOOKUP($D2,'All-WERTH'!$C$2:$AC$806,15,FALSE)),-1000)) -> -1000 | AB2: =IF($D2="Unlisted Player",-1001,IFERROR(IF(VLOOKUP($D2,'All-WERTH'!$C$2:$AC$806,16,FALSE)="",-1000,VLOOKUP($D2,'All-WERTH'!$C$2:$AC$806,16,FALSE)),-1000)) -> -1000 | AC2: =IF($D2="Unlisted Player",-1001,IFERROR(IF(VLOOKUP($D2,'All-WERTH'!$C$2:$AC$806,17,FALSE)="",-1000,VLOOKUP($D2,'All-WERTH'!$C$2:$AC$806,17,FALSE)),-1000)) -> -1000 | AD2: =IF($D2="Unlisted Player",-1001,IFERROR(IF(VLOOKUP($D2,'All-WERTH'!$C$2:$AC$806,18,FALSE)="",-1000,VLOOKUP($D2,'All-WERTH'!$C$2:$AC$806,18,FALSE)),-1000)) -> -1000 | AE2: =IF($D2="Unlisted Player",-1001,IFERROR(IF(VLOOKUP($D2,'All-WERTH'!$C$2:$AC$806,19,FALSE)="",-1000,VLOOKUP($D2,'All-WERTH'!$C$2:$AC$806,19,FALSE)),-1000)) -> -1000 | AF2: =IF($D2="Unlisted Player",-1001,IFERROR(IF(VLOOKUP($D2,'All-WERTH'!$C$2:$AC$806,20,FALSE)="",-1000,VLOOKUP($D2,'All-WERTH'!$C$2:$AC$806,20,FALSE)),-1000)) -> -1000 | AG2: =IF($D2="Unlisted Player",-1001,IFERROR(IF(VLOOKUP($D2,'All-WERTH'!$C$2:$AC$806,21,FALSE)="",-1000,VLOOKUP($D2,'All-WERTH'!$C$2:$AC$806,21,FALSE)),-1000)) -> -1000 | AH2: =IF($D2="Unlisted Player",-1001,IFERROR(IF(VLOOKUP($D2,'All-WERTH'!$C$2:$AC$806,22,FALSE)="",-1000,VLOOKUP($D2,'All-WERTH'!$C$2:$AC$806,22,FALSE)),-1000)) -> -1000 | AI2: =IF($D2="Unlisted Player",-1001,IFERROR(IF(VLOOKUP($D2,'All-WERTH'!$C$2:$AC$806,23,FALSE)="",-1000,VLOOKUP($D2,'All-WERTH'!$C$2:$AC$806,23,FALSE)),-1000)) -> -1000 | AJ2: =IF($D2="Unlisted Player",-1001,IFERROR(IF(VLOOKUP($D2,'All-WERTH'!$C$2:$AC$806,24,FALSE)="",-1000,VLOOKUP($D2,'All-WERTH'!$C$2:$AC$806,24,FALSE)),-1000)) -> -1000 | AK2: =IF($D2="Unlisted Player",-1001,IFERROR(IF(VLOOKUP($D2,'All-WERTH'!$C$2:$AC$806,25,FALSE)="",-1000,VLOOKUP($D2,'All-WERTH'!$C$2:$AC$806,25,FALSE)),-1000)) -> -1000 | AL2: =IF($D2="Unlisted Player",-1001,IFERROR(IF(VLOOKUP($D2,'All-WERTH'!$C$2:$AC$806,26,FALSE)="",-1000,VLOOKUP($D2,'All-WERTH'!$C$2:$AC$806,26,FALSE)),-1000)) -> -1000 | AM2: =IF($D2="Unlisted Player",-1001,IFERROR(IF(VLOOKUP($D2,'All-WERTH'!$C$2:$AC$806,27,FALSE)="",-1000,VLOOKUP($D2,'All-WERTH'!$C$2:$AC$806,27,FALSE)),-1000)) -> -1000
A3: Mike Trout | B3: =IFERROR(INDEX($A$1:$A$961,SMALL(IF($A$1:$A$961<>"",ROW($A$1:$A$961)),ROW(A2))),"") -> Mike Trout | C3: =IFERROR(IF(L3=FALSE,"",CHOOSE(MATCH(RIGHT('Your Roto Auction'!$Q$4,LEN('Your Roto Auction'!$Q$4)-8),$M$1:$AM$1,0),1+SUMPRODUCT(($L$2:$L$962=TRUE)*($M$2:$M$962>M3))+COUNTIFS($L$2:L3,L3,$M$2:M3,M3)-1,1+SUMPRODUCT(($L$2:$L$962=TRUE)*($N$2:$N$962>N3))+COUNTIFS($L$2:L3,L3,$N$2:N3,N3)-1,1+SUMPRODUCT(($L$2:$L$962=TRUE)*($O$2:$O$962<O3))+COUNTIFS($L$2:L3,L3,$O$2:O3,O3)-1,1+SUMPRODUCT(($L$2:$L$962=TRUE)*($P$2:$P$962>P3))+COUNTIFS($L$2:L3,L3,$P$2:P3,P3)-1,1+SUMPRODUCT(($L$2:$L$962=TRUE)*($Q$2:$Q$962>Q3))+COUNTIFS($L$2:L3,L3,$Q$2:Q3,Q3)-1,1+SUMPRODUCT(($L$2:$L$962=TRUE)*($R$2:$R$962>R3))+COUNTIFS($L$2:L3,L3,$R$2:R3,R3)-1,1+SUMPRODUCT(($L$2:$L$962=TRUE)*($S$2:$S$962>S3))+COUNTIFS($L$2:L3,L3,$S$2:S3,S3)-1,1+SUMPRODUCT(($L$2:$L$962=TRUE)*($T$2:$T$962>T3))+COUNTIFS($L$2:L3,L3,$T$2:T3,T3)-1,1+SUMPRODUCT(($L$2:$L$962=TRUE)*($U$2:$U$962>U3))+COUNTIFS($L$2:L3,L3,$U$2:U3,U3)-1,1+SUMPRODUCT(($L$2:$L$962=TRUE)*($V$2:$V$962>V3))+COUNTIFS($L$2:L3,L3,$V$2:V3,V3)-1,1+SUMPRODUCT(($L$2:$L$962=TRUE)*($W$2:$W$962>W3))+COUNTIFS($L$2:L3,L3,$W$2:W3,W3)-1,1+SUMPRODUCT(($L$2:$L$962=TRUE)*($X$2:$X$962>X3))+COUNTIFS($L$2:L3,L3,$X$2:X3,X3)-1,1+SUMPRODUCT(($L$2:$L$962=TRUE)*($Y$2:$Y$962>Y3))+COUNTIFS($L$2:L3,L3,$Y$2:Y3,Y3)-1,1+SUMPRODUCT(($L$2:$L$962=TRUE)*($Z$2:$Z$962>Z3))+COUNTIFS($L$2:L3,L3,$Z$2:Z3,Z3)-1,1+SUMPRODUCT(($L$2:$L$962=TRUE)*($AA$2:$AA$962>AA3))+COUNTIFS($L$2:L3,L3,$AA$2:AA3,AA3)-1,1+SUMPRODUCT(($L$2:$L$962=TRUE)*($AB$2:$AB$962>AB3))+COUNTIFS($L$2:L3,L3,$AB$2:AB3,AB3)-1,1+SUMPRODUCT(($L$2:$L$962=TRUE)*($AC$2:$AC$962>AC3))+COUNTIFS($L$2:L3,L3,$AC$2:AC3,AC3)-1,1+SUMPRODUCT(($L$2:$L$962=TRUE)*($AD$2:$AD$962>AD3))+COUNTIFS($L$2:L3,L3,$AD$2:AD3,AD3)-1,1+SUMPRODUCT(($L$2:$L$962=TRUE)*($AE$2:$AE$962>AE3))+COUNTIFS($L$2:L3,L3,$AE$2:AE3,AE3)-1,1+SUMPRODUCT(($L$2:$L$962=TRUE)*($AF$2:$AF$962>AF3))+COUNTIFS($L$2:L3,L3,$AF$2:AF3,AF3)-1,1+SUMPRODUCT(($L$2:$L$962=TRUE)*($AG$2:$AG$962>AG3))+COUNTIFS($L$2:L3,L3,$AG$2:AG3,AG3)-1,1+SUMPRODUCT(($L$2:$L$962=TRUE)*($AH$2:$AH$962>AH3))+COUNTIFS($L$2:L3,L3,$AH$2:AH3,AH3)-1,1+SUMPRODUCT(($L$2:$L$962=TRUE)*($AI$2:$AI$962>AI3))+COUNTIFS($L$2:L3,L3,$AI$2:AI3,AI3)-1,1+SUMPRODUCT(($L$2:$L$962=TRUE)*($AJ$2:$AJ$962>AJ3))+COUNTIFS($L$2:L3,L3,$AJ$2:AJ3,AJ3)-1,1+SUMPRODUCT(($L$2:$L$962=TRUE)*($AK$2:$AK$962>AK3))+COUNTIFS($L$2:L3,L3,$AK$2:AK3,AK3)-1,1+SUMPRODUCT(($L$2:$L$962=TRUE)*($AL$2:$AL$962>AL3))+COUNTIFS($L$2:L3,L3,$AL$2:AL3,AL3)-1,1+SUMPRODUCT(($L$2:$L$962=TRUE)*($AM$2:$AM$962>AM3))+COUNTIFS($L$2:L3,L3,$AM$2:AM3,AM3)-1,)),"") -> 24 | D3: Ronald Acuna | E3: =IFERROR(INDEX('Auction Log'!$C$4:$C$806,MATCH(D3,'Auction Log'!$B$4:$B$806,0)),"") ->  | F3: =IFERROR(INDEX('Auction-Rank'!$C$2:$C$961,MATCH(D3,'Auction-Rank'!$A$2:$A$961,0)),"") -> OF | G3: =IFERROR(IF(F3=I3,"",IF(INDEX('Your Roto Auction'!$C$11:$C$634,MATCH(D3,'Your Roto Auction'!$D$11:$D$634,0))="",IF(I3<>"",I3,""),INDEX('Your Roto Auction'!$C$11:$C$634,MATCH(D3,'Your Roto Auction'!$D$11:$D$634,0)))),"") ->  | H3: OF | J3: =INDEX('Auction-Rank'!$V$2:$V$961,MATCH(D3,'Auction-Rank'!$A$2:$A$961,0)) -> TRUE | K3: =IF(E3="",FALSE,TRUE) -> FALSE | L3: =IF(J3=FALSE,FALSE,IF(AND('Your Roto Auction'!$Q$6="Hide Drafted Players",K3=TRUE),FALSE,IF(OR('Your Roto Auction'!$Q$5="Show All Positions",AND('Your Roto Auction'!$Q$5="Only Show: C",H3="C"),AND('Your Roto Auction'!$Q$5="Only Show: 1B",H3="1B"),AND('Your Roto Auction'!$Q$5="Only Show: 2B",H3="2B"),AND('Your Roto Auction'!$Q$5="Only Show: 3B",H3="3B"),AND('Your Roto Auction'!$Q$5="Only Show: SS",H3="SS"),AND('Your Roto Auction'!$Q$5="Only Show: OF",H3="OF"),AND('Your Roto Auction'!$Q$5="Only Show: SP",H3="SP"),AND('Your Roto Auction'!$Q$5="Only Show: RP",H3="RP"),AND('Your Roto Auction'!$Q$5="Only Show: CI",OR(H3={"1B","3B"})),AND('Your Roto Auction'!$Q$5="Only Show: MI",OR(H3={"2B","SS"})),AND('Your Roto Auction'!$Q$5="Only Show: IF",OR(H3={"C","1B","2B","3B","SS"})),AND('Your Roto Auction'!$Q$5="Only Show: DH",OR(H3={"C","1B","2B","3B","SS","OF","DH"})),AND('Your Roto Auction'!$Q$5="Only Show: P",OR(H3={"SP","RP"})),AND('Your Roto Auction'!$Q$5="Only Show: LF",ISERROR(SEARCH("LF",VLOOKUP($D3,'Auction-Rank'!$A$2:$D$961,4,FALSE)))=FALSE),AND('Your Roto Auction'!$Q$5="Only Show: RF",ISERROR(SEARCH("RF",VLOOKUP($D3,'Auction-Rank'!$A$2:$D$961,4,FALSE)))=FALSE),AND('Your Roto Auction'!$Q$5="Only Show: CF",ISERROR(SEARCH("CF",VLOOKUP($D3,'Auction-Rank'!$A$2:$D$961,4,FALSE)))=FALSE)),TRUE,FALSE))) -> TRUE | M3: =IFERROR(IF(VLOOKUP($D3,'Inflation-Tracking'!$A$5:$AD$862,22,FALSE)="",-9999,VLOOKUP($D3,'Inflation-Tracking'!$A$5:$AD$862,22,FALSE)),-9999) -> 31.22047207 | N3: =IF(D3="Non-Ranked Player",-1001,IFERROR(VLOOKUP($D3,'All-WERTH'!$C$2:$E$806,3,FALSE),-1000)) -> 4.498577059 | O3: =IF(D3="Non-Ranked Player",10000,IFERROR(IF(VLOOKUP(D3,'Auction-Rank'!$A$2:$X$961,24,FALSE)="",9999,VLOOKUP(D3,'Auction-Rank'!$A$2:$X$961,24,FALSE)),9999)) -> 9 | P3: =IF($D3="Unlisted Player",-1001,IFERROR(IF(VLOOKUP($D3,'All-WERTH'!$C$2:$AC$806,4,FALSE)="",-1000,VLOOKUP($D3,'All-WERTH'!$C$2:$AC$806,4,FALSE)),-1000)) -> 0.5239506496 | Q3: =IF($D3="Unlisted Player",-1001,IFERROR(IF(VLOOKUP($D3,'All-WERTH'!$C$2:$AC$806,5,FALSE)="",-1000,VLOOKUP($D3,'All-WERTH'!$C$2:$AC$806,5,FALSE)),-1000)) -> 0.8983560465 | R3: =IF($D3="Unlisted Player",-1001,IFERROR(IF(VLOOKUP($D3,'All-WERTH'!$C$2:$AC$806,6,FALSE)="",-1000,VLOOKUP($D3,'All-WERTH'!$C$2:$AC$806,6,FALSE)),-1000)) -> 0.9786832861 | S3: =IF($D3="Unlisted Player",-1001,IFERROR(IF(VLOOKUP($D3,'All-WERTH'!$C$2:$AC$806,7,FALSE)="",-1000,VLOOKUP($D3,'All-WERTH'!$C$2:$AC$806,7,FALSE)),-1000)) -> 0.4294379185 | T3: =IF($D3="Unlisted Player",-1001,IFERROR(IF(VLOOKUP($D3,'All-WERTH'!$C$2:$AC$806,8,FALSE)="",-1000,VLOOKUP($D3,'All-WERTH'!$C$2:$AC$806,8,FALSE)),-1000)) -> 1.668149159 | U3: =IF($D3="Unlisted Player",-1001,IFERROR(IF(VLOOKUP($D3,'All-WERTH'!$C$2:$AC$806,9,FALSE)="",-1000,VLOOKUP($D3,'All-WERTH'!$C$2:$AC$806,9,FALSE)),-1000)) -> -1000 | V3: =IF($D3="Unlisted Player",-1001,IFERROR(IF(VLOOKUP($D3,'All-WERTH'!$C$2:$AC$806,10,FALSE)="",-1000,VLOOKUP($D3,'All-WERTH'!$C$2:$AC$806,10,FALSE)),-1000)) -> -1000 | W3: =IF($D3="Unlisted Player",-1001,IFERROR(IF(VLOOKUP($D3,'All-WERTH'!$C$2:$AC$806,11,FALSE)="",-1000,VLOOKUP($D3,'All-WERTH'!$C$2:$AC$806,11,FALSE)),-1000)) -> -1000 | X3: =IF($D3="Unlisted Player",-1001,IFERROR(IF(VLOOKUP($D3,'All-WERTH'!$C$2:$AC$806,12,FALSE)="",-1000,VLOOKUP($D3,'All-WERTH'!$C$2:$AC$806,12,FALSE)),-1000)) -> -1000 | Y3: =IF($D3="Unlisted Player",-1001,IFERROR(IF(VLOOKUP($D3,'All-WERTH'!$C$2:$AC$806,13,FALSE)="",-1000,VLOOKUP($D3,'All-WERTH'!$C$2:$AC$806,13,FALSE)),-1000)) -> -1000 | Z3: =IF($D3="Unlisted Player",-1001,IFERROR(IF(VLOOKUP($D3,'All-WERTH'!$C$2:$AC$806,14,FALSE)="",-1000,VLOOKUP($D3,'All-WERTH'!$C$2:$AC$806,14,FALSE)),-1000)) -> -1000 | AA3: =IF($D3="Unlisted Player",-1001,IFERROR(IF(VLOOKUP($D3,'All-WERTH'!$C$2:$AC$806,15,FALSE)="",-1000,VLOOKUP($D3,'All-WERTH'!$C$2:$AC$806,15,FALSE)),-1000)) -> -1000 | AB3: =IF($D3="Unlisted Player",-1001,IFERROR(IF(VLOOKUP($D3,'All-WERTH'!$C$2:$AC$806,16,FALSE)="",-1000,VLOOKUP($D3,'All-WERTH'!$C$2:$AC$806,16,FALSE)),-1000)) -> -1000 | AC3: =IF($D3="Unlisted Player",-1001,IFERROR(IF(VLOOKUP($D3,'All-WERTH'!$C$2:$AC$806,17,FALSE)="",-1000,VLOOKUP($D3,'All-WERTH'!$C$2:$AC$806,17,FALSE)),-1000)) -> -1000 | AD3: =IF($D3="Unlisted Player",-1001,IFERROR(IF(VLOOKUP($D3,'All-WERTH'!$C$2:$AC$806,18,FALSE)="",-1000,VLOOKUP($D3,'All-WERTH'!$C$2:$AC$806,18,FALSE)),-1000)) -> -1000 | AE3: =IF($D3="Unlisted Player",-1001,IFERROR(IF(VLOOKUP($D3,'All-WERTH'!$C$2:$AC$806,19,FALSE)="",-1000,VLOOKUP($D3,'All-WERTH'!$C$2:$AC$806,19,FALSE)),-1000)) -> -1000 | AF3: =IF($D3="Unlisted Player",-1001,IFERROR(IF(VLOOKUP($D3,'All-WERTH'!$C$2:$AC$806,20,FALSE)="",-1000,VLOOKUP($D3,'All-WERTH'!$C$2:$AC$806,20,FALSE)),-1000)) -> -1000 | AG3: =IF($D3="Unlisted Player",-1001,IFERROR(IF(VLOOKUP($D3,'All-WERTH'!$C$2:$AC$806,21,FALSE)="",-1000,VLOOKUP($D3,'All-WERTH'!$C$2:$AC$806,21,FALSE)),-1000)) -> -1000 | AH3: =IF($D3="Unlisted Player",-1001,IFERROR(IF(VLOOKUP($D3,'All-WERTH'!$C$2:$AC$806,22,FALSE)="",-1000,VLOOKUP($D3,'All-WERTH'!$C$2:$AC$806,22,FALSE)),-1000)) -> -1000 | AI3: =IF($D3="Unlisted Player",-1001,IFERROR(IF(VLOOKUP($D3,'All-WERTH'!$C$2:$AC$806,23,FALSE)="",-1000,VLOOKUP($D3,'All-WERTH'!$C$2:$AC$806,23,FALSE)),-1000)) -> -1000 | AJ3: =IF($D3="Unlisted Player",-1001,IFERROR(IF(VLOOKUP($D3,'All-WERTH'!$C$2:$AC$806,24,FALSE)="",-1000,VLOOKUP($D3,'All-WERTH'!$C$2:$AC$806,24,FALSE)),-1000)) -> -1000 | AK3: =IF($D3="Unlisted Player",-1001,IFERROR(IF(VLOOKUP($D3,'All-WERTH'!$C$2:$AC$806,25,FALSE)="",-1000,VLOOKUP($D3,'All-WERTH'!$C$2:$AC$806,25,FALSE)),-1000)) -> -1000 | AL3: =IF($D3="Unlisted Player",-1001,IFERROR(IF(VLOOKUP($D3,'All-WERTH'!$C$2:$AC$806,26,FALSE)="",-1000,VLOOKUP($D3,'All-WERTH'!$C$2:$AC$806,26,FALSE)),-1000)) -> -1000 | AM3: =IF($D3="Unlisted Player",-1001,IFERROR(IF(VLOOKUP($D3,'All-WERTH'!$C$2:$AC$806,27,FALSE)="",-1000,VLOOKUP($D3,'All-WERTH'!$C$2:$AC$806,27,FALSE)),-1000)) -> -1000
A4: Chris Sale | B4: =IFERROR(INDEX($A$1:$A$961,SMALL(IF($A$1:$A$961<>"",ROW($A$1:$A$961)),ROW(A3))),"") -> Chris Sale | C4: =IFERROR(IF(L4=FALSE,"",CHOOSE(MATCH(RIGHT('Your Roto Auction'!$Q$4,LEN('Your Roto Auction'!$Q$4)-8),$M$1:$AM$1,0),1+SUMPRODUCT(($L$2:$L$962=TRUE)*($M$2:$M$962>M4))+COUNTIFS($L$2:L4,L4,$M$2:M4,M4)-1,1+SUMPRODUCT(($L$2:$L$962=TRUE)*($N$2:$N$962>N4))+COUNTIFS($L$2:L4,L4,$N$2:N4,N4)-1,1+SUMPRODUCT(($L$2:$L$962=TRUE)*($O$2:$O$962<O4))+COUNTIFS($L$2:L4,L4,$O$2:O4,O4)-1,1+SUMPRODUCT(($L$2:$L$962=TRUE)*($P$2:$P$962>P4))+COUNTIFS($L$2:L4,L4,$P$2:P4,P4)-1,1+SUMPRODUCT(($L$2:$L$962=TRUE)*($Q$2:$Q$962>Q4))+COUNTIFS($L$2:L4,L4,$Q$2:Q4,Q4)-1,1+SUMPRODUCT(($L$2:$L$962=TRUE)*($R$2:$R$962>R4))+COUNTIFS($L$2:L4,L4,$R$2:R4,R4)-1,1+SUMPRODUCT(($L$2:$L$962=TRUE)*($S$2:$S$962>S4))+COUNTIFS($L$2:L4,L4,$S$2:S4,S4)-1,1+SUMPRODUCT(($L$2:$L$962=TRUE)*($T$2:$T$962>T4))+COUNTIFS($L$2:L4,L4,$T$2:T4,T4)-1,1+SUMPRODUCT(($L$2:$L$962=TRUE)*($U$2:$U$962>U4))+COUNTIFS($L$2:L4,L4,$U$2:U4,U4)-1,1+SUMPRODUCT(($L$2:$L$962=TRUE)*($V$2:$V$962>V4))+COUNTIFS($L$2:L4,L4,$V$2:V4,V4)-1,1+SUMPRODUCT(($L$2:$L$962=TRUE)*($W$2:$W$962>W4))+COUNTIFS($L$2:L4,L4,$W$2:W4,W4)-1,1+SUMPRODUCT(($L$2:$L$962=TRUE)*($X$2:$X$962>X4))+COUNTIFS($L$2:L4,L4,$X$2:X4,X4)-1,1+SUMPRODUCT(($L$2:$L$962=TRUE)*($Y$2:$Y$962>Y4))+COUNTIFS($L$2:L4,L4,$Y$2:Y4,Y4)-1,1+SUMPRODUCT(($L$2:$L$962=TRUE)*($Z$2:$Z$962>Z4))+COUNTIFS($L$2:L4,L4,$Z$2:Z4,Z4)-1,1+SUMPRODUCT(($L$2:$L$962=TRUE)*($AA$2:$AA$962>AA4))+COUNTIFS($L$2:L4,L4,$AA$2:AA4,AA4)-1,1+SUMPRODUCT(($L$2:$L$962=TRUE)*($AB$2:$AB$962>AB4))+COUNTIFS($L$2:L4,L4,$AB$2:AB4,AB4)-1,1+SUMPRODUCT(($L$2:$L$962=TRUE)*($AC$2:$AC$962>AC4))+COUNTIFS($L$2:L4,L4,$AC$2:AC4,AC4)-1,1+SUMPRODUCT(($L$2:$L$962=TRUE)*($AD$2:$AD$962>AD4))+COUNTIFS($L$2:L4,L4,$AD$2:AD4,AD4)-1,1+SUMPRODUCT(($L$2:$L$962=TRUE)*($AE$2:$AE$962>AE4))+COUNTIFS($L$2:L4,L4,$AE$2:AE4,AE4)-1,1+SUMPRODUCT(($L$2:$L$962=TRUE)*($AF$2:$AF$962>AF4))+COUNTIFS($L$2:L4,L4,$AF$2:AF4,AF4)-1,1+SUMPRODUCT(($L$2:$L$962=TRUE)*($AG$2:$AG$962>AG4))+COUNTIFS($L$2:L4,L4,$AG$2:AG4,AG4)-1,1+SUMPRODUCT(($L$2:$L$962=TRUE)*($AH$2:$AH$962>AH4))+COUNTIFS($L$2:L4,L4,$AH$2:AH4,AH4)-1,1+SUMPRODUCT(($L$2:$L$962=TRUE)*($AI$2:$AI$962>AI4))+COUNTIFS($L$2:L4,L4,$AI$2:AI4,AI4)-1,1+SUMPRODUCT(($L$2:$L$962=TRUE)*($AJ$2:$AJ$962>AJ4))+COUNTIFS($L$2:L4,L4,$AJ$2:AJ4,AJ4)-1,1+SUMPRODUCT(($L$2:$L$962=TRUE)*($AK$2:$AK$962>AK4))+COUNTIFS($L$2:L4,L4,$AK$2:AK4,AK4)-1,1+SUMPRODUCT(($L$2:$L$962=TRUE)*($AL$2:$AL$962>AL4))+COUNTIFS($L$2:L4,L4,$AL$2:AL4,AL4)-1,1+SUMPRODUCT(($L$2:$L$962=TRUE)*($AM$2:$AM$962>AM4))+COUNTIFS($L$2:L4,L4,$AM$2:AM4,AM4)-1,)),"") -> 215 | D4: Willy Adames | E4: =IFERROR(INDEX('Auction Log'!$C$4:$C$806,MATCH(D4,'Auction Log'!$B$4:$B$806,0)),"") ->  | F4: =IFERROR(INDEX('Auction-Rank'!$C$2:$C$961,MATCH(D4,'Auction-Rank'!$A$2:$A$961,0)),"") -> SS | G4: =IFERROR(IF(F4=I4,"",IF(INDEX('Your Roto Auction'!$C$11:$C$634,MATCH(D4,'Your Roto Auction'!$D$11:$D$634,0))="",IF(I4<>"",I4,""),INDEX('Your Roto Auction'!$C$11:$C$634,MATCH(D4,'Your Roto Auction'!$D$11:$D$634,0)))),"") ->  | H4: SS | J4: =INDEX('Auction-Rank'!$V$2:$V$961,MATCH(D4,'Auction-Rank'!$A$2:$A$961,0)) -> TRUE | K4: FALSE | L4: =IF(J4=FALSE,FALSE,IF(AND('Your Roto Auction'!$Q$6="Hide Drafted Players",K4=TRUE),FALSE,IF(OR('Your Roto Auction'!$Q$5="Show All Positions",AND('Your Roto Auction'!$Q$5="Only Show: C",H4="C"),AND('Your Roto Auction'!$Q$5="Only Show: 1B",H4="1B"),AND('Your Roto Auction'!$Q$5="Only Show: 2B",H4="2B"),AND('Your Roto Auction'!$Q$5="Only Show: 3B",H4="3B"),AND('Your Roto Auction'!$Q$5="Only Show: SS",H4="SS"),AND('Your Roto Auction'!$Q$5="Only Show: OF",H4="OF"),AND('Your Roto Auction'!$Q$5="Only Show: SP",H4="SP"),AND('Your Roto Auction'!$Q$5="Only Show: RP",H4="RP"),AND('Your Roto Auction'!$Q$5="Only Show: CI",OR(H4={"1B","3B"})),AND('Your Roto Auction'!$Q$5="Only Show: MI",OR(H4={"2B","SS"})),AND('Your Roto Auction'!$Q$5="Only Show: IF",OR(H4={"C","1B","2B","3B","SS"})),AND('Your Roto Auction'!$Q$5="Only Show: DH",OR(H4={"C","1B","2B","3B","SS","OF","DH"})),AND('Your Roto Auction'!$Q$5="Only Show: P",OR(H4={"SP","RP"})),AND('Your Roto Auction'!$Q$5="Only Show: LF",ISERROR(SEARCH("LF",VLOOKUP($D4,'Auction-Rank'!$A$2:$D$961,4,FALSE)))=FALSE),AND('Your Roto Auction'!$Q$5="Only Show: RF",ISERROR(SEARCH("RF",VLOOKUP($D4,'Auction-Rank'!$A$2:$D$961,4,FALSE)))=FALSE),AND('Your Roto Auction'!$Q$5="Only Show: CF",ISERROR(SEARCH("CF",VLOOKUP($D4,'Auction-Rank'!$A$2:$D$961,4,FALSE)))=FALSE)),TRUE,FALSE))) -> TRUE | M4: =IFERROR(IF(VLOOKUP($D4,'Inflation-Tracking'!$A$5:$AD$862,22,FALSE)="",-9999,VLOOKUP($D4,'Inflation-Tracking'!$A$5:$AD$862,22,FALSE)),-9999) -> 1.139456398 | N4: =IF(D4="Non-Ranked Player",-1001,IFERROR(VLOOKUP($D4,'All-WERTH'!$C$2:$E$806,3,FALSE),-1000)) -> -3.784380793 | O4: =IF(D4="Non-Ranked Player",10000,IFERROR(IF(VLOOKUP(D4,'Auction-Rank'!$A$2:$X$961,24,FALSE)="",9999,VLOOKUP(D4,'Auction-Rank'!$A$2:$X$961,24,FALSE)),9999)) -> 254 | P4: =IF($D4="Unlisted Player",-1001,IFERROR(IF(VLOOKUP($D4,'All-WERTH'!$C$2:$AC$806,4,FALSE)="",-1000,VLOOKUP($D4,'All-WERTH'!$C$2:$AC$806,4,FALSE)),-1000)) -> -1.351415299 | Q4: =IF($D4="Unlisted Player",-1001,IFERROR(IF(VLOOKUP($D4,'All-WERTH'!$C$2:$AC$806,5,FALSE)="",-1000,VLOOKUP($D4,'All-WERTH'!$C$2:$AC$806,5,FALSE)),-1000)) -> -0.8754917305 | R4: =IF($D4="Unlisted Player",-1001,IFERROR(IF(VLOOKUP($D4,'All-WERTH'!$C$2:$AC$806,6,FALSE)="",-1000,VLOOKUP($D4,'All-WERTH'!$C$2:$AC$806,6,FALSE)),-1000)) -> -0.4880736138 | S4: =IF($D4="Unlisted Player",-1001,IFERROR(IF(VLOOKUP($D4,'All-WERTH'!$C$2:$AC$806,7,FALSE)="",-1000,VLOOKUP($D4,'All-WERTH'!$C$2:$AC$806,7,FALSE)),-1000)) -> -0.9664799708 | T4: =IF($D4="Unlisted Player",-1001,IFERROR(IF(VLOOKUP($D4,'All-WERTH'!$C$2:$AC$806,8,FALSE)="",-1000,VLOOKUP($D4,'All-WERTH'!$C$2:$AC$806,8,FALSE)),-1000)) -> -0.1029201787 | U4: =IF($D4="Unlisted Player",-1001,IFERROR(IF(VLOOKUP($D4,'All-WERTH'!$C$2:$AC$806,9,FALSE)="",-1000,VLOOKUP($D4,'All-WERTH'!$C$2:$AC$806,9,FALSE)),-1000)) -> -1000 | V4: =IF($D4="Unlisted Player",-1001,IFERROR(IF(VLOOKUP($D4,'All-WERTH'!$C$2:$AC$806,10,FALSE)="",-1000,VLOOKUP($D4,'All-WERTH'!$C$2:$AC$806,10,FALSE)),-1000)) -> -1000 | W4: =IF($D4="Unlisted Player",-1001,IFERROR(IF(VLOOKUP($D4,'All-WERTH'!$C$2:$AC$806,11,FALSE)="",-1000,VLOOKUP($D4,'All-WERTH'!$C$2:$AC$806,11,FALSE)),-1000)) -> -1000 | X4: =IF($D4="Unlisted Player",-1001,IFERROR(IF(VLOOKUP($D4,'All-WERTH'!$C$2:$AC$806,12,FALSE)="",-1000,VLOOKUP($D4,'All-WERTH'!$C$2:$AC$806,12,FALSE)),-1000)) -> -1000 | Y4: =IF($D4="Unlisted Player",-1001,IFERROR(IF(VLOOKUP($D4,'All-WERTH'!$C$2:$AC$806,13,FALSE)="",-1000,VLOOKUP($D4,'All-WERTH'!$C$2:$AC$806,13,FALSE)),-1000)) -> -1000 | Z4: =IF($D4="Unlisted Player",-1001,IFERROR(IF(VLOOKUP($D4,'All-WERTH'!$C$2:$AC$806,14,FALSE)="",-1000,VLOOKUP($D4,'All-WERTH'!$C$2:$AC$806,14,FALSE)),-1000)) -> -1000 | AA4: =IF($D4="Unlisted Player",-1001,IFERROR(IF(VLOOKUP($D4,'All-WERTH'!$C$2:$AC$806,15,FALSE)="",-1000,VLOOKUP($D4,'All-WERTH'!$C$2:$AC$806,15,FALSE)),-1000)) -> -1000 | AB4: =IF($D4="Unlisted Player",-1001,IFERROR(IF(VLOOKUP($D4,'All-WERTH'!$C$2:$AC$806,16,FALSE)="",-1000,VLOOKUP($D4,'All-WERTH'!$C$2:$AC$806,16,FALSE)),-1000)) -> -1000 | AC4: =IF($D4="Unlisted Player",-1001,IFERROR(IF(VLOOKUP($D4,'All-WERTH'!$C$2:$AC$806,17,FALSE)="",-1000,VLOOKUP($D4,'All-WERTH'!$C$2:$AC$806,17,FALSE)),-1000)) -> -1000 | AD4: =IF($D4="Unlisted Player",-1001,IFERROR(IF(VLOOKUP($D4,'All-WERTH'!$C$2:$AC$806,18,FALSE)="",-1000,VLOOKUP($D4,'All-WERTH'!$C$2:$AC$806,18,FALSE)),-1000)) -> -1000 | AE4: =IF($D4="Unlisted Player",-1001,IFERROR(IF(VLOOKUP($D4,'All-WERTH'!$C$2:$AC$806,19,FALSE)="",-1000,VLOOKUP($D4,'All-WERTH'!$C$2:$AC$806,19,FALSE)),-1000)) -> -1000 | AF4: =IF($D4="Unlisted Player",-1001,IFERROR(IF(VLOOKUP($D4,'All-WERTH'!$C$2:$AC$806,20,FALSE)="",-1000,VLOOKUP($D4,'All-WERTH'!$C$2:$AC$806,20,FALSE)),-1000)) -> -1000 | AG4: =IF($D4="Unlisted Player",-1001,IFERROR(IF(VLOOKUP($D4,'All-WERTH'!$C$2:$AC$806,21,FALSE)="",-1000,VLOOKUP($D4,'All-WERTH'!$C$2:$AC$806,21,FALSE)),-1000)) -> -1000 | AH4: =IF($D4="Unlisted Player",-1001,IFERROR(IF(VLOOKUP($D4,'All-WERTH'!$C$2:$AC$806,22,FALSE)="",-1000,VLOOKUP($D4,'All-WERTH'!$C$2:$AC$806,22,FALSE)),-1000)) -> -1000 | AI4: =IF($D4="Unlisted Player",-1001,IFERROR(IF(VLOOKUP($D4,'All-WERTH'!$C$2:$AC$806,23,FALSE)="",-1000,VLOOKUP($D4,'All-WERTH'!$C$2:$AC$806,23,FALSE)),-1000)) -> -1000 | AJ4: =IF($D4="Unlisted Player",-1001,IFERROR(IF(VLOOKUP($D4,'All-WERTH'!$C$2:$AC$806,24,FALSE)="",-1000,VLOOKUP($D4,'All-WERTH'!$C$2:$AC$806,24,FALSE)),-1000)) -> -1000 | AK4: =IF($D4="Unlisted Player",-1001,IFERROR(IF(VLOOKUP($D4,'All-WERTH'!$C$2:$AC$806,25,FALSE)="",-1000,VLOOKUP($D4,'All-WERTH'!$C$2:$AC$806,25,FALSE)),-1000)) -> -1000 | AL4: =IF($D4="Unlisted Player",-1001,IFERROR(IF(VLOOKUP($D4,'All-WERTH'!$C$2:$AC$806,26,FALSE)="",-1000,VLOOKUP($D4,'All-WERTH'!$C$2:$AC$806,26,FALSE)),-1000)) -> -1000 | AM4: =IF($D4="Unlisted Player",-1001,IFERROR(IF(VLOOKUP($D4,'All-WERTH'!$C$2:$AC$806,27,FALSE)="",-1000,VLOOKUP($D4,'All-WERTH'!$C$2:$AC$806,27,FALSE)),-1000)) -> -1000
A5: Jose Ramirez | B5: =IFERROR(INDEX($A$1:$A$961,SMALL(IF($A$1:$A$961<>"",ROW($A$1:$A$961)),ROW(A4))),"") -> Jose Ramirez | C5: =IFERROR(IF(L5=FALSE,"",CHOOSE(MATCH(RIGHT('Your Roto Auction'!$Q$4,LEN('Your Roto Auction'!$Q$4)-8),$M$1:$AM$1,0),1+SUMPRODUCT(($L$2:$L$962=TRUE)*($M$2:$M$962>M5))+COUNTIFS($L$2:L5,L5,$M$2:M5,M5)-1,1+SUMPRODUCT(($L$2:$L$962=TRUE)*($N$2:$N$962>N5))+COUNTIFS($L$2:L5,L5,$N$2:N5,N5)-1,1+SUMPRODUCT(($L$2:$L$962=TRUE)*($O$2:$O$962<O5))+COUNTIFS($L$2:L5,L5,$O$2:O5,O5)-1,1+SUMPRODUCT(($L$2:$L$962=TRUE)*($P$2:$P$962>P5))+COUNTIFS($L$2:L5,L5,$P$2:P5,P5)-1,1+SUMPRODUCT(($L$2:$L$962=TRUE)*($Q$2:$Q$962>Q5))+COUNTIFS($L$2:L5,L5,$Q$2:Q5,Q5)-1,1+SUMPRODUCT(($L$2:$L$962=TRUE)*($R$2:$R$962>R5))+COUNTIFS($L$2:L5,L5,$R$2:R5,R5)-1,1+SUMPRODUCT(($L$2:$L$962=TRUE)*($S$2:$S$962>S5))+COUNTIFS($L$2:L5,L5,$S$2:S5,S5)-1,1+SUMPRODUCT(($L$2:$L$962=TRUE)*($T$2:$T$962>T5))+COUNTIFS($L$2:L5,L5,$T$2:T5,T5)-1,1+SUMPRODUCT(($L$2:$L$962=TRUE)*($U$2:$U$962>U5))+COUNTIFS($L$2:L5,L5,$U$2:U5,U5)-1,1+SUMPRODUCT(($L$2:$L$962=TRUE)*($V$2:$V$962>V5))+COUNTIFS($L$2:L5,L5,$V$2:V5,V5)-1,1+SUMPRODUCT(($L$2:$L$962=TRUE)*($W$2:$W$962>W5))+COUNTIFS($L$2:L5,L5,$W$2:W5,W5)-1,1+SUMPRODUCT(($L$2:$L$962=TRUE)*($X$2:$X$962>X5))+COUNTIFS($L$2:L5,L5,$X$2:X5,X5)-1,1+SUMPRODUCT(($L$2:$L$962=TRUE)*($Y$2:$Y$962>Y5))+COUNTIFS($L$2:L5,L5,$Y$2:Y5,Y5)-1,1+SUMPRODUCT(($L$2:$L$962=TRUE)*($Z$2:$Z$962>Z5))+COUNTIFS($L$2:L5,L5,$Z$2:Z5,Z5)-1,1+SUMPRODUCT(($L$2:$L$962=TRUE)*($AA$2:$AA$962>AA5))+COUNTIFS($L$2:L5,L5,$AA$2:AA5,AA5)-1,1+SUMPRODUCT(($L$2:$L$962=TRUE)*($AB$2:$AB$962>AB5))+COUNTIFS($L$2:L5,L5,$AB$2:AB5,AB5)-1,1+SUMPRODUCT(($L$2:$L$962=TRUE)*($AC$2:$AC$962>AC5))+COUNTIFS($L$2:L5,L5,$AC$2:AC5,AC5)-1,1+SUMPRODUCT(($L$2:$L$962=TRUE)*($AD$2:$AD$962>AD5))+COUNTIFS($L$2:L5,L5,$AD$2:AD5,AD5)-1,1+SUMPRODUCT(($L$2:$L$962=TRUE)*($AE$2:$AE$962>AE5))+COUNTIFS($L$2:L5,L5,$AE$2:AE5,AE5)-1,1+SUMPRODUCT(($L$2:$L$962=TRUE)*($AF$2:$AF$962>AF5))+COUNTIFS($L$2:L5,L5,$AF$2:AF5,AF5)-1,1+SUMPRODUCT(($L$2:$L$962=TRUE)*($AG$2:$AG$962>AG5))+COUNTIFS($L$2:L5,L5,$AG$2:AG5,AG5)-1,1+SUMPRODUCT(($L$2:$L$962=TRUE)*($AH$2:$AH$962>AH5))+COUNTIFS($L$2:L5,L5,$AH$2:AH5,AH5)-1,1+SUMPRODUCT(($L$2:$L$962=TRUE)*($AI$2:$AI$962>AI5))+COUNTIFS($L$2:L5,L5,$AI$2:AI5,AI5)-1,1+SUMPRODUCT(($L$2:$L$962=TRUE)*($AJ$2:$AJ$962>AJ5))+COUNTIFS($L$2:L5,L5,$AJ$2:AJ5,AJ5)-1,1+SUMPRODUCT(($L$2:$L$962=TRUE)*($AK$2:$AK$962>AK5))+COUNTIFS($L$2:L5,L5,$AK$2:AK5,AK5)-1,1+SUMPRODUCT(($L$2:$L$962=TRUE)*($AL$2:$AL$962>AL5))+COUNTIFS($L$2:L5,L5,$AL$2:AL5,AL5)-1,1+SUMPRODUCT(($L$2:$L$962=TRUE)*($AM$2:$AM$962>AM5))+COUNTIFS($L$2:L5,L5,$AM$2:AM5,AM5)-1,)),"") -> 625 | D5: Matt Adams | E5: =IFERROR(INDEX('Auction Log'!$C$4:$C$806,MATCH(D5,'Auction Log'!$B$4:$B$806,0)),"") ->  | F5: =IFERROR(INDEX('Auction-Rank'!$C$2:$C$961,MATCH(D5,'Auction-Rank'!$A$2:$A$961,0)),"") -> 1B | G5: =IFERROR(IF(F5=I5,"",IF(INDEX('Your Roto Auction'!$C$11:$C$634,MATCH(D5,'Your Roto Auction'!$D$11:$D$634,0))="",IF(I5<>"",I5,""),INDEX('Your Roto Auction'!$C$11:$C$634,MATCH(D5,'Your Roto Auction'!$D$11:$D$634,0)))),"") ->  | H5: 1B | J5: =INDEX('Auction-Rank'!$V$2:$V$961,MATCH(D5,'Auction-Rank'!$A$2:$A$961,0)) -> TRUE | K5: FALSE | L5: =IF(J5=FALSE,FALSE,IF(AND('Your Roto Auction'!$Q$6="Hide Drafted Players",K5=TRUE),FALSE,IF(OR('Your Roto Auction'!$Q$5="Show All Positions",AND('Your Roto Auction'!$Q$5="Only Show: C",H5="C"),AND('Your Roto Auction'!$Q$5="Only Show: 1B",H5="1B"),AND('Your Roto Auction'!$Q$5="Only Show: 2B",H5="2B"),AND('Your Roto Auction'!$Q$5="Only Show: 3B",H5="3B"),AND('Your Roto Auction'!$Q$5="Only Show: SS",H5="SS"),AND('Your Roto Auction'!$Q$5="Only Show: OF",H5="OF"),AND('Your Roto Auction'!$Q$5="Only Show: SP",H5="SP"),AND('Your Roto Auction'!$Q$5="Only Show: RP",H5="RP"),AND('Your Roto Auction'!$Q$5="Only Show: CI",OR(H5={"1B","3B"})),AND('Your Roto Auction'!$Q$5="Only Show: MI",OR(H5={"2B","SS"})),AND('Your Roto Auction'!$Q$5="Only Show: IF",OR(H5={"C","1B","2B","3B","SS"})),AND('Your Roto Auction'!$Q$5="Only Show: DH",OR(H5={"C","1B","2B","3B","SS","OF","DH"})),AND('Your Roto Auction'!$Q$5="Only Show: P",OR(H5={"SP","RP"})),AND('Your Roto Auction'!$Q$5="Only Show: LF",ISERROR(SEARCH("LF",VLOOKUP($D5,'Auction-Rank'!$A$2:$D$961,4,FALSE)))=FALSE),AND('Your Roto Auction'!$Q$5="Only Show: RF",ISERROR(SEARCH("RF",VLOOKUP($D5,'Auction-Rank'!$A$2:$D$961,4,FALSE)))=FALSE),AND('Your Roto Auction'!$Q$5="Only Show: CF",ISERROR(SEARCH("CF",VLOOKUP($D5,'Auction-Rank'!$A$2:$D$961,4,FALSE)))=FALSE)),TRUE,FALSE))) -> TRUE | M5: =IFERROR(IF(VLOOKUP($D5,'Inflation-Tracking'!$A$5:$AD$862,22,FALSE)="",-9999,VLOOKUP($D5,'Inflation-Tracking'!$A$5:$AD$862,22,FALSE)),-9999) -> -1.599010754 | N5: =IF(D5="Non-Ranked Player",-1001,IFERROR(VLOOKUP($D5,'All-WERTH'!$C$2:$E$806,3,FALSE),-1000)) -> -7.804356079 | O5: =IF(D5="Non-Ranked Player",10000,IFERROR(IF(VLOOKUP(D5,'Auction-Rank'!$A$2:$X$961,24,FALSE)="",9999,VLOOKUP(D5,'Auction-Rank'!$A$2:$X$961,24,FALSE)),9999)) -> 575 | P5: =IF($D5="Unlisted Player",-1001,IFERROR(IF(VLOOKUP($D5,'All-WERTH'!$C$2:$AC$806,4,FALSE)="",-1000,VLOOKUP($D5,'All-WERTH'!$C$2:$AC$806,4,FALSE)),-1000)) -> -0.6733669545 | Q5: =IF($D5="Unlisted Player",-1001,IFERROR(IF(VLOOKUP($D5,'All-WERTH'!$C$2:$AC$806,5,FALSE)="",-1000,VLOOKUP($D5,'All-WERTH'!$C$2:$AC$806,5,FALSE)),-1000)) -> -1.012349543 | R5: =IF($D5="Unlisted Player",-1001,IFERROR(IF(VLOOKUP($D5,'All-WERTH'!$C$2:$AC$806,6,FALSE)="",-1000,VLOOKUP($D5,'All-WERTH'!$C$2:$AC$806,6,FALSE)),-1000)) -> -2.948207681 | S5: =IF($D5="Unlisted Player",-1001,IFERROR(IF(VLOOKUP($D5,'All-WERTH'!$C$2:$AC$806,7,FALSE)="",-1000,VLOOKUP($D5,'All-WERTH'!$C$2:$AC$806,7,FALSE)),-1000)) -> -2.057023457 | T5: =IF($D5="Unlisted Player",-1001,IFERROR(IF(VLOOKUP($D5,'All-WERTH'!$C$2:$AC$806,8,FALSE)="",-1000,VLOOKUP($D5,'All-WERTH'!$C$2:$AC$806,8,FALSE)),-1000)) -> -1.113408443 | U5: =IF($D5="Unlisted Player",-1001,IFERROR(IF(VLOOKUP($D5,'All-WERTH'!$C$2:$AC$806,9,FALSE)="",-1000,VLOOKUP($D5,'All-WERTH'!$C$2:$AC$806,9,FALSE)),-1000)) -> -1000 | V5: =IF($D5="Unlisted Player",-1001,IFERROR(IF(VLOOKUP($D5,'All-WERTH'!$C$2:$AC$806,10,FALSE)="",-1000,VLOOKUP($D5,'All-WERTH'!$C$2:$AC$806,10,FALSE)),-1000)) -> -1000 | W5: =IF($D5="Unlisted Player",-1001,IFERROR(IF(VLOOKUP($D5,'All-WERTH'!$C$2:$AC$806,11,FALSE)="",-1000,VLOOKUP($D5,'All-WERTH'!$C$2:$AC$806,11,FALSE)),-1000)) -> -1000 | X5: =IF($D5="Unlisted Player",-1001,IFERROR(IF(VLOOKUP($D5,'All-WERTH'!$C$2:$AC$806,12,FALSE)="",-1000,VLOOKUP($D5,'All-WERTH'!$C$2:$AC$806,12,FALSE)),-1000)) -> -1000 | Y5: =IF($D5="Unlisted Player",-1001,IFERROR(IF(VLOOKUP($D5,'All-WERTH'!$C$2:$AC$806,13,FALSE)="",-1000,VLOOKUP($D5,'All-WERTH'!$C$2:$AC$806,13,FALSE)),-1000)) -> -1000 | Z5: =IF($D5="Unlisted Player",-1001,IFERROR(IF(VLOOKUP($D5,'All-WERTH'!$C$2:$AC$806,14,FALSE)="",-1000,VLOOKUP($D5,'All-WERTH'!$C$2:$AC$806,14,FALSE)),-1000)) -> -1000 | AA5: =IF($D5="Unlisted Player",-1001,IFERROR(IF(VLOOKUP($D5,'All-WERTH'!$C$2:$AC$806,15,FALSE)="",-1000,VLOOKUP($D5,'All-WERTH'!$C$2:$AC$806,15,FALSE)),-1000)) -> -1000 | AB5: =IF($D5="Unlisted Player",-1001,IFERROR(IF(VLOOKUP($D5,'All-WERTH'!$C$2:$AC$806,16,FALSE)="",-1000,VLOOKUP($D5,'All-WERTH'!$C$2:$AC$806,16,FALSE)),-1000)) -> -1000 | AC5: =IF($D5="Unlisted Player",-1001,IFERROR(IF(VLOOKUP($D5,'All-WERTH'!$C$2:$AC$806,17,FALSE)="",-1000,VLOOKUP($D5,'All-WERTH'!$C$2:$AC$806,17,FALSE)),-1000)) -> -1000 | AD5: =IF($D5="Unlisted Player",-1001,IFERROR(IF(VLOOKUP($D5,'All-WERTH'!$C$2:$AC$806,18,FALSE)="",-1000,VLOOKUP($D5,'All-WERTH'!$C$2:$AC$806,18,FALSE)),-1000)) -> -1000 | AE5: =IF($D5="Unlisted Player",-1001,IFERROR(IF(VLOOKUP($D5,'All-WERTH'!$C$2:$AC$806,19,FALSE)="",-1000,VLOOKUP($D5,'All-WERTH'!$C$2:$AC$806,19,FALSE)),-1000)) -> -1000 | AF5: =IF($D5="Unlisted Player",-1001,IFERROR(IF(VLOOKUP($D5,'All-WERTH'!$C$2:$AC$806,20,FALSE)="",-1000,VLOOKUP($D5,'All-WERTH'!$C$2:$AC$806,20,FALSE)),-1000)) -> -1000 | AG5: =IF($D5="Unlisted Player",-1001,IFERROR(IF(VLOOKUP($D5,'All-WERTH'!$C$2:$AC$806,21,FALSE)="",-1000,VLOOKUP($D5,'All-WERTH'!$C$2:$AC$806,21,FALSE)),-1000)) -> -1000 | AH5: =IF($D5="Unlisted Player",-1001,IFERROR(IF(VLOOKUP($D5,'All-WERTH'!$C$2:$AC$806,22,FALSE)="",-1000,VLOOKUP($D5,'All-WERTH'!$C$2:$AC$806,22,FALSE)),-1000)) -> -1000 | AI5: =IF($D5="Unlisted Player",-1001,IFERROR(IF(VLOOKUP($D5,'All-WERTH'!$C$2:$AC$806,23,FALSE)="",-1000,VLOOKUP($D5,'All-WERTH'!$C$2:$AC$806,23,FALSE)),-1000)) -> -1000 | AJ5: =IF($D5="Unlisted Player",-1001,IFERROR(IF(VLOOKUP($D5,'All-WERTH'!$C$2:$AC$806,24,FALSE)="",-1000,VLOOKUP($D5,'All-WERTH'!$C$2:$AC$806,24,FALSE)),-1000)) -> -1000 | AK5: =IF($D5="Unlisted Player",-1001,IFERROR(IF(VLOOKUP($D5,'All-WERTH'!$C$2:$AC$806,25,FALSE)="",-1000,VLOOKUP($D5,'All-WERTH'!$C$2:$AC$806,25,FALSE)),-1000)) -> -1000 | AL5: =IF($D5="Unlisted Player",-1001,IFERROR(IF(VLOOKUP($D5,'All-WERTH'!$C$2:$AC$806,26,FALSE)="",-1000,VLOOKUP($D5,'All-WERTH'!$C$2:$AC$806,26,FALSE)),-1000)) -> -1000 | AM5: =IF($D5="Unlisted Player",-1001,IFERROR(IF(VLOOKUP($D5,'All-WERTH'!$C$2:$AC$806,27,FALSE)="",-1000,VLOOKUP($D5,'All-WERTH'!$C$2:$AC$806,27,FALSE)),-1000)) -> -1000
A6: Francisco Lindor | B6: =IFERROR(INDEX($A$1:$A$961,SMALL(IF($A$1:$A$961<>"",ROW($A$1:$A$961)),ROW(A5))),"") -> Francisco Lindor | C6: =IFERROR(IF(L6=FALSE,"",CHOOSE(MATCH(RIGHT('Your Roto Auction'!$Q$4,LEN('Your Roto Auction'!$Q$4)-8),$M$1:$AM$1,0),1+SUMPRODUCT(($L$2:$L$962=TRUE)*($M$2:$M$962>M6))+COUNTIFS($L$2:L6,L6,$M$2:M6,M6)-1,1+SUMPRODUCT(($L$2:$L$962=TRUE)*($N$2:$N$962>N6))+COUNTIFS($L$2:L6,L6,$N$2:N6,N6)-1,1+SUMPRODUCT(($L$2:$L$962=TRUE)*($O$2:$O$962<O6))+COUNTIFS($L$2:L6,L6,$O$2:O6,O6)-1,1+SUMPRODUCT(($L$2:$L$962=TRUE)*($P$2:$P$962>P6))+COUNTIFS($L$2:L6,L6,$P$2:P6,P6)-1,1+SUMPRODUCT(($L$2:$L$962=TRUE)*($Q$2:$Q$962>Q6))+COUNTIFS($L$2:L6,L6,$Q$2:Q6,Q6)-1,1+SUMPRODUCT(($L$2:$L$962=TRUE)*($R$2:$R$962>R6))+COUNTIFS($L$2:L6,L6,$R$2:R6,R6)-1,1+SUMPRODUCT(($L$2:$L$962=TRUE)*($S$2:$S$962>S6))+COUNTIFS($L$2:L6,L6,$S$2:S6,S6)-1,1+SUMPRODUCT(($L$2:$L$962=TRUE)*($T$2:$T$962>T6))+COUNTIFS($L$2:L6,L6,$T$2:T6,T6)-1,1+SUMPRODUCT(($L$2:$L$962=TRUE)*($U$2:$U$962>U6))+COUNTIFS($L$2:L6,L6,$U$2:U6,U6)-1,1+SUMPRODUCT(($L$2:$L$962=TRUE)*($V$2:$V$962>V6))+COUNTIFS($L$2:L6,L6,$V$2:V6,V6)-1,1+SUMPRODUCT(($L$2:$L$962=TRUE)*($W$2:$W$962>W6))+COUNTIFS($L$2:L6,L6,$W$2:W6,W6)-1,1+SUMPRODUCT(($L$2:$L$962=TRUE)*($X$2:$X$962>X6))+COUNTIFS($L$2:L6,L6,$X$2:X6,X6)-1,1+SUMPRODUCT(($L$2:$L$962=TRUE)*($Y$2:$Y$962>Y6))+COUNTIFS($L$2:L6,L6,$Y$2:Y6,Y6)-1,1+SUMPRODUCT(($L$2:$L$962=TRUE)*($Z$2:$Z$962>Z6))+COUNTIFS($L$2:L6,L6,$Z$2:Z6,Z6)-1,1+SUMPRODUCT(($L$2:$L$962=TRUE)*($AA$2:$AA$962>AA6))+COUNTIFS($L$2:L6,L6,$AA$2:AA6,AA6)-1,1+SUMPRODUCT(($L$2:$L$962=TRUE)*($AB$2:$AB$962>AB6))+COUNTIFS($L$2:L6,L6,$AB$2:AB6,AB6)-1,1+SUMPRODUCT(($L$2:$L$962=TRUE)*($AC$2:$AC$962>AC6))+COUNTIFS($L$2:L6,L6,$AC$2:AC6,AC6)-1,1+SUMPRODUCT(($L$2:$L$962=TRUE)*($AD$2:$AD$962>AD6))+COUNTIFS($L$2:L6,L6,$AD$2:AD6,AD6)-1,1+SUMPRODUCT(($L$2:$L$962=TRUE)*($AE$2:$AE$962>AE6))+COUNTIFS($L$2:L6,L6,$AE$2:AE6,AE6)-1,1+SUMPRODUCT(($L$2:$L$962=TRUE)*($AF$2:$AF$962>AF6))+COUNTIFS($L$2:L6,L6,$AF$2:AF6,AF6)-1,1+SUMPRODUCT(($L$2:$L$962=TRUE)*($AG$2:$AG$962>AG6))+COUNTIFS($L$2:L6,L6,$AG$2:AG6,AG6)-1,1+SUMPRODUCT(($L$2:$L$962=TRUE)*($AH$2:$AH$962>AH6))+COUNTIFS($L$2:L6,L6,$AH$2:AH6,AH6)-1,1+SUMPRODUCT(($L$2:$L$962=TRUE)*($AI$2:$AI$962>AI6))+COUNTIFS($L$2:L6,L6,$AI$2:AI6,AI6)-1,1+SUMPRODUCT(($L$2:$L$962=TRUE)*($AJ$2:$AJ$962>AJ6))+COUNTIFS($L$2:L6,L6,$AJ$2:AJ6,AJ6)-1,1+SUMPRODUCT(($L$2:$L$962=TRUE)*($AK$2:$AK$962>AK6))+COUNTIFS($L$2:L6,L6,$AK$2:AK6,AK6)-1,1+SUMPRODUCT(($L$2:$L$962=TRUE)*($AL$2:$AL$962>AL6))+COUNTIFS($L$2:L6,L6,$AL$2:AL6,AL6)-1,1+SUMPRODUCT(($L$2:$L$962=TRUE)*($AM$2:$AM$962>AM6))+COUNTIFS($L$2:L6,L6,$AM$2:AM6,AM6)-1,)),"") -> 721 | D6: Ehire Adrianza | E6: =IFERROR(INDEX('Auction Log'!$C$4:$C$806,MATCH(D6,'Auction Log'!$B$4:$B$806,0)),"") ->  | F6: =IFERROR(INDEX('Auction-Rank'!$C$2:$C$961,MATCH(D6,'Auction-Rank'!$A$2:$A$961,0)),"") -> SS | G6: =IFERROR(IF(F6=I6,"",IF(INDEX('Your Roto Auction'!$C$11:$C$634,MATCH(D6,'Your Roto Auction'!$D$11:$D$634,0))="",IF(I6<>"",I6,""),INDEX('Your Roto Auction'!$C$11:$C$634,MATCH(D6,'Your Roto Auction'!$D$11:$D$634,0)))),"") ->  | H6: SS | J6: =INDEX('Auction-Rank'!$V$2:$V$961,MATCH(D6,'Auction-Rank'!$A$2:$A$961,0)) -> TRUE | K6: FALSE | L6: =IF(J6=FALSE,FALSE,IF(AND('Your Roto Auction'!$Q$6="Hide Drafted Players",K6=TRUE),FALSE,IF(OR('Your Roto Auction'!$Q$5="Show All Positions",AND('Your Roto Auction'!$Q$5="Only Show: C",H6="C"),AND('Your Roto Auction'!$Q$5="Only Show: 1B",H6="1B"),AND('Your Roto Auction'!$Q$5="Only Show: 2B",H6="2B"),AND('Your Roto Auction'!$Q$5="Only Show: 3B",H6="3B"),AND('Your Roto Auction'!$Q$5="Only Show: SS",H6="SS"),AND('Your Roto Auction'!$Q$5="Only Show: OF",H6="OF"),AND('Your Roto Auction'!$Q$5="Only Show: SP",H6="SP"),AND('Your Roto Auction'!$Q$5="Only Show: RP",H6="RP"),AND('Your Roto Auction'!$Q$5="Only Show: CI",OR(H6={"1B","3B"})),AND('Your Roto Auction'!$Q$5="Only Show: MI",OR(H6={"2B","SS"})),AND('Your Roto Auction'!$Q$5="Only Show: IF",OR(H6={"C","1B","2B","3B","SS"})),AND('Your Roto Auction'!$Q$5="Only Show: DH",OR(H6={"C","1B","2B","3B","SS","OF","DH"})),AND('Your Roto Auction'!$Q$5="Only Show: P",OR(H6={"SP","RP"})),AND('Your Roto Auction'!$Q$5="Only Show: LF",ISERROR(SEARCH("LF",VLOOKUP($D6,'Auction-Rank'!$A$2:$D$961,4,FALSE)))=FALSE),AND('Your Roto Auction'!$Q$5="Only Show: RF",ISERROR(SEARCH("RF",VLOOKUP($D6,'Auction-Rank'!$A$2:$D$961,4,FALSE)))=FALSE),AND('Your Roto Auction'!$Q$5="Only Show: CF",ISERROR(SEARCH("CF",VLOOKUP($D6,'Auction-Rank'!$A$2:$D$961,4,FALSE)))=FALSE)),TRUE,FALSE))) -> TRUE | M6: =IFERROR(IF(VLOOKUP($D6,'Inflation-Tracking'!$A$5:$AD$862,22,FALSE)="",-9999,VLOOKUP($D6,'Inflation-Tracking'!$A$5:$AD$862,22,FALSE)),-9999) -> -2.684381476 | N6: =IF(D6="Non-Ranked Player",-1001,IFERROR(VLOOKUP($D6,'All-WERTH'!$C$2:$E$806,3,FALSE),-1000)) -> -12.00802551 | O6: =IF(D6="Non-Ranked Player",10000,IFERROR(IF(VLOOKUP(D6,'Auction-Rank'!$A$2:$X$961,24,FALSE)="",9999,VLOOKUP(D6,'Auction-Rank'!$A$2:$X$961,24,FALSE)),9999)) -> 589 | P6: =IF($D6="Unlisted Player",-1001,IFERROR(IF(VLOOKUP($D6,'All-WERTH'!$C$2:$AC$806,4,FALSE)="",-1000,VLOOKUP($D6,'All-WERTH'!$C$2:$AC$806,4,FALSE)),-1000)) -> -0.7559583696 | Q6: =IF($D6="Unlisted Player",-1001,IFERROR(IF(VLOOKUP($D6,'All-WERTH'!$C$2:$AC$806,5,FALSE)="",-1000,VLOOKUP($D6,'All-WERTH'!$C$2:$AC$806,5,FALSE)),-1000)) -> -2.629886017 | R6: =IF($D6="Unlisted Player",-1001,IFERROR(IF(VLOOKUP($D6,'All-WERTH'!$C$2:$AC$806,6,FALSE)="",-1000,VLOOKUP($D6,'All-WERTH'!$C$2:$AC$806,6,FALSE)),-1000)) -> -3.842690825 | S6: =IF($D6="Unlisted Player",-1001,IFERROR(IF(VLOOKUP($D6,'All-WERTH'!$C$2:$AC$806,7,FALSE)="",-1000,VLOOKUP($D6,'All-WERTH'!$C$2:$AC$806,7,FALSE)),-1000)) -> -3.988916254 | T6: =IF($D6="Unlisted Player",-1001,IFERROR(IF(VLOOKUP($D6,'All-WERTH'!$C$2:$AC$806,8,FALSE)="",-1000,VLOOKUP($D6,'All-WERTH'!$C$2:$AC$806,8,FALSE)),-1000)) -> -0.7905740495 | U6: =IF($D6="Unlisted Player",-1001,IFERROR(IF(VLOOKUP($D6,'All-WERTH'!$C$2:$AC$806,9,FALSE)="",-1000,VLOOKUP($D6,'All-WERTH'!$C$2:$AC$806,9,FALSE)),-1000)) -> -1000 | V6: =IF($D6="Unlisted Player",-1001,IFERROR(IF(VLOOKUP($D6,'All-WERTH'!$C$2:$AC$806,10,FALSE)="",-1000,VLOOKUP($D6,'All-WERTH'!$C$2:$AC$806,10,FALSE)),-1000)) -> -1000 | W6: =IF($D6="Unlisted Player",-1001,IFERROR(IF(VLOOKUP($D6,'All-WERTH'!$C$2:$AC$806,11,FALSE)="",-1000,VLOOKUP($D6,'All-WERTH'!$C$2:$AC$806,11,FALSE)),-1000)) -> -1000 | X6: =IF($D6="Unlisted Player",-1001,IFERROR(IF(VLOOKUP($D6,'All-WERTH'!$C$2:$AC$806,12,FALSE)="",-1000,VLOOKUP($D6,'All-WERTH'!$C$2:$AC$806,12,FALSE)),-1000)) -> -1000 | Y6: =IF($D6="Unlisted Player",-1001,IFERROR(IF(VLOOKUP($D6,'All-WERTH'!$C$2:$AC$806,13,FALSE)="",-1000,VLOOKUP($D6,'All-WERTH'!$C$2:$AC$806,13,FALSE)),-1000)) -> -1000 | Z6: =IF($D6="Unlisted Player",-1001,IFERROR(IF(VLOOKUP($D6,'All-WERTH'!$C$2:$AC$806,14,FALSE)="",-1000,VLOOKUP($D6,'All-WERTH'!$C$2:$AC$806,14,FALSE)),-1000)) -> -1000 | AA6: =IF($D6="Unlisted Player",-1001,IFERROR(IF(VLOOKUP($D6,'All-WERTH'!$C$2:$AC$806,15,FALSE)="",-1000,VLOOKUP($D6,'All-WERTH'!$C$2:$AC$806,15,FALSE)),-1000)) -> -1000 | AB6: =IF($D6="Unlisted Player",-1001,IFERROR(IF(VLOOKUP($D6,'All-WERTH'!$C$2:$AC$806,16,FALSE)="",-1000,VLOOKUP($D6,'All-WERTH'!$C$2:$AC$806,16,FALSE)),-1000)) -> -1000 | AC6: =IF($D6="Unlisted Player",-1001,IFERROR(IF(VLOOKUP($D6,'All-WERTH'!$C$2:$AC$806,17,FALSE)="",-1000,VLOOKUP($D6,'All-WERTH'!$C$2:$AC$806,17,FALSE)),-1000)) -> -1000 | AD6: =IF($D6="Unlisted Player",-1001,IFERROR(IF(VLOOKUP($D6,'All-WERTH'!$C$2:$AC$806,18,FALSE)="",-1000,VLOOKUP($D6,'All-WERTH'!$C$2:$AC$806,18,FALSE)),-1000)) -> -1000 | AE6: =IF($D6="Unlisted Player",-1001,IFERROR(IF(VLOOKUP($D6,'All-WERTH'!$C$2:$AC$806,19,FALSE)="",-1000,VLOOKUP($D6,'All-WERTH'!$C$2:$AC$806,19,FALSE)),-1000)) -> -1000 | AF6: =IF($D6="Unlisted Player",-1001,IFERROR(IF(VLOOKUP($D6,'All-WERTH'!$C$2:$AC$806,20,FALSE)="",-1000,VLOOKUP($D6,'All-WERTH'!$C$2:$AC$806,20,FALSE)),-1000)) -> -1000 | AG6: =IF($D6="Unlisted Player",-1001,IFERROR(IF(VLOOKUP($D6,'All-WERTH'!$C$2:$AC$806,21,FALSE)="",-1000,VLOOKUP($D6,'All-WERTH'!$C$2:$AC$806,21,FALSE)),-1000)) -> -1000 | AH6: =IF($D6="Unlisted Player",-1001,IFERROR(IF(VLOOKUP($D6,'All-WERTH'!$C$2:$AC$806,22,FALSE)="",-1000,VLOOKUP($D6,'All-WERTH'!$C$2:$AC$806,22,FALSE)),-1000)) -> -1000 | AI6: =IF($D6="Unlisted Player",-1001,IFERROR(IF(VLOOKUP($D6,'All-WERTH'!$C$2:$AC$806,23,FALSE)="",-1000,VLOOKUP($D6,'All-WERTH'!$C$2:$AC$806,23,FALSE)),-1000)) -> -1000 | AJ6: =IF($D6="Unlisted Player",-1001,IFERROR(IF(VLOOKUP($D6,'All-WERTH'!$C$2:$AC$806,24,FALSE)="",-1000,VLOOKUP($D6,'All-WERTH'!$C$2:$AC$806,24,FALSE)),-1000)) -> -1000 | AK6: =IF($D6="Unlisted Player",-1001,IFERROR(IF(VLOOKUP($D6,'All-WERTH'!$C$2:$AC$806,25,FALSE)="",-1000,VLOOKUP($D6,'All-WERTH'!$C$2:$AC$806,25,FALSE)),-1000)) -> -1000 | AL6: =IF($D6="Unlisted Player",-1001,IFERROR(IF(VLOOKUP($D6,'All-WERTH'!$C$2:$AC$806,26,FALSE)="",-1000,VLOOKUP($D6,'All-WERTH'!$C$2:$AC$806,26,FALSE)),-1000)) -> -1000 | AM6: =IF($D6="Unlisted Player",-1001,IFERROR(IF(VLOOKUP($D6,'All-WERTH'!$C$2:$AC$806,27,FALSE)="",-1000,VLOOKUP($D6,'All-WERTH'!$C$2:$AC$806,27,FALSE)),-1000)) -> -1000
A7: Max Scherzer | B7: =IFERROR(INDEX($A$1:$A$961,SMALL(IF($A$1:$A$961<>"",ROW($A$1:$A$961)),ROW(A6))),"") -> Max Scherzer | C7: =IFERROR(IF(L7=FALSE,"",CHOOSE(MATCH(RIGHT('Your Roto Auction'!$Q$4,LEN('Your Roto Auction'!$Q$4)-8),$M$1:$AM$1,0),1+SUMPRODUCT(($L$2:$L$962=TRUE)*($M$2:$M$962>M7))+COUNTIFS($L$2:L7,L7,$M$2:M7,M7)-1,1+SUMPRODUCT(($L$2:$L$962=TRUE)*($N$2:$N$962>N7))+COUNTIFS($L$2:L7,L7,$N$2:N7,N7)-1,1+SUMPRODUCT(($L$2:$L$962=TRUE)*($O$2:$O$962<O7))+COUNTIFS($L$2:L7,L7,$O$2:O7,O7)-1,1+SUMPRODUCT(($L$2:$L$962=TRUE)*($P$2:$P$962>P7))+COUNTIFS($L$2:L7,L7,$P$2:P7,P7)-1,1+SUMPRODUCT(($L$2:$L$962=TRUE)*($Q$2:$Q$962>Q7))+COUNTIFS($L$2:L7,L7,$Q$2:Q7,Q7)-1,1+SUMPRODUCT(($L$2:$L$962=TRUE)*($R$2:$R$962>R7))+COUNTIFS($L$2:L7,L7,$R$2:R7,R7)-1,1+SUMPRODUCT(($L$2:$L$962=TRUE)*($S$2:$S$962>S7))+COUNTIFS($L$2:L7,L7,$S$2:S7,S7)-1,1+SUMPRODUCT(($L$2:$L$962=TRUE)*($T$2:$T$962>T7))+COUNTIFS($L$2:L7,L7,$T$2:T7,T7)-1,1+SUMPRODUCT(($L$2:$L$962=TRUE)*($U$2:$U$962>U7))+COUNTIFS($L$2:L7,L7,$U$2:U7,U7)-1,1+SUMPRODUCT(($L$2:$L$962=TRUE)*($V$2:$V$962>V7))+COUNTIFS($L$2:L7,L7,$V$2:V7,V7)-1,1+SUMPRODUCT(($L$2:$L$962=TRUE)*($W$2:$W$962>W7))+COUNTIFS($L$2:L7,L7,$W$2:W7,W7)-1,1+SUMPRODUCT(($L$2:$L$962=TRUE)*($X$2:$X$962>X7))+COUNTIFS($L$2:L7,L7,$X$2:X7,X7)-1,1+SUMPRODUCT(($L$2:$L$962=TRUE)*($Y$2:$Y$962>Y7))+COUNTIFS($L$2:L7,L7,$Y$2:Y7,Y7)-1,1+SUMPRODUCT(($L$2:$L$962=TRUE)*($Z$2:$Z$962>Z7))+COUNTIFS($L$2:L7,L7,$Z$2:Z7,Z7)-1,1+SUMPRODUCT(($L$2:$L$962=TRUE)*($AA$2:$AA$962>AA7))+COUNTIFS($L$2:L7,L7,$AA$2:AA7,AA7)-1,1+SUMPRODUCT(($L$2:$L$962=TRUE)*($AB$2:$AB$962>AB7))+COUNTIFS($L$2:L7,L7,$AB$2:AB7,AB7)-1,1+SUMPRODUCT(($L$2:$L$962=TRUE)*($AC$2:$AC$962>AC7))+COUNTIFS($L$2:L7,L7,$AC$2:AC7,AC7)-1,1+SUMPRODUCT(($L$2:$L$962=TRUE)*($AD$2:$AD$962>AD7))+COUNTIFS($L$2:L7,L7,$AD$2:AD7,AD7)-1,1+SUMPRODUCT(($L$2:$L$962=TRUE)*($AE$2:$AE$962>AE7))+COUNTIFS($L$2:L7,L7,$AE$2:AE7,AE7)-1,1+SUMPRODUCT(($L$2:$L$962=TRUE)*($AF$2:$AF$962>AF7))+COUNTIFS($L$2:L7,L7,$AF$2:AF7,AF7)-1,1+SUMPRODUCT(($L$2:$L$962=TRUE)*($AG$2:$AG$962>AG7))+COUNTIFS($L$2:L7,L7,$AG$2:AG7,AG7)-1,1+SUMPRODUCT(($L$2:$L$962=TRUE)*($AH$2:$AH$962>AH7))+COUNTIFS($L$2:L7,L7,$AH$2:AH7,AH7)-1,1+SUMPRODUCT(($L$2:$L$962=TRUE)*($AI$2:$AI$962>AI7))+COUNTIFS($L$2:L7,L7,$AI$2:AI7,AI7)-1,1+SUMPRODUCT(($L$2:$L$962=TRUE)*($AJ$2:$AJ$962>AJ7))+COUNTIFS($L$2:L7,L7,$AJ$2:AJ7,AJ7)-1,1+SUMPRODUCT(($L$2:$L$962=TRUE)*($AK$2:$AK$962>AK7))+COUNTIFS($L$2:L7,L7,$AK$2:AK7,AK7)-1,1+SUMPRODUCT(($L$2:$L$962=TRUE)*($AL$2:$AL$962>AL7))+COUNTIFS($L$2:L7,L7,$AL$2:AL7,AL7)-1,1+SUMPRODUCT(($L$2:$L$962=TRUE)*($AM$2:$AM$962>AM7))+COUNTIFS($L$2:L7,L7,$AM$2:AM7,AM7)-1,)),"") -> 101 | D7: Jesus Aguilar | E7: =IFERROR(INDEX('Auction Log'!$C$4:$C$806,MATCH(D7,'Auction Log'!$B$4:$B$806,0)),"") ->  | F7: =IFERROR(INDEX('Auction-Rank'!$C$2:$C$961,MATCH(D7,'Auction-Rank'!$A$2:$A$961,0)),"") -> 1B | G7: =IFERROR(IF(F7=I7,"",IF(INDEX('Your Roto Auction'!$C$11:$C$634,MATCH(D7,'Your Roto Auction'!$D$11:$D$634,0))="",IF(I7<>"",I7,""),INDEX('Your Roto Auction'!$C$11:$C$634,MATCH(D7,'Your Roto Auction'!$D$11:$D$634,0)))),"") ->  | H7: 1B | J7: =INDEX('Auction-Rank'!$V$2:$V$961,MATCH(D7,'Auction-Rank'!$A$2:$A$961,0)) -> TRUE | K7: FALSE | L7: =IF(J7=FALSE,FALSE,IF(AND('Your Roto Auction'!$Q$6="Hide Drafted Players",K7=TRUE),FALSE,IF(OR('Your Roto Auction'!$Q$5="Show All Positions",AND('Your Roto Auction'!$Q$5="Only Show: C",H7="C"),AND('Your Roto Auction'!$Q$5="Only Show: 1B",H7="1B"),AND('Your Roto Auction'!$Q$5="Only Show: 2B",H7="2B"),AND('Your Roto Auction'!$Q$5="Only Show: 3B",H7="3B"),AND('Your Roto Auction'!$Q$5="Only Show: SS",H7="SS"),AND('Your Roto Auction'!$Q$5="Only Show: OF",H7="OF"),AND('Your Roto Auction'!$Q$5="Only Show: SP",H7="SP"),AND('Your Roto Auction'!$Q$5="Only Show: RP",H7="RP"),AND('Your Roto Auction'!$Q$5="Only Show: CI",OR(H7={"1B","3B"})),AND('Your Roto Auction'!$Q$5="Only Show: MI",OR(H7={"2B","SS"})),AND('Your Roto Auction'!$Q$5="Only Show: IF",OR(H7={"C","1B","2B","3B","SS"})),AND('Your Roto Auction'!$Q$5="Only Show: DH",OR(H7={"C","1B","2B","3B","SS","OF","DH"})),AND('Your Roto Auction'!$Q$5="Only Show: P",OR(H7={"SP","RP"})),AND('Your Roto Auction'!$Q$5="Only Show: LF",ISERROR(SEARCH("LF",VLOOKUP($D7,'Auction-Rank'!$A$2:$D$961,4,FALSE)))=FALSE),AND('Your Roto Auction'!$Q$5="Only Show: RF",ISERROR(SEARCH("RF",VLOOKUP($D7,'Auction-Rank'!$A$2:$D$961,4,FALSE)))=FALSE),AND('Your Roto Auction'!$Q$5="Only Show: CF",ISERROR(SEARCH("CF",VLOOKUP($D7,'Auction-Rank'!$A$2:$D$961,4,FALSE)))=FALSE)),TRUE,FALSE))) -> TRUE | M7: =IFERROR(IF(VLOOKUP($D7,'Inflation-Tracking'!$A$5:$AD$862,22,FALSE)="",-9999,VLOOKUP($D7,'Inflation-Tracking'!$A$5:$AD$862,22,FALSE)),-9999) -> 11.66681321 | N7: =IF(D7="Non-Ranked Player",-1001,IFERROR(VLOOKUP($D7,'All-WERTH'!$C$2:$E$806,3,FALSE),-1000)) -> -0.4666312955 | O7: =IF(D7="Non-Ranked Player",10000,IFERROR(IF(VLOOKUP(D7,'Auction-Rank'!$A$2:$X$961,24,FALSE)="",9999,VLOOKUP(D7,'Auction-Rank'!$A$2:$X$961,24,FALSE)),9999)) -> 79 | P7: =IF($D7="Unlisted Player",-1001,IFERROR(IF(VLOOKUP($D7,'All-WERTH'!$C$2:$AC$806,4,FALSE)="",-1000,VLOOKUP($D7,'All-WERTH'!$C$2:$AC$806,4,FALSE)),-1000)) -> -1.178561066 | Q7: =IF($D7="Unlisted Player",-1001,IFERROR(IF(VLOOKUP($D7,'All-WERTH'!$C$2:$AC$806,5,FALSE)="",-1000,VLOOKUP($D7,'All-WERTH'!$C$2:$AC$806,5,FALSE)),-1000)) -> 0.9480665793 | R7: =IF($D7="Unlisted Player",-1001,IFERROR(IF(VLOOKUP($D7,'All-WERTH'!$C$2:$AC$806,6,FALSE)="",-1000,VLOOKUP($D7,'All-WERTH'!$C$2:$AC$806,6,FALSE)),-1000)) -> -0.1440043247 | S7: =IF($D7="Unlisted Player",-1001,IFERROR(IF(VLOOKUP($D7,'All-WERTH'!$C$2:$AC$806,7,FALSE)="",-1000,VLOOKUP($D7,'All-WERTH'!$C$2:$AC$806,7,FALSE)),-1000)) -> 1.022438896 | T7: =IF($D7="Unlisted Player",-1001,IFERROR(IF(VLOOKUP($D7,'All-WERTH'!$C$2:$AC$806,8,FALSE)="",-1000,VLOOKUP($D7,'All-WERTH'!$C$2:$AC$806,8,FALSE)),-1000)) -> -1.11457138 | U7: =IF($D7="Unlisted Player",-1001,IFERROR(IF(VLOOKUP($D7,'All-WERTH'!$C$2:$AC$806,9,FALSE)="",-1000,VLOOKUP($D7,'All-WERTH'!$C$2:$AC$806,9,FALSE)),-1000)) -> -1000 | V7: =IF($D7="Unlisted Player",-1001,IFERROR(IF(VLOOKUP($D7,'All-WERTH'!$C$2:$AC$806,10,FALSE)="",-1000,VLOOKUP($D7,'All-WERTH'!$C$2:$AC$806,10,FALSE)),-1000)) -> -1000 | W7: =IF($D7="Unlisted Player",-1001,IFERROR(IF(VLOOKUP($D7,'All-WERTH'!$C$2:$AC$806,11,FALSE)="",-1000,VLOOKUP($D7,'All-WERTH'!$C$2:$AC$806,11,FALSE)),-1000)) -> -1000 | X7: =IF($D7="Unlisted Player",-1001,IFERROR(IF(VLOOKUP($D7,'All-WERTH'!$C$2:$AC$806,12,FALSE)="",-1000,VLOOKUP($D7,'All-WERTH'!$C$2:$AC$806,12,FALSE)),-1000)) -> -1000 | Y7: =IF($D7="Unlisted Player",-1001,IFERROR(IF(VLOOKUP($D7,'All-WERTH'!$C$2:$AC$806,13,FALSE)="",-1000,VLOOKUP($D7,'All-WERTH'!$C$2:$AC$806,13,FALSE)),-1000)) -> -1000 | Z7: =IF($D7="Unlisted Player",-1001,IFERROR(IF(VLOOKUP($D7,'All-WERTH'!$C$2:$AC$806,14,FALSE)="",-1000,VLOOKUP($D7,'All-WERTH'!$C$2:$AC$806,14,FALSE)),-1000)) -> -1000 | AA7: =IF($D7="Unlisted Player",-1001,IFERROR(IF(VLOOKUP($D7,'All-WERTH'!$C$2:$AC$806,15,FALSE)="",-1000,VLOOKUP($D7,'All-WERTH'!$C$2:$AC$806,15,FALSE)),-1000)) -> -1000 | AB7: =IF($D7="Unlisted Player",-1001,IFERROR(IF(VLOOKUP($D7,'All-WERTH'!$C$2:$AC$806,16,FALSE)="",-1000,VLOOKUP($D7,'All-WERTH'!$C$2:$AC$806,16,FALSE)),-1000)) -> -1000 | AC7: =IF($D7="Unlisted Player",-1001,IFERROR(IF(VLOOKUP($D7,'All-WERTH'!$C$2:$AC$806,17,FALSE)="",-1000,VLOOKUP($D7,'All-WERTH'!$C$2:$AC$806,17,FALSE)),-1000)) -> -1000 | AD7: =IF($D7="Unlisted Player",-1001,IFERROR(IF(VLOOKUP($D7,'All-WERTH'!$C$2:$AC$806,18,FALSE)="",-1000,VLOOKUP($D7,'All-WERTH'!$C$2:$AC$806,18,FALSE)),-1000)) -> -1000 | AE7: =IF($D7="Unlisted Player",-1001,IFERROR(IF(VLOOKUP($D7,'All-WERTH'!$C$2:$AC$806,19,FALSE)="",-1000,VLOOKUP($D7,'All-WERTH'!$C$2:$AC$806,19,FALSE)),-1000)) -> -1000 | AF7: =IF($D7="Unlisted Player",-1001,IFERROR(IF(VLOOKUP($D7,'All-WERTH'!$C$2:$AC$806,20,FALSE)="",-1000,VLOOKUP($D7,'All-WERTH'!$C$2:$AC$806,20,FALSE)),-1000)) -> -1000 | AG7: =IF($D7="Unlisted Player",-1001,IFERROR(IF(VLOOKUP($D7,'All-WERTH'!$C$2:$AC$806,21,FALSE)="",-1000,VLOOKUP($D7,'All-WERTH'!$C$2:$AC$806,21,FALSE)),-1000)) -> -1000 | AH7: =IF($D7="Unlisted Player",-1001,IFERROR(IF(VLOOKUP($D7,'All-WERTH'!$C$2:$AC$806,22,FALSE)="",-1000,VLOOKUP($D7,'All-WERTH'!$C$2:$AC$806,22,FALSE)),-1000)) -> -1000 | AI7: =IF($D7="Unlisted Player",-1001,IFERROR(IF(VLOOKUP($D7,'All-WERTH'!$C$2:$AC$806,23,FALSE)="",-1000,VLOOKUP($D7,'All-WERTH'!$C$2:$AC$806,23,FALSE)),-1000)) -> -1000 | AJ7: =IF($D7="Unlisted Player",-1001,IFERROR(IF(VLOOKUP($D7,'All-WERTH'!$C$2:$AC$806,24,FALSE)="",-1000,VLOOKUP($D7,'All-WERTH'!$C$2:$AC$806,24,FALSE)),-1000)) -> -1000 | AK7: =IF($D7="Unlisted Player",-1001,IFERROR(IF(VLOOKUP($D7,'All-WERTH'!$C$2:$AC$806,25,FALSE)="",-1000,VLOOKUP($D7,'All-WERTH'!$C$2:$AC$806,25,FALSE)),-1000)) -> -1000 | AL7: =IF($D7="Unlisted Player",-1001,IFERROR(IF(VLOOKUP($D7,'All-WERTH'!$C$2:$AC$806,26,FALSE)="",-1000,VLOOKUP($D7,'All-WERTH'!$C$2:$AC$806,26,FALSE)),-1000)) -> -1000 | AM7: =IF($D7="Unlisted Player",-1001,IFERROR(IF(VLOOKUP($D7,'All-WERTH'!$C$2:$AC$806,27,FALSE)="",-1000,VLOOKUP($D7,'All-WERTH'!$C$2:$AC$806,27,FALSE)),-1000)) -> -1000
A8: Jacob deGrom | B8: =IFERROR(INDEX($A$1:$A$961,SMALL(IF($A$1:$A$961<>"",ROW($A$1:$A$961)),ROW(A7))),"") -> Jacob deGrom | C8: =IFERROR(IF(L8=FALSE,"",CHOOSE(MATCH(RIGHT('Your Roto Auction'!$Q$4,LEN('Your Roto Auction'!$Q$4)-8),$M$1:$AM$1,0),1+SUMPRODUCT(($L$2:$L$962=TRUE)*($M$2:$M$962>M8))+COUNTIFS($L$2:L8,L8,$M$2:M8,M8)-1,1+SUMPRODUCT(($L$2:$L$962=TRUE)*($N$2:$N$962>N8))+COUNTIFS($L$2:L8,L8,$N$2:N8,N8)-1,1+SUMPRODUCT(($L$2:$L$962=TRUE)*($O$2:$O$962<O8))+COUNTIFS($L$2:L8,L8,$O$2:O8,O8)-1,1+SUMPRODUCT(($L$2:$L$962=TRUE)*($P$2:$P$962>P8))+COUNTIFS($L$2:L8,L8,$P$2:P8,P8)-1,1+SUMPRODUCT(($L$2:$L$962=TRUE)*($Q$2:$Q$962>Q8))+COUNTIFS($L$2:L8,L8,$Q$2:Q8,Q8)-1,1+SUMPRODUCT(($L$2:$L$962=TRUE)*($R$2:$R$962>R8))+COUNTIFS($L$2:L8,L8,$R$2:R8,R8)-1,1+SUMPRODUCT(($L$2:$L$962=TRUE)*($S$2:$S$962>S8))+COUNTIFS($L$2:L8,L8,$S$2:S8,S8)-1,1+SUMPRODUCT(($L$2:$L$962=TRUE)*($T$2:$T$962>T8))+COUNTIFS($L$2:L8,L8,$T$2:T8,T8)-1,1+SUMPRODUCT(($L$2:$L$962=TRUE)*($U$2:$U$962>U8))+COUNTIFS($L$2:L8,L8,$U$2:U8,U8)-1,1+SUMPRODUCT(($L$2:$L$962=TRUE)*($V$2:$V$962>V8))+COUNTIFS($L$2:L8,L8,$V$2:V8,V8)-1,1+SUMPRODUCT(($L$2:$L$962=TRUE)*($W$2:$W$962>W8))+COUNTIFS($L$2:L8,L8,$W$2:W8,W8)-1,1+SUMPRODUCT(($L$2:$L$962=TRUE)*($X$2:$X$962>X8))+COUNTIFS($L$2:L8,L8,$X$2:X8,X8)-1,1+SUMPRODUCT(($L$2:$L$962=TRUE)*($Y$2:$Y$962>Y8))+COUNTIFS($L$2:L8,L8,$Y$2:Y8,Y8)-1,1+SUMPRODUCT(($L$2:$L$962=TRUE)*($Z$2:$Z$962>Z8))+COUNTIFS($L$2:L8,L8,$Z$2:Z8,Z8)-1,1+SUMPRODUCT(($L$2:$L$962=TRUE)*($AA$2:$AA$962>AA8))+COUNTIFS($L$2:L8,L8,$AA$2:AA8,AA8)-1,1+SUMPRODUCT(($L$2:$L$962=TRUE)*($AB$2:$AB$962>AB8))+COUNTIFS($L$2:L8,L8,$AB$2:AB8,AB8)-1,1+SUMPRODUCT(($L$2:$L$962=TRUE)*($AC$2:$AC$962>AC8))+COUNTIFS($L$2:L8,L8,$AC$2:AC8,AC8)-1,1+SUMPRODUCT(($L$2:$L$962=TRUE)*($AD$2:$AD$962>AD8))+COUNTIFS($L$2:L8,L8,$AD$2:AD8,AD8)-1,1+SUMPRODUCT(($L$2:$L$962=TRUE)*($AE$2:$AE$962>AE8))+COUNTIFS($L$2:L8,L8,$AE$2:AE8,AE8)-1,1+SUMPRODUCT(($L$2:$L$962=TRUE)*($AF$2:$AF$962>AF8))+COUNTIFS($L$2:L8,L8,$AF$2:AF8,AF8)-1,1+SUMPRODUCT(($L$2:$L$962=TRUE)*($AG$2:$AG$962>AG8))+COUNTIFS($L$2:L8,L8,$AG$2:AG8,AG8)-1,1+SUMPRODUCT(($L$2:$L$962=TRUE)*($AH$2:$AH$962>AH8))+COUNTIFS($L$2:L8,L8,$AH$2:AH8,AH8)-1,1+SUMPRODUCT(($L$2:$L$962=TRUE)*($AI$2:$AI$962>AI8))+COUNTIFS($L$2:L8,L8,$AI$2:AI8,AI8)-1,1+SUMPRODUCT(($L$2:$L$962=TRUE)*($AJ$2:$AJ$962>AJ8))+COUNTIFS($L$2:L8,L8,$AJ$2:AJ8,AJ8)-1,1+SUMPRODUCT(($L$2:$L$962=TRUE)*($AK$2:$AK$962>AK8))+COUNTIFS($L$2:L8,L8,$AK$2:AK8,AK8)-1,1+SUMPRODUCT(($L$2:$L$962=TRUE)*($AL$2:$AL$962>AL8))+COUNTIFS($L$2:L8,L8,$AL$2:AL8,AL8)-1,1+SUMPRODUCT(($L$2:$L$962=TRUE)*($AM$2:$AM$962>AM8))+COUNTIFS($L$2:L8,L8,$AM$2:AM8,AM8)-1,)),"") -> 396 | D8: Nick Ahmed | E8: =IFERROR(INDEX('Auction Log'!$C$4:$C$806,MATCH(D8,'Auction Log'!$B$4:$B$806,0)),"") ->  | F8: =IFERROR(INDEX('Auction-Rank'!$C$2:$C$961,MATCH(D8,'Auction-Rank'!$A$2:$A$961,0)),"") -> SS | G8: =IFERROR(IF(F8=I8,"",IF(INDEX('Your Roto Auction'!$C$11:$C$634,MATCH(D8,'Your Roto Auction'!$D$11:$D$634,0))="",IF(I8<>"",I8,""),INDEX('Your Roto Auction'!$C$11:$C$634,MATCH(D8,'Your Roto Auction'!$D$11:$D$634,0)))),"") ->  | H8: SS | J8: =INDEX('Auction-Rank'!$V$2:$V$961,MATCH(D8,'Auction-Rank'!$A$2:$A$961,0)) -> TRUE | K8: FALSE | L8: =IF(J8=FALSE,FALSE,IF(AND('Your Roto Auction'!$Q$6="Hide Drafted Players",K8=TRUE),FALSE,IF(OR('Your Roto Auction'!$Q$5="Show All Positions",AND('Your Roto Auction'!$Q$5="Only Show: C",H8="C"),AND('Your Roto Auction'!$Q$5="Only Show: 1B",H8="1B"),AND('Your Roto Auction'!$Q$5="Only Show: 2B",H8="2B"),AND('Your Roto Auction'!$Q$5="Only Show: 3B",H8="3B"),AND('Your Roto Auction'!$Q$5="Only Show: SS",H8="SS"),AND('Your Roto Auction'!$Q$5="Only Show: OF",H8="OF"),AND('Your Roto Auction'!$Q$5="Only Show: SP",H8="SP"),AND('Your Roto Auction'!$Q$5="Only Show: RP",H8="RP"),AND('Your Roto Auction'!$Q$5="Only Show: CI",OR(H8={"1B","3B"})),AND('Your Roto Auction'!$Q$5="Only Show: MI",OR(H8={"2B","SS"})),AND('Your Roto Auction'!$Q$5="Only Show: IF",OR(H8={"C","1B","2B","3B","SS"})),AND('Your Roto Auction'!$Q$5="Only Show: DH",OR(H8={"C","1B","2B","3B","SS","OF","DH"})),AND('Your Roto Auction'!$Q$5="Only Show: P",OR(H8={"SP","RP"})),AND('Your Roto Auction'!$Q$5="Only Show: LF",ISERROR(SEARCH("LF",VLOOKUP($D8,'Auction-Rank'!$A$2:$D$961,4,FALSE)))=FALSE),AND('Your Roto Auction'!$Q$5="Only Show: RF",ISERROR(SEARCH("RF",VLOOKUP($D8,'Auction-Rank'!$A$2:$D$961,4,FALSE)))=FALSE),AND('Your Roto Auction'!$Q$5="Only Show: CF",ISERROR(SEARCH("CF",VLOOKUP($D8,'Auction-Rank'!$A$2:$D$961,4,FALSE)))=FALSE)),TRUE,FALSE))) -> TRUE | M8: =IFERROR(IF(VLOOKUP($D8,'Inflation-Tracking'!$A$5:$AD$862,22,FALSE)="",-9999,VLOOKUP($D8,'Inflation-Tracking'!$A$5:$AD$862,22,FALSE)),-9999) -> -0.6408639412 | N8: =IF(D8="Non-Ranked Player",-1001,IFERROR(VLOOKUP($D8,'All-WERTH'!$C$2:$E$806,3,FALSE),-1000)) -> -5.74767752 | O8: =IF(D8="Non-Ranked Player",10000,IFERROR(IF(VLOOKUP(D8,'Auction-Rank'!$A$2:$X$961,24,FALSE)="",9999,VLOOKUP(D8,'Auction-Rank'!$A$2:$X$961,24,FALSE)),9999)) -> 406 | P8: =IF($D8="Unlisted Player",-1001,IFERROR(IF(VLOOKUP($D8,'All-WERTH'!$C$2:$AC$806,4,FALSE)="",-1000,VLOOKUP($D8,'All-WERTH'!$C$2:$AC$806,4,FALSE)),-1000)) -> -1.702047153 | Q8: =IF($D8="Unlisted Player",-1001,IFERROR(IF(VLOOKUP($D8,'All-WERTH'!$C$2:$AC$806,5,FALSE)="",-1000,VLOOKUP($D8,'All-WERTH'!$C$2:$AC$806,5,FALSE)),-1000)) -> -1.089364141 | R8: =IF($D8="Unlisted Player",-1001,IFERROR(IF(VLOOKUP($D8,'All-WERTH'!$C$2:$AC$806,6,FALSE)="",-1000,VLOOKUP($D8,'All-WERTH'!$C$2:$AC$806,6,FALSE)),-1000)) -> -1.372139104 | S8: =IF($D8="Unlisted Player",-1001,IFERROR(IF(VLOOKUP($D8,'All-WERTH'!$C$2:$AC$806,7,FALSE)="",-1000,VLOOKUP($D8,'All-WERTH'!$C$2:$AC$806,7,FALSE)),-1000)) -> -1.106647748 | T8: =IF($D8="Unlisted Player",-1001,IFERROR(IF(VLOOKUP($D8,'All-WERTH'!$C$2:$AC$806,8,FALSE)="",-1000,VLOOKUP($D8,'All-WERTH'!$C$2:$AC$806,8,FALSE)),-1000)) -> -0.4774793735 | U8: =IF($D8="Unlisted Player",-1001,IFERROR(IF(VLOOKUP($D8,'All-WERTH'!$C$2:$AC$806,9,FALSE)="",-1000,VLOOKUP($D8,'All-WERTH'!$C$2:$AC$806,9,FALSE)),-1000)) -> -1000 | V8: =IF($D8="Unlisted Player",-1001,IFERROR(IF(VLOOKUP($D8,'All-WERTH'!$C$2:$AC$806,10,FALSE)="",-1000,VLOOKUP($D8,'All-WERTH'!$C$2:$AC$806,10,FALSE)),-1000)) -> -1000 | W8: =IF($D8="Unlisted Player",-1001,IFERROR(IF(VLOOKUP($D8,'All-WERTH'!$C$2:$AC$806,11,FALSE)="",-1000,VLOOKUP($D8,'All-WERTH'!$C$2:$AC$806,11,FALSE)),-1000)) -> -1000 | X8: =IF($D8="Unlisted Player",-1001,IFERROR(IF(VLOOKUP($D8,'All-WERTH'!$C$2:$AC$806,12,FALSE)="",-1000,VLOOKUP($D8,'All-WERTH'!$C$2:$AC$806,12,FALSE)),-1000)) -> -1000 | Y8: =IF($D8="Unlisted Player",-1001,IFERROR(IF(VLOOKUP($D8,'All-WERTH'!$C$2:$AC$806,13,FALSE)="",-1000,VLOOKUP($D8,'All-WERTH'!$C$2:$AC$806,13,FALSE)),-1000)) -> -1000 | Z8: =IF($D8="Unlisted Player",-1001,IFERROR(IF(VLOOKUP($D8,'All-WERTH'!$C$2:$AC$806,14,FALSE)="",-1000,VLOOKUP($D8,'All-WERTH'!$C$2:$AC$806,14,FALSE)),-1000)) -> -1000 | AA8: =IF($D8="Unlisted Player",-1001,IFERROR(IF(VLOOKUP($D8,'All-WERTH'!$C$2:$AC$806,15,FALSE)="",-1000,VLOOKUP($D8,'All-WERTH'!$C$2:$AC$806,15,FALSE)),-1000)) -> -1000 | AB8: =IF($D8="Unlisted Player",-1001,IFERROR(IF(VLOOKUP($D8,'All-WERTH'!$C$2:$AC$806,16,FALSE)="",-1000,VLOOKUP($D8,'All-WERTH'!$C$2:$AC$806,16,FALSE)),-1000)) -> -1000 | AC8: =IF($D8="Unlisted Player",-1001,IFERROR(IF(VLOOKUP($D8,'All-WERTH'!$C$2:$AC$806,17,FALSE)="",-1000,VLOOKUP($D8,'All-WERTH'!$C$2:$AC$806,17,FALSE)),-1000)) -> -1000 | AD8: =IF($D8="Unlisted Player",-1001,IFERROR(IF(VLOOKUP($D8,'All-WERTH'!$C$2:$AC$806,18,FALSE)="",-1000,VLOOKUP($D8,'All-WERTH'!$C$2:$AC$806,18,FALSE)),-1000)) -> -1000 | AE8: =IF($D8="Unlisted Player",-1001,IFERROR(IF(VLOOKUP($D8,'All-WERTH'!$C$2:$AC$806,19,FALSE)="",-1000,VLOOKUP($D8,'All-WERTH'!$C$2:$AC$806,19,FALSE)),-1000)) -> -1000 | AF8: =IF($D8="Unlisted Player",-1001,IFERROR(IF(VLOOKUP($D8,'All-WERTH'!$C$2:$AC$806,20,FALSE)="",-1000,VLOOKUP($D8,'All-WERTH'!$C$2:$AC$806,20,FALSE)),-1000)) -> -1000 | AG8: =IF($D8="Unlisted Player",-1001,IFERROR(IF(VLOOKUP($D8,'All-WERTH'!$C$2:$AC$806,21,FALSE)="",-1000,VLOOKUP($D8,'All-WERTH'!$C$2:$AC$806,21,FALSE)),-1000)) -> -1000 | AH8: =IF($D8="Unlisted Player",-1001,IFERROR(IF(VLOOKUP($D8,'All-WERTH'!$C$2:$AC$806,22,FALSE)="",-1000,VLOOKUP($D8,'All-WERTH'!$C$2:$AC$806,22,FALSE)),-1000)) -> -1000 | AI8: =IF($D8="Unlisted Player",-1001,IFERROR(IF(VLOOKUP($D8,'All-WERTH'!$C$2:$AC$806,23,FALSE)="",-1000,VLOOKUP($D8,'All-WERTH'!$C$2:$AC$806,23,FALSE)),-1000)) -> -1000 | AJ8: =IF($D8="Unlisted Player",-1001,IFERROR(IF(VLOOKUP($D8,'All-WERTH'!$C$2:$AC$806,24,FALSE)="",-1000,VLOOKUP($D8,'All-WERTH'!$C$2:$AC$806,24,FALSE)),-1000)) -> -1000 | AK8: =IF($D8="Unlisted Player",-1001,IFERROR(IF(VLOOKUP($D8,'All-WERTH'!$C$2:$AC$806,25,FALSE)="",-1000,VLOOKUP($D8,'All-WERTH'!$C$2:$AC$806,25,FALSE)),-1000)) -> -1000 | AL8: =IF($D8="Unlisted Player",-1001,IFERROR(IF(VLOOKUP($D8,'All-WERTH'!$C$2:$AC$806,26,FALSE)="",-1000,VLOOKUP($D8,'All-WERTH'!$C$2:$AC$806,26,FALSE)),-1000)) -> -1000 | AM8: =IF($D8="Unlisted Player",-1001,IFERROR(IF(VLOOKUP($D8,'All-WERTH'!$C$2:$AC$806,27,FALSE)="",-1000,VLOOKUP($D8,'All-WERTH'!$C$2:$AC$806,27,FALSE)),-1000)) -> -1000
A9: J.D. Martinez | B9: =IFERROR(INDEX($A$1:$A$961,SMALL(IF($A$1:$A$961<>"",ROW($A$1:$A$961)),ROW(A8))),"") -> J.D. Martinez | C9: =IFERROR(IF(L9=FALSE,"",CHOOSE(MATCH(RIGHT('Your Roto Auction'!$Q$4,LEN('Your Roto Auction'!$Q$4)-8),$M$1:$AM$1,0),1+SUMPRODUCT(($L$2:$L$962=TRUE)*($M$2:$M$962>M9))+COUNTIFS($L$2:L9,L9,$M$2:M9,M9)-1,1+SUMPRODUCT(($L$2:$L$962=TRUE)*($N$2:$N$962>N9))+COUNTIFS($L$2:L9,L9,$N$2:N9,N9)-1,1+SUMPRODUCT(($L$2:$L$962=TRUE)*($O$2:$O$962<O9))+COUNTIFS($L$2:L9,L9,$O$2:O9,O9)-1,1+SUMPRODUCT(($L$2:$L$962=TRUE)*($P$2:$P$962>P9))+COUNTIFS($L$2:L9,L9,$P$2:P9,P9)-1,1+SUMPRODUCT(($L$2:$L$962=TRUE)*($Q$2:$Q$962>Q9))+COUNTIFS($L$2:L9,L9,$Q$2:Q9,Q9)-1,1+SUMPRODUCT(($L$2:$L$962=TRUE)*($R$2:$R$962>R9))+COUNTIFS($L$2:L9,L9,$R$2:R9,R9)-1,1+SUMPRODUCT(($L$2:$L$962=TRUE)*($S$2:$S$962>S9))+COUNTIFS($L$2:L9,L9,$S$2:S9,S9)-1,1+SUMPRODUCT(($L$2:$L$962=TRUE)*($T$2:$T$962>T9))+COUNTIFS($L$2:L9,L9,$T$2:T9,T9)-1,1+SUMPRODUCT(($L$2:$L$962=TRUE)*($U$2:$U$962>U9))+COUNTIFS($L$2:L9,L9,$U$2:U9,U9)-1,1+SUMPRODUCT(($L$2:$L$962=TRUE)*($V$2:$V$962>V9))+COUNTIFS($L$2:L9,L9,$V$2:V9,V9)-1,1+SUMPRODUCT(($L$2:$L$962=TRUE)*($W$2:$W$962>W9))+COUNTIFS($L$2:L9,L9,$W$2:W9,W9)-1,1+SUMPRODUCT(($L$2:$L$962=TRUE)*($X$2:$X$962>X9))+COUNTIFS($L$2:L9,L9,$X$2:X9,X9)-1,1+SUMPRODUCT(($L$2:$L$962=TRUE)*($Y$2:$Y$962>Y9))+COUNTIFS($L$2:L9,L9,$Y$2:Y9,Y9)-1,1+SUMPRODUCT(($L$2:$L$962=TRUE)*($Z$2:$Z$962>Z9))+COUNTIFS($L$2:L9,L9,$Z$2:Z9,Z9)-1,1+SUMPRODUCT(($L$2:$L$962=TRUE)*($AA$2:$AA$962>AA9))+COUNTIFS($L$2:L9,L9,$AA$2:AA9,AA9)-1,1+SUMPRODUCT(($L$2:$L$962=TRUE)*($AB$2:$AB$962>AB9))+COUNTIFS($L$2:L9,L9,$AB$2:AB9,AB9)-1,1+SUMPRODUCT(($L$2:$L$962=TRUE)*($AC$2:$AC$962>AC9))+COUNTIFS($L$2:L9,L9,$AC$2:AC9,AC9)-1,1+SUMPRODUCT(($L$2:$L$962=TRUE)*($AD$2:$AD$962>AD9))+COUNTIFS($L$2:L9,L9,$AD$2:AD9,AD9)-1,1+SUMPRODUCT(($L$2:$L$962=TRUE)*($AE$2:$AE$962>AE9))+COUNTIFS($L$2:L9,L9,$AE$2:AE9,AE9)-1,1+SUMPRODUCT(($L$2:$L$962=TRUE)*($AF$2:$AF$962>AF9))+COUNTIFS($L$2:L9,L9,$AF$2:AF9,AF9)-1,1+SUMPRODUCT(($L$2:$L$962=TRUE)*($AG$2:$AG$962>AG9))+COUNTIFS($L$2:L9,L9,$AG$2:AG9,AG9)-1,1+SUMPRODUCT(($L$2:$L$962=TRUE)*($AH$2:$AH$962>AH9))+COUNTIFS($L$2:L9,L9,$AH$2:AH9,AH9)-1,1+SUMPRODUCT(($L$2:$L$962=TRUE)*($AI$2:$AI$962>AI9))+COUNTIFS($L$2:L9,L9,$AI$2:AI9,AI9)-1,1+SUMPRODUCT(($L$2:$L$962=TRUE)*($AJ$2:$AJ$962>AJ9))+COUNTIFS($L$2:L9,L9,$AJ$2:AJ9,AJ9)-1,1+SUMPRODUCT(($L$2:$L$962=TRUE)*($AK$2:$AK$962>AK9))+COUNTIFS($L$2:L9,L9,$AK$2:AK9,AK9)-1,1+SUMPRODUCT(($L$2:$L$962=TRUE)*($AL$2:$AL$962>AL9))+COUNTIFS($L$2:L9,L9,$AL$2:AL9,AL9)-1,1+SUMPRODUCT(($L$2:$L$962=TRUE)*($AM$2:$AM$962>AM9))+COUNTIFS($L$2:L9,L9,$AM$2:AM9,AM9)-1,)),"") -> 44 | D9: Ozzie Albies | E9: =IFERROR(INDEX('Auction Log'!$C$4:$C$806,MATCH(D9,'Auction Log'!$B$4:$B$806,0)),"") ->  | F9: =IFERROR(INDEX('Auction-Rank'!$C$2:$C$961,MATCH(D9,'Auction-Rank'!$A$2:$A$961,0)),"") -> 2B | G9: =IFERROR(IF(F9=I9,"",IF(INDEX('Your Roto Auction'!$C$11:$C$634,MATCH(D9,'Your Roto Auction'!$D$11:$D$634,0))="",IF(I9<>"",I9,""),INDEX('Your Roto Auction'!$C$11:$C$634,MATCH(D9,'Your Roto Auction'!$D$11:$D$634,0)))),"") ->  | H9: 2B | J9: =INDEX('Auction-Rank'!$V$2:$V$961,MATCH(D9,'Auction-Rank'!$A$2:$A$961,0)) -> TRUE | K9: FALSE | L9: =IF(J9=FALSE,FALSE,IF(AND('Your Roto Auction'!$Q$6="Hide Drafted Players",K9=TRUE),FALSE,IF(OR('Your Roto Auction'!$Q$5="Show All Positions",AND('Your Roto Auction'!$Q$5="Only Show: C",H9="C"),AND('Your Roto Auction'!$Q$5="Only Show: 1B",H9="1B"),AND('Your Roto Auction'!$Q$5="Only Show: 2B",H9="2B"),AND('Your Roto Auction'!$Q$5="Only Show: 3B",H9="3B"),AND('Your Roto Auction'!$Q$5="Only Show: SS",H9="SS"),AND('Your Roto Auction'!$Q$5="Only Show: OF",H9="OF"),AND('Your Roto Auction'!$Q$5="Only Show: SP",H9="SP"),AND('Your Roto Auction'!$Q$5="Only Show: RP",H9="RP"),AND('Your Roto Auction'!$Q$5="Only Show: CI",OR(H9={"1B","3B"})),AND('Your Roto Auction'!$Q$5="Only Show: MI",OR(H9={"2B","SS"})),AND('Your Roto Auction'!$Q$5="Only Show: IF",OR(H9={"C","1B","2B","3B","SS"})),AND('Your Roto Auction'!$Q$5="Only Show: DH",OR(H9={"C","1B","2B","3B","SS","OF","DH"})),AND('Your Roto Auction'!$Q$5="Only Show: P",OR(H9={"SP","RP"})),AND('Your Roto Auction'!$Q$5="Only Show: LF",ISERROR(SEARCH("LF",VLOOKUP($D9,'Auction-Rank'!$A$2:$D$961,4,FALSE)))=FALSE),AND('Your Roto Auction'!$Q$5="Only Show: RF",ISERROR(SEARCH("RF",VLOOKUP($D9,'Auction-Rank'!$A$2:$D$961,4,FALSE)))=FALSE),AND('Your Roto Auction'!$Q$5="Only Show: CF",ISERROR(SEARCH("CF",VLOOKUP($D9,'Auction-Rank'!$A$2:$D$961,4,FALSE)))=FALSE)),TRUE,FALSE))) -> TRUE | M9: =IFERROR(IF(VLOOKUP($D9,'Inflation-Tracking'!$A$5:$AD$862,22,FALSE)="",-9999,VLOOKUP($D9,'Inflation-Tracking'!$A$5:$AD$862,22,FALSE)),-9999) -> 22.12268122 | N9: =IF(D9="Non-Ranked Player",-1001,IFERROR(VLOOKUP($D9,'All-WERTH'!$C$2:$E$806,3,FALSE),-1000)) -> 2.146913693 | O9: =IF(D9="Non-Ranked Player",10000,IFERROR(IF(VLOOKUP(D9,'Auction-Rank'!$A$2:$X$961,24,FALSE)="",9999,VLOOKUP(D9,'Auction-Rank'!$A$2:$X$961,24,FALSE)),9999)) -> 51 | P9: =IF($D9="Unlisted Player",-1001,IFERROR(IF(VLOOKUP($D9,'All-WERTH'!$C$2:$AC$806,4,FALSE)="",-1000,VLOOKUP($D9,'All-WERTH'!$C$2:$AC$806,4,FALSE)),-1000)) -> 0.565513623 | Q9: =IF($D9="Unlisted Player",-1001,IFERROR(IF(VLOOKUP($D9,'All-WERTH'!$C$2:$AC$806,5,FALSE)="",-1000,VLOOKUP($D9,'All-WERTH'!$C$2:$AC$806,5,FALSE)),-1000)) -> -0.1639832715 | R9: =IF($D9="Unlisted Player",-1001,IFERROR(IF(VLOOKUP($D9,'All-WERTH'!$C$2:$AC$806,6,FALSE)="",-1000,VLOOKUP($D9,'All-WERTH'!$C$2:$AC$806,6,FALSE)),-1000)) -> 1.035284061 | S9: =IF($D9="Unlisted Player",-1001,IFERROR(IF(VLOOKUP($D9,'All-WERTH'!$C$2:$AC$806,7,FALSE)="",-1000,VLOOKUP($D9,'All-WERTH'!$C$2:$AC$806,7,FALSE)),-1000)) -> 0.02840747241 | T9: =IF($D9="Unlisted Player",-1001,IFERROR(IF(VLOOKUP($D9,'All-WERTH'!$C$2:$AC$806,8,FALSE)="",-1000,VLOOKUP($D9,'All-WERTH'!$C$2:$AC$806,8,FALSE)),-1000)) -> 0.681691809 | U9: =IF($D9="Unlisted Player",-1001,IFERROR(IF(VLOOKUP($D9,'All-WERTH'!$C$2:$AC$806,9,FALSE)="",-1000,VLOOKUP($D9,'All-WERTH'!$C$2:$AC$806,9,FALSE)),-1000)) -> -1000 | V9: =IF($D9="Unlisted Player",-1001,IFERROR(IF(VLOOKUP($D9,'All-WERTH'!$C$2:$AC$806,10,FALSE)="",-1000,VLOOKUP($D9,'All-WERTH'!$C$2:$AC$806,10,FALSE)),-1000)) -> -1000 | W9: =IF($D9="Unlisted Player",-1001,IFERROR(IF(VLOOKUP($D9,'All-WERTH'!$C$2:$AC$806,11,FALSE)="",-1000,VLOOKUP($D9,'All-WERTH'!$C$2:$AC$806,11,FALSE)),-1000)) -> -1000 | X9: =IF($D9="Unlisted Player",-1001,IFERROR(IF(VLOOKUP($D9,'All-WERTH'!$C$2:$AC$806,12,FALSE)="",-1000,VLOOKUP($D9,'All-WERTH'!$C$2:$AC$806,12,FALSE)),-1000)) -> -1000 | Y9: =IF($D9="Unlisted Player",-1001,IFERROR(IF(VLOOKUP($D9,'All-WERTH'!$C$2:$AC$806,13,FALSE)="",-1000,VLOOKUP($D9,'All-WERTH'!$C$2:$AC$806,13,FALSE)),-1000)) -> -1000 | Z9: =IF($D9="Unlisted Player",-1001,IFERROR(IF(VLOOKUP($D9,'All-WERTH'!$C$2:$AC$806,14,FALSE)="",-1000,VLOOKUP($D9,'All-WERTH'!$C$2:$AC$806,14,FALSE)),-1000)) -> -1000 | AA9: =IF($D9="Unlisted Player",-1001,IFERROR(IF(VLOOKUP($D9,'All-WERTH'!$C$2:$AC$806,15,FALSE)="",-1000,VLOOKUP($D9,'All-WERTH'!$C$2:$AC$806,15,FALSE)),-1000)) -> -1000 | AB9: =IF($D9="Unlisted Player",-1001,IFERROR(IF(VLOOKUP($D9,'All-WERTH'!$C$2:$AC$806,16,FALSE)="",-1000,VLOOKUP($D9,'All-WERTH'!$C$2:$AC$806,16,FALSE)),-1000)) -> -1000 | AC9: =IF($D9="Unlisted Player",-1001,IFERROR(IF(VLOOKUP($D9,'All-WERTH'!$C$2:$AC$806,17,FALSE)="",-1000,VLOOKUP($D9,'All-WERTH'!$C$2:$AC$806,17,FALSE)),-1000)) -> -1000 | AD9: =IF($D9="Unlisted Player",-1001,IFERROR(IF(VLOOKUP($D9,'All-WERTH'!$C$2:$AC$806,18,FALSE)="",-1000,VLOOKUP($D9,'All-WERTH'!$C$2:$AC$806,18,FALSE)),-1000)) -> -1000 | AE9: =IF($D9="Unlisted Player",-1001,IFERROR(IF(VLOOKUP($D9,'All-WERTH'!$C$2:$AC$806,19,FALSE)="",-1000,VLOOKUP($D9,'All-WERTH'!$C$2:$AC$806,19,FALSE)),-1000)) -> -1000 | AF9: =IF($D9="Unlisted Player",-1001,IFERROR(IF(VLOOKUP($D9,'All-WERTH'!$C$2:$AC$806,20,FALSE)="",-1000,VLOOKUP($D9,'All-WERTH'!$C$2:$AC$806,20,FALSE)),-1000)) -> -1000 | AG9: =IF($D9="Unlisted Player",-1001,IFERROR(IF(VLOOKUP($D9,'All-WERTH'!$C$2:$AC$806,21,FALSE)="",-1000,VLOOKUP($D9,'All-WERTH'!$C$2:$AC$806,21,FALSE)),-1000)) -> -1000 | AH9: =IF($D9="Unlisted Player",-1001,IFERROR(IF(VLOOKUP($D9,'All-WERTH'!$C$2:$AC$806,22,FALSE)="",-1000,VLOOKUP($D9,'All-WERTH'!$C$2:$AC$806,22,FALSE)),-1000)) -> -1000 | AI9: =IF($D9="Unlisted Player",-1001,IFERROR(IF(VLOOKUP($D9,'All-WERTH'!$C$2:$AC$806,23,FALSE)="",-1000,VLOOKUP($D9,'All-WERTH'!$C$2:$AC$806,23,FALSE)),-1000)) -> -1000 | AJ9: =IF($D9="Unlisted Player",-1001,IFERROR(IF(VLOOKUP($D9,'All-WERTH'!$C$2:$AC$806,24,FALSE)="",-1000,VLOOKUP($D9,'All-WERTH'!$C$2:$AC$806,24,FALSE)),-1000)) -> -1000 | AK9: =IF($D9="Unlisted Player",-1001,IFERROR(IF(VLOOKUP($D9,'All-WERTH'!$C$2:$AC$806,25,FALSE)="",-1000,VLOOKUP($D9,'All-WERTH'!$C$2:$AC$806,25,FALSE)),-1000)) -> -1000 | AL9: =IF($D9="Unlisted Player",-1001,IFERROR(IF(VLOOKUP($D9,'All-WERTH'!$C$2:$AC$806,26,FALSE)="",-1000,VLOOKUP($D9,'All-WERTH'!$C$2:$AC$806,26,FALSE)),-1000)) -> -1000 | AM9: =IF($D9="Unlisted Player",-1001,IFERROR(IF(VLOOKUP($D9,'All-WERTH'!$C$2:$AC$806,27,FALSE)="",-1000,VLOOKUP($D9,'All-WERTH'!$C$2:$AC$806,27,FALSE)),-1000)) -> -1000
A10: Nolan Arenado | B10: =IFERROR(INDEX($A$1:$A$961,SMALL(IF($A$1:$A$961<>"",ROW($A$1:$A$961)),ROW(A9))),"") -> Nolan Arenado | C10: =IFERROR(IF(L10=FALSE,"",CHOOSE(MATCH(RIGHT('Your Roto Auction'!$Q$4,LEN('Your Roto Auction'!$Q$4)-8),$M$1:$AM$1,0),1+SUMPRODUCT(($L$2:$L$962=TRUE)*($M$2:$M$962>M10))+COUNTIFS($L$2:L10,L10,$M$2:M10,M10)-1,1+SUMPRODUCT(($L$2:$L$962=TRUE)*($N$2:$N$962>N10))+COUNTIFS($L$2:L10,L10,$N$2:N10,N10)-1,1+SUMPRODUCT(($L$2:$L$962=TRUE)*($O$2:$O$962<O10))+COUNTIFS($L$2:L10,L10,$O$2:O10,O10)-1,1+SUMPRODUCT(($L$2:$L$962=TRUE)*($P$2:$P$962>P10))+COUNTIFS($L$2:L10,L10,$P$2:P10,P10)-1,1+SUMPRODUCT(($L$2:$L$962=TRUE)*($Q$2:$Q$962>Q10))+COUNTIFS($L$2:L10,L10,$Q$2:Q10,Q10)-1,1+SUMPRODUCT(($L$2:$L$962=TRUE)*($R$2:$R$962>R10))+COUNTIFS($L$2:L10,L10,$R$2:R10,R10)-1,1+SUMPRODUCT(($L$2:$L$962=TRUE)*($S$2:$S$962>S10))+COUNTIFS($L$2:L10,L10,$S$2:S10,S10)-1,1+SUMPRODUCT(($L$2:$L$962=TRUE)*($T$2:$T$962>T10))+COUNTIFS($L$2:L10,L10,$T$2:T10,T10)-1,1+SUMPRODUCT(($L$2:$L$962=TRUE)*($U$2:$U$962>U10))+COUNTIFS($L$2:L10,L10,$U$2:U10,U10)-1,1+SUMPRODUCT(($L$2:$L$962=TRUE)*($V$2:$V$962>V10))+COUNTIFS($L$2:L10,L10,$V$2:V10,V10)-1,1+SUMPRODUCT(($L$2:$L$962=TRUE)*($W$2:$W$962>W10))+COUNTIFS($L$2:L10,L10,$W$2:W10,W10)-1,1+SUMPRODUCT(($L$2:$L$962=TRUE)*($X$2:$X$962>X10))+COUNTIFS($L$2:L10,L10,$X$2:X10,X10)-1,1+SUMPRODUCT(($L$2:$L$962=TRUE)*($Y$2:$Y$962>Y10))+COUNTIFS($L$2:L10,L10,$Y$2:Y10,Y10)-1,1+SUMPRODUCT(($L$2:$L$962=TRUE)*($Z$2:$Z$962>Z10))+COUNTIFS($L$2:L10,L10,$Z$2:Z10,Z10)-1,1+SUMPRODUCT(($L$2:$L$962=TRUE)*($AA$2:$AA$962>AA10))+COUNTIFS($L$2:L10,L10,$AA$2:AA10,AA10)-1,1+SUMPRODUCT(($L$2:$L$962=TRUE)*($AB$2:$AB$962>AB10))+COUNTIFS($L$2:L10,L10,$AB$2:AB10,AB10)-1,1+SUMPRODUCT(($L$2:$L$962=TRUE)*($AC$2:$AC$962>AC10))+COUNTIFS($L$2:L10,L10,$AC$2:AC10,AC10)-1,1+SUMPRODUCT(($L$2:$L$962=TRUE)*($AD$2:$AD$962>AD10))+COUNTIFS($L$2:L10,L10,$AD$2:AD10,AD10)-1,1+SUMPRODUCT(($L$2:$L$962=TRUE)*($AE$2:$AE$962>AE10))+COUNTIFS($L$2:L10,L10,$AE$2:AE10,AE10)-1,1+SUMPRODUCT(($L$2:$L$962=TRUE)*($AF$2:$AF$962>AF10))+COUNTIFS($L$2:L10,L10,$AF$2:AF10,AF10)-1,1+SUMPRODUCT(($L$2:$L$962=TRUE)*($AG$2:$AG$962>AG10))+COUNTIFS($L$2:L10,L10,$AG$2:AG10,AG10)-1,1+SUMPRODUCT(($L$2:$L$962=TRUE)*($AH$2:$AH$962>AH10))+COUNTIFS($L$2:L10,L10,$AH$2:AH10,AH10)-1,1+SUMPRODUCT(($L$2:$L$962=TRUE)*($AI$2:$AI$962>AI10))+COUNTIFS($L$2:L10,L10,$AI$2:AI10,AI10)-1,1+SUMPRODUCT(($L$2:$L$962=TRUE)*($AJ$2:$AJ$962>AJ10))+COUNTIFS($L$2:L10,L10,$AJ$2:AJ10,AJ10)-1,1+SUMPRODUCT(($L$2:$L$962=TRUE)*($AK$2:$AK$962>AK10))+COUNTIFS($L$2:L10,L10,$AK$2:AK10,AK10)-1,1+SUMPRODUCT(($L$2:$L$962=TRUE)*($AL$2:$AL$962>AL10))+COUNTIFS($L$2:L10,L10,$AL$2:AL10,AL10)-1,1+SUMPRODUCT(($L$2:$L$962=TRUE)*($AM$2:$AM$962>AM10))+COUNTIFS($L$2:L10,L10,$AM$2:AM10,AM10)-1,)),"") -> 633 | D10: Sandy Alcantara | E10: =IFERROR(INDEX('Auction Log'!$C$4:$C$806,MATCH(D10,'Auction Log'!$B$4:$B$806,0)),"") ->  | F10: =IFERROR(INDEX('Auction-Rank'!$C$2:$C$961,MATCH(D10,'Auction-Rank'!$A$2:$A$961,0)),"") -> SP | G10: =IFERROR(IF(F10=I10,"",IF(INDEX('Your Roto Auction'!$C$11:$C$634,MATCH(D10,'Your Roto Auction'!$D$11:$D$634,0))="",IF(I10<>"",I10,""),INDEX('Your Roto Auction'!$C$11:$C$634,MATCH(D10,'Your Roto Auction'!$D$11:$D$634,0)))),"") ->  | H10: SP | J10: =INDEX('Auction-Rank'!$V$2:$V$961,MATCH(D10,'Auction-Rank'!$A$2:$A$961,0)) -> TRUE | K10: FALSE | L10: =IF(J10=FALSE,FALSE,IF(AND('Your Roto Auction'!$Q$6="Hide Drafted Players",K10=TRUE),FALSE,IF(OR('Your Roto Auction'!$Q$5="Show All Positions",AND('Your Roto Auction'!$Q$5="Only Show: C",H10="C"),AND('Your Roto Auction'!$Q$5="Only Show: 1B",H10="1B"),AND('Your Roto Auction'!$Q$5="Only Show: 2B",H10="2B"),AND('Your Roto Auction'!$Q$5="Only Show: 3B",H10="3B"),AND('Your Roto Auction'!$Q$5="Only Show: SS",H10="SS"),AND('Your Roto Auction'!$Q$5="Only Show: OF",H10="OF"),AND('Your Roto Auction'!$Q$5="Only Show: SP",H10="SP"),AND('Your Roto Auction'!$Q$5="Only Show: RP",H10="RP"),AND('Your Roto Auction'!$Q$5="Only Show: CI",OR(H10={"1B","3B"})),AND('Your Roto Auction'!$Q$5="Only Show: MI",OR(H10={"2B","SS"})),AND('Your Roto Auction'!$Q$5="Only Show: IF",OR(H10={"C","1B","2B","3B","SS"})),AND('Your Roto Auction'!$Q$5="Only Show: DH",OR(H10={"C","1B","2B","3B","SS","OF","DH"})),AND('Your Roto Auction'!$Q$5="Only Show: P",OR(H10={"SP","RP"})),AND('Your Roto Auction'!$Q$5="Only Show: LF",ISERROR(SEARCH("LF",VLOOKUP($D10,'Auction-Rank'!$A$2:$D$961,4,FALSE)))=FALSE),AND('Your Roto Auction'!$Q$5="Only Show: RF",ISERROR(SEARCH("RF",VLOOKUP($D10,'Auction-Rank'!$A$2:$D$961,4,FALSE)))=FALSE),AND('Your Roto Auction'!$Q$5="Only Show: CF",ISERROR(SEARCH("CF",VLOOKUP($D10,'Auction-Rank'!$A$2:$D$961,4,FALSE)))=FALSE)),TRUE,FALSE))) -> TRUE | M10: =IFERROR(IF(VLOOKUP($D10,'Inflation-Tracking'!$A$5:$AD$862,22,FALSE)="",-9999,VLOOKUP($D10,'Inflation-Tracking'!$A$5:$AD$862,22,FALSE)),-9999) -> -1.714455067 | N10: =IF(D10="Non-Ranked Player",-1001,IFERROR(VLOOKUP($D10,'All-WERTH'!$C$2:$E$806,3,FALSE),-1000)) -> -8.574451224 | O10: =IF(D10="Non-Ranked Player",10000,IFERROR(IF(VLOOKUP(D10,'Auction-Rank'!$A$2:$X$961,24,FALSE)="",9999,VLOOKUP(D10,'Auction-Rank'!$A$2:$X$961,24,FALSE)),9999)) -> 492 | P10: =IF($D10="Unlisted Player",-1001,IFERROR(IF(VLOOKUP($D10,'All-WERTH'!$C$2:$AC$806,4,FALSE)="",-1000,VLOOKUP($D10,'All-WERTH'!$C$2:$AC$806,4,FALSE)),-1000)) -> -1000 | Q10: =IF($D10="Unlisted Player",-1001,IFERROR(IF(VLOOKUP($D10,'All-WERTH'!$C$2:$AC$806,5,FALSE)="",-1000,VLOOKUP($D10,'All-WERTH'!$C$2:$AC$806,5,FALSE)),-1000)) -> -1000 | R10: =IF($D10="Unlisted Player",-1001,IFERROR(IF(VLOOKUP($D10,'All-WERTH'!$C$2:$AC$806,6,FALSE)="",-1000,VLOOKUP($D10,'All-WERTH'!$C$2:$AC$806,6,FALSE)),-1000)) -> -1000 | S10: =IF($D10="Unlisted Player",-1001,IFERROR(IF(VLOOKUP($D10,'All-WERTH'!$C$2:$AC$806,7,FALSE)="",-1000,VLOOKUP($D10,'All-WERTH'!$C$2:$AC$806,7,FALSE)),-1000)) -> -1000 | T10: =IF($D10="Unlisted Player",-1001,IFERROR(IF(VLOOKUP($D10,'All-WERTH'!$C$2:$AC$806,8,FALSE)="",-1000,VLOOKUP($D10,'All-WERTH'!$C$2:$AC$806,8,FALSE)),-1000)) -> -1000 | U10: =IF($D10="Unlisted Player",-1001,IFERROR(IF(VLOOKUP($D10,'All-WERTH'!$C$2:$AC$806,9,FALSE)="",-1000,VLOOKUP($D10,'All-WERTH'!$C$2:$AC$806,9,FALSE)),-1000)) -> -1000 | V10: =IF($D10="Unlisted Player",-1001,IFERROR(IF(VLOOKUP($D10,'All-WERTH'!$C$2:$AC$806,10,FALSE)="",-1000,VLOOKUP($D10,'All-WERTH'!$C$2:$AC$806,10,FALSE)),-1000)) -> -1000 | W10: =IF($D10="Unlisted Player",-1001,IFERROR(IF(VLOOKUP($D10,'All-WERTH'!$C$2:$AC$806,11,FALSE)="",-1000,VLOOKUP($D10,'All-WERTH'!$C$2:$AC$806,11,FALSE)),-1000)) -> -1000 | X10: =IF($D10="Unlisted Player",-1001,IFERROR(IF(VLOOKUP($D10,'All-WERTH'!$C$2:$AC$806,12,FALSE)="",-1000,VLOOKUP($D10,'All-WERTH'!$C$2:$AC$806,12,FALSE)),-1000)) -> -1000 | Y10: =IF($D10="Unlisted Player",-1001,IFERROR(IF(VLOOKUP($D10,'All-WERTH'!$C$2:$AC$806,13,FALSE)="",-1000,VLOOKUP($D10,'All-WERTH'!$C$2:$AC$806,13,FALSE)),-1000)) -> -1000 | Z10: =IF($D10="Unlisted Player",-1001,IFERROR(IF(VLOOKUP($D10,'All-WERTH'!$C$2:$AC$806,14,FALSE)="",-1000,VLOOKUP($D10,'All-WERTH'!$C$2:$AC$806,14,FALSE)),-1000)) -> -1000 | AA10: =IF($D10="Unlisted Player",-1001,IFERROR(IF(VLOOKUP($D10,'All-WERTH'!$C$2:$AC$806,15,FALSE)="",-1000,VLOOKUP($D10,'All-WERTH'!$C$2:$AC$806,15,FALSE)),-1000)) -> -1000 | AB10: =IF($D10="Unlisted Player",-1001,IFERROR(IF(VLOOKUP($D10,'All-WERTH'!$C$2:$AC$806,16,FALSE)="",-1000,VLOOKUP($D10,'All-WERTH'!$C$2:$AC$806,16,FALSE)),-1000)) -> -0.998882359 | AC10: =IF($D10="Unlisted Player",-1001,IFERROR(IF(VLOOKUP($D10,'All-WERTH'!$C$2:$AC$806,17,FALSE)="",-1000,VLOOKUP($D10,'All-WERTH'!$C$2:$AC$806,17,FALSE)),-1000)) -> -0.5915858028 | AD10: =IF($D10="Unlisted Player",-1001,IFERROR(IF(VLOOKUP($D10,'All-WERTH'!$C$2:$AC$806,18,FALSE)="",-1000,VLOOKUP($D10,'All-WERTH'!$C$2:$AC$806,18,FALSE)),-1000)) -> -1.415018882 | AE10: =IF($D10="Unlisted Player",-1001,IFERROR(IF(VLOOKUP($D10,'All-WERTH'!$C$2:$AC$806,19,FALSE)="",-1000,VLOOKUP($D10,'All-WERTH'!$C$2:$AC$806,19,FALSE)),-1000)) -> -2.583347219 | AF10: =IF($D10="Unlisted Player",-1001,IFERROR(IF(VLOOKUP($D10,'All-WERTH'!$C$2:$AC$806,20,FALSE)="",-1000,VLOOKUP($D10,'All-WERTH'!$C$2:$AC$806,20,FALSE)),-1000)) -> -2.985616962 | AG10: =IF($D10="Unlisted Player",-1001,IFERROR(IF(VLOOKUP($D10,'All-WERTH'!$C$2:$AC$806,21,FALSE)="",-1000,VLOOKUP($D10,'All-WERTH'!$C$2:$AC$806,21,FALSE)),-1000)) -> -1000 | AH10: =IF($D10="Unlisted Player",-1001,IFERROR(IF(VLOOKUP($D10,'All-WERTH'!$C$2:$AC$806,22,FALSE)="",-1000,VLOOKUP($D10,'All-WERTH'!$C$2:$AC$806,22,FALSE)),-1000)) -> -1000 | AI10: =IF($D10="Unlisted Player",-1001,IFERROR(IF(VLOOKUP($D10,'All-WERTH'!$C$2:$AC$806,23,FALSE)="",-1000,VLOOKUP($D10,'All-WERTH'!$C$2:$AC$806,23,FALSE)),-1000)) -> -1000 | AJ10: =IF($D10="Unlisted Player",-1001,IFERROR(IF(VLOOKUP($D10,'All-WERTH'!$C$2:$AC$806,24,FALSE)="",-1000,VLOOKUP($D10,'All-WERTH'!$C$2:$AC$806,24,FALSE)),-1000)) -> -1000 | AK10: =IF($D10="Unlisted Player",-1001,IFERROR(IF(VLOOKUP($D10,'All-WERTH'!$C$2:$AC$806,25,FALSE)="",-1000,VLOOKUP($D10,'All-WERTH'!$C$2:$AC$806,25,FALSE)),-1000)) -> -1000 | AL10: =IF($D10="Unlisted Player",-1001,IFERROR(IF(VLOOKUP($D10,'All-WERTH'!$C$2:$AC$806,26,FALSE)="",-1000,VLOOKUP($D10,'All-WERTH'!$C$2:$AC$806,26,FALSE)),-1000)) -> -1000 | AM10: =IF($D10="Unlisted Player",-1001,IFERROR(IF(VLOOKUP($D10,'All-WERTH'!$C$2:$AC$806,27,FALSE)="",-1000,VLOOKUP($D10,'All-WERTH'!$C$2:$AC$806,27,FALSE)),-1000)) -> -1000
A11: Trea Turner | B11: =IFERROR(INDEX($A$1:$A$961,SMALL(IF($A$1:$A$961<>"",ROW($A$1:$A$961)),ROW(A10))),"") -> Trea Turner | C11: =IFERROR(IF(L11=FALSE,"",CHOOSE(MATCH(RIGHT('Your Roto Auction'!$Q$4,LEN('Your Roto Auction'!$Q$4)-8),$M$1:$AM$1,0),1+SUMPRODUCT(($L$2:$L$962=TRUE)*($M$2:$M$962>M11))+COUNTIFS($L$2:L11,L11,$M$2:M11,M11)-1,1+SUMPRODUCT(($L$2:$L$962=TRUE)*($N$2:$N$962>N11))+COUNTIFS($L$2:L11,L11,$N$2:N11,N11)-1,1+SUMPRODUCT(($L$2:$L$962=TRUE)*($O$2:$O$962<O11))+COUNTIFS($L$2:L11,L11,$O$2:O11,O11)-1,1+SUMPRODUCT(($L$2:$L$962=TRUE)*($P$2:$P$962>P11))+COUNTIFS($L$2:L11,L11,$P$2:P11,P11)-1,1+SUMPRODUCT(($L$2:$L$962=TRUE)*($Q$2:$Q$962>Q11))+COUNTIFS($L$2:L11,L11,$Q$2:Q11,Q11)-1,1+SUMPRODUCT(($L$2:$L$962=TRUE)*($R$2:$R$962>R11))+COUNTIFS($L$2:L11,L11,$R$2:R11,R11)-1,1+SUMPRODUCT(($L$2:$L$962=TRUE)*($S$2:$S$962>S11))+COUNTIFS($L$2:L11,L11,$S$2:S11,S11)-1,1+SUMPRODUCT(($L$2:$L$962=TRUE)*($T$2:$T$962>T11))+COUNTIFS($L$2:L11,L11,$T$2:T11,T11)-1,1+SUMPRODUCT(($L$2:$L$962=TRUE)*($U$2:$U$962>U11))+COUNTIFS($L$2:L11,L11,$U$2:U11,U11)-1,1+SUMPRODUCT(($L$2:$L$962=TRUE)*($V$2:$V$962>V11))+COUNTIFS($L$2:L11,L11,$V$2:V11,V11)-1,1+SUMPRODUCT(($L$2:$L$962=TRUE)*($W$2:$W$962>W11))+COUNTIFS($L$2:L11,L11,$W$2:W11,W11)-1,1+SUMPRODUCT(($L$2:$L$962=TRUE)*($X$2:$X$962>X11))+COUNTIFS($L$2:L11,L11,$X$2:X11,X11)-1,1+SUMPRODUCT(($L$2:$L$962=TRUE)*($Y$2:$Y$962>Y11))+COUNTIFS($L$2:L11,L11,$Y$2:Y11,Y11)-1,1+SUMPRODUCT(($L$2:$L$962=TRUE)*($Z$2:$Z$962>Z11))+COUNTIFS($L$2:L11,L11,$Z$2:Z11,Z11)-1,1+SUMPRODUCT(($L$2:$L$962=TRUE)*($AA$2:$AA$962>AA11))+COUNTIFS($L$2:L11,L11,$AA$2:AA11,AA11)-1,1+SUMPRODUCT(($L$2:$L$962=TRUE)*($AB$2:$AB$962>AB11))+COUNTIFS($L$2:L11,L11,$AB$2:AB11,AB11)-1,1+SUMPRODUCT(($L$2:$L$962=TRUE)*($AC$2:$AC$962>AC11))+COUNTIFS($L$2:L11,L11,$AC$2:AC11,AC11)-1,1+SUMPRODUCT(($L$2:$L$962=TRUE)*($AD$2:$AD$962>AD11))+COUNTIFS($L$2:L11,L11,$AD$2:AD11,AD11)-1,1+SUMPRODUCT(($L$2:$L$962=TRUE)*($AE$2:$AE$962>AE11))+COUNTIFS($L$2:L11,L11,$AE$2:AE11,AE11)-1,1+SUMPRODUCT(($L$2:$L$962=TRUE)*($AF$2:$AF$962>AF11))+COUNTIFS($L$2:L11,L11,$AF$2:AF11,AF11)-1,1+SUMPRODUCT(($L$2:$L$962=TRUE)*($AG$2:$AG$962>AG11))+COUNTIFS($L$2:L11,L11,$AG$2:AG11,AG11)-1,1+SUMPRODUCT(($L$2:$L$962=TRUE)*($AH$2:$AH$962>AH11))+COUNTIFS($L$2:L11,L11,$AH$2:AH11,AH11)-1,1+SUMPRODUCT(($L$2:$L$962=TRUE)*($AI$2:$AI$962>AI11))+COUNTIFS($L$2:L11,L11,$AI$2:AI11,AI11)-1,1+SUMPRODUCT(($L$2:$L$962=TRUE)*($AJ$2:$AJ$962>AJ11))+COUNTIFS($L$2:L11,L11,$AJ$2:AJ11,AJ11)-1,1+SUMPRODUCT(($L$2:$L$962=TRUE)*($AK$2:$AK$962>AK11))+COUNTIFS($L$2:L11,L11,$AK$2:AK11,AK11)-1,1+SUMPRODUCT(($L$2:$L$962=TRUE)*($AL$2:$AL$962>AL11))+COUNTIFS($L$2:L11,L11,$AL$2:AL11,AL11)-1,1+SUMPRODUCT(($L$2:$L$962=TRUE)*($AM$2:$AM$962>AM11))+COUNTIFS($L$2:L11,L11,$AM$2:AM11,AM11)-1,)),"") -> 228 | D11: Jorge Alfaro | E11: =IFERROR(INDEX('Auction Log'!$C$4:$C$806,MATCH(D11,'Auction Log'!$B$4:$B$806,0)),"") ->  | F11: =IFERROR(INDEX('Auction-Rank'!$C$2:$C$961,MATCH(D11,'Auction-Rank'!$A$2:$A$961,0)),"") -> C | G11: =IFERROR(IF(F11=I11,"",IF(INDEX('Your Roto Auction'!$C$11:$C$634,MATCH(D11,'Your Roto Auction'!$D$11:$D$634,0))="",IF(I11<>"",I11,""),INDEX('Your Roto Auction'!$C$11:$C$634,MATCH(D11,'Your Roto Auction'!$D$11:$D$634,0)))),"") ->  | H11: C | J11: =INDEX('Auction-Rank'!$V$2:$V$961,MATCH(D11,'Auction-Rank'!$A$2:$A$961,0)) -> TRUE | K11: FALSE | L11: =IF(J11=FALSE,FALSE,IF(AND('Your Roto Auction'!$Q$6="Hide Drafted Players",K11=TRUE),FALSE,IF(OR('Your Roto Auction'!$Q$5="Show All Positions",AND('Your Roto Auction'!$Q$5="Only Show: C",H11="C"),AND('Your Roto Auction'!$Q$5="Only Show: 1B",H11="1B"),AND('Your Roto Auction'!$Q$5="Only Show: 2B",H11="2B"),AND('Your Roto Auction'!$Q$5="Only Show: 3B",H11="3B"),AND('Your Roto Auction'!$Q$5="Only Show: SS",H11="SS"),AND('Your Roto Auction'!$Q$5="Only Show: OF",H11="OF"),AND('Your Roto Auction'!$Q$5="Only Show: SP",H11="SP"),AND('Your Roto Auction'!$Q$5="Only Show: RP",H11="RP"),AND('Your Roto Auction'!$Q$5="Only Show: CI",OR(H11={"1B","3B"})),AND('Your Roto Auction'!$Q$5="Only Show: MI",OR(H11={"2B","SS"})),AND('Your Roto Auction'!$Q$5="Only Show: IF",OR(H11={"C","1B","2B","3B","SS"})),AND('Your Roto Auction'!$Q$5="Only Show: DH",OR(H11={"C","1B","2B","3B","SS","OF","DH"})),AND('Your Roto Auction'!$Q$5="Only Show: P",OR(H11={"SP","RP"})),AND('Your Roto Auction'!$Q$5="Only Show: LF",ISERROR(SEARCH("LF",VLOOKUP($D11,'Auction-Rank'!$A$2:$D$961,4,FALSE)))=FALSE),AND('Your Roto Auction'!$Q$5="Only Show: RF",ISERROR(SEARCH("RF",VLOOKUP($D11,'Auction-Rank'!$A$2:$D$961,4,FALSE)))=FALSE),AND('Your Roto Auction'!$Q$5="Only Show: CF",ISERROR(SEARCH("CF",VLOOKUP($D11,'Auction-Rank'!$A$2:$D$961,4,FALSE)))=FALSE)),TRUE,FALSE))) -> TRUE | M11: =IFERROR(IF(VLOOKUP($D11,'Inflation-Tracking'!$A$5:$AD$862,22,FALSE)="",-9999,VLOOKUP($D11,'Inflation-Tracking'!$A$5:$AD$862,22,FALSE)),-9999) -> 1.052568405 | N11: =IF(D11="Non-Ranked Player",-1001,IFERROR(VLOOKUP($D11,'All-WERTH'!$C$2:$E$806,3,FALSE),-1000)) -> -8.990646896 | O11: =IF(D11="Non-Ranked Player",10000,IFERROR(IF(VLOOKUP(D11,'Auction-Rank'!$A$2:$X$961,24,FALSE)="",9999,VLOOKUP(D11,'Auction-Rank'!$A$2:$X$961,24,FALSE)),9999)) -> 308 | P11: =IF($D11="Unlisted Player",-1001,IFERROR(IF(VLOOKUP($D11,'All-WERTH'!$C$2:$AC$806,4,FALSE)="",-1000,VLOOKUP($D11,'All-WERTH'!$C$2:$AC$806,4,FALSE)),-1000)) -> -1.868972732 | Q11: =IF($D11="Unlisted Player",-1001,IFERROR(IF(VLOOKUP($D11,'All-WERTH'!$C$2:$AC$806,5,FALSE)="",-1000,VLOOKUP($D11,'All-WERTH'!$C$2:$AC$806,5,FALSE)),-1000)) -> -1.403357192 | R11: =IF($D11="Unlisted Player",-1001,IFERROR(IF(VLOOKUP($D11,'All-WERTH'!$C$2:$AC$806,6,FALSE)="",-1000,VLOOKUP($D11,'All-WERTH'!$C$2:$AC$806,6,FALSE)),-1000)) -> -2.686286176 | S11: =IF($D11="Unlisted Player",-1001,IFERROR(IF(VLOOKUP($D11,'All-WERTH'!$C$2:$AC$806,7,FALSE)="",-1000,VLOOKUP($D11,'All-WERTH'!$C$2:$AC$806,7,FALSE)),-1000)) -> -2.209823969 | T11: =IF($D11="Unlisted Player",-1001,IFERROR(IF(VLOOKUP($D11,'All-WERTH'!$C$2:$AC$806,8,FALSE)="",-1000,VLOOKUP($D11,'All-WERTH'!$C$2:$AC$806,8,FALSE)),-1000)) -> -0.8222068273 | U11: =IF($D11="Unlisted Player",-1001,IFERROR(IF(VLOOKUP($D11,'All-WERTH'!$C$2:$AC$806,9,FALSE)="",-1000,VLOOKUP($D11,'All-WERTH'!$C$2:$AC$806,9,FALSE)),-1000)) -> -1000 | V11: =IF($D11="Unlisted Player",-1001,IFERROR(IF(VLOOKUP($D11,'All-WERTH'!$C$2:$AC$806,10,FALSE)="",-1000,VLOOKUP($D11,'All-WERTH'!$C$2:$AC$806,10,FALSE)),-1000)) -> -1000 | W11: =IF($D11="Unlisted Player",-1001,IFERROR(IF(VLOOKUP($D11,'All-WERTH'!$C$2:$AC$806,11,FALSE)="",-1000,VLOOKUP($D11,'All-WERTH'!$C$2:$AC$806,11,FALSE)),-1000)) -> -1000 | X11: =IF($D11="Unlisted Player",-1001,IFERROR(IF(VLOOKUP($D11,'All-WERTH'!$C$2:$AC$806,12,FALSE)="",-1000,VLOOKUP($D11,'All-WERTH'!$C$2:$AC$806,12,FALSE)),-1000)) -> -1000 | Y11: =IF($D11="Unlisted Player",-1001,IFERROR(IF(VLOOKUP($D11,'All-WERTH'!$C$2:$AC$806,13,FALSE)="",-1000,VLOOKUP($D11,'All-WERTH'!$C$2:$AC$806,13,FALSE)),-1000)) -> -1000 | Z11: =IF($D11="Unlisted Player",-1001,IFERROR(IF(VLOOKUP($D11,'All-WERTH'!$C$2:$AC$806,14,FALSE)="",-1000,VLOOKUP($D11,'All-WERTH'!$C$2:$AC$806,14,FALSE)),-1000)) -> -1000 | AA11: =IF($D11="Unlisted Player",-1001,IFERROR(IF(VLOOKUP($D11,'All-WERTH'!$C$2:$AC$806,15,FALSE)="",-1000,VLOOKUP($D11,'All-WERTH'!$C$2:$AC$806,15,FALSE)),-1000)) -> -1000 | AB11: =IF($D11="Unlisted Player",-1001,IFERROR(IF(VLOOKUP($D11,'All-WERTH'!$C$2:$AC$806,16,FALSE)="",-1000,VLOOKUP($D11,'All-WERTH'!$C$2:$AC$806,16,FALSE)),-1000)) -> -1000 | AC11: =IF($D11="Unlisted Player",-1001,IFERROR(IF(VLOOKUP($D11,'All-WERTH'!$C$2:$AC$806,17,FALSE)="",-1000,VLOOKUP($D11,'All-WERTH'!$C$2:$AC$806,17,FALSE)),-1000)) -> -1000 | AD11: =IF($D11="Unlisted Player",-1001,IFERROR(IF(VLOOKUP($D11,'All-WERTH'!$C$2:$AC$806,18,FALSE)="",-1000,VLOOKUP($D11,'All-WERTH'!$C$2:$AC$806,18,FALSE)),-1000)) -> -1000 | AE11: =IF($D11="Unlisted Player",-1001,IFERROR(IF(VLOOKUP($D11,'All-WERTH'!$C$2:$AC$806,19,FALSE)="",-1000,VLOOKUP($D11,'All-WERTH'!$C$2:$AC$806,19,FALSE)),-1000)) -> -1000 | AF11: =IF($D11="Unlisted Player",-1001,IFERROR(IF(VLOOKUP($D11,'All-WERTH'!$C$2:$AC$806,20,FALSE)="",-1000,VLOOKUP($D11,'All-WERTH'!$C$2:$AC$806,20,FALSE)),-1000)) -> -1000 | AG11: =IF($D11="Unlisted Player",-1001,IFERROR(IF(VLOOKUP($D11,'All-WERTH'!$C$2:$AC$806,21,FALSE)="",-1000,VLOOKUP($D11,'All-WERTH'!$C$2:$AC$806,21,FALSE)),-1000)) -> -1000 | AH11: =IF($D11="Unlisted Player",-1001,IFERROR(IF(VLOOKUP($D11,'All-WERTH'!$C$2:$AC$806,22,FALSE)="",-1000,VLOOKUP($D11,'All-WERTH'!$C$2:$AC$806,22,FALSE)),-1000)) -> -1000 | AI11: =IF($D11="Unlisted Player",-1001,IFERROR(IF(VLOOKUP($D11,'All-WERTH'!$C$2:$AC$806,23,FALSE)="",-1000,VLOOKUP($D11,'All-WERTH'!$C$2:$AC$806,23,FALSE)),-1000)) -> -1000 | AJ11: =IF($D11="Unlisted Player",-1001,IFERROR(IF(VLOOKUP($D11,'All-WERTH'!$C$2:$AC$806,24,FALSE)="",-1000,VLOOKUP($D11,'All-WERTH'!$C$2:$AC$806,24,FALSE)),-1000)) -> -1000 | AK11: =IF($D11="Unlisted Player",-1001,IFERROR(IF(VLOOKUP($D11,'All-WERTH'!$C$2:$AC$806,25,FALSE)="",-1000,VLOOKUP($D11,'All-WERTH'!$C$2:$AC$806,25,FALSE)),-1000)) -> -1000 | AL11: =IF($D11="Unlisted Player",-1001,IFERROR(IF(VLOOKUP($D11,'All-WERTH'!$C$2:$AC$806,26,FALSE)="",-1000,VLOOKUP($D11,'All-WERTH'!$C$2:$AC$806,26,FALSE)),-1000)) -> -1000 | AM11: =IF($D11="Unlisted Player",-1001,IFERROR(IF(VLOOKUP($D11,'All-WERTH'!$C$2:$AC$806,27,FALSE)="",-1000,VLOOKUP($D11,'All-WERTH'!$C$2:$AC$806,27,FALSE)),-1000)) -> -1000
A12: Christian Yelich | B12: =IFERROR(INDEX($A$1:$A$961,SMALL(IF($A$1:$A$961<>"",ROW($A$1:$A$961)),ROW(A11))),"") -> Christian Yelich | C12: =IFERROR(IF(L12=FALSE,"",CHOOSE(MATCH(RIGHT('Your Roto Auction'!$Q$4,LEN('Your Roto Auction'!$Q$4)-8),$M$1:$AM$1,0),1+SUMPRODUCT(($L$2:$L$962=TRUE)*($M$2:$M$962>M12))+COUNTIFS($L$2:L12,L12,$M$2:M12,M12)-1,1+SUMPRODUCT(($L$2:$L$962=TRUE)*($N$2:$N$962>N12))+COUNTIFS($L$2:L12,L12,$N$2:N12,N12)-1,1+SUMPRODUCT(($L$2:$L$962=TRUE)*($O$2:$O$962<O12))+COUNTIFS($L$2:L12,L12,$O$2:O12,O12)-1,1+SUMPRODUCT(($L$2:$L$962=TRUE)*($P$2:$P$962>P12))+COUNTIFS($L$2:L12,L12,$P$2:P12,P12)-1,1+SUMPRODUCT(($L$2:$L$962=TRUE)*($Q$2:$Q$962>Q12))+COUNTIFS($L$2:L12,L12,$Q$2:Q12,Q12)-1,1+SUMPRODUCT(($L$2:$L$962=TRUE)*($R$2:$R$962>R12))+COUNTIFS($L$2:L12,L12,$R$2:R12,R12)-1,1+SUMPRODUCT(($L$2:$L$962=TRUE)*($S$2:$S$962>S12))+COUNTIFS($L$2:L12,L12,$S$2:S12,S12)-1,1+SUMPRODUCT(($L$2:$L$962=TRUE)*($T$2:$T$962>T12))+COUNTIFS($L$2:L12,L12,$T$2:T12,T12)-1,1+SUMPRODUCT(($L$2:$L$962=TRUE)*($U$2:$U$962>U12))+COUNTIFS($L$2:L12,L12,$U$2:U12,U12)-1,1+SUMPRODUCT(($L$2:$L$962=TRUE)*($V$2:$V$962>V12))+COUNTIFS($L$2:L12,L12,$V$2:V12,V12)-1,1+SUMPRODUCT(($L$2:$L$962=TRUE)*($W$2:$W$962>W12))+COUNTIFS($L$2:L12,L12,$W$2:W12,W12)-1,1+SUMPRODUCT(($L$2:$L$962=TRUE)*($X$2:$X$962>X12))+COUNTIFS($L$2:L12,L12,$X$2:X12,X12)-1,1+SUMPRODUCT(($L$2:$L$962=TRUE)*($Y$2:$Y$962>Y12))+COUNTIFS($L$2:L12,L12,$Y$2:Y12,Y12)-1,1+SUMPRODUCT(($L$2:$L$962=TRUE)*($Z$2:$Z$962>Z12))+COUNTIFS($L$2:L12,L12,$Z$2:Z12,Z12)-1,1+SUMPRODUCT(($L$2:$L$962=TRUE)*($AA$2:$AA$962>AA12))+COUNTIFS($L$2:L12,L12,$AA$2:AA12,AA12)-1,1+SUMPRODUCT(($L$2:$L$962=TRUE)*($AB$2:$AB$962>AB12))+COUNTIFS($L$2:L12,L12,$AB$2:AB12,AB12)-1,1+SUMPRODUCT(($L$2:$L$962=TRUE)*($AC$2:$AC$962>AC12))+COUNTIFS($L$2:L12,L12,$AC$2:AC12,AC12)-1,1+SUMPRODUCT(($L$2:$L$962=TRUE)*($AD$2:$AD$962>AD12))+COUNTIFS($L$2:L12,L12,$AD$2:AD12,AD12)-1,1+SUMPRODUCT(($L$2:$L$962=TRUE)*($AE$2:$AE$962>AE12))+COUNTIFS($L$2:L12,L12,$AE$2:AE12,AE12)-1,1+SUMPRODUCT(($L$2:$L$962=TRUE)*($AF$2:$AF$962>AF12))+COUNTIFS($L$2:L12,L12,$AF$2:AF12,AF12)-1,1+SUMPRODUCT(($L$2:$L$962=TRUE)*($AG$2:$AG$962>AG12))+COUNTIFS($L$2:L12,L12,$AG$2:AG12,AG12)-1,1+SUMPRODUCT(($L$2:$L$962=TRUE)*($AH$2:$AH$962>AH12))+COUNTIFS($L$2:L12,L12,$AH$2:AH12,AH12)-1,1+SUMPRODUCT(($L$2:$L$962=TRUE)*($AI$2:$AI$962>AI12))+COUNTIFS($L$2:L12,L12,$AI$2:AI12,AI12)-1,1+SUMPRODUCT(($L$2:$L$962=TRUE)*($AJ$2:$AJ$962>AJ12))+COUNTIFS($L$2:L12,L12,$AJ$2:AJ12,AJ12)-1,1+SUMPRODUCT(($L$2:$L$962=TRUE)*($AK$2:$AK$962>AK12))+COUNTIFS($L$2:L12,L12,$AK$2:AK12,AK12)-1,1+SUMPRODUCT(($L$2:$L$962=TRUE)*($AL$2:$AL$962>AL12))+COUNTIFS($L$2:L12,L12,$AL$2:AL12,AL12)-1,1+SUMPRODUCT(($L$2:$L$962=TRUE)*($AM$2:$AM$962>AM12))+COUNTIFS($L$2:L12,L12,$AM$2:AM12,AM12)-1,)),"") -> 734 | D12: Anthony Alford | E12: =IFERROR(INDEX('Auction Log'!$C$4:$C$806,MATCH(D12,'Auction Log'!$B$4:$B$806,0)),"") ->  | F12: =IFERROR(INDEX('Auction-Rank'!$C$2:$C$961,MATCH(D12,'Auction-Rank'!$A$2:$A$961,0)),"") -> OF | G12: =IFERROR(IF(F12=I12,"",IF(INDEX('Your Roto Auction'!$C$11:$C$634,MATCH(D12,'Your Roto Auction'!$D$11:$D$634,0))="",IF(I12<>"",I12,""),INDEX('Your Roto Auction'!$C$11:$C$634,MATCH(D12,'Your Roto Auction'!$D$11:$D$634,0)))),"") ->  | H12: OF | J12: =INDEX('Auction-Rank'!$V$2:$V$961,MATCH(D12,'Auction-Rank'!$A$2:$A$961,0)) -> TRUE | K12: FALSE | L12: =IF(J12=FALSE,FALSE,IF(AND('Your Roto Auction'!$Q$6="Hide Drafted Players",K12=TRUE),FALSE,IF(OR('Your Roto Auction'!$Q$5="Show All Positions",AND('Your Roto Auction'!$Q$5="Only Show: C",H12="C"),AND('Your Roto Auction'!$Q$5="Only Show: 1B",H12="1B"),AND('Your Roto Auction'!$Q$5="Only Show: 2B",H12="2B"),AND('Your Roto Auction'!$Q$5="Only Show: 3B",H12="3B"),AND('Your Roto Auction'!$Q$5="Only Show: SS",H12="SS"),AND('Your Roto Auction'!$Q$5="Only Show: OF",H12="OF"),AND('Your Roto Auction'!$Q$5="Only Show: SP",H12="SP"),AND('Your Roto Auction'!$Q$5="Only Show: RP",H12="RP"),AND('Your Roto Auction'!$Q$5="Only Show: CI",OR(H12={"1B","3B"})),AND('Your Roto Auction'!$Q$5="Only Show: MI",OR(H12={"2B","SS"})),AND('Your Roto Auction'!$Q$5="Only Show: IF",OR(H12={"C","1B","2B","3B","SS"})),AND('Your Roto Auction'!$Q$5="Only Show: DH",OR(H12={"C","1B","2B","3B","SS","OF","DH"})),AND('Your Roto Auction'!$Q$5="Only Show: P",OR(H12={"SP","RP"})),AND('Your Roto Auction'!$Q$5="Only Show: LF",ISERROR(SEARCH("LF",VLOOKUP($D12,'Auction-Rank'!$A$2:$D$961,4,FALSE)))=FALSE),AND('Your Roto Auction'!$Q$5="Only Show: RF",ISERROR(SEARCH("RF",VLOOKUP($D12,'Auction-Rank'!$A$2:$D$961,4,FALSE)))=FALSE),AND('Your Roto Auction'!$Q$5="Only Show: CF",ISERROR(SEARCH("CF",VLOOKUP($D12,'Auction-Rank'!$A$2:$D$961,4,FALSE)))=FALSE)),TRUE,FALSE))) -> TRUE | M12: =IFERROR(IF(VLOOKUP($D12,'Inflation-Tracking'!$A$5:$AD$862,22,FALSE)="",-9999,VLOOKUP($D12,'Inflation-Tracking'!$A$5:$AD$862,22,FALSE)),-9999) -> -3.063072964 | N12: =IF(D12="Non-Ranked Player",-1001,IFERROR(VLOOKUP($D12,'All-WERTH'!$C$2:$E$806,3,FALSE),-1000)) -> -11.85479973 | O12: =IF(D12="Non-Ranked Player",10000,IFERROR(IF(VLOOKUP(D12,'Auction-Rank'!$A$2:$X$961,24,FALSE)="",9999,VLOOKUP(D12,'Auction-Rank'!$A$2:$X$961,24,FALSE)),9999)) -> 9999 | P12: =IF($D12="Unlisted Player",-1001,IFERROR(IF(VLOOKUP($D12,'All-WERTH'!$C$2:$AC$806,4,FALSE)="",-1000,VLOOKUP($D12,'All-WERTH'!$C$2:$AC$806,4,FALSE)),-1000)) -> -1.327412557 | Q12: =IF($D12="Unlisted Player",-1001,IFERROR(IF(VLOOKUP($D12,'All-WERTH'!$C$2:$AC$806,5,FALSE)="",-1000,VLOOKUP($D12,'All-WERTH'!$C$2:$AC$806,5,FALSE)),-1000)) -> -2.58723917 | R12: =IF($D12="Unlisted Player",-1001,IFERROR(IF(VLOOKUP($D12,'All-WERTH'!$C$2:$AC$806,6,FALSE)="",-1000,VLOOKUP($D12,'All-WERTH'!$C$2:$AC$806,6,FALSE)),-1000)) -> -3.56905501 | S12: =IF($D12="Unlisted Player",-1001,IFERROR(IF(VLOOKUP($D12,'All-WERTH'!$C$2:$AC$806,7,FALSE)="",-1000,VLOOKUP($D12,'All-WERTH'!$C$2:$AC$806,7,FALSE)),-1000)) -> -4.104699477 | T12: =IF($D12="Unlisted Player",-1001,IFERROR(IF(VLOOKUP($D12,'All-WERTH'!$C$2:$AC$806,8,FALSE)="",-1000,VLOOKUP($D12,'All-WERTH'!$C$2:$AC$806,8,FALSE)),-1000)) -> -0.2663935162 | U12: =IF($D12="Unlisted Player",-1001,IFERROR(IF(VLOOKUP($D12,'All-WERTH'!$C$2:$AC$806,9,FALSE)="",-1000,VLOOKUP($D12,'All-WERTH'!$C$2:$AC$806,9,FALSE)),-1000)) -> -1000 | V12: =IF($D12="Unlisted Player",-1001,IFERROR(IF(VLOOKUP($D12,'All-WERTH'!$C$2:$AC$806,10,FALSE)="",-1000,VLOOKUP($D12,'All-WERTH'!$C$2:$AC$806,10,FALSE)),-1000)) -> -1000 | W12: =IF($D12="Unlisted Player",-1001,IFERROR(IF(VLOOKUP($D12,'All-WERTH'!$C$2:$AC$806,11,FALSE)="",-1000,VLOOKUP($D12,'All-WERTH'!$C$2:$AC$806,11,FALSE)),-1000)) -> -1000 | X12: =IF($D12="Unlisted Player",-1001,IFERROR(IF(VLOOKUP($D12,'All-WERTH'!$C$2:$AC$806,12,FALSE)="",-1000,VLOOKUP($D12,'All-WERTH'!$C$2:$AC$806,12,FALSE)),-1000)) -> -1000 | Y12: =IF($D12="Unlisted Player",-1001,IFERROR(IF(VLOOKUP($D12,'All-WERTH'!$C$2:$AC$806,13,FALSE)="",-1000,VLOOKUP($D12,'All-WERTH'!$C$2:$AC$806,13,FALSE)),-1000)) -> -1000 | Z12: =IF($D12="Unlisted Player",-1001,IFERROR(IF(VLOOKUP($D12,'All-WERTH'!$C$2:$AC$806,14,FALSE)="",-1000,VLOOKUP($D12,'All-WERTH'!$C$2:$AC$806,14,FALSE)),-1000)) -> -1000 | AA12: =IF($D12="Unlisted Player",-1001,IFERROR(IF(VLOOKUP($D12,'All-WERTH'!$C$2:$AC$806,15,FALSE)="",-1000,VLOOKUP($D12,'All-WERTH'!$C$2:$AC$806,15,FALSE)),-1000)) -> -1000 | AB12: =IF($D12="Unlisted Player",-1001,IFERROR(IF(VLOOKUP($D12,'All-WERTH'!$C$2:$AC$806,16,FALSE)="",-1000,VLOOKUP($D12,'All-WERTH'!$C$2:$AC$806,16,FALSE)),-1000)) -> -1000 | AC12: =IF($D12="Unlisted Player",-1001,IFERROR(IF(VLOOKUP($D12,'All-WERTH'!$C$2:$AC$806,17,FALSE)="",-1000,VLOOKUP($D12,'All-WERTH'!$C$2:$AC$806,17,FALSE)),-1000)) -> -1000 | AD12: =IF($D12="Unlisted Player",-1001,IFERROR(IF(VLOOKUP($D12,'All-WERTH'!$C$2:$AC$806,18,FALSE)="",-1000,VLOOKUP($D12,'All-WERTH'!$C$2:$AC$806,18,FALSE)),-1000)) -> -1000 | AE12: =IF($D12="Unlisted Player",-1001,IFERROR(IF(VLOOKUP($D12,'All-WERTH'!$C$2:$AC$806,19,FALSE)="",-1000,VLOOKUP($D12,'All-WERTH'!$C$2:$AC$806,19,FALSE)),-1000)) -> -1000 | AF12: =IF($D12="Unlisted Player",-1001,IFERROR(IF(VLOOKUP($D12,'All-WERTH'!$C$2:$AC$806,20,FALSE)="",-1000,VLOOKUP($D12,'All-WERTH'!$C$2:$AC$806,20,FALSE)),-1000)) -> -1000 | AG12: =IF($D12="Unlisted Player",-1001,IFERROR(IF(VLOOKUP($D12,'All-WERTH'!$C$2:$AC$806,21,FALSE)="",-1000,VLOOKUP($D12,'All-WERTH'!$C$2:$AC$806,21,FALSE)),-1000)) -> -1000 | AH12: =IF($D12="Unlisted Player",-1001,IFERROR(IF(VLOOKUP($D12,'All-WERTH'!$C$2:$AC$806,22,FALSE)="",-1000,VLOOKUP($D12,'All-WERTH'!$C$2:$AC$806,22,FALSE)),-1000)) -> -1000 | AI12: =IF($D12="Unlisted Player",-1001,IFERROR(IF(VLOOKUP($D12,'All-WERTH'!$C$2:$AC$806,23,FALSE)="",-1000,VLOOKUP($D12,'All-WERTH'!$C$2:$AC$806,23,FALSE)),-1000)) -> -1000 | AJ12: =IF($D12="Unlisted Player",-1001,IFERROR(IF(VLOOKUP($D12,'All-WERTH'!$C$2:$AC$806,24,FALSE)="",-1000,VLOOKUP($D12,'All-WERTH'!$C$2:$AC$806,24,FALSE)),-1000)) -> -1000 | AK12: =IF($D12="Unlisted Player",-1001,IFERROR(IF(VLOOKUP($D12,'All-WERTH'!$C$2:$AC$806,25,FALSE)="",-1000,VLOOKUP($D12,'All-WERTH'!$C$2:$AC$806,25,FALSE)),-1000)) -> -1000 | AL12: =IF($D12="Unlisted Player",-1001,IFERROR(IF(VLOOKUP($D12,'All-WERTH'!$C$2:$AC$806,26,FALSE)="",-1000,VLOOKUP($D12,'All-WERTH'!$C$2:$AC$806,26,FALSE)),-1000)) -> -1000 | AM12: =IF($D12="Unlisted Player",-1001,IFERROR(IF(VLOOKUP($D12,'All-WERTH'!$C$2:$AC$806,27,FALSE)="",-1000,VLOOKUP($D12,'All-WERTH'!$C$2:$AC$806,27,FALSE)),-1000)) -> -1000
A13: Justin Verlander | B13: =IFERROR(INDEX($A$1:$A$961,SMALL(IF($A$1:$A$961<>"",ROW($A$1:$A$961)),ROW(A12))),"") -> Justin Verlander | C13: =IFERROR(IF(L13=FALSE,"",CHOOSE(MATCH(RIGHT('Your Roto Auction'!$Q$4,LEN('Your Roto Auction'!$Q$4)-8),$M$1:$AM$1,0),1+SUMPRODUCT(($L$2:$L$962=TRUE)*($M$2:$M$962>M13))+COUNTIFS($L$2:L13,L13,$M$2:M13,M13)-1,1+SUMPRODUCT(($L$2:$L$962=TRUE)*($N$2:$N$962>N13))+COUNTIFS($L$2:L13,L13,$N$2:N13,N13)-1,1+SUMPRODUCT(($L$2:$L$962=TRUE)*($O$2:$O$962<O13))+COUNTIFS($L$2:L13,L13,$O$2:O13,O13)-1,1+SUMPRODUCT(($L$2:$L$962=TRUE)*($P$2:$P$962>P13))+COUNTIFS($L$2:L13,L13,$P$2:P13,P13)-1,1+SUMPRODUCT(($L$2:$L$962=TRUE)*($Q$2:$Q$962>Q13))+COUNTIFS($L$2:L13,L13,$Q$2:Q13,Q13)-1,1+SUMPRODUCT(($L$2:$L$962=TRUE)*($R$2:$R$962>R13))+COUNTIFS($L$2:L13,L13,$R$2:R13,R13)-1,1+SUMPRODUCT(($L$2:$L$962=TRUE)*($S$2:$S$962>S13))+COUNTIFS($L$2:L13,L13,$S$2:S13,S13)-1,1+SUMPRODUCT(($L$2:$L$962=TRUE)*($T$2:$T$962>T13))+COUNTIFS($L$2:L13,L13,$T$2:T13,T13)-1,1+SUMPRODUCT(($L$2:$L$962=TRUE)*($U$2:$U$962>U13))+COUNTIFS($L$2:L13,L13,$U$2:U13,U13)-1,1+SUMPRODUCT(($L$2:$L$962=TRUE)*($V$2:$V$962>V13))+COUNTIFS($L$2:L13,L13,$V$2:V13,V13)-1,1+SUMPRODUCT(($L$2:$L$962=TRUE)*($W$2:$W$962>W13))+COUNTIFS($L$2:L13,L13,$W$2:W13,W13)-1,1+SUMPRODUCT(($L$2:$L$962=TRUE)*($X$2:$X$962>X13))+COUNTIFS($L$2:L13,L13,$X$2:X13,X13)-1,1+SUMPRODUCT(($L$2:$L$962=TRUE)*($Y$2:$Y$962>Y13))+COUNTIFS($L$2:L13,L13,$Y$2:Y13,Y13)-1,1+SUMPRODUCT(($L$2:$L$962=TRUE)*($Z$2:$Z$962>Z13))+COUNTIFS($L$2:L13,L13,$Z$2:Z13,Z13)-1,1+SUMPRODUCT(($L$2:$L$962=TRUE)*($AA$2:$AA$962>AA13))+COUNTIFS($L$2:L13,L13,$AA$2:AA13,AA13)-1,1+SUMPRODUCT(($L$2:$L$962=TRUE)*($AB$2:$AB$962>AB13))+COUNTIFS($L$2:L13,L13,$AB$2:AB13,AB13)-1,1+SUMPRODUCT(($L$2:$L$962=TRUE)*($AC$2:$AC$962>AC13))+COUNTIFS($L$2:L13,L13,$AC$2:AC13,AC13)-1,1+SUMPRODUCT(($L$2:$L$962=TRUE)*($AD$2:$AD$962>AD13))+COUNTIFS($L$2:L13,L13,$AD$2:AD13,AD13)-1,1+SUMPRODUCT(($L$2:$L$962=TRUE)*($AE$2:$AE$962>AE13))+COUNTIFS($L$2:L13,L13,$AE$2:AE13,AE13)-1,1+SUMPRODUCT(($L$2:$L$962=TRUE)*($AF$2:$AF$962>AF13))+COUNTIFS($L$2:L13,L13,$AF$2:AF13,AF13)-1,1+SUMPRODUCT(($L$2:$L$962=TRUE)*($AG$2:$AG$962>AG13))+COUNTIFS($L$2:L13,L13,$AG$2:AG13,AG13)-1,1+SUMPRODUCT(($L$2:$L$962=TRUE)*($AH$2:$AH$962>AH13))+COUNTIFS($L$2:L13,L13,$AH$2:AH13,AH13)-1,1+SUMPRODUCT(($L$2:$L$962=TRUE)*($AI$2:$AI$962>AI13))+COUNTIFS($L$2:L13,L13,$AI$2:AI13,AI13)-1,1+SUMPRODUCT(($L$2:$L$962=TRUE)*($AJ$2:$AJ$962>AJ13))+COUNTIFS($L$2:L13,L13,$AJ$2:AJ13,AJ13)-1,1+SUMPRODUCT(($L$2:$L$962=TRUE)*($AK$2:$AK$962>AK13))+COUNTIFS($L$2:L13,L13,$AK$2:AK13,AK13)-1,1+SUMPRODUCT(($L$2:$L$962=TRUE)*($AL$2:$AL$962>AL13))+COUNTIFS($L$2:L13,L13,$AL$2:AL13,AL13)-1,1+SUMPRODUCT(($L$2:$L$962=TRUE)*($AM$2:$AM$962>AM13))+COUNTIFS($L$2:L13,L13,$AM$2:AM13,AM13)-1,)),"") -> 741 | D13: Kolby Allard | E13: =IFERROR(INDEX('Auction Log'!$C$4:$C$806,MATCH(D13,'Auction Log'!$B$4:$B$806,0)),"") ->  | F13: =IFERROR(INDEX('Auction-Rank'!$C$2:$C$961,MATCH(D13,'Auction-Rank'!$A$2:$A$961,0)),"") -> SP | G13: =IFERROR(IF(F13=I13,"",IF(INDEX('Your Roto Auction'!$C$11:$C$634,MATCH(D13,'Your Roto Auction'!$D$11:$D$634,0))="",IF(I13<>"",I13,""),INDEX('Your Roto Auction'!$C$11:$C$634,MATCH(D13,'Your Roto Auction'!$D$11:$D$634,0)))),"") ->  | H13: SP | J13: =INDEX('Auction-Rank'!$V$2:$V$961,MATCH(D13,'Auction-Rank'!$A$2:$A$961,0)) -> TRUE | K13: FALSE | L13: =IF(J13=FALSE,FALSE,IF(AND('Your Roto Auction'!$Q$6="Hide Drafted Players",K13=TRUE),FALSE,IF(OR('Your Roto Auction'!$Q$5="Show All Positions",AND('Your Roto Auction'!$Q$5="Only Show: C",H13="C"),AND('Your Roto Auction'!$Q$5="Only Show: 1B",H13="1B"),AND('Your Roto Auction'!$Q$5="Only Show: 2B",H13="2B"),AND('Your Roto Auction'!$Q$5="Only Show: 3B",H13="3B"),AND('Your Roto Auction'!$Q$5="Only Show: SS",H13="SS"),AND('Your Roto Auction'!$Q$5="Only Show: OF",H13="OF"),AND('Your Roto Auction'!$Q$5="Only Show: SP",H13="SP"),AND('Your Roto Auction'!$Q$5="Only Show: RP",H13="RP"),AND('Your Roto Auction'!$Q$5="Only Show: CI",OR(H13={"1B","3B"})),AND('Your Roto Auction'!$Q$5="Only Show: MI",OR(H13={"2B","SS"})),AND('Your Roto Auction'!$Q$5="Only Show: IF",OR(H13={"C","1B","2B","3B","SS"})),AND('Your Roto Auction'!$Q$5="Only Show: DH",OR(H13={"C","1B","2B","3B","SS","OF","DH"})),AND('Your Roto Auction'!$Q$5="Only Show: P",OR(H13={"SP","RP"})),AND('Your Roto Auction'!$Q$5="Only Show: LF",ISERROR(SEARCH("LF",VLOOKUP($D13,'Auction-Rank'!$A$2:$D$961,4,FALSE)))=FALSE),AND('Your Roto Auction'!$Q$5="Only Show: RF",ISERROR(SEARCH("RF",VLOOKUP($D13,'Auction-Rank'!$A$2:$D$961,4,FALSE)))=FALSE),AND('Your Roto Auction'!$Q$5="Only Show: CF",ISERROR(SEARCH("CF",VLOOKUP($D13,'Auction-Rank'!$A$2:$D$961,4,FALSE)))=FALSE)),TRUE,FALSE))) -> TRUE | M13: =IFERROR(IF(VLOOKUP($D13,'Inflation-Tracking'!$A$5:$AD$862,22,FALSE)="",-9999,VLOOKUP($D13,'Inflation-Tracking'!$A$5:$AD$862,22,FALSE)),-9999) -> -9999 | N13: =IF(D13="Non-Ranked Player",-1001,IFERROR(VLOOKUP($D13,'All-WERTH'!$C$2:$E$806,3,FALSE),-1000)) -> -1000 | O13: =IF(D13="Non-Ranked Player",10000,IFERROR(IF(VLOOKUP(D13,'Auction-Rank'!$A$2:$X$961,24,FALSE)="",9999,VLOOKUP(D13,'Auction-Rank'!$A$2:$X$961,24,FALSE)),9999)) -> 700 | P13: =IF($D13="Unlisted Player",-1001,IFERROR(IF(VLOOKUP($D13,'All-WERTH'!$C$2:$AC$806,4,FALSE)="",-1000,VLOOKUP($D13,'All-WERTH'!$C$2:$AC$806,4,FALSE)),-1000)) -> -1000 | Q13: =IF($D13="Unlisted Player",-1001,IFERROR(IF(VLOOKUP($D13,'All-WERTH'!$C$2:$AC$806,5,FALSE)="",-1000,VLOOKUP($D13,'All-WERTH'!$C$2:$AC$806,5,FALSE)),-1000)) -> -1000 | R13: =IF($D13="Unlisted Player",-1001,IFERROR(IF(VLOOKUP($D13,'All-WERTH'!$C$2:$AC$806,6,FALSE)="",-1000,VLOOKUP($D13,'All-WERTH'!$C$2:$AC$806,6,FALSE)),-1000)) -> -1000 | S13: =IF($D13="Unlisted Player",-1001,IFERROR(IF(VLOOKUP($D13,'All-WERTH'!$C$2:$AC$806,7,FALSE)="",-1000,VLOOKUP($D13,'All-WERTH'!$C$2:$AC$806,7,FALSE)),-1000)) -> -1000 | T13: =IF($D13="Unlisted Player",-1001,IFERROR(IF(VLOOKUP($D13,'All-WERTH'!$C$2:$AC$806,8,FALSE)="",-1000,VLOOKUP($D13,'All-WERTH'!$C$2:$AC$806,8,FALSE)),-1000)) -> -1000 | U13: =IF($D13="Unlisted Player",-1001,IFERROR(IF(VLOOKUP($D13,'All-WERTH'!$C$2:$AC$806,9,FALSE)="",-1000,VLOOKUP($D13,'All-WERTH'!$C$2:$AC$806,9,FALSE)),-1000)) -> -1000 | V13: =IF($D13="Unlisted Player",-1001,IFERROR(IF(VLOOKUP($D13,'All-WERTH'!$C$2:$AC$806,10,FALSE)="",-1000,VLOOKUP($D13,'All-WERTH'!$C$2:$AC$806,10,FALSE)),-1000)) -> -1000 | W13: =IF($D13="Unlisted Player",-1001,IFERROR(IF(VLOOKUP($D13,'All-WERTH'!$C$2:$AC$806,11,FALSE)="",-1000,VLOOKUP($D13,'All-WERTH'!$C$2:$AC$806,11,FALSE)),-1000)) -> -1000 | X13: =IF($D13="Unlisted Player",-1001,IFERROR(IF(VLOOKUP($D13,'All-WERTH'!$C$2:$AC$806,12,FALSE)="",-1000,VLOOKUP($D13,'All-WERTH'!$C$2:$AC$806,12,FALSE)),-1000)) -> -1000 | Y13: =IF($D13="Unlisted Player",-1001,IFERROR(IF(VLOOKUP($D13,'All-WERTH'!$C$2:$AC$806,13,FALSE)="",-1000,VLOOKUP($D13,'All-WERTH'!$C$2:$AC$806,13,FALSE)),-1000)) -> -1000 | Z13: =IF($D13="Unlisted Player",-1001,IFERROR(IF(VLOOKUP($D13,'All-WERTH'!$C$2:$AC$806,14,FALSE)="",-1000,VLOOKUP($D13,'All-WERTH'!$C$2:$AC$806,14,FALSE)),-1000)) -> -1000 | AA13: =IF($D13="Unlisted Player",-1001,IFERROR(IF(VLOOKUP($D13,'All-WERTH'!$C$2:$AC$806,15,FALSE)="",-1000,VLOOKUP($D13,'All-WERTH'!$C$2:$AC$806,15,FALSE)),-1000)) -> -1000 | AB13: =IF($D13="Unlisted Player",-1001,IFERROR(IF(VLOOKUP($D13,'All-WERTH'!$C$2:$AC$806,16,FALSE)="",-1000,VLOOKUP($D13,'All-WERTH'!$C$2:$AC$806,16,FALSE)),-1000)) -> -1000 | AC13: =IF($D13="Unlisted Player",-1001,IFERROR(IF(VLOOKUP($D13,'All-WERTH'!$C$2:$AC$806,17,FALSE)="",-1000,VLOOKUP($D13,'All-WERTH'!$C$2:$AC$806,17,FALSE)),-1000)) -> -1000 | AD13: =IF($D13="Unlisted Player",-1001,IFERROR(IF(VLOOKUP($D13,'All-WERTH'!$C$2:$AC$806,18,FALSE)="",-1000,VLOOKUP($D13,'All-WERTH'!$C$2:$AC$806,18,FALSE)),-1000)) -> -1000 | AE13: =IF($D13="Unlisted Player",-1001,IFERROR(IF(VLOOKUP($D13,'All-WERTH'!$C$2:$AC$806,19,FALSE)="",-1000,VLOOKUP($D13,'All-WERTH'!$C$2:$AC$806,19,FALSE)),-1000)) -> -1000 | AF13: =IF($D13="Unlisted Player",-1001,IFERROR(IF(VLOOKUP($D13,'All-WERTH'!$C$2:$AC$806,20,FALSE)="",-1000,VLOOKUP($D13,'All-WERTH'!$C$2:$AC$806,20,FALSE)),-1000)) -> -1000 | AG13: =IF($D13="Unlisted Player",-1001,IFERROR(IF(VLOOKUP($D13,'All-WERTH'!$C$2:$AC$806,21,FALSE)="",-1000,VLOOKUP($D13,'All-WERTH'!$C$2:$AC$806,21,FALSE)),-1000)) -> -1000 | AH13: =IF($D13="Unlisted Player",-1001,IFERROR(IF(VLOOKUP($D13,'All-WERTH'!$C$2:$AC$806,22,FALSE)="",-1000,VLOOKUP($D13,'All-WERTH'!$C$2:$AC$806,22,FALSE)),-1000)) -> -1000 | AI13: =IF($D13="Unlisted Player",-1001,IFERROR(IF(VLOOKUP($D13,'All-WERTH'!$C$2:$AC$806,23,FALSE)="",-1000,VLOOKUP($D13,'All-WERTH'!$C$2:$AC$806,23,FALSE)),-1000)) -> -1000 | AJ13: =IF($D13="Unlisted Player",-1001,IFERROR(IF(VLOOKUP($D13,'All-WERTH'!$C$2:$AC$806,24,FALSE)="",-1000,VLOOKUP($D13,'All-WERTH'!$C$2:$AC$806,24,FALSE)),-1000)) -> -1000 | AK13: =IF($D13="Unlisted Player",-1001,IFERROR(IF(VLOOKUP($D13,'All-WERTH'!$C$2:$AC$806,25,FALSE)="",-1000,VLOOKUP($D13,'All-WERTH'!$C$2:$AC$806,25,FALSE)),-1000)) -> -1000 | AL13: =IF($D13="Unlisted Player",-1001,IFERROR(IF(VLOOKUP($D13,'All-WERTH'!$C$2:$AC$806,26,FALSE)="",-1000,VLOOKUP($D13,'All-WERTH'!$C$2:$AC$806,26,FALSE)),-1000)) -> -1000 | AM13: =IF($D13="Unlisted Player",-1001,IFERROR(IF(VLOOKUP($D13,'All-WERTH'!$C$2:$AC$806,27,FALSE)="",-1000,VLOOKUP($D13,'All-WERTH'!$C$2:$AC$806,27,FALSE)),-1000)) -> -1000
A14: Trevor Story | B14: =IFERROR(INDEX($A$1:$A$961,SMALL(IF($A$1:$A$961<>"",ROW($A$1:$A$961)),ROW(A13))),"") -> Trevor Story | C14: =IFERROR(IF(L14=FALSE,"",CHOOSE(MATCH(RIGHT('Your Roto Auction'!$Q$4,LEN('Your Roto Auction'!$Q$4)-8),$M$1:$AM$1,0),1+SUMPRODUCT(($L$2:$L$962=TRUE)*($M$2:$M$962>M14))+COUNTIFS($L$2:L14,L14,$M$2:M14,M14)-1,1+SUMPRODUCT(($L$2:$L$962=TRUE)*($N$2:$N$962>N14))+COUNTIFS($L$2:L14,L14,$N$2:N14,N14)-1,1+SUMPRODUCT(($L$2:$L$962=TRUE)*($O$2:$O$962<O14))+COUNTIFS($L$2:L14,L14,$O$2:O14,O14)-1,1+SUMPRODUCT(($L$2:$L$962=TRUE)*($P$2:$P$962>P14))+COUNTIFS($L$2:L14,L14,$P$2:P14,P14)-1,1+SUMPRODUCT(($L$2:$L$962=TRUE)*($Q$2:$Q$962>Q14))+COUNTIFS($L$2:L14,L14,$Q$2:Q14,Q14)-1,1+SUMPRODUCT(($L$2:$L$962=TRUE)*($R$2:$R$962>R14))+COUNTIFS($L$2:L14,L14,$R$2:R14,R14)-1,1+SUMPRODUCT(($L$2:$L$962=TRUE)*($S$2:$S$962>S14))+COUNTIFS($L$2:L14,L14,$S$2:S14,S14)-1,1+SUMPRODUCT(($L$2:$L$962=TRUE)*($T$2:$T$962>T14))+COUNTIFS($L$2:L14,L14,$T$2:T14,T14)-1,1+SUMPRODUCT(($L$2:$L$962=TRUE)*($U$2:$U$962>U14))+COUNTIFS($L$2:L14,L14,$U$2:U14,U14)-1,1+SUMPRODUCT(($L$2:$L$962=TRUE)*($V$2:$V$962>V14))+COUNTIFS($L$2:L14,L14,$V$2:V14,V14)-1,1+SUMPRODUCT(($L$2:$L$962=TRUE)*($W$2:$W$962>W14))+COUNTIFS($L$2:L14,L14,$W$2:W14,W14)-1,1+SUMPRODUCT(($L$2:$L$962=TRUE)*($X$2:$X$962>X14))+COUNTIFS($L$2:L14,L14,$X$2:X14,X14)-1,1+SUMPRODUCT(($L$2:$L$962=TRUE)*($Y$2:$Y$962>Y14))+COUNTIFS($L$2:L14,L14,$Y$2:Y14,Y14)-1,1+SUMPRODUCT(($L$2:$L$962=TRUE)*($Z$2:$Z$962>Z14))+COUNTIFS($L$2:L14,L14,$Z$2:Z14,Z14)-1,1+SUMPRODUCT(($L$2:$L$962=TRUE)*($AA$2:$AA$962>AA14))+COUNTIFS($L$2:L14,L14,$AA$2:AA14,AA14)-1,1+SUMPRODUCT(($L$2:$L$962=TRUE)*($AB$2:$AB$962>AB14))+COUNTIFS($L$2:L14,L14,$AB$2:AB14,AB14)-1,1+SUMPRODUCT(($L$2:$L$962=TRUE)*($AC$2:$AC$962>AC14))+COUNTIFS($L$2:L14,L14,$AC$2:AC14,AC14)-1,1+SUMPRODUCT(($L$2:$L$962=TRUE)*($AD$2:$AD$962>AD14))+COUNTIFS($L$2:L14,L14,$AD$2:AD14,AD14)-1,1+SUMPRODUCT(($L$2:$L$962=TRUE)*($AE$2:$AE$962>AE14))+COUNTIFS($L$2:L14,L14,$AE$2:AE14,AE14)-1,1+SUMPRODUCT(($L$2:$L$962=TRUE)*($AF$2:$AF$962>AF14))+COUNTIFS($L$2:L14,L14,$AF$2:AF14,AF14)-1,1+SUMPRODUCT(($L$2:$L$962=TRUE)*($AG$2:$AG$962>AG14))+COUNTIFS($L$2:L14,L14,$AG$2:AG14,AG14)-1,1+SUMPRODUCT(($L$2:$L$962=TRUE)*($AH$2:$AH$962>AH14))+COUNTIFS($L$2:L14,L14,$AH$2:AH14,AH14)-1,1+SUMPRODUCT(($L$2:$L$962=TRUE)*($AI$2:$AI$962>AI14))+COUNTIFS($L$2:L14,L14,$AI$2:AI14,AI14)-1,1+SUMPRODUCT(($L$2:$L$962=TRUE)*($AJ$2:$AJ$962>AJ14))+COUNTIFS($L$2:L14,L14,$AJ$2:AJ14,AJ14)-1,1+SUMPRODUCT(($L$2:$L$962=TRUE)*($AK$2:$AK$962>AK14))+COUNTIFS($L$2:L14,L14,$AK$2:AK14,AK14)-1,1+SUMPRODUCT(($L$2:$L$962=TRUE)*($AL$2:$AL$962>AL14))+COUNTIFS($L$2:L14,L14,$AL$2:AL14,AL14)-1,1+SUMPRODUCT(($L$2:$L$962=TRUE)*($AM$2:$AM$962>AM14))+COUNTIFS($L$2:L14,L14,$AM$2:AM14,AM14)-1,)),"") -> 163 | D14: Cody Allen | E14: =IFERROR(INDEX('Auction Log'!$C$4:$C$806,MATCH(D14,'Auction Log'!$B$4:$B$806,0)),"") ->  | F14: =IFERROR(INDEX('Auction-Rank'!$C$2:$C$961,MATCH(D14,'Auction-Rank'!$A$2:$A$961,0)),"") -> RP | G14: =IFERROR(IF(F14=I14,"",IF(INDEX('Your Roto Auction'!$C$11:$C$634,MATCH(D14,'Your Roto Auction'!$D$11:$D$634,0))="",IF(I14<>"",I14,""),INDEX('Your Roto Auction'!$C$11:$C$634,MATCH(D14,'Your Roto Auction'!$D$11:$D$634,0)))),"") ->  | H14: RP | J14: =INDEX('Auction-Rank'!$V$2:$V$961,MATCH(D14,'Auction-Rank'!$A$2:$A$961,0)) -> TRUE | K14: FALSE | L14: =IF(J14=FALSE,FALSE,IF(AND('Your Roto Auction'!$Q$6="Hide Drafted Players",K14=TRUE),FALSE,IF(OR('Your Roto Auction'!$Q$5="Show All Positions",AND('Your Roto Auction'!$Q$5="Only Show: C",H14="C"),AND('Your Roto Auction'!$Q$5="Only Show: 1B",H14="1B"),AND('Your Roto Auction'!$Q$5="Only Show: 2B",H14="2B"),AND('Your Roto Auction'!$Q$5="Only Show: 3B",H14="3B"),AND('Your Roto Auction'!$Q$5="Only Show: SS",H14="SS"),AND('Your Roto Auction'!$Q$5="Only Show: OF",H14="OF"),AND('Your Roto Auction'!$Q$5="Only Show: SP",H14="SP"),AND('Your Roto Auction'!$Q$5="Only Show: RP",H14="RP"),AND('Your Roto Auction'!$Q$5="Only Show: CI",OR(H14={"1B","3B"})),AND('Your Roto Auction'!$Q$5="Only Show: MI",OR(H14={"2B","SS"})),AND('Your Roto Auction'!$Q$5="Only Show: IF",OR(H14={"C","1B","2B","3B","SS"})),AND('Your Roto Auction'!$Q$5="Only Show: DH",OR(H14={"C","1B","2B","3B","SS","OF","DH"})),AND('Your Roto Auction'!$Q$5="Only Show: P",OR(H14={"SP","RP"})),AND('Your Roto Auction'!$Q$5="Only Show: LF",ISERROR(SEARCH("LF",VLOOKUP($D14,'Auction-Rank'!$A$2:$D$961,4,FALSE)))=FALSE),AND('Your Roto Auction'!$Q$5="Only Show: RF",ISERROR(SEARCH("RF",VLOOKUP($D14,'Auction-Rank'!$A$2:$D$961,4,FALSE)))=FALSE),AND('Your Roto Auction'!$Q$5="Only Show: CF",ISERROR(SEARCH("CF",VLOOKUP($D14,'Auction-Rank'!$A$2:$D$961,4,FALSE)))=FALSE)),TRUE,FALSE))) -> TRUE | M14: =IFERROR(IF(VLOOKUP($D14,'Inflation-Tracking'!$A$5:$AD$862,22,FALSE)="",-9999,VLOOKUP($D14,'Inflation-Tracking'!$A$5:$AD$862,22,FALSE)),-9999) -> 6.034863666 | N14: =IF(D14="Non-Ranked Player",-1001,IFERROR(VLOOKUP($D14,'All-WERTH'!$C$2:$E$806,3,FALSE),-1000)) -> -2.038126409 | O14: =IF(D14="Non-Ranked Player",10000,IFERROR(IF(VLOOKUP(D14,'Auction-Rank'!$A$2:$X$961,24,FALSE)="",9999,VLOOKUP(D14,'Auction-Rank'!$A$2:$X$961,24,FALSE)),9999)) -> 167 | P14: =IF($D14="Unlisted Player",-1001,IFERROR(IF(VLOOKUP($D14,'All-WERTH'!$C$2:$AC$806,4,FALSE)="",-1000,VLOOKUP($D14,'All-WERTH'!$C$2:$AC$806,4,FALSE)),-1000)) -> -1000 | Q14: =IF($D14="Unlisted Player",-1001,IFERROR(IF(VLOOKUP($D14,'All-WERTH'!$C$2:$AC$806,5,FALSE)="",-1000,VLOOKUP($D14,'All-WERTH'!$C$2:$AC$806,5,FALSE)),-1000)) -> -1000 | R14: =IF($D14="Unlisted Player",-1001,IFERROR(IF(VLOOKUP($D14,'All-WERTH'!$C$2:$AC$806,6,FALSE)="",-1000,VLOOKUP($D14,'All-WERTH'!$C$2:$AC$806,6,FALSE)),-1000)) -> -1000 | S14: =IF($D14="Unlisted Player",-1001,IFERROR(IF(VLOOKUP($D14,'All-WERTH'!$C$2:$AC$806,7,FALSE)="",-1000,VLOOKUP($D14,'All-WERTH'!$C$2:$AC$806,7,FALSE)),-1000)) -> -1000 | T14: =IF($D14="Unlisted Player",-1001,IFERROR(IF(VLOOKUP($D14,'All-WERTH'!$C$2:$AC$806,8,FALSE)="",-1000,VLOOKUP($D14,'All-WERTH'!$C$2:$AC$806,8,FALSE)),-1000)) -> -1000 | U14: =IF($D14="Unlisted Player",-1001,IFERROR(IF(VLOOKUP($D14,'All-WERTH'!$C$2:$AC$806,9,FALSE)="",-1000,VLOOKUP($D14,'All-WERTH'!$C$2:$AC$806,9,FALSE)),-1000)) -> -1000 | V14: =IF($D14="Unlisted Player",-1001,IFERROR(IF(VLOOKUP($D14,'All-WERTH'!$C$2:$AC$806,10,FALSE)="",-1000,VLOOKUP($D14,'All-WERTH'!$C$2:$AC$806,10,FALSE)),-1000)) -> -1000 | W14: =IF($D14="Unlisted Player",-1001,IFERROR(IF(VLOOKUP($D14,'All-WERTH'!$C$2:$AC$806,11,FALSE)="",-1000,VLOOKUP($D14,'All-WERTH'!$C$2:$AC$806,11,FALSE)),-1000)) -> -1000 | X14: =IF($D14="Unlisted Player",-1001,IFERROR(IF(VLOOKUP($D14,'All-WERTH'!$C$2:$AC$806,12,FALSE)="",-1000,VLOOKUP($D14,'All-WERTH'!$C$2:$AC$806,12,FALSE)),-1000)) -> -1000 | Y14: =IF($D14="Unlisted Player",-1001,IFERROR(IF(VLOOKUP($D14,'All-WERTH'!$C$2:$AC$806,13,FALSE)="",-1000,VLOOKUP($D14,'All-WERTH'!$C$2:$AC$806,13,FALSE)),-1000)) -> -1000 | Z14: =IF($D14="Unlisted Player",-1001,IFERROR(IF(VLOOKUP($D14,'All-WERTH'!$C$2:$AC$806,14,FALSE)="",-1000,VLOOKUP($D14,'All-WERTH'!$C$2:$AC$806,14,FALSE)),-1000)) -> -1000 | AA14: =IF($D14="Unlisted Player",-1001,IFERROR(IF(VLOOKUP($D14,'All-WERTH'!$C$2:$AC$806,15,FALSE)="",-1000,VLOOKUP($D14,'All-WERTH'!$C$2:$AC$806,15,FALSE)),-1000)) -> -1000 | AB14: =IF($D14="Unlisted Player",-1001,IFERROR(IF(VLOOKUP($D14,'All-WERTH'!$C$2:$AC$806,16,FALSE)="",-1000,VLOOKUP($D14,'All-WERTH'!$C$2:$AC$806,16,FALSE)),-1000)) -> -1.251567114 | AC14: =IF($D14="Unlisted Player",-1001,IFERROR(IF(VLOOKUP($D14,'All-WERTH'!$C$2:$AC$806,17,FALSE)="",-1000,VLOOKUP($D14,'All-WERTH'!$C$2:$AC$806,17,FALSE)),-1000)) -> 1.942226025 | AD14: =IF($D14="Unlisted Player",-1001,IFERROR(IF(VLOOKUP($D14,'All-WERTH'!$C$2:$AC$806,18,FALSE)="",-1000,VLOOKUP($D14,'All-WERTH'!$C$2:$AC$806,18,FALSE)),-1000)) -> -1.158602074 | AE14: =IF($D14="Unlisted Player",-1001,IFERROR(IF(VLOOKUP($D14,'All-WERTH'!$C$2:$AC$806,19,FALSE)="",-1000,VLOOKUP($D14,'All-WERTH'!$C$2:$AC$806,19,FALSE)),-1000)) -> -0.8937471135 | AF14: =IF($D14="Unlisted Player",-1001,IFERROR(IF(VLOOKUP($D14,'All-WERTH'!$C$2:$AC$806,20,FALSE)="",-1000,VLOOKUP($D14,'All-WERTH'!$C$2:$AC$806,20,FALSE)),-1000)) -> -0.6764361333 | AG14: =IF($D14="Unlisted Player",-1001,IFERROR(IF(VLOOKUP($D14,'All-WERTH'!$C$2:$AC$806,21,FALSE)="",-1000,VLOOKUP($D14,'All-WERTH'!$C$2:$AC$806,21,FALSE)),-1000)) -> -1000 | AH14: =IF($D14="Unlisted Player",-1001,IFERROR(IF(VLOOKUP($D14,'All-WERTH'!$C$2:$AC$806,22,FALSE)="",-1000,VLOOKUP($D14,'All-WERTH'!$C$2:$AC$806,22,FALSE)),-1000)) -> -1000 | AI14: =IF($D14="Unlisted Player",-1001,IFERROR(IF(VLOOKUP($D14,'All-WERTH'!$C$2:$AC$806,23,FALSE)="",-1000,VLOOKUP($D14,'All-WERTH'!$C$2:$AC$806,23,FALSE)),-1000)) -> -1000 | AJ14: =IF($D14="Unlisted Player",-1001,IFERROR(IF(VLOOKUP($D14,'All-WERTH'!$C$2:$AC$806,24,FALSE)="",-1000,VLOOKUP($D14,'All-WERTH'!$C$2:$AC$806,24,FALSE)),-1000)) -> -1000 | AK14: =IF($D14="Unlisted Player",-1001,IFERROR(IF(VLOOKUP($D14,'All-WERTH'!$C$2:$AC$806,25,FALSE)="",-1000,VLOOKUP($D14,'All-WERTH'!$C$2:$AC$806,25,FALSE)),-1000)) -> -1000 | AL14: =IF($D14="Unlisted Player",-1001,IFERROR(IF(VLOOKUP($D14,'All-WERTH'!$C$2:$AC$806,26,FALSE)="",-1000,VLOOKUP($D14,'All-WERTH'!$C$2:$AC$806,26,FALSE)),-1000)) -> -1000 | AM14: =IF($D14="Unlisted Player",-1001,IFERROR(IF(VLOOKUP($D14,'All-WERTH'!$C$2:$AC$806,27,FALSE)="",-1000,VLOOKUP($D14,'All-WERTH'!$C$2:$AC$806,27,FALSE)),-1000)) -> -1000
A15: Manny Machado | B15: =IFERROR(INDEX($A$1:$A$961,SMALL(IF($A$1:$A$961<>"",ROW($A$1:$A$961)),ROW(A14))),"") -> Manny Machado | C15: =IFERROR(IF(L15=FALSE,"",CHOOSE(MATCH(RIGHT('Your Roto Auction'!$Q$4,LEN('Your Roto Auction'!$Q$4)-8),$M$1:$AM$1,0),1+SUMPRODUCT(($L$2:$L$962=TRUE)*($M$2:$M$962>M15))+COUNTIFS($L$2:L15,L15,$M$2:M15,M15)-1,1+SUMPRODUCT(($L$2:$L$962=TRUE)*($N$2:$N$962>N15))+COUNTIFS($L$2:L15,L15,$N$2:N15,N15)-1,1+SUMPRODUCT(($L$2:$L$962=TRUE)*($O$2:$O$962<O15))+COUNTIFS($L$2:L15,L15,$O$2:O15,O15)-1,1+SUMPRODUCT(($L$2:$L$962=TRUE)*($P$2:$P$962>P15))+COUNTIFS($L$2:L15,L15,$P$2:P15,P15)-1,1+SUMPRODUCT(($L$2:$L$962=TRUE)*($Q$2:$Q$962>Q15))+COUNTIFS($L$2:L15,L15,$Q$2:Q15,Q15)-1,1+SUMPRODUCT(($L$2:$L$962=TRUE)*($R$2:$R$962>R15))+COUNTIFS($L$2:L15,L15,$R$2:R15,R15)-1,1+SUMPRODUCT(($L$2:$L$962=TRUE)*($S$2:$S$962>S15))+COUNTIFS($L$2:L15,L15,$S$2:S15,S15)-1,1+SUMPRODUCT(($L$2:$L$962=TRUE)*($T$2:$T$962>T15))+COUNTIFS($L$2:L15,L15,$T$2:T15,T15)-1,1+SUMPRODUCT(($L$2:$L$962=TRUE)*($U$2:$U$962>U15))+COUNTIFS($L$2:L15,L15,$U$2:U15,U15)-1,1+SUMPRODUCT(($L$2:$L$962=TRUE)*($V$2:$V$962>V15))+COUNTIFS($L$2:L15,L15,$V$2:V15,V15)-1,1+SUMPRODUCT(($L$2:$L$962=TRUE)*($W$2:$W$962>W15))+COUNTIFS($L$2:L15,L15,$W$2:W15,W15)-1,1+SUMPRODUCT(($L$2:$L$962=TRUE)*($X$2:$X$962>X15))+COUNTIFS($L$2:L15,L15,$X$2:X15,X15)-1,1+SUMPRODUCT(($L$2:$L$962=TRUE)*($Y$2:$Y$962>Y15))+COUNTIFS($L$2:L15,L15,$Y$2:Y15,Y15)-1,1+SUMPRODUCT(($L$2:$L$962=TRUE)*($Z$2:$Z$962>Z15))+COUNTIFS($L$2:L15,L15,$Z$2:Z15,Z15)-1,1+SUMPRODUCT(($L$2:$L$962=TRUE)*($AA$2:$AA$962>AA15))+COUNTIFS($L$2:L15,L15,$AA$2:AA15,AA15)-1,1+SUMPRODUCT(($L$2:$L$962=TRUE)*($AB$2:$AB$962>AB15))+COUNTIFS($L$2:L15,L15,$AB$2:AB15,AB15)-1,1+SUMPRODUCT(($L$2:$L$962=TRUE)*($AC$2:$AC$962>AC15))+COUNTIFS($L$2:L15,L15,$AC$2:AC15,AC15)-1,1+SUMPRODUCT(($L$2:$L$962=TRUE)*($AD$2:$AD$962>AD15))+COUNTIFS($L$2:L15,L15,$AD$2:AD15,AD15)-1,1+SUMPRODUCT(($L$2:$L$962=TRUE)*($AE$2:$AE$962>AE15))+COUNTIFS($L$2:L15,L15,$AE$2:AE15,AE15)-1,1+SUMPRODUCT(($L$2:$L$962=TRUE)*($AF$2:$AF$962>AF15))+COUNTIFS($L$2:L15,L15,$AF$2:AF15,AF15)-1,1+SUMPRODUCT(($L$2:$L$962=TRUE)*($AG$2:$AG$962>AG15))+COUNTIFS($L$2:L15,L15,$AG$2:AG15,AG15)-1,1+SUMPRODUCT(($L$2:$L$962=TRUE)*($AH$2:$AH$962>AH15))+COUNTIFS($L$2:L15,L15,$AH$2:AH15,AH15)-1,1+SUMPRODUCT(($L$2:$L$962=TRUE)*($AI$2:$AI$962>AI15))+COUNTIFS($L$2:L15,L15,$AI$2:AI15,AI15)-1,1+SUMPRODUCT(($L$2:$L$962=TRUE)*($AJ$2:$AJ$962>AJ15))+COUNTIFS($L$2:L15,L15,$AJ$2:AJ15,AJ15)-1,1+SUMPRODUCT(($L$2:$L$962=TRUE)*($AK$2:$AK$962>AK15))+COUNTIFS($L$2:L15,L15,$AK$2:AK15,AK15)-1,1+SUMPRODUCT(($L$2:$L$962=TRUE)*($AL$2:$AL$962>AL15))+COUNTIFS($L$2:L15,L15,$AL$2:AL15,AL15)-1,1+SUMPRODUCT(($L$2:$L$962=TRUE)*($AM$2:$AM$962>AM15))+COUNTIFS($L$2:L15,L15,$AM$2:AM15,AM15)-1,)),"") -> 593 | D15: Greg Allen | E15: =IFERROR(INDEX('Auction Log'!$C$4:$C$806,MATCH(D15,'Auction Log'!$B$4:$B$806,0)),"") ->  | F15: =IFERROR(INDEX('Auction-Rank'!$C$2:$C$961,MATCH(D15,'Auction-Rank'!$A$2:$A$961,0)),"") -> OF | G15: =IFERROR(IF(F15=I15,"",IF(INDEX('Your Roto Auction'!$C$11:$C$634,MATCH(D15,'Your Roto Auction'!$D$11:$D$634,0))="",IF(I15<>"",I15,""),INDEX('Your Roto Auction'!$C$11:$C$634,MATCH(D15,'Your Roto Auction'!$D$11:$D$634,0)))),"") ->  | H15: OF | J15: =INDEX('Auction-Rank'!$V$2:$V$961,MATCH(D15,'Auction-Rank'!$A$2:$A$961,0)) -> TRUE | K15: FALSE | L15: =IF(J15=FALSE,FALSE,IF(AND('Your Roto Auction'!$Q$6="Hide Drafted Players",K15=TRUE),FALSE,IF(OR('Your Roto Auction'!$Q$5="Show All Positions",AND('Your Roto Auction'!$Q$5="Only Show: C",H15="C"),AND('Your Roto Auction'!$Q$5="Only Show: 1B",H15="1B"),AND('Your Roto Auction'!$Q$5="Only Show: 2B",H15="2B"),AND('Your Roto Auction'!$Q$5="Only Show: 3B",H15="3B"),AND('Your Roto Auction'!$Q$5="Only Show: SS",H15="SS"),AND('Your Roto Auction'!$Q$5="Only Show: OF",H15="OF"),AND('Your Roto Auction'!$Q$5="Only Show: SP",H15="SP"),AND('Your Roto Auction'!$Q$5="Only Show: RP",H15="RP"),AND('Your Roto Auction'!$Q$5="Only Show: CI",OR(H15={"1B","3B"})),AND('Your Roto Auction'!$Q$5="Only Show: MI",OR(H15={"2B","SS"})),AND('Your Roto Auction'!$Q$5="Only Show: IF",OR(H15={"C","1B","2B","3B","SS"})),AND('Your Roto Auction'!$Q$5="Only Show: DH",OR(H15={"C","1B","2B","3B","SS","OF","DH"})),AND('Your Roto Auction'!$Q$5="Only Show: P",OR(H15={"SP","RP"})),AND('Your Roto Auction'!$Q$5="Only Show: LF",ISERROR(SEARCH("LF",VLOOKUP($D15,'Auction-Rank'!$A$2:$D$961,4,FALSE)))=FALSE),AND('Your Roto Auction'!$Q$5="Only Show: RF",ISERROR(SEARCH("RF",VLOOKUP($D15,'Auction-Rank'!$A$2:$D$961,4,FALSE)))=FALSE),AND('Your Roto Auction'!$Q$5="Only Show: CF",ISERROR(SEARCH("CF",VLOOKUP($D15,'Auction-Rank'!$A$2:$D$961,4,FALSE)))=FALSE)),TRUE,FALSE))) -> TRUE | M15: =IFERROR(IF(VLOOKUP($D15,'Inflation-Tracking'!$A$5:$AD$862,22,FALSE)="",-9999,VLOOKUP($D15,'Inflation-Tracking'!$A$5:$AD$862,22,FALSE)),-9999) -> -1.401489065 | N15: =IF(D15="Non-Ranked Player",-1001,IFERROR(VLOOKUP($D15,'All-WERTH'!$C$2:$E$806,3,FALSE),-1000)) -> -6.764511414 | O15: =IF(D15="Non-Ranked Player",10000,IFERROR(IF(VLOOKUP(D15,'Auction-Rank'!$A$2:$X$961,24,FALSE)="",9999,VLOOKUP(D15,'Auction-Rank'!$A$2:$X$961,24,FALSE)),9999)) -> 358 | P15: =IF($D15="Unlisted Player",-1001,IFERROR(IF(VLOOKUP($D15,'All-WERTH'!$C$2:$AC$806,4,FALSE)="",-1000,VLOOKUP($D15,'All-WERTH'!$C$2:$AC$806,4,FALSE)),-1000)) -> -0.9405804794 | Q15: =IF($D15="Unlisted Player",-1001,IFERROR(IF(VLOOKUP($D15,'All-WERTH'!$C$2:$AC$806,5,FALSE)="",-1000,VLOOKUP($D15,'All-WERTH'!$C$2:$AC$806,5,FALSE)),-1000)) -> -2.386652329 | R15: =IF($D15="Unlisted Player",-1001,IFERROR(IF(VLOOKUP($D15,'All-WERTH'!$C$2:$AC$806,6,FALSE)="",-1000,VLOOKUP($D15,'All-WERTH'!$C$2:$AC$806,6,FALSE)),-1000)) -> -1.975879867 | S15: =IF($D15="Unlisted Player",-1001,IFERROR(IF(VLOOKUP($D15,'All-WERTH'!$C$2:$AC$806,7,FALSE)="",-1000,VLOOKUP($D15,'All-WERTH'!$C$2:$AC$806,7,FALSE)),-1000)) -> -2.800361433 | T15: =IF($D15="Unlisted Player",-1001,IFERROR(IF(VLOOKUP($D15,'All-WERTH'!$C$2:$AC$806,8,FALSE)="",-1000,VLOOKUP($D15,'All-WERTH'!$C$2:$AC$806,8,FALSE)),-1000)) -> 1.338962694 | U15: =IF($D15="Unlisted Player",-1001,IFERROR(IF(VLOOKUP($D15,'All-WERTH'!$C$2:$AC$806,9,FALSE)="",-1000,VLOOKUP($D15,'All-WERTH'!$C$2:$AC$806,9,FALSE)),-1000)) -> -1000 | V15: =IF($D15="Unlisted Player",-1001,IFERROR(IF(VLOOKUP($D15,'All-WERTH'!$C$2:$AC$806,10,FALSE)="",-1000,VLOOKUP($D15,'All-WERTH'!$C$2:$AC$806,10,FALSE)),-1000)) -> -1000 | W15: =IF($D15="Unlisted Player",-1001,IFERROR(IF(VLOOKUP($D15,'All-WERTH'!$C$2:$AC$806,11,FALSE)="",-1000,VLOOKUP($D15,'All-WERTH'!$C$2:$AC$806,11,FALSE)),-1000)) -> -1000 | X15: =IF($D15="Unlisted Player",-1001,IFERROR(IF(VLOOKUP($D15,'All-WERTH'!$C$2:$AC$806,12,FALSE)="",-1000,VLOOKUP($D15,'All-WERTH'!$C$2:$AC$806,12,FALSE)),-1000)) -> -1000 | Y15: =IF($D15="Unlisted Player",-1001,IFERROR(IF(VLOOKUP($D15,'All-WERTH'!$C$2:$AC$806,13,FALSE)="",-1000,VLOOKUP($D15,'All-WERTH'!$C$2:$AC$806,13,FALSE)),-1000)) -> -1000 | Z15: =IF($D15="Unlisted Player",-1001,IFERROR(IF(VLOOKUP($D15,'All-WERTH'!$C$2:$AC$806,14,FALSE)="",-1000,VLOOKUP($D15,'All-WERTH'!$C$2:$AC$806,14,FALSE)),-1000)) -> -1000 | AA15: =IF($D15="Unlisted Player",-1001,IFERROR(IF(VLOOKUP($D15,'All-WERTH'!$C$2:$AC$806,15,FALSE)="",-1000,VLOOKUP($D15,'All-WERTH'!$C$2:$AC$806,15,FALSE)),-1000)) -> -1000 | AB15: =IF($D15="Unlisted Player",-1001,IFERROR(IF(VLOOKUP($D15,'All-WERTH'!$C$2:$AC$806,16,FALSE)="",-1000,VLOOKUP($D15,'All-WERTH'!$C$2:$AC$806,16,FALSE)),-1000)) -> -1000 | AC15: =IF($D15="Unlisted Player",-1001,IFERROR(IF(VLOOKUP($D15,'All-WERTH'!$C$2:$AC$806,17,FALSE)="",-1000,VLOOKUP($D15,'All-WERTH'!$C$2:$AC$806,17,FALSE)),-1000)) -> -1000 | AD15: =IF($D15="Unlisted Player",-1001,IFERROR(IF(VLOOKUP($D15,'All-WERTH'!$C$2:$AC$806,18,FALSE)="",-1000,VLOOKUP($D15,'All-WERTH'!$C$2:$AC$806,18,FALSE)),-1000)) -> -1000 | AE15: =IF($D15="Unlisted Player",-1001,IFERROR(IF(VLOOKUP($D15,'All-WERTH'!$C$2:$AC$806,19,FALSE)="",-1000,VLOOKUP($D15,'All-WERTH'!$C$2:$AC$806,19,FALSE)),-1000)) -> -1000 | AF15: =IF($D15="Unlisted Player",-1001,IFERROR(IF(VLOOKUP($D15,'All-WERTH'!$C$2:$AC$806,20,FALSE)="",-1000,VLOOKUP($D15,'All-WERTH'!$C$2:$AC$806,20,FALSE)),-1000)) -> -1000 | AG15: =IF($D15="Unlisted Player",-1001,IFERROR(IF(VLOOKUP($D15,'All-WERTH'!$C$2:$AC$806,21,FALSE)="",-1000,VLOOKUP($D15,'All-WERTH'!$C$2:$AC$806,21,FALSE)),-1000)) -> -1000 | AH15: =IF($D15="Unlisted Player",-1001,IFERROR(IF(VLOOKUP($D15,'All-WERTH'!$C$2:$AC$806,22,FALSE)="",-1000,VLOOKUP($D15,'All-WERTH'!$C$2:$AC$806,22,FALSE)),-1000)) -> -1000 | AI15: =IF($D15="Unlisted Player",-1001,IFERROR(IF(VLOOKUP($D15,'All-WERTH'!$C$2:$AC$806,23,FALSE)="",-1000,VLOOKUP($D15,'All-WERTH'!$C$2:$AC$806,23,FALSE)),-1000)) -> -1000 | AJ15: =IF($D15="Unlisted Player",-1001,IFERROR(IF(VLOOKUP($D15,'All-WERTH'!$C$2:$AC$806,24,FALSE)="",-1000,VLOOKUP($D15,'All-WERTH'!$C$2:$AC$806,24,FALSE)),-1000)) -> -1000 | AK15: =IF($D15="Unlisted Player",-1001,IFERROR(IF(VLOOKUP($D15,'All-WERTH'!$C$2:$AC$806,25,FALSE)="",-1000,VLOOKUP($D15,'All-WERTH'!$C$2:$AC$806,25,FALSE)),-1000)) -> -1000 | AL15: =IF($D15="Unlisted Player",-1001,IFERROR(IF(VLOOKUP($D15,'All-WERTH'!$C$2:$AC$806,26,FALSE)="",-1000,VLOOKUP($D15,'All-WERTH'!$C$2:$AC$806,26,FALSE)),-1000)) -> -1000 | AM15: =IF($D15="Unlisted Player",-1001,IFERROR(IF(VLOOKUP($D15,'All-WERTH'!$C$2:$AC$806,27,FALSE)="",-1000,VLOOKUP($D15,'All-WERTH'!$C$2:$AC$806,27,FALSE)),-1000)) -> -1000
A16: Giancarlo Stanton | B16: =IFERROR(INDEX($A$1:$A$961,SMALL(IF($A$1:$A$961<>"",ROW($A$1:$A$961)),ROW(A15))),"") -> Giancarlo Stanton | C16: =IFERROR(IF(L16=FALSE,"",CHOOSE(MATCH(RIGHT('Your Roto Auction'!$Q$4,LEN('Your Roto Auction'!$Q$4)-8),$M$1:$AM$1,0),1+SUMPRODUCT(($L$2:$L$962=TRUE)*($M$2:$M$962>M16))+COUNTIFS($L$2:L16,L16,$M$2:M16,M16)-1,1+SUMPRODUCT(($L$2:$L$962=TRUE)*($N$2:$N$962>N16))+COUNTIFS($L$2:L16,L16,$N$2:N16,N16)-1,1+SUMPRODUCT(($L$2:$L$962=TRUE)*($O$2:$O$962<O16))+COUNTIFS($L$2:L16,L16,$O$2:O16,O16)-1,1+SUMPRODUCT(($L$2:$L$962=TRUE)*($P$2:$P$962>P16))+COUNTIFS($L$2:L16,L16,$P$2:P16,P16)-1,1+SUMPRODUCT(($L$2:$L$962=TRUE)*($Q$2:$Q$962>Q16))+COUNTIFS($L$2:L16,L16,$Q$2:Q16,Q16)-1,1+SUMPRODUCT(($L$2:$L$962=TRUE)*($R$2:$R$962>R16))+COUNTIFS($L$2:L16,L16,$R$2:R16,R16)-1,1+SUMPRODUCT(($L$2:$L$962=TRUE)*($S$2:$S$962>S16))+COUNTIFS($L$2:L16,L16,$S$2:S16,S16)-1,1+SUMPRODUCT(($L$2:$L$962=TRUE)*($T$2:$T$962>T16))+COUNTIFS($L$2:L16,L16,$T$2:T16,T16)-1,1+SUMPRODUCT(($L$2:$L$962=TRUE)*($U$2:$U$962>U16))+COUNTIFS($L$2:L16,L16,$U$2:U16,U16)-1,1+SUMPRODUCT(($L$2:$L$962=TRUE)*($V$2:$V$962>V16))+COUNTIFS($L$2:L16,L16,$V$2:V16,V16)-1,1+SUMPRODUCT(($L$2:$L$962=TRUE)*($W$2:$W$962>W16))+COUNTIFS($L$2:L16,L16,$W$2:W16,W16)-1,1+SUMPRODUCT(($L$2:$L$962=TRUE)*($X$2:$X$962>X16))+COUNTIFS($L$2:L16,L16,$X$2:X16,X16)-1,1+SUMPRODUCT(($L$2:$L$962=TRUE)*($Y$2:$Y$962>Y16))+COUNTIFS($L$2:L16,L16,$Y$2:Y16,Y16)-1,1+SUMPRODUCT(($L$2:$L$962=TRUE)*($Z$2:$Z$962>Z16))+COUNTIFS($L$2:L16,L16,$Z$2:Z16,Z16)-1,1+SUMPRODUCT(($L$2:$L$962=TRUE)*($AA$2:$AA$962>AA16))+COUNTIFS($L$2:L16,L16,$AA$2:AA16,AA16)-1,1+SUMPRODUCT(($L$2:$L$962=TRUE)*($AB$2:$AB$962>AB16))+COUNTIFS($L$2:L16,L16,$AB$2:AB16,AB16)-1,1+SUMPRODUCT(($L$2:$L$962=TRUE)*($AC$2:$AC$962>AC16))+COUNTIFS($L$2:L16,L16,$AC$2:AC16,AC16)-1,1+SUMPRODUCT(($L$2:$L$962=TRUE)*($AD$2:$AD$962>AD16))+COUNTIFS($L$2:L16,L16,$AD$2:AD16,AD16)-1,1+SUMPRODUCT(($L$2:$L$962=TRUE)*($AE$2:$AE$962>AE16))+COUNTIFS($L$2:L16,L16,$AE$2:AE16,AE16)-1,1+SUMPRODUCT(($L$2:$L$962=TRUE)*($AF$2:$AF$962>AF16))+COUNTIFS($L$2:L16,L16,$AF$2:AF16,AF16)-1,1+SUMPRODUCT(($L$2:$L$962=TRUE)*($AG$2:$AG$962>AG16))+COUNTIFS($L$2:L16,L16,$AG$2:AG16,AG16)-1,1+SUMPRODUCT(($L$2:$L$962=TRUE)*($AH$2:$AH$962>AH16))+COUNTIFS($L$2:L16,L16,$AH$2:AH16,AH16)-1,1+SUMPRODUCT(($L$2:$L$962=TRUE)*($AI$2:$AI$962>AI16))+COUNTIFS($L$2:L16,L16,$AI$2:AI16,AI16)-1,1+SUMPRODUCT(($L$2:$L$962=TRUE)*($AJ$2:$AJ$962>AJ16))+COUNTIFS($L$2:L16,L16,$AJ$2:AJ16,AJ16)-1,1+SUMPRODUCT(($L$2:$L$962=TRUE)*($AK$2:$AK$962>AK16))+COUNTIFS($L$2:L16,L16,$AK$2:AK16,AK16)-1,1+SUMPRODUCT(($L$2:$L$962=TRUE)*($AL$2:$AL$962>AL16))+COUNTIFS($L$2:L16,L16,$AL$2:AL16,AL16)-1,1+SUMPRODUCT(($L$2:$L$962=TRUE)*($AM$2:$AM$962>AM16))+COUNTIFS($L$2:L16,L16,$AM$2:AM16,AM16)-1,)),"") -> 558 | D16: Albert Almora | E16: =IFERROR(INDEX('Auction Log'!$C$4:$C$806,MATCH(D16,'Auction Log'!$B$4:$B$806,0)),"") ->  | F16: =IFERROR(INDEX('Auction-Rank'!$C$2:$C$961,MATCH(D16,'Auction-Rank'!$A$2:$A$961,0)),"") -> OF | G16: =IFERROR(IF(F16=I16,"",IF(INDEX('Your Roto Auction'!$C$11:$C$634,MATCH(D16,'Your Roto Auction'!$D$11:$D$634,0))="",IF(I16<>"",I16,""),INDEX('Your Roto Auction'!$C$11:$C$634,MATCH(D16,'Your Roto Auction'!$D$11:$D$634,0)))),"") ->  | H16: OF | J16: =INDEX('Auction-Rank'!$V$2:$V$961,MATCH(D16,'Auction-Rank'!$A$2:$A$961,0)) -> TRUE | K16: FALSE | L16: =IF(J16=FALSE,FALSE,IF(AND('Your Roto Auction'!$Q$6="Hide Drafted Players",K16=TRUE),FALSE,IF(OR('Your Roto Auction'!$Q$5="Show All Positions",AND('Your Roto Auction'!$Q$5="Only Show: C",H16="C"),AND('Your Roto Auction'!$Q$5="Only Show: 1B",H16="1B"),AND('Your Roto Auction'!$Q$5="Only Show: 2B",H16="2B"),AND('Your Roto Auction'!$Q$5="Only Show: 3B",H16="3B"),AND('Your Roto Auction'!$Q$5="Only Show: SS",H16="SS"),AND('Your Roto Auction'!$Q$5="Only Show: OF",H16="OF"),AND('Your Roto Auction'!$Q$5="Only Show: SP",H16="SP"),AND('Your Roto Auction'!$Q$5="Only Show: RP",H16="RP"),AND('Your Roto Auction'!$Q$5="Only Show: CI",OR(H16={"1B","3B"})),AND('Your Roto Auction'!$Q$5="Only Show: MI",OR(H16={"2B","SS"})),AND('Your Roto Auction'!$Q$5="Only Show: IF",OR(H16={"C","1B","2B","3B","SS"})),AND('Your Roto Auction'!$Q$5="Only Show: DH",OR(H16={"C","1B","2B","3B","SS","OF","DH"})),AND('Your Roto Auction'!$Q$5="Only Show: P",OR(H16={"SP","RP"})),AND('Your Roto Auction'!$Q$5="Only Show: LF",ISERROR(SEARCH("LF",VLOOKUP($D16,'Auction-Rank'!$A$2:$D$961,4,FALSE)))=FALSE),AND('Your Roto Auction'!$Q$5="Only Show: RF",ISERROR(SEARCH("RF",VLOOKUP($D16,'Auction-Rank'!$A$2:$D$961,4,FALSE)))=FALSE),AND('Your Roto Auction'!$Q$5="Only Show: CF",ISERROR(SEARCH("CF",VLOOKUP($D16,'Auction-Rank'!$A$2:$D$961,4,FALSE)))=FALSE)),TRUE,FALSE))) -> TRUE | M16: =IFERROR(IF(VLOOKUP($D16,'Inflation-Tracking'!$A$5:$AD$862,22,FALSE)="",-9999,VLOOKUP($D16,'Inflation-Tracking'!$A$5:$AD$862,22,FALSE)),-9999) -> -1.267353998 | N16: =IF(D16="Non-Ranked Player",-1001,IFERROR(VLOOKUP($D16,'All-WERTH'!$C$2:$E$806,3,FALSE),-1000)) -> -6.353586536 | O16: =IF(D16="Non-Ranked Player",10000,IFERROR(IF(VLOOKUP(D16,'Auction-Rank'!$A$2:$X$961,24,FALSE)="",9999,VLOOKUP(D16,'Auction-Rank'!$A$2:$X$961,24,FALSE)),9999)) -> 436 | P16: =IF($D16="Unlisted Player",-1001,IFERROR(IF(VLOOKUP($D16,'All-WERTH'!$C$2:$AC$806,4,FALSE)="",-1000,VLOOKUP($D16,'All-WERTH'!$C$2:$AC$806,4,FALSE)),-1000)) -> -0.06282137819 | Q16: =IF($D16="Unlisted Player",-1001,IFERROR(IF(VLOOKUP($D16,'All-WERTH'!$C$2:$AC$806,5,FALSE)="",-1000,VLOOKUP($D16,'All-WERTH'!$C$2:$AC$806,5,FALSE)),-1000)) -> -1.924586971 | R16: =IF($D16="Unlisted Player",-1001,IFERROR(IF(VLOOKUP($D16,'All-WERTH'!$C$2:$AC$806,6,FALSE)="",-1000,VLOOKUP($D16,'All-WERTH'!$C$2:$AC$806,6,FALSE)),-1000)) -> -1.521816755 | S16: =IF($D16="Unlisted Player",-1001,IFERROR(IF(VLOOKUP($D16,'All-WERTH'!$C$2:$AC$806,7,FALSE)="",-1000,VLOOKUP($D16,'All-WERTH'!$C$2:$AC$806,7,FALSE)),-1000)) -> -2.038266997 | T16: =IF($D16="Unlisted Player",-1001,IFERROR(IF(VLOOKUP($D16,'All-WERTH'!$C$2:$AC$806,8,FALSE)="",-1000,VLOOKUP($D16,'All-WERTH'!$C$2:$AC$806,8,FALSE)),-1000)) -> -0.8060944346 | U16: =IF($D16="Unlisted Player",-1001,IFERROR(IF(VLOOKUP($D16,'All-WERTH'!$C$2:$AC$806,9,FALSE)="",-1000,VLOOKUP($D16,'All-WERTH'!$C$2:$AC$806,9,FALSE)),-1000)) -> -1000 | V16: =IF($D16="Unlisted Player",-1001,IFERROR(IF(VLOOKUP($D16,'All-WERTH'!$C$2:$AC$806,10,FALSE)="",-1000,VLOOKUP($D16,'All-WERTH'!$C$2:$AC$806,10,FALSE)),-1000)) -> -1000 | W16: =IF($D16="Unlisted Player",-1001,IFERROR(IF(VLOOKUP($D16,'All-WERTH'!$C$2:$AC$806,11,FALSE)="",-1000,VLOOKUP($D16,'All-WERTH'!$C$2:$AC$806,11,FALSE)),-1000)) -> -1000 | X16: =IF($D16="Unlisted Player",-1001,IFERROR(IF(VLOOKUP($D16,'All-WERTH'!$C$2:$AC$806,12,FALSE)="",-1000,VLOOKUP($D16,'All-WERTH'!$C$2:$AC$806,12,FALSE)),-1000)) -> -1000 | Y16: =IF($D16="Unlisted Player",-1001,IFERROR(IF(VLOOKUP($D16,'All-WERTH'!$C$2:$AC$806,13,FALSE)="",-1000,VLOOKUP($D16,'All-WERTH'!$C$2:$AC$806,13,FALSE)),-1000)) -> -1000 | Z16: =IF($D16="Unlisted Player",-1001,IFERROR(IF(VLOOKUP($D16,'All-WERTH'!$C$2:$AC$806,14,FALSE)="",-1000,VLOOKUP($D16,'All-WERTH'!$C$2:$AC$806,14,FALSE)),-1000)) -> -1000 | AA16: =IF($D16="Unlisted Player",-1001,IFERROR(IF(VLOOKUP($D16,'All-WERTH'!$C$2:$AC$806,15,FALSE)="",-1000,VLOOKUP($D16,'All-WERTH'!$C$2:$AC$806,15,FALSE)),-1000)) -> -1000 | AB16: =IF($D16="Unlisted Player",-1001,IFERROR(IF(VLOOKUP($D16,'All-WERTH'!$C$2:$AC$806,16,FALSE)="",-1000,VLOOKUP($D16,'All-WERTH'!$C$2:$AC$806,16,FALSE)),-1000)) -> -1000 | AC16: =IF($D16="Unlisted Player",-1001,IFERROR(IF(VLOOKUP($D16,'All-WERTH'!$C$2:$AC$806,17,FALSE)="",-1000,VLOOKUP($D16,'All-WERTH'!$C$2:$AC$806,17,FALSE)),-1000)) -> -1000 | AD16: =IF($D16="Unlisted Player",-1001,IFERROR(IF(VLOOKUP($D16,'All-WERTH'!$C$2:$AC$806,18,FALSE)="",-1000,VLOOKUP($D16,'All-WERTH'!$C$2:$AC$806,18,FALSE)),-1000)) -> -1000 | AE16: =IF($D16="Unlisted Player",-1001,IFERROR(IF(VLOOKUP($D16,'All-WERTH'!$C$2:$AC$806,19,FALSE)="",-1000,VLOOKUP($D16,'All-WERTH'!$C$2:$AC$806,19,FALSE)),-1000)) -> -1000 | AF16: =IF($D16="Unlisted Player",-1001,IFERROR(IF(VLOOKUP($D16,'All-WERTH'!$C$2:$AC$806,20,FALSE)="",-1000,VLOOKUP($D16,'All-WERTH'!$C$2:$AC$806,20,FALSE)),-1000)) -> -1000 | AG16: =IF($D16="Unlisted Player",-1001,IFERROR(IF(VLOOKUP($D16,'All-WERTH'!$C$2:$AC$806,21,FALSE)="",-1000,VLOOKUP($D16,'All-WERTH'!$C$2:$AC$806,21,FALSE)),-1000)) -> -1000 | AH16: =IF($D16="Unlisted Player",-1001,IFERROR(IF(VLOOKUP($D16,'All-WERTH'!$C$2:$AC$806,22,FALSE)="",-1000,VLOOKUP($D16,'All-WERTH'!$C$2:$AC$806,22,FALSE)),-1000)) -> -1000 | AI16: =IF($D16="Unlisted Player",-1001,IFERROR(IF(VLOOKUP($D16,'All-WERTH'!$C$2:$AC$806,23,FALSE)="",-1000,VLOOKUP($D16,'All-WERTH'!$C$2:$AC$806,23,FALSE)),-1000)) -> -1000 | AJ16: =IF($D16="Unlisted Player",-1001,IFERROR(IF(VLOOKUP($D16,'All-WERTH'!$C$2:$AC$806,24,FALSE)="",-1000,VLOOKUP($D16,'All-WERTH'!$C$2:$AC$806,24,FALSE)),-1000)) -> -1000 | AK16: =IF($D16="Unlisted Player",-1001,IFERROR(IF(VLOOKUP($D16,'All-WERTH'!$C$2:$AC$806,25,FALSE)="",-1000,VLOOKUP($D16,'All-WERTH'!$C$2:$AC$806,25,FALSE)),-1000)) -> -1000 | AL16: =IF($D16="Unlisted Player",-1001,IFERROR(IF(VLOOKUP($D16,'All-WERTH'!$C$2:$AC$806,26,FALSE)="",-1000,VLOOKUP($D16,'All-WERTH'!$C$2:$AC$806,26,FALSE)),-1000)) -> -1000 | AM16: =IF($D16="Unlisted Player",-1001,IFERROR(IF(VLOOKUP($D16,'All-WERTH'!$C$2:$AC$806,27,FALSE)="",-1000,VLOOKUP($D16,'All-WERTH'!$C$2:$AC$806,27,FALSE)),-1000)) -> -1000
A17: J.T. Realmuto | B17: =IFERROR(INDEX($A$1:$A$961,SMALL(IF($A$1:$A$961<>"",ROW($A$1:$A$961)),ROW(A16))),"") -> J.T. Realmuto | C17: =IFERROR(IF(L17=FALSE,"",CHOOSE(MATCH(RIGHT('Your Roto Auction'!$Q$4,LEN('Your Roto Auction'!$Q$4)-8),$M$1:$AM$1,0),1+SUMPRODUCT(($L$2:$L$962=TRUE)*($M$2:$M$962>M17))+COUNTIFS($L$2:L17,L17,$M$2:M17,M17)-1,1+SUMPRODUCT(($L$2:$L$962=TRUE)*($N$2:$N$962>N17))+COUNTIFS($L$2:L17,L17,$N$2:N17,N17)-1,1+SUMPRODUCT(($L$2:$L$962=TRUE)*($O$2:$O$962<O17))+COUNTIFS($L$2:L17,L17,$O$2:O17,O17)-1,1+SUMPRODUCT(($L$2:$L$962=TRUE)*($P$2:$P$962>P17))+COUNTIFS($L$2:L17,L17,$P$2:P17,P17)-1,1+SUMPRODUCT(($L$2:$L$962=TRUE)*($Q$2:$Q$962>Q17))+COUNTIFS($L$2:L17,L17,$Q$2:Q17,Q17)-1,1+SUMPRODUCT(($L$2:$L$962=TRUE)*($R$2:$R$962>R17))+COUNTIFS($L$2:L17,L17,$R$2:R17,R17)-1,1+SUMPRODUCT(($L$2:$L$962=TRUE)*($S$2:$S$962>S17))+COUNTIFS($L$2:L17,L17,$S$2:S17,S17)-1,1+SUMPRODUCT(($L$2:$L$962=TRUE)*($T$2:$T$962>T17))+COUNTIFS($L$2:L17,L17,$T$2:T17,T17)-1,1+SUMPRODUCT(($L$2:$L$962=TRUE)*($U$2:$U$962>U17))+COUNTIFS($L$2:L17,L17,$U$2:U17,U17)-1,1+SUMPRODUCT(($L$2:$L$962=TRUE)*($V$2:$V$962>V17))+COUNTIFS($L$2:L17,L17,$V$2:V17,V17)-1,1+SUMPRODUCT(($L$2:$L$962=TRUE)*($W$2:$W$962>W17))+COUNTIFS($L$2:L17,L17,$W$2:W17,W17)-1,1+SUMPRODUCT(($L$2:$L$962=TRUE)*($X$2:$X$962>X17))+COUNTIFS($L$2:L17,L17,$X$2:X17,X17)-1,1+SUMPRODUCT(($L$2:$L$962=TRUE)*($Y$2:$Y$962>Y17))+COUNTIFS($L$2:L17,L17,$Y$2:Y17,Y17)-1,1+SUMPRODUCT(($L$2:$L$962=TRUE)*($Z$2:$Z$962>Z17))+COUNTIFS($L$2:L17,L17,$Z$2:Z17,Z17)-1,1+SUMPRODUCT(($L$2:$L$962=TRUE)*($AA$2:$AA$962>AA17))+COUNTIFS($L$2:L17,L17,$AA$2:AA17,AA17)-1,1+SUMPRODUCT(($L$2:$L$962=TRUE)*($AB$2:$AB$962>AB17))+COUNTIFS($L$2:L17,L17,$AB$2:AB17,AB17)-1,1+SUMPRODUCT(($L$2:$L$962=TRUE)*($AC$2:$AC$962>AC17))+COUNTIFS($L$2:L17,L17,$AC$2:AC17,AC17)-1,1+SUMPRODUCT(($L$2:$L$962=TRUE)*($AD$2:$AD$962>AD17))+COUNTIFS($L$2:L17,L17,$AD$2:AD17,AD17)-1,1+SUMPRODUCT(($L$2:$L$962=TRUE)*($AE$2:$AE$962>AE17))+COUNTIFS($L$2:L17,L17,$AE$2:AE17,AE17)-1,1+SUMPRODUCT(($L$2:$L$962=TRUE)*($AF$2:$AF$962>AF17))+COUNTIFS($L$2:L17,L17,$AF$2:AF17,AF17)-1,1+SUMPRODUCT(($L$2:$L$962=TRUE)*($AG$2:$AG$962>AG17))+COUNTIFS($L$2:L17,L17,$AG$2:AG17,AG17)-1,1+SUMPRODUCT(($L$2:$L$962=TRUE)*($AH$2:$AH$962>AH17))+COUNTIFS($L$2:L17,L17,$AH$2:AH17,AH17)-1,1+SUMPRODUCT(($L$2:$L$962=TRUE)*($AI$2:$AI$962>AI17))+COUNTIFS($L$2:L17,L17,$AI$2:AI17,AI17)-1,1+SUMPRODUCT(($L$2:$L$962=TRUE)*($AJ$2:$AJ$962>AJ17))+COUNTIFS($L$2:L17,L17,$AJ$2:AJ17,AJ17)-1,1+SUMPRODUCT(($L$2:$L$962=TRUE)*($AK$2:$AK$962>AK17))+COUNTIFS($L$2:L17,L17,$AK$2:AK17,AK17)-1,1+SUMPRODUCT(($L$2:$L$962=TRUE)*($AL$2:$AL$962>AL17))+COUNTIFS($L$2:L17,L17,$AL$2:AL17,AL17)-1,1+SUMPRODUCT(($L$2:$L$962=TRUE)*($AM$2:$AM$962>AM17))+COUNTIFS($L$2:L17,L17,$AM$2:AM17,AM17)-1,)),"") -> 337 | D17: Peter Alonso | E17: =IFERROR(INDEX('Auction Log'!$C$4:$C$806,MATCH(D17,'Auction Log'!$B$4:$B$806,0)),"") ->  | F17: =IFERROR(INDEX('Auction-Rank'!$C$2:$C$961,MATCH(D17,'Auction-Rank'!$A$2:$A$961,0)),"") -> 1B | G17: =IFERROR(IF(F17=I17,"",IF(INDEX('Your Roto Auction'!$C$11:$C$634,MATCH(D17,'Your Roto Auction'!$D$11:$D$634,0))="",IF(I17<>"",I17,""),INDEX('Your Roto Auction'!$C$11:$C$634,MATCH(D17,'Your Roto Auction'!$D$11:$D$634,0)))),"") ->  | H17: 1B | J17: =INDEX('Auction-Rank'!$V$2:$V$961,MATCH(D17,'Auction-Rank'!$A$2:$A$961,0)) -> TRUE | K17: FALSE | L17: =IF(J17=FALSE,FALSE,IF(AND('Your Roto Auction'!$Q$6="Hide Drafted Players",K17=TRUE),FALSE,IF(OR('Your Roto Auction'!$Q$5="Show All Positions",AND('Your Roto Auction'!$Q$5="Only Show: C",H17="C"),AND('Your Roto Auction'!$Q$5="Only Show: 1B",H17="1B"),AND('Your Roto Auction'!$Q$5="Only Show: 2B",H17="2B"),AND('Your Roto Auction'!$Q$5="Only Show: 3B",H17="3B"),AND('Your Roto Auction'!$Q$5="Only Show: SS",H17="SS"),AND('Your Roto Auction'!$Q$5="Only Show: OF",H17="OF"),AND('Your Roto Auction'!$Q$5="Only Show: SP",H17="SP"),AND('Your Roto Auction'!$Q$5="Only Show: RP",H17="RP"),AND('Your Roto Auction'!$Q$5="Only Show: CI",OR(H17={"1B","3B"})),AND('Your Roto Auction'!$Q$5="Only Show: MI",OR(H17={"2B","SS"})),AND('Your Roto Auction'!$Q$5="Only Show: IF",OR(H17={"C","1B","2B","3B","SS"})),AND('Your Roto Auction'!$Q$5="Only Show: DH",OR(H17={"C","1B","2B","3B","SS","OF","DH"})),AND('Your Roto Auction'!$Q$5="Only Show: P",OR(H17={"SP","RP"})),AND('Your Roto Auction'!$Q$5="Only Show: LF",ISERROR(SEARCH("LF",VLOOKUP($D17,'Auction-Rank'!$A$2:$D$961,4,FALSE)))=FALSE),AND('Your Roto Auction'!$Q$5="Only Show: RF",ISERROR(SEARCH("RF",VLOOKUP($D17,'Auction-Rank'!$A$2:$D$961,4,FALSE)))=FALSE),AND('Your Roto Auction'!$Q$5="Only Show: CF",ISERROR(SEARCH("CF",VLOOKUP($D17,'Auction-Rank'!$A$2:$D$961,4,FALSE)))=FALSE)),TRUE,FALSE))) -> TRUE | M17: =IFERROR(IF(VLOOKUP($D17,'Inflation-Tracking'!$A$5:$AD$862,22,FALSE)="",-9999,VLOOKUP($D17,'Inflation-Tracking'!$A$5:$AD$862,22,FALSE)),-9999) -> -0.4645100395 | N17: =IF(D17="Non-Ranked Player",-1001,IFERROR(VLOOKUP($D17,'All-WERTH'!$C$2:$E$806,3,FALSE),-1000)) -> -4.32879536 | O17: =IF(D17="Non-Ranked Player",10000,IFERROR(IF(VLOOKUP(D17,'Auction-Rank'!$A$2:$X$961,24,FALSE)="",9999,VLOOKUP(D17,'Auction-Rank'!$A$2:$X$961,24,FALSE)),9999)) -> 266 | P17: =IF($D17="Unlisted Player",-1001,IFERROR(IF(VLOOKUP($D17,'All-WERTH'!$C$2:$AC$806,4,FALSE)="",-1000,VLOOKUP($D17,'All-WERTH'!$C$2:$AC$806,4,FALSE)),-1000)) -> -1.680303906 | Q17: =IF($D17="Unlisted Player",-1001,IFERROR(IF(VLOOKUP($D17,'All-WERTH'!$C$2:$AC$806,5,FALSE)="",-1000,VLOOKUP($D17,'All-WERTH'!$C$2:$AC$806,5,FALSE)),-1000)) -> 0.1197678292 | R17: =IF($D17="Unlisted Player",-1001,IFERROR(IF(VLOOKUP($D17,'All-WERTH'!$C$2:$AC$806,6,FALSE)="",-1000,VLOOKUP($D17,'All-WERTH'!$C$2:$AC$806,6,FALSE)),-1000)) -> -1.140366098 | S17: =IF($D17="Unlisted Player",-1001,IFERROR(IF(VLOOKUP($D17,'All-WERTH'!$C$2:$AC$806,7,FALSE)="",-1000,VLOOKUP($D17,'All-WERTH'!$C$2:$AC$806,7,FALSE)),-1000)) -> -0.6241468847 | T17: =IF($D17="Unlisted Player",-1001,IFERROR(IF(VLOOKUP($D17,'All-WERTH'!$C$2:$AC$806,8,FALSE)="",-1000,VLOOKUP($D17,'All-WERTH'!$C$2:$AC$806,8,FALSE)),-1000)) -> -1.003746301 | U17: =IF($D17="Unlisted Player",-1001,IFERROR(IF(VLOOKUP($D17,'All-WERTH'!$C$2:$AC$806,9,FALSE)="",-1000,VLOOKUP($D17,'All-WERTH'!$C$2:$AC$806,9,FALSE)),-1000)) -> -1000 | V17: =IF($D17="Unlisted Player",-1001,IFERROR(IF(VLOOKUP($D17,'All-WERTH'!$C$2:$AC$806,10,FALSE)="",-1000,VLOOKUP($D17,'All-WERTH'!$C$2:$AC$806,10,FALSE)),-1000)) -> -1000 | W17: =IF($D17="Unlisted Player",-1001,IFERROR(IF(VLOOKUP($D17,'All-WERTH'!$C$2:$AC$806,11,FALSE)="",-1000,VLOOKUP($D17,'All-WERTH'!$C$2:$AC$806,11,FALSE)),-1000)) -> -1000 | X17: =IF($D17="Unlisted Player",-1001,IFERROR(IF(VLOOKUP($D17,'All-WERTH'!$C$2:$AC$806,12,FALSE)="",-1000,VLOOKUP($D17,'All-WERTH'!$C$2:$AC$806,12,FALSE)),-1000)) -> -1000 | Y17: =IF($D17="Unlisted Player",-1001,IFERROR(IF(VLOOKUP($D17,'All-WERTH'!$C$2:$AC$806,13,FALSE)="",-1000,VLOOKUP($D17,'All-WERTH'!$C$2:$AC$806,13,FALSE)),-1000)) -> -1000 | Z17: =IF($D17="Unlisted Player",-1001,IFERROR(IF(VLOOKUP($D17,'All-WERTH'!$C$2:$AC$806,14,FALSE)="",-1000,VLOOKUP($D17,'All-WERTH'!$C$2:$AC$806,14,FALSE)),-1000)) -> -1000 | AA17: =IF($D17="Unlisted Player",-1001,IFERROR(IF(VLOOKUP($D17,'All-WERTH'!$C$2:$AC$806,15,FALSE)="",-1000,VLOOKUP($D17,'All-WERTH'!$C$2:$AC$806,15,FALSE)),-1000)) -> -1000 | AB17: =IF($D17="Unlisted Player",-1001,IFERROR(IF(VLOOKUP($D17,'All-WERTH'!$C$2:$AC$806,16,FALSE)="",-1000,VLOOKUP($D17,'All-WERTH'!$C$2:$AC$806,16,FALSE)),-1000)) -> -1000 | AC17: =IF($D17="Unlisted Player",-1001,IFERROR(IF(VLOOKUP($D17,'All-WERTH'!$C$2:$AC$806,17,FALSE)="",-1000,VLOOKUP($D17,'All-WERTH'!$C$2:$AC$806,17,FALSE)),-1000)) -> -1000 | AD17: =IF($D17="Unlisted Player",-1001,IFERROR(IF(VLOOKUP($D17,'All-WERTH'!$C$2:$AC$806,18,FALSE)="",-1000,VLOOKUP($D17,'All-WERTH'!$C$2:$AC$806,18,FALSE)),-1000)) -> -1000 | AE17: =IF($D17="Unlisted Player",-1001,IFERROR(IF(VLOOKUP($D17,'All-WERTH'!$C$2:$AC$806,19,FALSE)="",-1000,VLOOKUP($D17,'All-WERTH'!$C$2:$AC$806,19,FALSE)),-1000)) -> -1000 | AF17: =IF($D17="Unlisted Player",-1001,IFERROR(IF(VLOOKUP($D17,'All-WERTH'!$C$2:$AC$806,20,FALSE)="",-1000,VLOOKUP($D17,'All-WERTH'!$C$2:$AC$806,20,FALSE)),-1000)) -> -1000 | AG17: =IF($D17="Unlisted Player",-1001,IFERROR(IF(VLOOKUP($D17,'All-WERTH'!$C$2:$AC$806,21,FALSE)="",-1000,VLOOKUP($D17,'All-WERTH'!$C$2:$AC$806,21,FALSE)),-1000)) -> -1000 | AH17: =IF($D17="Unlisted Player",-1001,IFERROR(IF(VLOOKUP($D17,'All-WERTH'!$C$2:$AC$806,22,FALSE)="",-1000,VLOOKUP($D17,'All-WERTH'!$C$2:$AC$806,22,FALSE)),-1000)) -> -1000 | AI17: =IF($D17="Unlisted Player",-1001,IFERROR(IF(VLOOKUP($D17,'All-WERTH'!$C$2:$AC$806,23,FALSE)="",-1000,VLOOKUP($D17,'All-WERTH'!$C$2:$AC$806,23,FALSE)),-1000)) -> -1000 | AJ17: =IF($D17="Unlisted Player",-1001,IFERROR(IF(VLOOKUP($D17,'All-WERTH'!$C$2:$AC$806,24,FALSE)="",-1000,VLOOKUP($D17,'All-WERTH'!$C$2:$AC$806,24,FALSE)),-1000)) -> -1000 | AK17: =IF($D17="Unlisted Player",-1001,IFERROR(IF(VLOOKUP($D17,'All-WERTH'!$C$2:$AC$806,25,FALSE)="",-1000,VLOOKUP($D17,'All-WERTH'!$C$2:$AC$806,25,FALSE)),-1000)) -> -1000 | AL17: =IF($D17="Unlisted Player",-1001,IFERROR(IF(VLOOKUP($D17,'All-WERTH'!$C$2:$AC$806,26,FALSE)="",-1000,VLOOKUP($D17,'All-WERTH'!$C$2:$AC$806,26,FALSE)),-1000)) -> -1000 | AM17: =IF($D17="Unlisted Player",-1001,IFERROR(IF(VLOOKUP($D17,'All-WERTH'!$C$2:$AC$806,27,FALSE)="",-1000,VLOOKUP($D17,'All-WERTH'!$C$2:$AC$806,27,FALSE)),-1000)) -> -1000
A18: Gary Sanchez | B18: =IFERROR(INDEX($A$1:$A$961,SMALL(IF($A$1:$A$961<>"",ROW($A$1:$A$961)),ROW(A17))),"") -> Gary Sanchez | C18: =IFERROR(IF(L18=FALSE,"",CHOOSE(MATCH(RIGHT('Your Roto Auction'!$Q$4,LEN('Your Roto Auction'!$Q$4)-8),$M$1:$AM$1,0),1+SUMPRODUCT(($L$2:$L$962=TRUE)*($M$2:$M$962>M18))+COUNTIFS($L$2:L18,L18,$M$2:M18,M18)-1,1+SUMPRODUCT(($L$2:$L$962=TRUE)*($N$2:$N$962>N18))+COUNTIFS($L$2:L18,L18,$N$2:N18,N18)-1,1+SUMPRODUCT(($L$2:$L$962=TRUE)*($O$2:$O$962<O18))+COUNTIFS($L$2:L18,L18,$O$2:O18,O18)-1,1+SUMPRODUCT(($L$2:$L$962=TRUE)*($P$2:$P$962>P18))+COUNTIFS($L$2:L18,L18,$P$2:P18,P18)-1,1+SUMPRODUCT(($L$2:$L$962=TRUE)*($Q$2:$Q$962>Q18))+COUNTIFS($L$2:L18,L18,$Q$2:Q18,Q18)-1,1+SUMPRODUCT(($L$2:$L$962=TRUE)*($R$2:$R$962>R18))+COUNTIFS($L$2:L18,L18,$R$2:R18,R18)-1,1+SUMPRODUCT(($L$2:$L$962=TRUE)*($S$2:$S$962>S18))+COUNTIFS($L$2:L18,L18,$S$2:S18,S18)-1,1+SUMPRODUCT(($L$2:$L$962=TRUE)*($T$2:$T$962>T18))+COUNTIFS($L$2:L18,L18,$T$2:T18,T18)-1,1+SUMPRODUCT(($L$2:$L$962=TRUE)*($U$2:$U$962>U18))+COUNTIFS($L$2:L18,L18,$U$2:U18,U18)-1,1+SUMPRODUCT(($L$2:$L$962=TRUE)*($V$2:$V$962>V18))+COUNTIFS($L$2:L18,L18,$V$2:V18,V18)-1,1+SUMPRODUCT(($L$2:$L$962=TRUE)*($W$2:$W$962>W18))+COUNTIFS($L$2:L18,L18,$W$2:W18,W18)-1,1+SUMPRODUCT(($L$2:$L$962=TRUE)*($X$2:$X$962>X18))+COUNTIFS($L$2:L18,L18,$X$2:X18,X18)-1,1+SUMPRODUCT(($L$2:$L$962=TRUE)*($Y$2:$Y$962>Y18))+COUNTIFS($L$2:L18,L18,$Y$2:Y18,Y18)-1,1+SUMPRODUCT(($L$2:$L$962=TRUE)*($Z$2:$Z$962>Z18))+COUNTIFS($L$2:L18,L18,$Z$2:Z18,Z18)-1,1+SUMPRODUCT(($L$2:$L$962=TRUE)*($AA$2:$AA$962>AA18))+COUNTIFS($L$2:L18,L18,$AA$2:AA18,AA18)-1,1+SUMPRODUCT(($L$2:$L$962=TRUE)*($AB$2:$AB$962>AB18))+COUNTIFS($L$2:L18,L18,$AB$2:AB18,AB18)-1,1+SUMPRODUCT(($L$2:$L$962=TRUE)*($AC$2:$AC$962>AC18))+COUNTIFS($L$2:L18,L18,$AC$2:AC18,AC18)-1,1+SUMPRODUCT(($L$2:$L$962=TRUE)*($AD$2:$AD$962>AD18))+COUNTIFS($L$2:L18,L18,$AD$2:AD18,AD18)-1,1+SUMPRODUCT(($L$2:$L$962=TRUE)*($AE$2:$AE$962>AE18))+COUNTIFS($L$2:L18,L18,$AE$2:AE18,AE18)-1,1+SUMPRODUCT(($L$2:$L$962=TRUE)*($AF$2:$AF$962>AF18))+COUNTIFS($L$2:L18,L18,$AF$2:AF18,AF18)-1,1+SUMPRODUCT(($L$2:$L$962=TRUE)*($AG$2:$AG$962>AG18))+COUNTIFS($L$2:L18,L18,$AG$2:AG18,AG18)-1,1+SUMPRODUCT(($L$2:$L$962=TRUE)*($AH$2:$AH$962>AH18))+COUNTIFS($L$2:L18,L18,$AH$2:AH18,AH18)-1,1+SUMPRODUCT(($L$2:$L$962=TRUE)*($AI$2:$AI$962>AI18))+COUNTIFS($L$2:L18,L18,$AI$2:AI18,AI18)-1,1+SUMPRODUCT(($L$2:$L$962=TRUE)*($AJ$2:$AJ$962>AJ18))+COUNTIFS($L$2:L18,L18,$AJ$2:AJ18,AJ18)-1,1+SUMPRODUCT(($L$2:$L$962=TRUE)*($AK$2:$AK$962>AK18))+COUNTIFS($L$2:L18,L18,$AK$2:AK18,AK18)-1,1+SUMPRODUCT(($L$2:$L$962=TRUE)*($AL$2:$AL$962>AL18))+COUNTIFS($L$2:L18,L18,$AL$2:AL18,AL18)-1,1+SUMPRODUCT(($L$2:$L$962=TRUE)*($AM$2:$AM$962>AM18))+COUNTIFS($L$2:L18,L18,$AM$2:AM18,AM18)-1,)),"") -> 239 | D18: Yonder Alonso | E18: =IFERROR(INDEX('Auction Log'!$C$4:$C$806,MATCH(D18,'Auction Log'!$B$4:$B$806,0)),"") ->  | F18: =IFERROR(INDEX('Auction-Rank'!$C$2:$C$961,MATCH(D18,'Auction-Rank'!$A$2:$A$961,0)),"") -> 1B | G18: =IFERROR(IF(F18=I18,"",IF(INDEX('Your Roto Auction'!$C$11:$C$634,MATCH(D18,'Your Roto Auction'!$D$11:$D$634,0))="",IF(I18<>"",I18,""),INDEX('Your Roto Auction'!$C$11:$C$634,MATCH(D18,'Your Roto Auction'!$D$11:$D$634,0)))),"") ->  | H18: 1B | J18: =INDEX('Auction-Rank'!$V$2:$V$961,MATCH(D18,'Auction-Rank'!$A$2:$A$961,0)) -> TRUE | K18: FALSE | L18: =IF(J18=FALSE,FALSE,IF(AND('Your Roto Auction'!$Q$6="Hide Drafted Players",K18=TRUE),FALSE,IF(OR('Your Roto Auction'!$Q$5="Show All Positions",AND('Your Roto Auction'!$Q$5="Only Show: C",H18="C"),AND('Your Roto Auction'!$Q$5="Only Show: 1B",H18="1B"),AND('Your Roto Auction'!$Q$5="Only Show: 2B",H18="2B"),AND('Your Roto Auction'!$Q$5="Only Show: 3B",H18="3B"),AND('Your Roto Auction'!$Q$5="Only Show: SS",H18="SS"),AND('Your Roto Auction'!$Q$5="Only Show: OF",H18="OF"),AND('Your Roto Auction'!$Q$5="Only Show: SP",H18="SP"),AND('Your Roto Auction'!$Q$5="Only Show: RP",H18="RP"),AND('Your Roto Auction'!$Q$5="Only Show: CI",OR(H18={"1B","3B"})),AND('Your Roto Auction'!$Q$5="Only Show: MI",OR(H18={"2B","SS"})),AND('Your Roto Auction'!$Q$5="Only Show: IF",OR(H18={"C","1B","2B","3B","SS"})),AND('Your Roto Auction'!$Q$5="Only Show: DH",OR(H18={"C","1B","2B","3B","SS","OF","DH"})),AND('Your Roto Auction'!$Q$5="Only Show: P",OR(H18={"SP","RP"})),AND('Your Roto Auction'!$Q$5="Only Show: LF",ISERROR(SEARCH("LF",VLOOKUP($D18,'Auction-Rank'!$A$2:$D$961,4,FALSE)))=FALSE),AND('Your Roto Auction'!$Q$5="Only Show: RF",ISERROR(SEARCH("RF",VLOOKUP($D18,'Auction-Rank'!$A$2:$D$961,4,FALSE)))=FALSE),AND('Your Roto Auction'!$Q$5="Only Show: CF",ISERROR(SEARCH("CF",VLOOKUP($D18,'Auction-Rank'!$A$2:$D$961,4,FALSE)))=FALSE)),TRUE,FALSE))) -> TRUE | M18: =IFERROR(IF(VLOOKUP($D18,'Inflation-Tracking'!$A$5:$AD$862,22,FALSE)="",-9999,VLOOKUP($D18,'Inflation-Tracking'!$A$5:$AD$862,22,FALSE)),-9999) -> 0.9722176635 | N18: =IF(D18="Non-Ranked Player",-1001,IFERROR(VLOOKUP($D18,'All-WERTH'!$C$2:$E$806,3,FALSE),-1000)) -> -3.41810006 | O18: =IF(D18="Non-Ranked Player",10000,IFERROR(IF(VLOOKUP(D18,'Auction-Rank'!$A$2:$X$961,24,FALSE)="",9999,VLOOKUP(D18,'Auction-Rank'!$A$2:$X$961,24,FALSE)),9999)) -> 277 | P18: =IF($D18="Unlisted Player",-1001,IFERROR(IF(VLOOKUP($D18,'All-WERTH'!$C$2:$AC$806,4,FALSE)="",-1000,VLOOKUP($D18,'All-WERTH'!$C$2:$AC$806,4,FALSE)),-1000)) -> -1.381416882 | Q18: =IF($D18="Unlisted Player",-1001,IFERROR(IF(VLOOKUP($D18,'All-WERTH'!$C$2:$AC$806,5,FALSE)="",-1000,VLOOKUP($D18,'All-WERTH'!$C$2:$AC$806,5,FALSE)),-1000)) -> 0.08816192744 | R18: =IF($D18="Unlisted Player",-1001,IFERROR(IF(VLOOKUP($D18,'All-WERTH'!$C$2:$AC$806,6,FALSE)="",-1000,VLOOKUP($D18,'All-WERTH'!$C$2:$AC$806,6,FALSE)),-1000)) -> -0.8251819385 | S18: =IF($D18="Unlisted Player",-1001,IFERROR(IF(VLOOKUP($D18,'All-WERTH'!$C$2:$AC$806,7,FALSE)="",-1000,VLOOKUP($D18,'All-WERTH'!$C$2:$AC$806,7,FALSE)),-1000)) -> -0.2750206367 | T18: =IF($D18="Unlisted Player",-1001,IFERROR(IF(VLOOKUP($D18,'All-WERTH'!$C$2:$AC$806,8,FALSE)="",-1000,VLOOKUP($D18,'All-WERTH'!$C$2:$AC$806,8,FALSE)),-1000)) -> -1.02464253 | U18: =IF($D18="Unlisted Player",-1001,IFERROR(IF(VLOOKUP($D18,'All-WERTH'!$C$2:$AC$806,9,FALSE)="",-1000,VLOOKUP($D18,'All-WERTH'!$C$2:$AC$806,9,FALSE)),-1000)) -> -1000 | V18: =IF($D18="Unlisted Player",-1001,IFERROR(IF(VLOOKUP($D18,'All-WERTH'!$C$2:$AC$806,10,FALSE)="",-1000,VLOOKUP($D18,'All-WERTH'!$C$2:$AC$806,10,FALSE)),-1000)) -> -1000 | W18: =IF($D18="Unlisted Player",-1001,IFERROR(IF(VLOOKUP($D18,'All-WERTH'!$C$2:$AC$806,11,FALSE)="",-1000,VLOOKUP($D18,'All-WERTH'!$C$2:$AC$806,11,FALSE)),-1000)) -> -1000 | X18: =IF($D18="Unlisted Player",-1001,IFERROR(IF(VLOOKUP($D18,'All-WERTH'!$C$2:$AC$806,12,FALSE)="",-1000,VLOOKUP($D18,'All-WERTH'!$C$2:$AC$806,12,FALSE)),-1000)) -> -1000 | Y18: =IF($D18="Unlisted Player",-1001,IFERROR(IF(VLOOKUP($D18,'All-WERTH'!$C$2:$AC$806,13,FALSE)="",-1000,VLOOKUP($D18,'All-WERTH'!$C$2:$AC$806,13,FALSE)),-1000)) -> -1000 | Z18: =IF($D18="Unlisted Player",-1001,IFERROR(IF(VLOOKUP($D18,'All-WERTH'!$C$2:$AC$806,14,FALSE)="",-1000,VLOOKUP($D18,'All-WERTH'!$C$2:$AC$806,14,FALSE)),-1000)) -> -1000 | AA18: =IF($D18="Unlisted Player",-1001,IFERROR(IF(VLOOKUP($D18,'All-WERTH'!$C$2:$AC$806,15,FALSE)="",-1000,VLOOKUP($D18,'All-WERTH'!$C$2:$AC$806,15,FALSE)),-1000)) -> -1000 | AB18: =IF($D18="Unlisted Player",-1001,IFERROR(IF(VLOOKUP($D18,'All-WERTH'!$C$2:$AC$806,16,FALSE)="",-1000,VLOOKUP($D18,'All-WERTH'!$C$2:$AC$806,16,FALSE)),-1000)) -> -1000 | AC18: =IF($D18="Unlisted Player",-1001,IFERROR(IF(VLOOKUP($D18,'All-WERTH'!$C$2:$AC$806,17,FALSE)="",-1000,VLOOKUP($D18,'All-WERTH'!$C$2:$AC$806,17,FALSE)),-1000)) -> -1000 | AD18: =IF($D18="Unlisted Player",-1001,IFERROR(IF(VLOOKUP($D18,'All-WERTH'!$C$2:$AC$806,18,FALSE)="",-1000,VLOOKUP($D18,'All-WERTH'!$C$2:$AC$806,18,FALSE)),-1000)) -> -1000 | AE18: =IF($D18="Unlisted Player",-1001,IFERROR(IF(VLOOKUP($D18,'All-WERTH'!$C$2:$AC$806,19,FALSE)="",-1000,VLOOKUP($D18,'All-WERTH'!$C$2:$AC$806,19,FALSE)),-1000)) -> -1000 | AF18: =IF($D18="Unlisted Player",-1001,IFERROR(IF(VLOOKUP($D18,'All-WERTH'!$C$2:$AC$806,20,FALSE)="",-1000,VLOOKUP($D18,'All-WERTH'!$C$2:$AC$806,20,FALSE)),-1000)) -> -1000 | AG18: =IF($D18="Unlisted Player",-1001,IFERROR(IF(VLOOKUP($D18,'All-WERTH'!$C$2:$AC$806,21,FALSE)="",-1000,VLOOKUP($D18,'All-WERTH'!$C$2:$AC$806,21,FALSE)),-1000)) -> -1000 | AH18: =IF($D18="Unlisted Player",-1001,IFERROR(IF(VLOOKUP($D18,'All-WERTH'!$C$2:$AC$806,22,FALSE)="",-1000,VLOOKUP($D18,'All-WERTH'!$C$2:$AC$806,22,FALSE)),-1000)) -> -1000 | AI18: =IF($D18="Unlisted Player",-1001,IFERROR(IF(VLOOKUP($D18,'All-WERTH'!$C$2:$AC$806,23,FALSE)="",-1000,VLOOKUP($D18,'All-WERTH'!$C$2:$AC$806,23,FALSE)),-1000)) -> -1000 | AJ18: =IF($D18="Unlisted Player",-1001,IFERROR(IF(VLOOKUP($D18,'All-WERTH'!$C$2:$AC$806,24,FALSE)="",-1000,VLOOKUP($D18,'All-WERTH'!$C$2:$AC$806,24,FALSE)),-1000)) -> -1000 | AK18: =IF($D18="Unlisted Player",-1001,IFERROR(IF(VLOOKUP($D18,'All-WERTH'!$C$2:$AC$806,25,FALSE)="",-1000,VLOOKUP($D18,'All-WERTH'!$C$2:$AC$806,25,FALSE)),-1000)) -> -1000 | AL18: =IF($D18="Unlisted Player",-1001,IFERROR(IF(VLOOKUP($D18,'All-WERTH'!$C$2:$AC$806,26,FALSE)="",-1000,VLOOKUP($D18,'All-WERTH'!$C$2:$AC$806,26,FALSE)),-1000)) -> -1000 | AM18: =IF($D18="Unlisted Player",-1001,IFERROR(IF(VLOOKUP($D18,'All-WERTH'!$C$2:$AC$806,27,FALSE)="",-1000,VLOOKUP($D18,'All-WERTH'!$C$2:$AC$806,27,FALSE)),-1000)) -> -1000
A19: Javier Baez | B19: =IFERROR(INDEX($A$1:$A$961,SMALL(IF($A$1:$A$961<>"",ROW($A$1:$A$961)),ROW(A18))),"") -> Javier Baez | C19: =IFERROR(IF(L19=FALSE,"",CHOOSE(MATCH(RIGHT('Your Roto Auction'!$Q$4,LEN('Your Roto Auction'!$Q$4)-8),$M$1:$AM$1,0),1+SUMPRODUCT(($L$2:$L$962=TRUE)*($M$2:$M$962>M19))+COUNTIFS($L$2:L19,L19,$M$2:M19,M19)-1,1+SUMPRODUCT(($L$2:$L$962=TRUE)*($N$2:$N$962>N19))+COUNTIFS($L$2:L19,L19,$N$2:N19,N19)-1,1+SUMPRODUCT(($L$2:$L$962=TRUE)*($O$2:$O$962<O19))+COUNTIFS($L$2:L19,L19,$O$2:O19,O19)-1,1+SUMPRODUCT(($L$2:$L$962=TRUE)*($P$2:$P$962>P19))+COUNTIFS($L$2:L19,L19,$P$2:P19,P19)-1,1+SUMPRODUCT(($L$2:$L$962=TRUE)*($Q$2:$Q$962>Q19))+COUNTIFS($L$2:L19,L19,$Q$2:Q19,Q19)-1,1+SUMPRODUCT(($L$2:$L$962=TRUE)*($R$2:$R$962>R19))+COUNTIFS($L$2:L19,L19,$R$2:R19,R19)-1,1+SUMPRODUCT(($L$2:$L$962=TRUE)*($S$2:$S$962>S19))+COUNTIFS($L$2:L19,L19,$S$2:S19,S19)-1,1+SUMPRODUCT(($L$2:$L$962=TRUE)*($T$2:$T$962>T19))+COUNTIFS($L$2:L19,L19,$T$2:T19,T19)-1,1+SUMPRODUCT(($L$2:$L$962=TRUE)*($U$2:$U$962>U19))+COUNTIFS($L$2:L19,L19,$U$2:U19,U19)-1,1+SUMPRODUCT(($L$2:$L$962=TRUE)*($V$2:$V$962>V19))+COUNTIFS($L$2:L19,L19,$V$2:V19,V19)-1,1+SUMPRODUCT(($L$2:$L$962=TRUE)*($W$2:$W$962>W19))+COUNTIFS($L$2:L19,L19,$W$2:W19,W19)-1,1+SUMPRODUCT(($L$2:$L$962=TRUE)*($X$2:$X$962>X19))+COUNTIFS($L$2:L19,L19,$X$2:X19,X19)-1,1+SUMPRODUCT(($L$2:$L$962=TRUE)*($Y$2:$Y$962>Y19))+COUNTIFS($L$2:L19,L19,$Y$2:Y19,Y19)-1,1+SUMPRODUCT(($L$2:$L$962=TRUE)*($Z$2:$Z$962>Z19))+COUNTIFS($L$2:L19,L19,$Z$2:Z19,Z19)-1,1+SUMPRODUCT(($L$2:$L$962=TRUE)*($AA$2:$AA$962>AA19))+COUNTIFS($L$2:L19,L19,$AA$2:AA19,AA19)-1,1+SUMPRODUCT(($L$2:$L$962=TRUE)*($AB$2:$AB$962>AB19))+COUNTIFS($L$2:L19,L19,$AB$2:AB19,AB19)-1,1+SUMPRODUCT(($L$2:$L$962=TRUE)*($AC$2:$AC$962>AC19))+COUNTIFS($L$2:L19,L19,$AC$2:AC19,AC19)-1,1+SUMPRODUCT(($L$2:$L$962=TRUE)*($AD$2:$AD$962>AD19))+COUNTIFS($L$2:L19,L19,$AD$2:AD19,AD19)-1,1+SUMPRODUCT(($L$2:$L$962=TRUE)*($AE$2:$AE$962>AE19))+COUNTIFS($L$2:L19,L19,$AE$2:AE19,AE19)-1,1+SUMPRODUCT(($L$2:$L$962=TRUE)*($AF$2:$AF$962>AF19))+COUNTIFS($L$2:L19,L19,$AF$2:AF19,AF19)-1,1+SUMPRODUCT(($L$2:$L$962=TRUE)*($AG$2:$AG$962>AG19))+COUNTIFS($L$2:L19,L19,$AG$2:AG19,AG19)-1,1+SUMPRODUCT(($L$2:$L$962=TRUE)*($AH$2:$AH$962>AH19))+COUNTIFS($L$2:L19,L19,$AH$2:AH19,AH19)-1,1+SUMPRODUCT(($L$2:$L$962=TRUE)*($AI$2:$AI$962>AI19))+COUNTIFS($L$2:L19,L19,$AI$2:AI19,AI19)-1,1+SUMPRODUCT(($L$2:$L$962=TRUE)*($AJ$2:$AJ$962>AJ19))+COUNTIFS($L$2:L19,L19,$AJ$2:AJ19,AJ19)-1,1+SUMPRODUCT(($L$2:$L$962=TRUE)*($AK$2:$AK$962>AK19))+COUNTIFS($L$2:L19,L19,$AK$2:AK19,AK19)-1,1+SUMPRODUCT(($L$2:$L$962=TRUE)*($AL$2:$AL$962>AL19))+COUNTIFS($L$2:L19,L19,$AL$2:AL19,AL19)-1,1+SUMPRODUCT(($L$2:$L$962=TRUE)*($AM$2:$AM$962>AM19))+COUNTIFS($L$2:L19,L19,$AM$2:AM19,AM19)-1,)),"") -> 711 | D19: Aaron Altherr | E19: =IFERROR(INDEX('Auction Log'!$C$4:$C$806,MATCH(D19,'Auction Log'!$B$4:$B$806,0)),"") ->  | F19: =IFERROR(INDEX('Auction-Rank'!$C$2:$C$961,MATCH(D19,'Auction-Rank'!$A$2:$A$961,0)),"") -> OF | G19: =IFERROR(IF(F19=I19,"",IF(INDEX('Your Roto Auction'!$C$11:$C$634,MATCH(D19,'Your Roto Auction'!$D$11:$D$634,0))="",IF(I19<>"",I19,""),INDEX('Your Roto Auction'!$C$11:$C$634,MATCH(D19,'Your Roto Auction'!$D$11:$D$634,0)))),"") ->  | H19: OF | J19: =INDEX('Auction-Rank'!$V$2:$V$961,MATCH(D19,'Auction-Rank'!$A$2:$A$961,0)) -> TRUE | K19: FALSE | L19: =IF(J19=FALSE,FALSE,IF(AND('Your Roto Auction'!$Q$6="Hide Drafted Players",K19=TRUE),FALSE,IF(OR('Your Roto Auction'!$Q$5="Show All Positions",AND('Your Roto Auction'!$Q$5="Only Show: C",H19="C"),AND('Your Roto Auction'!$Q$5="Only Show: 1B",H19="1B"),AND('Your Roto Auction'!$Q$5="Only Show: 2B",H19="2B"),AND('Your Roto Auction'!$Q$5="Only Show: 3B",H19="3B"),AND('Your Roto Auction'!$Q$5="Only Show: SS",H19="SS"),AND('Your Roto Auction'!$Q$5="Only Show: OF",H19="OF"),AND('Your Roto Auction'!$Q$5="Only Show: SP",H19="SP"),AND('Your Roto Auction'!$Q$5="Only Show: RP",H19="RP"),AND('Your Roto Auction'!$Q$5="Only Show: CI",OR(H19={"1B","3B"})),AND('Your Roto Auction'!$Q$5="Only Show: MI",OR(H19={"2B","SS"})),AND('Your Roto Auction'!$Q$5="Only Show: IF",OR(H19={"C","1B","2B","3B","SS"})),AND('Your Roto Auction'!$Q$5="Only Show: DH",OR(H19={"C","1B","2B","3B","SS","OF","DH"})),AND('Your Roto Auction'!$Q$5="Only Show: P",OR(H19={"SP","RP"})),AND('Your Roto Auction'!$Q$5="Only Show: LF",ISERROR(SEARCH("LF",VLOOKUP($D19,'Auction-Rank'!$A$2:$D$961,4,FALSE)))=FALSE),AND('Your Roto Auction'!$Q$5="Only Show: RF",ISERROR(SEARCH("RF",VLOOKUP($D19,'Auction-Rank'!$A$2:$D$961,4,FALSE)))=FALSE),AND('Your Roto Auction'!$Q$5="Only Show: CF",ISERROR(SEARCH("CF",VLOOKUP($D19,'Auction-Rank'!$A$2:$D$961,4,FALSE)))=FALSE)),TRUE,FALSE))) -> TRUE | M19: =IFERROR(IF(VLOOKUP($D19,'Inflation-Tracking'!$A$5:$AD$862,22,FALSE)="",-9999,VLOOKUP($D19,'Inflation-Tracking'!$A$5:$AD$862,22,FALSE)),-9999) -> -2.513541415 | N19: =IF(D19="Non-Ranked Player",-1001,IFERROR(VLOOKUP($D19,'All-WERTH'!$C$2:$E$806,3,FALSE),-1000)) -> -10.17130122 | O19: =IF(D19="Non-Ranked Player",10000,IFERROR(IF(VLOOKUP(D19,'Auction-Rank'!$A$2:$X$961,24,FALSE)="",9999,VLOOKUP(D19,'Auction-Rank'!$A$2:$X$961,24,FALSE)),9999)) -> 538 | P19: =IF($D19="Unlisted Player",-1001,IFERROR(IF(VLOOKUP($D19,'All-WERTH'!$C$2:$AC$806,4,FALSE)="",-1000,VLOOKUP($D19,'All-WERTH'!$C$2:$AC$806,4,FALSE)),-1000)) -> -1.41237713 | Q19: =IF($D19="Unlisted Player",-1001,IFERROR(IF(VLOOKUP($D19,'All-WERTH'!$C$2:$AC$806,5,FALSE)="",-1000,VLOOKUP($D19,'All-WERTH'!$C$2:$AC$806,5,FALSE)),-1000)) -> -1.872254169 | R19: =IF($D19="Unlisted Player",-1001,IFERROR(IF(VLOOKUP($D19,'All-WERTH'!$C$2:$AC$806,6,FALSE)="",-1000,VLOOKUP($D19,'All-WERTH'!$C$2:$AC$806,6,FALSE)),-1000)) -> -3.03330554 | S19: =IF($D19="Unlisted Player",-1001,IFERROR(IF(VLOOKUP($D19,'All-WERTH'!$C$2:$AC$806,7,FALSE)="",-1000,VLOOKUP($D19,'All-WERTH'!$C$2:$AC$806,7,FALSE)),-1000)) -> -3.227438682 | T19: =IF($D19="Unlisted Player",-1001,IFERROR(IF(VLOOKUP($D19,'All-WERTH'!$C$2:$AC$806,8,FALSE)="",-1000,VLOOKUP($D19,'All-WERTH'!$C$2:$AC$806,8,FALSE)),-1000)) -> -0.6259256962 | U19: =IF($D19="Unlisted Player",-1001,IFERROR(IF(VLOOKUP($D19,'All-WERTH'!$C$2:$AC$806,9,FALSE)="",-1000,VLOOKUP($D19,'All-WERTH'!$C$2:$AC$806,9,FALSE)),-1000)) -> -1000 | V19: =IF($D19="Unlisted Player",-1001,IFERROR(IF(VLOOKUP($D19,'All-WERTH'!$C$2:$AC$806,10,FALSE)="",-1000,VLOOKUP($D19,'All-WERTH'!$C$2:$AC$806,10,FALSE)),-1000)) -> -1000 | W19: =IF($D19="Unlisted Player",-1001,IFERROR(IF(VLOOKUP($D19,'All-WERTH'!$C$2:$AC$806,11,FALSE)="",-1000,VLOOKUP($D19,'All-WERTH'!$C$2:$AC$806,11,FALSE)),-1000)) -> -1000 | X19: =IF($D19="Unlisted Player",-1001,IFERROR(IF(VLOOKUP($D19,'All-WERTH'!$C$2:$AC$806,12,FALSE)="",-1000,VLOOKUP($D19,'All-WERTH'!$C$2:$AC$806,12,FALSE)),-1000)) -> -1000 | Y19: =IF($D19="Unlisted Player",-1001,IFERROR(IF(VLOOKUP($D19,'All-WERTH'!$C$2:$AC$806,13,FALSE)="",-1000,VLOOKUP($D19,'All-WERTH'!$C$2:$AC$806,13,FALSE)),-1000)) -> -1000 | Z19: =IF($D19="Unlisted Player",-1001,IFERROR(IF(VLOOKUP($D19,'All-WERTH'!$C$2:$AC$806,14,FALSE)="",-1000,VLOOKUP($D19,'All-WERTH'!$C$2:$AC$806,14,FALSE)),-1000)) -> -1000 | AA19: =IF($D19="Unlisted Player",-1001,IFERROR(IF(VLOOKUP($D19,'All-WERTH'!$C$2:$AC$806,15,FALSE)="",-1000,VLOOKUP($D19,'All-WERTH'!$C$2:$AC$806,15,FALSE)),-1000)) -> -1000 | AB19: =IF($D19="Unlisted Player",-1001,IFERROR(IF(VLOOKUP($D19,'All-WERTH'!$C$2:$AC$806,16,FALSE)="",-1000,VLOOKUP($D19,'All-WERTH'!$C$2:$AC$806,16,FALSE)),-1000)) -> -1000 | AC19: =IF($D19="Unlisted Player",-1001,IFERROR(IF(VLOOKUP($D19,'All-WERTH'!$C$2:$AC$806,17,FALSE)="",-1000,VLOOKUP($D19,'All-WERTH'!$C$2:$AC$806,17,FALSE)),-1000)) -> -1000 | AD19: =IF($D19="Unlisted Player",-1001,IFERROR(IF(VLOOKUP($D19,'All-WERTH'!$C$2:$AC$806,18,FALSE)="",-1000,VLOOKUP($D19,'All-WERTH'!$C$2:$AC$806,18,FALSE)),-1000)) -> -1000 | AE19: =IF($D19="Unlisted Player",-1001,IFERROR(IF(VLOOKUP($D19,'All-WERTH'!$C$2:$AC$806,19,FALSE)="",-1000,VLOOKUP($D19,'All-WERTH'!$C$2:$AC$806,19,FALSE)),-1000)) -> -1000 | AF19: =IF($D19="Unlisted Player",-1001,IFERROR(IF(VLOOKUP($D19,'All-WERTH'!$C$2:$AC$806,20,FALSE)="",-1000,VLOOKUP($D19,'All-WERTH'!$C$2:$AC$806,20,FALSE)),-1000)) -> -1000 | AG19: =IF($D19="Unlisted Player",-1001,IFERROR(IF(VLOOKUP($D19,'All-WERTH'!$C$2:$AC$806,21,FALSE)="",-1000,VLOOKUP($D19,'All-WERTH'!$C$2:$AC$806,21,FALSE)),-1000)) -> -1000 | AH19: =IF($D19="Unlisted Player",-1001,IFERROR(IF(VLOOKUP($D19,'All-WERTH'!$C$2:$AC$806,22,FALSE)="",-1000,VLOOKUP($D19,'All-WERTH'!$C$2:$AC$806,22,FALSE)),-1000)) -> -1000 | AI19: =IF($D19="Unlisted Player",-1001,IFERROR(IF(VLOOKUP($D19,'All-WERTH'!$C$2:$AC$806,23,FALSE)="",-1000,VLOOKUP($D19,'All-WERTH'!$C$2:$AC$806,23,FALSE)),-1000)) -> -1000 | AJ19: =IF($D19="Unlisted Player",-1001,IFERROR(IF(VLOOKUP($D19,'All-WERTH'!$C$2:$AC$806,24,FALSE)="",-1000,VLOOKUP($D19,'All-WERTH'!$C$2:$AC$806,24,FALSE)),-1000)) -> -1000 | AK19: =IF($D19="Unlisted Player",-1001,IFERROR(IF(VLOOKUP($D19,'All-WERTH'!$C$2:$AC$806,25,FALSE)="",-1000,VLOOKUP($D19,'All-WERTH'!$C$2:$AC$806,25,FALSE)),-1000)) -> -1000 | AL19: =IF($D19="Unlisted Player",-1001,IFERROR(IF(VLOOKUP($D19,'All-WERTH'!$C$2:$AC$806,26,FALSE)="",-1000,VLOOKUP($D19,'All-WERTH'!$C$2:$AC$806,26,FALSE)),-1000)) -> -1000 | AM19: =IF($D19="Unlisted Player",-1001,IFERROR(IF(VLOOKUP($D19,'All-WERTH'!$C$2:$AC$806,27,FALSE)="",-1000,VLOOKUP($D19,'All-WERTH'!$C$2:$AC$806,27,FALSE)),-1000)) -> -1000
A20: Juan Soto | B20: =IFERROR(INDEX($A$1:$A$961,SMALL(IF($A$1:$A$961<>"",ROW($A$1:$A$961)),ROW(A19))),"") -> Juan Soto | C20: =IFERROR(IF(L20=FALSE,"",CHOOSE(MATCH(RIGHT('Your Roto Auction'!$Q$4,LEN('Your Roto Auction'!$Q$4)-8),$M$1:$AM$1,0),1+SUMPRODUCT(($L$2:$L$962=TRUE)*($M$2:$M$962>M20))+COUNTIFS($L$2:L20,L20,$M$2:M20,M20)-1,1+SUMPRODUCT(($L$2:$L$962=TRUE)*($N$2:$N$962>N20))+COUNTIFS($L$2:L20,L20,$N$2:N20,N20)-1,1+SUMPRODUCT(($L$2:$L$962=TRUE)*($O$2:$O$962<O20))+COUNTIFS($L$2:L20,L20,$O$2:O20,O20)-1,1+SUMPRODUCT(($L$2:$L$962=TRUE)*($P$2:$P$962>P20))+COUNTIFS($L$2:L20,L20,$P$2:P20,P20)-1,1+SUMPRODUCT(($L$2:$L$962=TRUE)*($Q$2:$Q$962>Q20))+COUNTIFS($L$2:L20,L20,$Q$2:Q20,Q20)-1,1+SUMPRODUCT(($L$2:$L$962=TRUE)*($R$2:$R$962>R20))+COUNTIFS($L$2:L20,L20,$R$2:R20,R20)-1,1+SUMPRODUCT(($L$2:$L$962=TRUE)*($S$2:$S$962>S20))+COUNTIFS($L$2:L20,L20,$S$2:S20,S20)-1,1+SUMPRODUCT(($L$2:$L$962=TRUE)*($T$2:$T$962>T20))+COUNTIFS($L$2:L20,L20,$T$2:T20,T20)-1,1+SUMPRODUCT(($L$2:$L$962=TRUE)*($U$2:$U$962>U20))+COUNTIFS($L$2:L20,L20,$U$2:U20,U20)-1,1+SUMPRODUCT(($L$2:$L$962=TRUE)*($V$2:$V$962>V20))+COUNTIFS($L$2:L20,L20,$V$2:V20,V20)-1,1+SUMPRODUCT(($L$2:$L$962=TRUE)*($W$2:$W$962>W20))+COUNTIFS($L$2:L20,L20,$W$2:W20,W20)-1,1+SUMPRODUCT(($L$2:$L$962=TRUE)*($X$2:$X$962>X20))+COUNTIFS($L$2:L20,L20,$X$2:X20,X20)-1,1+SUMPRODUCT(($L$2:$L$962=TRUE)*($Y$2:$Y$962>Y20))+COUNTIFS($L$2:L20,L20,$Y$2:Y20,Y20)-1,1+SUMPRODUCT(($L$2:$L$962=TRUE)*($Z$2:$Z$962>Z20))+COUNTIFS($L$2:L20,L20,$Z$2:Z20,Z20)-1,1+SUMPRODUCT(($L$2:$L$962=TRUE)*($AA$2:$AA$962>AA20))+COUNTIFS($L$2:L20,L20,$AA$2:AA20,AA20)-1,1+SUMPRODUCT(($L$2:$L$962=TRUE)*($AB$2:$AB$962>AB20))+COUNTIFS($L$2:L20,L20,$AB$2:AB20,AB20)-1,1+SUMPRODUCT(($L$2:$L$962=TRUE)*($AC$2:$AC$962>AC20))+COUNTIFS($L$2:L20,L20,$AC$2:AC20,AC20)-1,1+SUMPRODUCT(($L$2:$L$962=TRUE)*($AD$2:$AD$962>AD20))+COUNTIFS($L$2:L20,L20,$AD$2:AD20,AD20)-1,1+SUMPRODUCT(($L$2:$L$962=TRUE)*($AE$2:$AE$962>AE20))+COUNTIFS($L$2:L20,L20,$AE$2:AE20,AE20)-1,1+SUMPRODUCT(($L$2:$L$962=TRUE)*($AF$2:$AF$962>AF20))+COUNTIFS($L$2:L20,L20,$AF$2:AF20,AF20)-1,1+SUMPRODUCT(($L$2:$L$962=TRUE)*($AG$2:$AG$962>AG20))+COUNTIFS($L$2:L20,L20,$AG$2:AG20,AG20)-1,1+SUMPRODUCT(($L$2:$L$962=TRUE)*($AH$2:$AH$962>AH20))+COUNTIFS($L$2:L20,L20,$AH$2:AH20,AH20)-1,1+SUMPRODUCT(($L$2:$L$962=TRUE)*($AI$2:$AI$962>AI20))+COUNTIFS($L$2:L20,L20,$AI$2:AI20,AI20)-1,1+SUMPRODUCT(($L$2:$L$962=TRUE)*($AJ$2:$AJ$962>AJ20))+COUNTIFS($L$2:L20,L20,$AJ$2:AJ20,AJ20)-1,1+SUMPRODUCT(($L$2:$L$962=TRUE)*($AK$2:$AK$962>AK20))+COUNTIFS($L$2:L20,L20,$AK$2:AK20,AK20)-1,1+SUMPRODUCT(($L$2:$L$962=TRUE)*($AL$2:$AL$962>AL20))+COUNTIFS($L$2:L20,L20,$AL$2:AL20,AL20)-1,1+SUMPRODUCT(($L$2:$L$962=TRUE)*($AM$2:$AM$962>AM20))+COUNTIFS($L$2:L20,L20,$AM$2:AM20,AM20)-1,)),"") -> 23 | D20: Jose Altuve | E20: =IFERROR(INDEX('Auction Log'!$C$4:$C$806,MATCH(D20,'Auction Log'!$B$4:$B$806,0)),"") ->  | F20: =IFERROR(INDEX('Auction-Rank'!$C$2:$C$961,MATCH(D20,'Auction-Rank'!$A$2:$A$961,0)),"") -> 2B | G20: =IFERROR(IF(F20=I20,"",IF(INDEX('Your Roto Auction'!$C$11:$C$634,MATCH(D20,'Your Roto Auction'!$D$11:$D$634,0))="",IF(I20<>"",I20,""),INDEX('Your Roto Auction'!$C$11:$C$634,MATCH(D20,'Your Roto Auction'!$D$11:$D$634,0)))),"") ->  | H20: 2B | J20: =INDEX('Auction-Rank'!$V$2:$V$961,MATCH(D20,'Auction-Rank'!$A$2:$A$961,0)) -> TRUE | K20: FALSE | L20: =IF(J20=FALSE,FALSE,IF(AND('Your Roto Auction'!$Q$6="Hide Drafted Players",K20=TRUE),FALSE,IF(OR('Your Roto Auction'!$Q$5="Show All Positions",AND('Your Roto Auction'!$Q$5="Only Show: C",H20="C"),AND('Your Roto Auction'!$Q$5="Only Show: 1B",H20="1B"),AND('Your Roto Auction'!$Q$5="Only Show: 2B",H20="2B"),AND('Your Roto Auction'!$Q$5="Only Show: 3B",H20="3B"),AND('Your Roto Auction'!$Q$5="Only Show: SS",H20="SS"),AND('Your Roto Auction'!$Q$5="Only Show: OF",H20="OF"),AND('Your Roto Auction'!$Q$5="Only Show: SP",H20="SP"),AND('Your Roto Auction'!$Q$5="Only Show: RP",H20="RP"),AND('Your Roto Auction'!$Q$5="Only Show: CI",OR(H20={"1B","3B"})),AND('Your Roto Auction'!$Q$5="Only Show: MI",OR(H20={"2B","SS"})),AND('Your Roto Auction'!$Q$5="Only Show: IF",OR(H20={"C","1B","2B","3B","SS"})),AND('Your Roto Auction'!$Q$5="Only Show: DH",OR(H20={"C","1B","2B","3B","SS","OF","DH"})),AND('Your Roto Auction'!$Q$5="Only Show: P",OR(H20={"SP","RP"})),AND('Your Roto Auction'!$Q$5="Only Show: LF",ISERROR(SEARCH("LF",VLOOKUP($D20,'Auction-Rank'!$A$2:$D$961,4,FALSE)))=FALSE),AND('Your Roto Auction'!$Q$5="Only Show: RF",ISERROR(SEARCH("RF",VLOOKUP($D20,'Auction-Rank'!$A$2:$D$961,4,FALSE)))=FALSE),AND('Your Roto Auction'!$Q$5="Only Show: CF",ISERROR(SEARCH("CF",VLOOKUP($D20,'Auction-Rank'!$A$2:$D$961,4,FALSE)))=FALSE)),TRUE,FALSE))) -> TRUE | M20: =IFERROR(IF(VLOOKUP($D20,'Inflation-Tracking'!$A$5:$AD$862,22,FALSE)="",-9999,VLOOKUP($D20,'Inflation-Tracking'!$A$5:$AD$862,22,FALSE)),-9999) -> 31.75645024 | N20: =IF(D20="Non-Ranked Player",-1001,IFERROR(VLOOKUP($D20,'All-WERTH'!$C$2:$E$806,3,FALSE),-1000)) -> 4.379004628 | O20: =IF(D20="Non-Ranked Player",10000,IFERROR(IF(VLOOKUP(D20,'Auction-Rank'!$A$2:$X$961,24,FALSE)="",9999,VLOOKUP(D20,'Auction-Rank'!$A$2:$X$961,24,FALSE)),9999)) -> 14 | P20: =IF($D20="Unlisted Player",-1001,IFERROR(IF(VLOOKUP($D20,'All-WERTH'!$C$2:$AC$806,4,FALSE)="",-1000,VLOOKUP($D20,'All-WERTH'!$C$2:$AC$806,4,FALSE)),-1000)) -> 2.456971004 | Q20: =IF($D20="Unlisted Player",-1001,IFERROR(IF(VLOOKUP($D20,'All-WERTH'!$C$2:$AC$806,5,FALSE)="",-1000,VLOOKUP($D20,'All-WERTH'!$C$2:$AC$806,5,FALSE)),-1000)) -> -0.6990224279 | R20: =IF($D20="Unlisted Player",-1001,IFERROR(IF(VLOOKUP($D20,'All-WERTH'!$C$2:$AC$806,6,FALSE)="",-1000,VLOOKUP($D20,'All-WERTH'!$C$2:$AC$806,6,FALSE)),-1000)) -> 1.039344614 | S20: =IF($D20="Unlisted Player",-1001,IFERROR(IF(VLOOKUP($D20,'All-WERTH'!$C$2:$AC$806,7,FALSE)="",-1000,VLOOKUP($D20,'All-WERTH'!$C$2:$AC$806,7,FALSE)),-1000)) -> 0.1960290896 | T20: =IF($D20="Unlisted Player",-1001,IFERROR(IF(VLOOKUP($D20,'All-WERTH'!$C$2:$AC$806,8,FALSE)="",-1000,VLOOKUP($D20,'All-WERTH'!$C$2:$AC$806,8,FALSE)),-1000)) -> 1.385682348 | U20: =IF($D20="Unlisted Player",-1001,IFERROR(IF(VLOOKUP($D20,'All-WERTH'!$C$2:$AC$806,9,FALSE)="",-1000,VLOOKUP($D20,'All-WERTH'!$C$2:$AC$806,9,FALSE)),-1000)) -> -1000 | V20: =IF($D20="Unlisted Player",-1001,IFERROR(IF(VLOOKUP($D20,'All-WERTH'!$C$2:$AC$806,10,FALSE)="",-1000,VLOOKUP($D20,'All-WERTH'!$C$2:$AC$806,10,FALSE)),-1000)) -> -1000 | W20: =IF($D20="Unlisted Player",-1001,IFERROR(IF(VLOOKUP($D20,'All-WERTH'!$C$2:$AC$806,11,FALSE)="",-1000,VLOOKUP($D20,'All-WERTH'!$C$2:$AC$806,11,FALSE)),-1000)) -> -1000 | X20: =IF($D20="Unlisted Player",-1001,IFERROR(IF(VLOOKUP($D20,'All-WERTH'!$C$2:$AC$806,12,FALSE)="",-1000,VLOOKUP($D20,'All-WERTH'!$C$2:$AC$806,12,FALSE)),-1000)) -> -1000 | Y20: =IF($D20="Unlisted Player",-1001,IFERROR(IF(VLOOKUP($D20,'All-WERTH'!$C$2:$AC$806,13,FALSE)="",-1000,VLOOKUP($D20,'All-WERTH'!$C$2:$AC$806,13,FALSE)),-1000)) -> -1000 | Z20: =IF($D20="Unlisted Player",-1001,IFERROR(IF(VLOOKUP($D20,'All-WERTH'!$C$2:$AC$806,14,FALSE)="",-1000,VLOOKUP($D20,'All-WERTH'!$C$2:$AC$806,14,FALSE)),-1000)) -> -1000 | AA20: =IF($D20="Unlisted Player",-1001,IFERROR(IF(VLOOKUP($D20,'All-WERTH'!$C$2:$AC$806,15,FALSE)="",-1000,VLOOKUP($D20,'All-WERTH'!$C$2:$AC$806,15,FALSE)),-1000)) -> -1000 | AB20: =IF($D20="Unlisted Player",-1001,IFERROR(IF(VLOOKUP($D20,'All-WERTH'!$C$2:$AC$806,16,FALSE)="",-1000,VLOOKUP($D20,'All-WERTH'!$C$2:$AC$806,16,FALSE)),-1000)) -> -1000 | AC20: =IF($D20="Unlisted Player",-1001,IFERROR(IF(VLOOKUP($D20,'All-WERTH'!$C$2:$AC$806,17,FALSE)="",-1000,VLOOKUP($D20,'All-WERTH'!$C$2:$AC$806,17,FALSE)),-1000)) -> -1000 | AD20: =IF($D20="Unlisted Player",-1001,IFERROR(IF(VLOOKUP($D20,'All-WERTH'!$C$2:$AC$806,18,FALSE)="",-1000,VLOOKUP($D20,'All-WERTH'!$C$2:$AC$806,18,FALSE)),-1000)) -> -1000 | AE20: =IF($D20="Unlisted Player",-1001,IFERROR(IF(VLOOKUP($D20,'All-WERTH'!$C$2:$AC$806,19,FALSE)="",-1000,VLOOKUP($D20,'All-WERTH'!$C$2:$AC$806,19,FALSE)),-1000)) -> -1000 | AF20: =IF($D20="Unlisted Player",-1001,IFERROR(IF(VLOOKUP($D20,'All-WERTH'!$C$2:$AC$806,20,FALSE)="",-1000,VLOOKUP($D20,'All-WERTH'!$C$2:$AC$806,20,FALSE)),-1000)) -> -1000 | AG20: =IF($D20="Unlisted Player",-1001,IFERROR(IF(VLOOKUP($D20,'All-WERTH'!$C$2:$AC$806,21,FALSE)="",-1000,VLOOKUP($D20,'All-WERTH'!$C$2:$AC$806,21,FALSE)),-1000)) -> -1000 | AH20: =IF($D20="Unlisted Player",-1001,IFERROR(IF(VLOOKUP($D20,'All-WERTH'!$C$2:$AC$806,22,FALSE)="",-1000,VLOOKUP($D20,'All-WERTH'!$C$2:$AC$806,22,FALSE)),-1000)) -> -1000 | AI20: =IF($D20="Unlisted Player",-1001,IFERROR(IF(VLOOKUP($D20,'All-WERTH'!$C$2:$AC$806,23,FALSE)="",-1000,VLOOKUP($D20,'All-WERTH'!$C$2:$AC$806,23,FALSE)),-1000)) -> -1000 | AJ20: =IF($D20="Unlisted Player",-1001,IFERROR(IF(VLOOKUP($D20,'All-WERTH'!$C$2:$AC$806,24,FALSE)="",-1000,VLOOKUP($D20,'All-WERTH'!$C$2:$AC$806,24,FALSE)),-1000)) -> -1000 | AK20: =IF($D20="Unlisted Player",-1001,IFERROR(IF(VLOOKUP($D20,'All-WERTH'!$C$2:$AC$806,25,FALSE)="",-1000,VLOOKUP($D20,'All-WERTH'!$C$2:$AC$806,25,FALSE)),-1000)) -> -1000 | AL20: =IF($D20="Unlisted Player",-1001,IFERROR(IF(VLOOKUP($D20,'All-WERTH'!$C$2:$AC$806,26,FALSE)="",-1000,VLOOKUP($D20,'All-WERTH'!$C$2:$AC$806,26,FALSE)),-1000)) -> -1000 | AM20: =IF($D20="Unlisted Player",-1001,IFERROR(IF(VLOOKUP($D20,'All-WERTH'!$C$2:$AC$806,27,FALSE)="",-1000,VLOOKUP($D20,'All-WERTH'!$C$2:$AC$806,27,FALSE)),-1000)) -> -1000
A21: Corey Kluber | B21: =IFERROR(INDEX($A$1:$A$961,SMALL(IF($A$1:$A$961<>"",ROW($A$1:$A$961)),ROW(A20))),"") -> Corey Kluber | C21: =IFERROR(IF(L21=FALSE,"",CHOOSE(MATCH(RIGHT('Your Roto Auction'!$Q$4,LEN('Your Roto Auction'!$Q$4)-8),$M$1:$AM$1,0),1+SUMPRODUCT(($L$2:$L$962=TRUE)*($M$2:$M$962>M21))+COUNTIFS($L$2:L21,L21,$M$2:M21,M21)-1,1+SUMPRODUCT(($L$2:$L$962=TRUE)*($N$2:$N$962>N21))+COUNTIFS($L$2:L21,L21,$N$2:N21,N21)-1,1+SUMPRODUCT(($L$2:$L$962=TRUE)*($O$2:$O$962<O21))+COUNTIFS($L$2:L21,L21,$O$2:O21,O21)-1,1+SUMPRODUCT(($L$2:$L$962=TRUE)*($P$2:$P$962>P21))+COUNTIFS($L$2:L21,L21,$P$2:P21,P21)-1,1+SUMPRODUCT(($L$2:$L$962=TRUE)*($Q$2:$Q$962>Q21))+COUNTIFS($L$2:L21,L21,$Q$2:Q21,Q21)-1,1+SUMPRODUCT(($L$2:$L$962=TRUE)*($R$2:$R$962>R21))+COUNTIFS($L$2:L21,L21,$R$2:R21,R21)-1,1+SUMPRODUCT(($L$2:$L$962=TRUE)*($S$2:$S$962>S21))+COUNTIFS($L$2:L21,L21,$S$2:S21,S21)-1,1+SUMPRODUCT(($L$2:$L$962=TRUE)*($T$2:$T$962>T21))+COUNTIFS($L$2:L21,L21,$T$2:T21,T21)-1,1+SUMPRODUCT(($L$2:$L$962=TRUE)*($U$2:$U$962>U21))+COUNTIFS($L$2:L21,L21,$U$2:U21,U21)-1,1+SUMPRODUCT(($L$2:$L$962=TRUE)*($V$2:$V$962>V21))+COUNTIFS($L$2:L21,L21,$V$2:V21,V21)-1,1+SUMPRODUCT(($L$2:$L$962=TRUE)*($W$2:$W$962>W21))+COUNTIFS($L$2:L21,L21,$W$2:W21,W21)-1,1+SUMPRODUCT(($L$2:$L$962=TRUE)*($X$2:$X$962>X21))+COUNTIFS($L$2:L21,L21,$X$2:X21,X21)-1,1+SUMPRODUCT(($L$2:$L$962=TRUE)*($Y$2:$Y$962>Y21))+COUNTIFS($L$2:L21,L21,$Y$2:Y21,Y21)-1,1+SUMPRODUCT(($L$2:$L$962=TRUE)*($Z$2:$Z$962>Z21))+COUNTIFS($L$2:L21,L21,$Z$2:Z21,Z21)-1,1+SUMPRODUCT(($L$2:$L$962=TRUE)*($AA$2:$AA$962>AA21))+COUNTIFS($L$2:L21,L21,$AA$2:AA21,AA21)-1,1+SUMPRODUCT(($L$2:$L$962=TRUE)*($AB$2:$AB$962>AB21))+COUNTIFS($L$2:L21,L21,$AB$2:AB21,AB21)-1,1+SUMPRODUCT(($L$2:$L$962=TRUE)*($AC$2:$AC$962>AC21))+COUNTIFS($L$2:L21,L21,$AC$2:AC21,AC21)-1,1+SUMPRODUCT(($L$2:$L$962=TRUE)*($AD$2:$AD$962>AD21))+COUNTIFS($L$2:L21,L21,$AD$2:AD21,AD21)-1,1+SUMPRODUCT(($L$2:$L$962=TRUE)*($AE$2:$AE$962>AE21))+COUNTIFS($L$2:L21,L21,$AE$2:AE21,AE21)-1,1+SUMPRODUCT(($L$2:$L$962=TRUE)*($AF$2:$AF$962>AF21))+COUNTIFS($L$2:L21,L21,$AF$2:AF21,AF21)-1,1+SUMPRODUCT(($L$2:$L$962=TRUE)*($AG$2:$AG$962>AG21))+COUNTIFS($L$2:L21,L21,$AG$2:AG21,AG21)-1,1+SUMPRODUCT(($L$2:$L$962=TRUE)*($AH$2:$AH$962>AH21))+COUNTIFS($L$2:L21,L21,$AH$2:AH21,AH21)-1,1+SUMPRODUCT(($L$2:$L$962=TRUE)*($AI$2:$AI$962>AI21))+COUNTIFS($L$2:L21,L21,$AI$2:AI21,AI21)-1,1+SUMPRODUCT(($L$2:$L$962=TRUE)*($AJ$2:$AJ$962>AJ21))+COUNTIFS($L$2:L21,L21,$AJ$2:AJ21,AJ21)-1,1+SUMPRODUCT(($L$2:$L$962=TRUE)*($AK$2:$AK$962>AK21))+COUNTIFS($L$2:L21,L21,$AK$2:AK21,AK21)-1,1+SUMPRODUCT(($L$2:$L$962=TRUE)*($AL$2:$AL$962>AL21))+COUNTIFS($L$2:L21,L21,$AL$2:AL21,AL21)-1,1+SUMPRODUCT(($L$2:$L$962=TRUE)*($AM$2:$AM$962>AM21))+COUNTIFS($L$2:L21,L21,$AM$2:AM21,AM21)-1,)),"") -> 146 | D21: Jose Alvarado | E21: =IFERROR(INDEX('Auction Log'!$C$4:$C$806,MATCH(D21,'Auction Log'!$B$4:$B$806,0)),"") ->  | F21: =IFERROR(INDEX('Auction-Rank'!$C$2:$C$961,MATCH(D21,'Auction-Rank'!$A$2:$A$961,0)),"") -> RP | G21: =IFERROR(IF(F21=I21,"",IF(INDEX('Your Roto Auction'!$C$11:$C$634,MATCH(D21,'Your Roto Auction'!$D$11:$D$634,0))="",IF(I21<>"",I21,""),INDEX('Your Roto Auction'!$C$11:$C$634,MATCH(D21,'Your Roto Auction'!$D$11:$D$634,0)))),"") ->  | H21: RP | J21: =INDEX('Auction-Rank'!$V$2:$V$961,MATCH(D21,'Auction-Rank'!$A$2:$A$961,0)) -> TRUE | K21: FALSE | L21: =IF(J21=FALSE,FALSE,IF(AND('Your Roto Auction'!$Q$6="Hide Drafted Players",K21=TRUE),FALSE,IF(OR('Your Roto Auction'!$Q$5="Show All Positions",AND('Your Roto Auction'!$Q$5="Only Show: C",H21="C"),AND('Your Roto Auction'!$Q$5="Only Show: 1B",H21="1B"),AND('Your Roto Auction'!$Q$5="Only Show: 2B",H21="2B"),AND('Your Roto Auction'!$Q$5="Only Show: 3B",H21="3B"),AND('Your Roto Auction'!$Q$5="Only Show: SS",H21="SS"),AND('Your Roto Auction'!$Q$5="Only Show: OF",H21="OF"),AND('Your Roto Auction'!$Q$5="Only Show: SP",H21="SP"),AND('Your Roto Auction'!$Q$5="Only Show: RP",H21="RP"),AND('Your Roto Auction'!$Q$5="Only Show: CI",OR(H21={"1B","3B"})),AND('Your Roto Auction'!$Q$5="Only Show: MI",OR(H21={"2B","SS"})),AND('Your Roto Auction'!$Q$5="Only Show: IF",OR(H21={"C","1B","2B","3B","SS"})),AND('Your Roto Auction'!$Q$5="Only Show: DH",OR(H21={"C","1B","2B","3B","SS","OF","DH"})),AND('Your Roto Auction'!$Q$5="Only Show: P",OR(H21={"SP","RP"})),AND('Your Roto Auction'!$Q$5="Only Show: LF",ISERROR(SEARCH("LF",VLOOKUP($D21,'Auction-Rank'!$A$2:$D$961,4,FALSE)))=FALSE),AND('Your Roto Auction'!$Q$5="Only Show: RF",ISERROR(SEARCH("RF",VLOOKUP($D21,'Auction-Rank'!$A$2:$D$961,4,FALSE)))=FALSE),AND('Your Roto Auction'!$Q$5="Only Show: CF",ISERROR(SEARCH("CF",VLOOKUP($D21,'Auction-Rank'!$A$2:$D$961,4,FALSE)))=FALSE)),TRUE,FALSE))) -> TRUE | M21: =IFERROR(IF(VLOOKUP($D21,'Inflation-Tracking'!$A$5:$AD$862,22,FALSE)="",-9999,VLOOKUP($D21,'Inflation-Tracking'!$A$5:$AD$862,22,FALSE)),-9999) -> 7.102612968 | N21: =IF(D21="Non-Ranked Player",-1001,IFERROR(VLOOKUP($D21,'All-WERTH'!$C$2:$E$806,3,FALSE),-1000)) -> -1.739730393 | O21: =IF(D21="Non-Ranked Player",10000,IFERROR(IF(VLOOKUP(D21,'Auction-Rank'!$A$2:$X$961,24,FALSE)="",9999,VLOOKUP(D21,'Auction-Rank'!$A$2:$X$961,24,FALSE)),9999)) -> 194 | P21: =IF($D21="Unlisted Player",-1001,IFERROR(IF(VLOOKUP($D21,'All-WERTH'!$C$2:$AC$806,4,FALSE)="",-1000,VLOOKUP($D21,'All-WERTH'!$C$2:$AC$806,4,FALSE)),-1000)) -> -1000 | Q21: =IF($D21="Unlisted Player",-1001,IFERROR(IF(VLOOKUP($D21,'All-WERTH'!$C$2:$AC$806,5,FALSE)="",-1000,VLOOKUP($D21,'All-WERTH'!$C$2:$AC$806,5,FALSE)),-1000)) -> -1000 | R21: =IF($D21="Unlisted Player",-1001,IFERROR(IF(VLOOKUP($D21,'All-WERTH'!$C$2:$AC$806,6,FALSE)="",-1000,VLOOKUP($D21,'All-WERTH'!$C$2:$AC$806,6,FALSE)),-1000)) -> -1000 | S21: =IF($D21="Unlisted Player",-1001,IFERROR(IF(VLOOKUP($D21,'All-WERTH'!$C$2:$AC$806,7,FALSE)="",-1000,VLOOKUP($D21,'All-WERTH'!$C$2:$AC$806,7,FALSE)),-1000)) -> -1000 | T21: =IF($D21="Unlisted Player",-1001,IFERROR(IF(VLOOKUP($D21,'All-WERTH'!$C$2:$AC$806,8,FALSE)="",-1000,VLOOKUP($D21,'All-WERTH'!$C$2:$AC$806,8,FALSE)),-1000)) -> -1000 | U21: =IF($D21="Unlisted Player",-1001,IFERROR(IF(VLOOKUP($D21,'All-WERTH'!$C$2:$AC$806,9,FALSE)="",-1000,VLOOKUP($D21,'All-WERTH'!$C$2:$AC$806,9,FALSE)),-1000)) -> -1000 | V21: =IF($D21="Unlisted Player",-1001,IFERROR(IF(VLOOKUP($D21,'All-WERTH'!$C$2:$AC$806,10,FALSE)="",-1000,VLOOKUP($D21,'All-WERTH'!$C$2:$AC$806,10,FALSE)),-1000)) -> -1000 | W21: =IF($D21="Unlisted Player",-1001,IFERROR(IF(VLOOKUP($D21,'All-WERTH'!$C$2:$AC$806,11,FALSE)="",-1000,VLOOKUP($D21,'All-WERTH'!$C$2:$AC$806,11,FALSE)),-1000)) -> -1000 | X21: =IF($D21="Unlisted Player",-1001,IFERROR(IF(VLOOKUP($D21,'All-WERTH'!$C$2:$AC$806,12,FALSE)="",-1000,VLOOKUP($D21,'All-WERTH'!$C$2:$AC$806,12,FALSE)),-1000)) -> -1000 | Y21: =IF($D21="Unlisted Player",-1001,IFERROR(IF(VLOOKUP($D21,'All-WERTH'!$C$2:$AC$806,13,FALSE)="",-1000,VLOOKUP($D21,'All-WERTH'!$C$2:$AC$806,13,FALSE)),-1000)) -> -1000 | Z21: =IF($D21="Unlisted Player",-1001,IFERROR(IF(VLOOKUP($D21,'All-WERTH'!$C$2:$AC$806,14,FALSE)="",-1000,VLOOKUP($D21,'All-WERTH'!$C$2:$AC$806,14,FALSE)),-1000)) -> -1000 | AA21: =IF($D21="Unlisted Player",-1001,IFERROR(IF(VLOOKUP($D21,'All-WERTH'!$C$2:$AC$806,15,FALSE)="",-1000,VLOOKUP($D21,'All-WERTH'!$C$2:$AC$806,15,FALSE)),-1000)) -> -1000 | AB21: =IF($D21="Unlisted Player",-1001,IFERROR(IF(VLOOKUP($D21,'All-WERTH'!$C$2:$AC$806,16,FALSE)="",-1000,VLOOKUP($D21,'All-WERTH'!$C$2:$AC$806,16,FALSE)),-1000)) -> -1.288286923 | AC21: =IF($D21="Unlisted Player",-1001,IFERROR(IF(VLOOKUP($D21,'All-WERTH'!$C$2:$AC$806,17,FALSE)="",-1000,VLOOKUP($D21,'All-WERTH'!$C$2:$AC$806,17,FALSE)),-1000)) -> 1.593542459 | AD21: =IF($D21="Unlisted Player",-1001,IFERROR(IF(VLOOKUP($D21,'All-WERTH'!$C$2:$AC$806,18,FALSE)="",-1000,VLOOKUP($D21,'All-WERTH'!$C$2:$AC$806,18,FALSE)),-1000)) -> -1.109071151 | AE21: =IF($D21="Unlisted Player",-1001,IFERROR(IF(VLOOKUP($D21,'All-WERTH'!$C$2:$AC$806,19,FALSE)="",-1000,VLOOKUP($D21,'All-WERTH'!$C$2:$AC$806,19,FALSE)),-1000)) -> -0.1207775453 | AF21: =IF($D21="Unlisted Player",-1001,IFERROR(IF(VLOOKUP($D21,'All-WERTH'!$C$2:$AC$806,20,FALSE)="",-1000,VLOOKUP($D21,'All-WERTH'!$C$2:$AC$806,20,FALSE)),-1000)) -> -0.8151372327 | AG21: =IF($D21="Unlisted Player",-1001,IFERROR(IF(VLOOKUP($D21,'All-WERTH'!$C$2:$AC$806,21,FALSE)="",-1000,VLOOKUP($D21,'All-WERTH'!$C$2:$AC$806,21,FALSE)),-1000)) -> -1000 | AH21: =IF($D21="Unlisted Player",-1001,IFERROR(IF(VLOOKUP($D21,'All-WERTH'!$C$2:$AC$806,22,FALSE)="",-1000,VLOOKUP($D21,'All-WERTH'!$C$2:$AC$806,22,FALSE)),-1000)) -> -1000 | AI21: =IF($D21="Unlisted Player",-1001,IFERROR(IF(VLOOKUP($D21,'All-WERTH'!$C$2:$AC$806,23,FALSE)="",-1000,VLOOKUP($D21,'All-WERTH'!$C$2:$AC$806,23,FALSE)),-1000)) -> -1000 | AJ21: =IF($D21="Unlisted Player",-1001,IFERROR(IF(VLOOKUP($D21,'All-WERTH'!$C$2:$AC$806,24,FALSE)="",-1000,VLOOKUP($D21,'All-WERTH'!$C$2:$AC$806,24,FALSE)),-1000)) -> -1000 | AK21: =IF($D21="Unlisted Player",-1001,IFERROR(IF(VLOOKUP($D21,'All-WERTH'!$C$2:$AC$806,25,FALSE)="",-1000,VLOOKUP($D21,'All-WERTH'!$C$2:$AC$806,25,FALSE)),-1000)) -> -1000 | AL21: =IF($D21="Unlisted Player",-1001,IFERROR(IF(VLOOKUP($D21,'All-WERTH'!$C$2:$AC$806,26,FALSE)="",-1000,VLOOKUP($D21,'All-WERTH'!$C$2:$AC$806,26,FALSE)),-1000)) -> -1000 | AM21: =IF($D21="Unlisted Player",-1001,IFERROR(IF(VLOOKUP($D21,'All-WERTH'!$C$2:$AC$806,27,FALSE)="",-1000,VLOOKUP($D21,'All-WERTH'!$C$2:$AC$806,27,FALSE)),-1000)) -> -1000
A22: Bryce Harper | B22: =IFERROR(INDEX($A$1:$A$961,SMALL(IF($A$1:$A$961<>"",ROW($A$1:$A$961)),ROW(A21))),"") -> Bryce Harper | C22: =IFERROR(IF(L22=FALSE,"",CHOOSE(MATCH(RIGHT('Your Roto Auction'!$Q$4,LEN('Your Roto Auction'!$Q$4)-8),$M$1:$AM$1,0),1+SUMPRODUCT(($L$2:$L$962=TRUE)*($M$2:$M$962>M22))+COUNTIFS($L$2:L22,L22,$M$2:M22,M22)-1,1+SUMPRODUCT(($L$2:$L$962=TRUE)*($N$2:$N$962>N22))+COUNTIFS($L$2:L22,L22,$N$2:N22,N22)-1,1+SUMPRODUCT(($L$2:$L$962=TRUE)*($O$2:$O$962<O22))+COUNTIFS($L$2:L22,L22,$O$2:O22,O22)-1,1+SUMPRODUCT(($L$2:$L$962=TRUE)*($P$2:$P$962>P22))+COUNTIFS($L$2:L22,L22,$P$2:P22,P22)-1,1+SUMPRODUCT(($L$2:$L$962=TRUE)*($Q$2:$Q$962>Q22))+COUNTIFS($L$2:L22,L22,$Q$2:Q22,Q22)-1,1+SUMPRODUCT(($L$2:$L$962=TRUE)*($R$2:$R$962>R22))+COUNTIFS($L$2:L22,L22,$R$2:R22,R22)-1,1+SUMPRODUCT(($L$2:$L$962=TRUE)*($S$2:$S$962>S22))+COUNTIFS($L$2:L22,L22,$S$2:S22,S22)-1,1+SUMPRODUCT(($L$2:$L$962=TRUE)*($T$2:$T$962>T22))+COUNTIFS($L$2:L22,L22,$T$2:T22,T22)-1,1+SUMPRODUCT(($L$2:$L$962=TRUE)*($U$2:$U$962>U22))+COUNTIFS($L$2:L22,L22,$U$2:U22,U22)-1,1+SUMPRODUCT(($L$2:$L$962=TRUE)*($V$2:$V$962>V22))+COUNTIFS($L$2:L22,L22,$V$2:V22,V22)-1,1+SUMPRODUCT(($L$2:$L$962=TRUE)*($W$2:$W$962>W22))+COUNTIFS($L$2:L22,L22,$W$2:W22,W22)-1,1+SUMPRODUCT(($L$2:$L$962=TRUE)*($X$2:$X$962>X22))+COUNTIFS($L$2:L22,L22,$X$2:X22,X22)-1,1+SUMPRODUCT(($L$2:$L$962=TRUE)*($Y$2:$Y$962>Y22))+COUNTIFS($L$2:L22,L22,$Y$2:Y22,Y22)-1,1+SUMPRODUCT(($L$2:$L$962=TRUE)*($Z$2:$Z$962>Z22))+COUNTIFS($L$2:L22,L22,$Z$2:Z22,Z22)-1,1+SUMPRODUCT(($L$2:$L$962=TRUE)*($AA$2:$AA$962>AA22))+COUNTIFS($L$2:L22,L22,$AA$2:AA22,AA22)-1,1+SUMPRODUCT(($L$2:$L$962=TRUE)*($AB$2:$AB$962>AB22))+COUNTIFS($L$2:L22,L22,$AB$2:AB22,AB22)-1,1+SUMPRODUCT(($L$2:$L$962=TRUE)*($AC$2:$AC$962>AC22))+COUNTIFS($L$2:L22,L22,$AC$2:AC22,AC22)-1,1+SUMPRODUCT(($L$2:$L$962=TRUE)*($AD$2:$AD$962>AD22))+COUNTIFS($L$2:L22,L22,$AD$2:AD22,AD22)-1,1+SUMPRODUCT(($L$2:$L$962=TRUE)*($AE$2:$AE$962>AE22))+COUNTIFS($L$2:L22,L22,$AE$2:AE22,AE22)-1,1+SUMPRODUCT(($L$2:$L$962=TRUE)*($AF$2:$AF$962>AF22))+COUNTIFS($L$2:L22,L22,$AF$2:AF22,AF22)-1,1+SUMPRODUCT(($L$2:$L$962=TRUE)*($AG$2:$AG$962>AG22))+COUNTIFS($L$2:L22,L22,$AG$2:AG22,AG22)-1,1+SUMPRODUCT(($L$2:$L$962=TRUE)*($AH$2:$AH$962>AH22))+COUNTIFS($L$2:L22,L22,$AH$2:AH22,AH22)-1,1+SUMPRODUCT(($L$2:$L$962=TRUE)*($AI$2:$AI$962>AI22))+COUNTIFS($L$2:L22,L22,$AI$2:AI22,AI22)-1,1+SUMPRODUCT(($L$2:$L$962=TRUE)*($AJ$2:$AJ$962>AJ22))+COUNTIFS($L$2:L22,L22,$AJ$2:AJ22,AJ22)-1,1+SUMPRODUCT(($L$2:$L$962=TRUE)*($AK$2:$AK$962>AK22))+COUNTIFS($L$2:L22,L22,$AK$2:AK22,AK22)-1,1+SUMPRODUCT(($L$2:$L$962=TRUE)*($AL$2:$AL$962>AL22))+COUNTIFS($L$2:L22,L22,$AL$2:AL22,AL22)-1,1+SUMPRODUCT(($L$2:$L$962=TRUE)*($AM$2:$AM$962>AM22))+COUNTIFS($L$2:L22,L22,$AM$2:AM22,AM22)-1,)),"") -> 491 | D22: Brett Anderson | E22: =IFERROR(INDEX('Auction Log'!$C$4:$C$806,MATCH(D22,'Auction Log'!$B$4:$B$806,0)),"") ->  | F22: =IFERROR(INDEX('Auction-Rank'!$C$2:$C$961,MATCH(D22,'Auction-Rank'!$A$2:$A$961,0)),"") -> SP | G22: =IFERROR(IF(F22=I22,"",IF(INDEX('Your Roto Auction'!$C$11:$C$634,MATCH(D22,'Your Roto Auction'!$D$11:$D$634,0))="",IF(I22<>"",I22,""),INDEX('Your Roto Auction'!$C$11:$C$634,MATCH(D22,'Your Roto Auction'!$D$11:$D$634,0)))),"") ->  | H22: SP | J22: =INDEX('Auction-Rank'!$V$2:$V$961,MATCH(D22,'Auction-Rank'!$A$2:$A$961,0)) -> TRUE | K22: FALSE | L22: =IF(J22=FALSE,FALSE,IF(AND('Your Roto Auction'!$Q$6="Hide Drafted Players",K22=TRUE),FALSE,IF(OR('Your Roto Auction'!$Q$5="Show All Positions",AND('Your Roto Auction'!$Q$5="Only Show: C",H22="C"),AND('Your Roto Auction'!$Q$5="Only Show: 1B",H22="1B"),AND('Your Roto Auction'!$Q$5="Only Show: 2B",H22="2B"),AND('Your Roto Auction'!$Q$5="Only Show: 3B",H22="3B"),AND('Your Roto Auction'!$Q$5="Only Show: SS",H22="SS"),AND('Your Roto Auction'!$Q$5="Only Show: OF",H22="OF"),AND('Your Roto Auction'!$Q$5="Only Show: SP",H22="SP"),AND('Your Roto Auction'!$Q$5="Only Show: RP",H22="RP"),AND('Your Roto Auction'!$Q$5="Only Show: CI",OR(H22={"1B","3B"})),AND('Your Roto Auction'!$Q$5="Only Show: MI",OR(H22={"2B","SS"})),AND('Your Roto Auction'!$Q$5="Only Show: IF",OR(H22={"C","1B","2B","3B","SS"})),AND('Your Roto Auction'!$Q$5="Only Show: DH",OR(H22={"C","1B","2B","3B","SS","OF","DH"})),AND('Your Roto Auction'!$Q$5="Only Show: P",OR(H22={"SP","RP"})),AND('Your Roto Auction'!$Q$5="Only Show: LF",ISERROR(SEARCH("LF",VLOOKUP($D22,'Auction-Rank'!$A$2:$D$961,4,FALSE)))=FALSE),AND('Your Roto Auction'!$Q$5="Only Show: RF",ISERROR(SEARCH("RF",VLOOKUP($D22,'Auction-Rank'!$A$2:$D$961,4,FALSE)))=FALSE),AND('Your Roto Auction'!$Q$5="Only Show: CF",ISERROR(SEARCH("CF",VLOOKUP($D22,'Auction-Rank'!$A$2:$D$961,4,FALSE)))=FALSE)),TRUE,FALSE))) -> TRUE | M22: =IFERROR(IF(VLOOKUP($D22,'Inflation-Tracking'!$A$5:$AD$862,22,FALSE)="",-9999,VLOOKUP($D22,'Inflation-Tracking'!$A$5:$AD$862,22,FALSE)),-9999) -> -0.9630499389 | N22: =IF(D22="Non-Ranked Player",-1001,IFERROR(VLOOKUP($D22,'All-WERTH'!$C$2:$E$806,3,FALSE),-1000)) -> -5.797921477 | O22: =IF(D22="Non-Ranked Player",10000,IFERROR(IF(VLOOKUP(D22,'Auction-Rank'!$A$2:$X$961,24,FALSE)="",9999,VLOOKUP(D22,'Auction-Rank'!$A$2:$X$961,24,FALSE)),9999)) -> 9999 | P22: =IF($D22="Unlisted Player",-1001,IFERROR(IF(VLOOKUP($D22,'All-WERTH'!$C$2:$AC$806,4,FALSE)="",-1000,VLOOKUP($D22,'All-WERTH'!$C$2:$AC$806,4,FALSE)),-1000)) -> -1000 | Q22: =IF($D22="Unlisted Player",-1001,IFERROR(IF(VLOOKUP($D22,'All-WERTH'!$C$2:$AC$806,5,FALSE)="",-1000,VLOOKUP($D22,'All-WERTH'!$C$2:$AC$806,5,FALSE)),-1000)) -> -1000 | R22: =IF($D22="Unlisted Player",-1001,IFERROR(IF(VLOOKUP($D22,'All-WERTH'!$C$2:$AC$806,6,FALSE)="",-1000,VLOOKUP($D22,'All-WERTH'!$C$2:$AC$806,6,FALSE)),-1000)) -> -1000 | S22: =IF($D22="Unlisted Player",-1001,IFERROR(IF(VLOOKUP($D22,'All-WERTH'!$C$2:$AC$806,7,FALSE)="",-1000,VLOOKUP($D22,'All-WERTH'!$C$2:$AC$806,7,FALSE)),-1000)) -> -1000 | T22: =IF($D22="Unlisted Player",-1001,IFERROR(IF(VLOOKUP($D22,'All-WERTH'!$C$2:$AC$806,8,FALSE)="",-1000,VLOOKUP($D22,'All-WERTH'!$C$2:$AC$806,8,FALSE)),-1000)) -> -1000 | U22: =IF($D22="Unlisted Player",-1001,IFERROR(IF(VLOOKUP($D22,'All-WERTH'!$C$2:$AC$806,9,FALSE)="",-1000,VLOOKUP($D22,'All-WERTH'!$C$2:$AC$806,9,FALSE)),-1000)) -> -1000 | V22: =IF($D22="Unlisted Player",-1001,IFERROR(IF(VLOOKUP($D22,'All-WERTH'!$C$2:$AC$806,10,FALSE)="",-1000,VLOOKUP($D22,'All-WERTH'!$C$2:$AC$806,10,FALSE)),-1000)) -> -1000 | W22: =IF($D22="Unlisted Player",-1001,IFERROR(IF(VLOOKUP($D22,'All-WERTH'!$C$2:$AC$806,11,FALSE)="",-1000,VLOOKUP($D22,'All-WERTH'!$C$2:$AC$806,11,FALSE)),-1000)) -> -1000 | X22: =IF($D22="Unlisted Player",-1001,IFERROR(IF(VLOOKUP($D22,'All-WERTH'!$C$2:$AC$806,12,FALSE)="",-1000,VLOOKUP($D22,'All-WERTH'!$C$2:$AC$806,12,FALSE)),-1000)) -> -1000 | Y22: =IF($D22="Unlisted Player",-1001,IFERROR(IF(VLOOKUP($D22,'All-WERTH'!$C$2:$AC$806,13,FALSE)="",-1000,VLOOKUP($D22,'All-WERTH'!$C$2:$AC$806,13,FALSE)),-1000)) -> -1000 | Z22: =IF($D22="Unlisted Player",-1001,IFERROR(IF(VLOOKUP($D22,'All-WERTH'!$C$2:$AC$806,14,FALSE)="",-1000,VLOOKUP($D22,'All-WERTH'!$C$2:$AC$806,14,FALSE)),-1000)) -> -1000 | AA22: =IF($D22="Unlisted Player",-1001,IFERROR(IF(VLOOKUP($D22,'All-WERTH'!$C$2:$AC$806,15,FALSE)="",-1000,VLOOKUP($D22,'All-WERTH'!$C$2:$AC$806,15,FALSE)),-1000)) -> -1000 | AB22: =IF($D22="Unlisted Player",-1001,IFERROR(IF(VLOOKUP($D22,'All-WERTH'!$C$2:$AC$806,16,FALSE)="",-1000,VLOOKUP($D22,'All-WERTH'!$C$2:$AC$806,16,FALSE)),-1000)) -> -0.6888756802 | AC22: =IF($D22="Unlisted Player",-1001,IFERROR(IF(VLOOKUP($D22,'All-WERTH'!$C$2:$AC$806,17,FALSE)="",-1000,VLOOKUP($D22,'All-WERTH'!$C$2:$AC$806,17,FALSE)),-1000)) -> -0.6162674076 | AD22: =IF($D22="Unlisted Player",-1001,IFERROR(IF(VLOOKUP($D22,'All-WERTH'!$C$2:$AC$806,18,FALSE)="",-1000,VLOOKUP($D22,'All-WERTH'!$C$2:$AC$806,18,FALSE)),-1000)) -> -1.596877268 | AE22: =IF($D22="Unlisted Player",-1001,IFERROR(IF(VLOOKUP($D22,'All-WERTH'!$C$2:$AC$806,19,FALSE)="",-1000,VLOOKUP($D22,'All-WERTH'!$C$2:$AC$806,19,FALSE)),-1000)) -> -1.360845906 | AF22: =IF($D22="Unlisted Player",-1001,IFERROR(IF(VLOOKUP($D22,'All-WERTH'!$C$2:$AC$806,20,FALSE)="",-1000,VLOOKUP($D22,'All-WERTH'!$C$2:$AC$806,20,FALSE)),-1000)) -> -1.535055216 | AG22: =IF($D22="Unlisted Player",-1001,IFERROR(IF(VLOOKUP($D22,'All-WERTH'!$C$2:$AC$806,21,FALSE)="",-1000,VLOOKUP($D22,'All-WERTH'!$C$2:$AC$806,21,FALSE)),-1000)) -> -1000 | AH22: =IF($D22="Unlisted Player",-1001,IFERROR(IF(VLOOKUP($D22,'All-WERTH'!$C$2:$AC$806,22,FALSE)="",-1000,VLOOKUP($D22,'All-WERTH'!$C$2:$AC$806,22,FALSE)),-1000)) -> -1000 | AI22: =IF($D22="Unlisted Player",-1001,IFERROR(IF(VLOOKUP($D22,'All-WERTH'!$C$2:$AC$806,23,FALSE)="",-1000,VLOOKUP($D22,'All-WERTH'!$C$2:$AC$806,23,FALSE)),-1000)) -> -1000 | AJ22: =IF($D22="Unlisted Player",-1001,IFERROR(IF(VLOOKUP($D22,'All-WERTH'!$C$2:$AC$806,24,FALSE)="",-1000,VLOOKUP($D22,'All-WERTH'!$C$2:$AC$806,24,FALSE)),-1000)) -> -1000 | AK22: =IF($D22="Unlisted Player",-1001,IFERROR(IF(VLOOKUP($D22,'All-WERTH'!$C$2:$AC$806,25,FALSE)="",-1000,VLOOKUP($D22,'All-WERTH'!$C$2:$AC$806,25,FALSE)),-1000)) -> -1000 | AL22: =IF($D22="Unlisted Player",-1001,IFERROR(IF(VLOOKUP($D22,'All-WERTH'!$C$2:$AC$806,26,FALSE)="",-1000,VLOOKUP($D22,'All-WERTH'!$C$2:$AC$806,26,FALSE)),-1000)) -> -1000 | AM22: =IF($D22="Unlisted Player",-1001,IFERROR(IF(VLOOKUP($D22,'All-WERTH'!$C$2:$AC$806,27,FALSE)="",-1000,VLOOKUP($D22,'All-WERTH'!$C$2:$AC$806,27,FALSE)),-1000)) -> -1000
A23: Alex Bregman | B23: =IFERROR(INDEX($A$1:$A$961,SMALL(IF($A$1:$A$961<>"",ROW($A$1:$A$961)),ROW(A22))),"") -> Alex Bregman | C23: =IFERROR(IF(L23=FALSE,"",CHOOSE(MATCH(RIGHT('Your Roto Auction'!$Q$4,LEN('Your Roto Auction'!$Q$4)-8),$M$1:$AM$1,0),1+SUMPRODUCT(($L$2:$L$962=TRUE)*($M$2:$M$962>M23))+COUNTIFS($L$2:L23,L23,$M$2:M23,M23)-1,1+SUMPRODUCT(($L$2:$L$962=TRUE)*($N$2:$N$962>N23))+COUNTIFS($L$2:L23,L23,$N$2:N23,N23)-1,1+SUMPRODUCT(($L$2:$L$962=TRUE)*($O$2:$O$962<O23))+COUNTIFS($L$2:L23,L23,$O$2:O23,O23)-1,1+SUMPRODUCT(($L$2:$L$962=TRUE)*($P$2:$P$962>P23))+COUNTIFS($L$2:L23,L23,$P$2:P23,P23)-1,1+SUMPRODUCT(($L$2:$L$962=TRUE)*($Q$2:$Q$962>Q23))+COUNTIFS($L$2:L23,L23,$Q$2:Q23,Q23)-1,1+SUMPRODUCT(($L$2:$L$962=TRUE)*($R$2:$R$962>R23))+COUNTIFS($L$2:L23,L23,$R$2:R23,R23)-1,1+SUMPRODUCT(($L$2:$L$962=TRUE)*($S$2:$S$962>S23))+COUNTIFS($L$2:L23,L23,$S$2:S23,S23)-1,1+SUMPRODUCT(($L$2:$L$962=TRUE)*($T$2:$T$962>T23))+COUNTIFS($L$2:L23,L23,$T$2:T23,T23)-1,1+SUMPRODUCT(($L$2:$L$962=TRUE)*($U$2:$U$962>U23))+COUNTIFS($L$2:L23,L23,$U$2:U23,U23)-1,1+SUMPRODUCT(($L$2:$L$962=TRUE)*($V$2:$V$962>V23))+COUNTIFS($L$2:L23,L23,$V$2:V23,V23)-1,1+SUMPRODUCT(($L$2:$L$962=TRUE)*($W$2:$W$962>W23))+COUNTIFS($L$2:L23,L23,$W$2:W23,W23)-1,1+SUMPRODUCT(($L$2:$L$962=TRUE)*($X$2:$X$962>X23))+COUNTIFS($L$2:L23,L23,$X$2:X23,X23)-1,1+SUMPRODUCT(($L$2:$L$962=TRUE)*($Y$2:$Y$962>Y23))+COUNTIFS($L$2:L23,L23,$Y$2:Y23,Y23)-1,1+SUMPRODUCT(($L$2:$L$962=TRUE)*($Z$2:$Z$962>Z23))+COUNTIFS($L$2:L23,L23,$Z$2:Z23,Z23)-1,1+SUMPRODUCT(($L$2:$L$962=TRUE)*($AA$2:$AA$962>AA23))+COUNTIFS($L$2:L23,L23,$AA$2:AA23,AA23)-1,1+SUMPRODUCT(($L$2:$L$962=TRUE)*($AB$2:$AB$962>AB23))+COUNTIFS($L$2:L23,L23,$AB$2:AB23,AB23)-1,1+SUMPRODUCT(($L$2:$L$962=TRUE)*($AC$2:$AC$962>AC23))+COUNTIFS($L$2:L23,L23,$AC$2:AC23,AC23)-1,1+SUMPRODUCT(($L$2:$L$962=TRUE)*($AD$2:$AD$962>AD23))+COUNTIFS($L$2:L23,L23,$AD$2:AD23,AD23)-1,1+SUMPRODUCT(($L$2:$L$962=TRUE)*($AE$2:$AE$962>AE23))+COUNTIFS($L$2:L23,L23,$AE$2:AE23,AE23)-1,1+SUMPRODUCT(($L$2:$L$962=TRUE)*($AF$2:$AF$962>AF23))+COUNTIFS($L$2:L23,L23,$AF$2:AF23,AF23)-1,1+SUMPRODUCT(($L$2:$L$962=TRUE)*($AG$2:$AG$962>AG23))+COUNTIFS($L$2:L23,L23,$AG$2:AG23,AG23)-1,1+SUMPRODUCT(($L$2:$L$962=TRUE)*($AH$2:$AH$962>AH23))+COUNTIFS($L$2:L23,L23,$AH$2:AH23,AH23)-1,1+SUMPRODUCT(($L$2:$L$962=TRUE)*($AI$2:$AI$962>AI23))+COUNTIFS($L$2:L23,L23,$AI$2:AI23,AI23)-1,1+SUMPRODUCT(($L$2:$L$962=TRUE)*($AJ$2:$AJ$962>AJ23))+COUNTIFS($L$2:L23,L23,$AJ$2:AJ23,AJ23)-1,1+SUMPRODUCT(($L$2:$L$962=TRUE)*($AK$2:$AK$962>AK23))+COUNTIFS($L$2:L23,L23,$AK$2:AK23,AK23)-1,1+SUMPRODUCT(($L$2:$L$962=TRUE)*($AL$2:$AL$962>AL23))+COUNTIFS($L$2:L23,L23,$AL$2:AL23,AL23)-1,1+SUMPRODUCT(($L$2:$L$962=TRUE)*($AM$2:$AM$962>AM23))+COUNTIFS($L$2:L23,L23,$AM$2:AM23,AM23)-1,)),"") -> 224 | D23: Brian Anderson | E23: =IFERROR(INDEX('Auction Log'!$C$4:$C$806,MATCH(D23,'Auction Log'!$B$4:$B$806,0)),"") ->  | F23: =IFERROR(INDEX('Auction-Rank'!$C$2:$C$961,MATCH(D23,'Auction-Rank'!$A$2:$A$961,0)),"") -> 3B | G23: =IFERROR(IF(F23=I23,"",IF(INDEX('Your Roto Auction'!$C$11:$C$634,MATCH(D23,'Your Roto Auction'!$D$11:$D$634,0))="",IF(I23<>"",I23,""),INDEX('Your Roto Auction'!$C$11:$C$634,MATCH(D23,'Your Roto Auction'!$D$11:$D$634,0)))),"") ->  | H23: 3B | J23: =INDEX('Auction-Rank'!$V$2:$V$961,MATCH(D23,'Auction-Rank'!$A$2:$A$961,0)) -> TRUE | K23: FALSE | L23: =IF(J23=FALSE,FALSE,IF(AND('Your Roto Auction'!$Q$6="Hide Drafted Players",K23=TRUE),FALSE,IF(OR('Your Roto Auction'!$Q$5="Show All Positions",AND('Your Roto Auction'!$Q$5="Only Show: C",H23="C"),AND('Your Roto Auction'!$Q$5="Only Show: 1B",H23="1B"),AND('Your Roto Auction'!$Q$5="Only Show: 2B",H23="2B"),AND('Your Roto Auction'!$Q$5="Only Show: 3B",H23="3B"),AND('Your Roto Auction'!$Q$5="Only Show: SS",H23="SS"),AND('Your Roto Auction'!$Q$5="Only Show: OF",H23="OF"),AND('Your Roto Auction'!$Q$5="Only Show: SP",H23="SP"),AND('Your Roto Auction'!$Q$5="Only Show: RP",H23="RP"),AND('Your Roto Auction'!$Q$5="Only Show: CI",OR(H23={"1B","3B"})),AND('Your Roto Auction'!$Q$5="Only Show: MI",OR(H23={"2B","SS"})),AND('Your Roto Auction'!$Q$5="Only Show: IF",OR(H23={"C","1B","2B","3B","SS"})),AND('Your Roto Auction'!$Q$5="Only Show: DH",OR(H23={"C","1B","2B","3B","SS","OF","DH"})),AND('Your Roto Auction'!$Q$5="Only Show: P",OR(H23={"SP","RP"})),AND('Your Roto Auction'!$Q$5="Only Show: LF",ISERROR(SEARCH("LF",VLOOKUP($D23,'Auction-Rank'!$A$2:$D$961,4,FALSE)))=FALSE),AND('Your Roto Auction'!$Q$5="Only Show: RF",ISERROR(SEARCH("RF",VLOOKUP($D23,'Auction-Rank'!$A$2:$D$961,4,FALSE)))=FALSE),AND('Your Roto Auction'!$Q$5="Only Show: CF",ISERROR(SEARCH("CF",VLOOKUP($D23,'Auction-Rank'!$A$2:$D$961,4,FALSE)))=FALSE)),TRUE,FALSE))) -> TRUE | M23: =IFERROR(IF(VLOOKUP($D23,'Inflation-Tracking'!$A$5:$AD$862,22,FALSE)="",-9999,VLOOKUP($D23,'Inflation-Tracking'!$A$5:$AD$862,22,FALSE)),-9999) -> 1.102199844 | N23: =IF(D23="Non-Ranked Player",-1001,IFERROR(VLOOKUP($D23,'All-WERTH'!$C$2:$E$806,3,FALSE),-1000)) -> -3.07240931 | O23: =IF(D23="Non-Ranked Player",10000,IFERROR(IF(VLOOKUP(D23,'Auction-Rank'!$A$2:$X$961,24,FALSE)="",9999,VLOOKUP(D23,'Auction-Rank'!$A$2:$X$961,24,FALSE)),9999)) -> 276 | P23: =IF($D23="Unlisted Player",-1001,IFERROR(IF(VLOOKUP($D23,'All-WERTH'!$C$2:$AC$806,4,FALSE)="",-1000,VLOOKUP($D23,'All-WERTH'!$C$2:$AC$806,4,FALSE)),-1000)) -> -0.6535879919 | Q23: =IF($D23="Unlisted Player",-1001,IFERROR(IF(VLOOKUP($D23,'All-WERTH'!$C$2:$AC$806,5,FALSE)="",-1000,VLOOKUP($D23,'All-WERTH'!$C$2:$AC$806,5,FALSE)),-1000)) -> -1.002169621 | R23: =IF($D23="Unlisted Player",-1001,IFERROR(IF(VLOOKUP($D23,'All-WERTH'!$C$2:$AC$806,6,FALSE)="",-1000,VLOOKUP($D23,'All-WERTH'!$C$2:$AC$806,6,FALSE)),-1000)) -> -0.006678644521 | S23: =IF($D23="Unlisted Player",-1001,IFERROR(IF(VLOOKUP($D23,'All-WERTH'!$C$2:$AC$806,7,FALSE)="",-1000,VLOOKUP($D23,'All-WERTH'!$C$2:$AC$806,7,FALSE)),-1000)) -> -0.5205292808 | T23: =IF($D23="Unlisted Player",-1001,IFERROR(IF(VLOOKUP($D23,'All-WERTH'!$C$2:$AC$806,8,FALSE)="",-1000,VLOOKUP($D23,'All-WERTH'!$C$2:$AC$806,8,FALSE)),-1000)) -> -0.8894437714 | U23: =IF($D23="Unlisted Player",-1001,IFERROR(IF(VLOOKUP($D23,'All-WERTH'!$C$2:$AC$806,9,FALSE)="",-1000,VLOOKUP($D23,'All-WERTH'!$C$2:$AC$806,9,FALSE)),-1000)) -> -1000 | V23: =IF($D23="Unlisted Player",-1001,IFERROR(IF(VLOOKUP($D23,'All-WERTH'!$C$2:$AC$806,10,FALSE)="",-1000,VLOOKUP($D23,'All-WERTH'!$C$2:$AC$806,10,FALSE)),-1000)) -> -1000 | W23: =IF($D23="Unlisted Player",-1001,IFERROR(IF(VLOOKUP($D23,'All-WERTH'!$C$2:$AC$806,11,FALSE)="",-1000,VLOOKUP($D23,'All-WERTH'!$C$2:$AC$806,11,FALSE)),-1000)) -> -1000 | X23: =IF($D23="Unlisted Player",-1001,IFERROR(IF(VLOOKUP($D23,'All-WERTH'!$C$2:$AC$806,12,FALSE)="",-1000,VLOOKUP($D23,'All-WERTH'!$C$2:$AC$806,12,FALSE)),-1000)) -> -1000 | Y23: =IF($D23="Unlisted Player",-1001,IFERROR(IF(VLOOKUP($D23,'All-WERTH'!$C$2:$AC$806,13,FALSE)="",-1000,VLOOKUP($D23,'All-WERTH'!$C$2:$AC$806,13,FALSE)),-1000)) -> -1000 | Z23: =IF($D23="Unlisted Player",-1001,IFERROR(IF(VLOOKUP($D23,'All-WERTH'!$C$2:$AC$806,14,FALSE)="",-1000,VLOOKUP($D23,'All-WERTH'!$C$2:$AC$806,14,FALSE)),-1000)) -> -1000 | AA23: =IF($D23="Unlisted Player",-1001,IFERROR(IF(VLOOKUP($D23,'All-WERTH'!$C$2:$AC$806,15,FALSE)="",-1000,VLOOKUP($D23,'All-WERTH'!$C$2:$AC$806,15,FALSE)),-1000)) -> -1000 | AB23: =IF($D23="Unlisted Player",-1001,IFERROR(IF(VLOOKUP($D23,'All-WERTH'!$C$2:$AC$806,16,FALSE)="",-1000,VLOOKUP($D23,'All-WERTH'!$C$2:$AC$806,16,FALSE)),-1000)) -> -1000 | AC23: =IF($D23="Unlisted Player",-1001,IFERROR(IF(VLOOKUP($D23,'All-WERTH'!$C$2:$AC$806,17,FALSE)="",-1000,VLOOKUP($D23,'All-WERTH'!$C$2:$AC$806,17,FALSE)),-1000)) -> -1000 | AD23: =IF($D23="Unlisted Player",-1001,IFERROR(IF(VLOOKUP($D23,'All-WERTH'!$C$2:$AC$806,18,FALSE)="",-1000,VLOOKUP($D23,'All-WERTH'!$C$2:$AC$806,18,FALSE)),-1000)) -> -1000 | AE23: =IF($D23="Unlisted Player",-1001,IFERROR(IF(VLOOKUP($D23,'All-WERTH'!$C$2:$AC$806,19,FALSE)="",-1000,VLOOKUP($D23,'All-WERTH'!$C$2:$AC$806,19,FALSE)),-1000)) -> -1000 | AF23: =IF($D23="Unlisted Player",-1001,IFERROR(IF(VLOOKUP($D23,'All-WERTH'!$C$2:$AC$806,20,FALSE)="",-1000,VLOOKUP($D23,'All-WERTH'!$C$2:$AC$806,20,FALSE)),-1000)) -> -1000 | AG23: =IF($D23="Unlisted Player",-1001,IFERROR(IF(VLOOKUP($D23,'All-WERTH'!$C$2:$AC$806,21,FALSE)="",-1000,VLOOKUP($D23,'All-WERTH'!$C$2:$AC$806,21,FALSE)),-1000)) -> -1000 | AH23: =IF($D23="Unlisted Player",-1001,IFERROR(IF(VLOOKUP($D23,'All-WERTH'!$C$2:$AC$806,22,FALSE)="",-1000,VLOOKUP($D23,'All-WERTH'!$C$2:$AC$806,22,FALSE)),-1000)) -> -1000 | AI23: =IF($D23="Unlisted Player",-1001,IFERROR(IF(VLOOKUP($D23,'All-WERTH'!$C$2:$AC$806,23,FALSE)="",-1000,VLOOKUP($D23,'All-WERTH'!$C$2:$AC$806,23,FALSE)),-1000)) -> -1000 | AJ23: =IF($D23="Unlisted Player",-1001,IFERROR(IF(VLOOKUP($D23,'All-WERTH'!$C$2:$AC$806,24,FALSE)="",-1000,VLOOKUP($D23,'All-WERTH'!$C$2:$AC$806,24,FALSE)),-1000)) -> -1000 | AK23: =IF($D23="Unlisted Player",-1001,IFERROR(IF(VLOOKUP($D23,'All-WERTH'!$C$2:$AC$806,25,FALSE)="",-1000,VLOOKUP($D23,'All-WERTH'!$C$2:$AC$806,25,FALSE)),-1000)) -> -1000 | AL23: =IF($D23="Unlisted Player",-1001,IFERROR(IF(VLOOKUP($D23,'All-WERTH'!$C$2:$AC$806,26,FALSE)="",-1000,VLOOKUP($D23,'All-WERTH'!$C$2:$AC$806,26,FALSE)),-1000)) -> -1000 | AM23: =IF($D23="Unlisted Player",-1001,IFERROR(IF(VLOOKUP($D23,'All-WERTH'!$C$2:$AC$806,27,FALSE)="",-1000,VLOOKUP($D23,'All-WERTH'!$C$2:$AC$806,27,FALSE)),-1000)) -> -1000
A24: Jose Altuve | B24: =IFERROR(INDEX($A$1:$A$961,SMALL(IF($A$1:$A$961<>"",ROW($A$1:$A$961)),ROW(A23))),"") -> Jose Altuve | C24: =IFERROR(IF(L24=FALSE,"",CHOOSE(MATCH(RIGHT('Your Roto Auction'!$Q$4,LEN('Your Roto Auction'!$Q$4)-8),$M$1:$AM$1,0),1+SUMPRODUCT(($L$2:$L$962=TRUE)*($M$2:$M$962>M24))+COUNTIFS($L$2:L24,L24,$M$2:M24,M24)-1,1+SUMPRODUCT(($L$2:$L$962=TRUE)*($N$2:$N$962>N24))+COUNTIFS($L$2:L24,L24,$N$2:N24,N24)-1,1+SUMPRODUCT(($L$2:$L$962=TRUE)*($O$2:$O$962<O24))+COUNTIFS($L$2:L24,L24,$O$2:O24,O24)-1,1+SUMPRODUCT(($L$2:$L$962=TRUE)*($P$2:$P$962>P24))+COUNTIFS($L$2:L24,L24,$P$2:P24,P24)-1,1+SUMPRODUCT(($L$2:$L$962=TRUE)*($Q$2:$Q$962>Q24))+COUNTIFS($L$2:L24,L24,$Q$2:Q24,Q24)-1,1+SUMPRODUCT(($L$2:$L$962=TRUE)*($R$2:$R$962>R24))+COUNTIFS($L$2:L24,L24,$R$2:R24,R24)-1,1+SUMPRODUCT(($L$2:$L$962=TRUE)*($S$2:$S$962>S24))+COUNTIFS($L$2:L24,L24,$S$2:S24,S24)-1,1+SUMPRODUCT(($L$2:$L$962=TRUE)*($T$2:$T$962>T24))+COUNTIFS($L$2:L24,L24,$T$2:T24,T24)-1,1+SUMPRODUCT(($L$2:$L$962=TRUE)*($U$2:$U$962>U24))+COUNTIFS($L$2:L24,L24,$U$2:U24,U24)-1,1+SUMPRODUCT(($L$2:$L$962=TRUE)*($V$2:$V$962>V24))+COUNTIFS($L$2:L24,L24,$V$2:V24,V24)-1,1+SUMPRODUCT(($L$2:$L$962=TRUE)*($W$2:$W$962>W24))+COUNTIFS($L$2:L24,L24,$W$2:W24,W24)-1,1+SUMPRODUCT(($L$2:$L$962=TRUE)*($X$2:$X$962>X24))+COUNTIFS($L$2:L24,L24,$X$2:X24,X24)-1,1+SUMPRODUCT(($L$2:$L$962=TRUE)*($Y$2:$Y$962>Y24))+COUNTIFS($L$2:L24,L24,$Y$2:Y24,Y24)-1,1+SUMPRODUCT(($L$2:$L$962=TRUE)*($Z$2:$Z$962>Z24))+COUNTIFS($L$2:L24,L24,$Z$2:Z24,Z24)-1,1+SUMPRODUCT(($L$2:$L$962=TRUE)*($AA$2:$AA$962>AA24))+COUNTIFS($L$2:L24,L24,$AA$2:AA24,AA24)-1,1+SUMPRODUCT(($L$2:$L$962=TRUE)*($AB$2:$AB$962>AB24))+COUNTIFS($L$2:L24,L24,$AB$2:AB24,AB24)-1,1+SUMPRODUCT(($L$2:$L$962=TRUE)*($AC$2:$AC$962>AC24))+COUNTIFS($L$2:L24,L24,$AC$2:AC24,AC24)-1,1+SUMPRODUCT(($L$2:$L$962=TRUE)*($AD$2:$AD$962>AD24))+COUNTIFS($L$2:L24,L24,$AD$2:AD24,AD24)-1,1+SUMPRODUCT(($L$2:$L$962=TRUE)*($AE$2:$AE$962>AE24))+COUNTIFS($L$2:L24,L24,$AE$2:AE24,AE24)-1,1+SUMPRODUCT(($L$2:$L$962=TRUE)*($AF$2:$AF$962>AF24))+COUNTIFS($L$2:L24,L24,$AF$2:AF24,AF24)-1,1+SUMPRODUCT(($L$2:$L$962=TRUE)*($AG$2:$AG$962>AG24))+COUNTIFS($L$2:L24,L24,$AG$2:AG24,AG24)-1,1+SUMPRODUCT(($L$2:$L$962=TRUE)*($AH$2:$AH$962>AH24))+COUNTIFS($L$2:L24,L24,$AH$2:AH24,AH24)-1,1+SUMPRODUCT(($L$2:$L$962=TRUE)*($AI$2:$AI$962>AI24))+COUNTIFS($L$2:L24,L24,$AI$2:AI24,AI24)-1,1+SUMPRODUCT(($L$2:$L$962=TRUE)*($AJ$2:$AJ$962>AJ24))+COUNTIFS($L$2:L24,L24,$AJ$2:AJ24,AJ24)-1,1+SUMPRODUCT(($L$2:$L$962=TRUE)*($AK$2:$AK$962>AK24))+COUNTIFS($L$2:L24,L24,$AK$2:AK24,AK24)-1,1+SUMPRODUCT(($L$2:$L$962=TRUE)*($AL$2:$AL$962>AL24))+COUNTIFS($L$2:L24,L24,$AL$2:AL24,AL24)-1,1+SUMPRODUCT(($L$2:$L$962=TRUE)*($AM$2:$AM$962>AM24))+COUNTIFS($L$2:L24,L24,$AM$2:AM24,AM24)-1,)),"") -> 444 | D24: Chase Anderson | E24: =IFERROR(INDEX('Auction Log'!$C$4:$C$806,MATCH(D24,'Auction Log'!$B$4:$B$806,0)),"") ->  | F24: =IFERROR(INDEX('Auction-Rank'!$C$2:$C$961,MATCH(D24,'Auction-Rank'!$A$2:$A$961,0)),"") -> SP | G24: =IFERROR(IF(F24=I24,"",IF(INDEX('Your Roto Auction'!$C$11:$C$634,MATCH(D24,'Your Roto Auction'!$D$11:$D$634,0))="",IF(I24<>"",I24,""),INDEX('Your Roto Auction'!$C$11:$C$634,MATCH(D24,'Your Roto Auction'!$D$11:$D$634,0)))),"") ->  | H24: SP | J24: =INDEX('Auction-Rank'!$V$2:$V$961,MATCH(D24,'Auction-Rank'!$A$2:$A$961,0)) -> TRUE | K24: FALSE | L24: =IF(J24=FALSE,FALSE,IF(AND('Your Roto Auction'!$Q$6="Hide Drafted Players",K24=TRUE),FALSE,IF(OR('Your Roto Auction'!$Q$5="Show All Positions",AND('Your Roto Auction'!$Q$5="Only Show: C",H24="C"),AND('Your Roto Auction'!$Q$5="Only Show: 1B",H24="1B"),AND('Your Roto Auction'!$Q$5="Only Show: 2B",H24="2B"),AND('Your Roto Auction'!$Q$5="Only Show: 3B",H24="3B"),AND('Your Roto Auction'!$Q$5="Only Show: SS",H24="SS"),AND('Your Roto Auction'!$Q$5="Only Show: OF",H24="OF"),AND('Your Roto Auction'!$Q$5="Only Show: SP",H24="SP"),AND('Your Roto Auction'!$Q$5="Only Show: RP",H24="RP"),AND('Your Roto Auction'!$Q$5="Only Show: CI",OR(H24={"1B","3B"})),AND('Your Roto Auction'!$Q$5="Only Show: MI",OR(H24={"2B","SS"})),AND('Your Roto Auction'!$Q$5="Only Show: IF",OR(H24={"C","1B","2B","3B","SS"})),AND('Your Roto Auction'!$Q$5="Only Show: DH",OR(H24={"C","1B","2B","3B","SS","OF","DH"})),AND('Your Roto Auction'!$Q$5="Only Show: P",OR(H24={"SP","RP"})),AND('Your Roto Auction'!$Q$5="Only Show: LF",ISERROR(SEARCH("LF",VLOOKUP($D24,'Auction-Rank'!$A$2:$D$961,4,FALSE)))=FALSE),AND('Your Roto Auction'!$Q$5="Only Show: RF",ISERROR(SEARCH("RF",VLOOKUP($D24,'Auction-Rank'!$A$2:$D$961,4,FALSE)))=FALSE),AND('Your Roto Auction'!$Q$5="Only Show: CF",ISERROR(SEARCH("CF",VLOOKUP($D24,'Auction-Rank'!$A$2:$D$961,4,FALSE)))=FALSE)),TRUE,FALSE))) -> TRUE | M24: =IFERROR(IF(VLOOKUP($D24,'Inflation-Tracking'!$A$5:$AD$862,22,FALSE)="",-9999,VLOOKUP($D24,'Inflation-Tracking'!$A$5:$AD$862,22,FALSE)),-9999) -> -0.7910186613 | N24: =IF(D24="Non-Ranked Player",-1001,IFERROR(VLOOKUP($D24,'All-WERTH'!$C$2:$E$806,3,FALSE),-1000)) -> -5.162245805 | O24: =IF(D24="Non-Ranked Player",10000,IFERROR(IF(VLOOKUP(D24,'Auction-Rank'!$A$2:$X$961,24,FALSE)="",9999,VLOOKUP(D24,'Auction-Rank'!$A$2:$X$961,24,FALSE)),9999)) -> 359 | P24: =IF($D24="Unlisted Player",-1001,IFERROR(IF(VLOOKUP($D24,'All-WERTH'!$C$2:$AC$806,4,FALSE)="",-1000,VLOOKUP($D24,'All-WERTH'!$C$2:$AC$806,4,FALSE)),-1000)) -> -1000 | Q24: =IF($D24="Unlisted Player",-1001,IFERROR(IF(VLOOKUP($D24,'All-WERTH'!$C$2:$AC$806,5,FALSE)="",-1000,VLOOKUP($D24,'All-WERTH'!$C$2:$AC$806,5,FALSE)),-1000)) -> -1000 | R24: =IF($D24="Unlisted Player",-1001,IFERROR(IF(VLOOKUP($D24,'All-WERTH'!$C$2:$AC$806,6,FALSE)="",-1000,VLOOKUP($D24,'All-WERTH'!$C$2:$AC$806,6,FALSE)),-1000)) -> -1000 | S24: =IF($D24="Unlisted Player",-1001,IFERROR(IF(VLOOKUP($D24,'All-WERTH'!$C$2:$AC$806,7,FALSE)="",-1000,VLOOKUP($D24,'All-WERTH'!$C$2:$AC$806,7,FALSE)),-1000)) -> -1000 | T24: =IF($D24="Unlisted Player",-1001,IFERROR(IF(VLOOKUP($D24,'All-WERTH'!$C$2:$AC$806,8,FALSE)="",-1000,VLOOKUP($D24,'All-WERTH'!$C$2:$AC$806,8,FALSE)),-1000)) -> -1000 | U24: =IF($D24="Unlisted Player",-1001,IFERROR(IF(VLOOKUP($D24,'All-WERTH'!$C$2:$AC$806,9,FALSE)="",-1000,VLOOKUP($D24,'All-WERTH'!$C$2:$AC$806,9,FALSE)),-1000)) -> -1000 | V24: =IF($D24="Unlisted Player",-1001,IFERROR(IF(VLOOKUP($D24,'All-WERTH'!$C$2:$AC$806,10,FALSE)="",-1000,VLOOKUP($D24,'All-WERTH'!$C$2:$AC$806,10,FALSE)),-1000)) -> -1000 | W24: =IF($D24="Unlisted Player",-1001,IFERROR(IF(VLOOKUP($D24,'All-WERTH'!$C$2:$AC$806,11,FALSE)="",-1000,VLOOKUP($D24,'All-WERTH'!$C$2:$AC$806,11,FALSE)),-1000)) -> -1000 | X24: =IF($D24="Unlisted Player",-1001,IFERROR(IF(VLOOKUP($D24,'All-WERTH'!$C$2:$AC$806,12,FALSE)="",-1000,VLOOKUP($D24,'All-WERTH'!$C$2:$AC$806,12,FALSE)),-1000)) -> -1000 | Y24: =IF($D24="Unlisted Player",-1001,IFERROR(IF(VLOOKUP($D24,'All-WERTH'!$C$2:$AC$806,13,FALSE)="",-1000,VLOOKUP($D24,'All-WERTH'!$C$2:$AC$806,13,FALSE)),-1000)) -> -1000 | Z24: =IF($D24="Unlisted Player",-1001,IFERROR(IF(VLOOKUP($D24,'All-WERTH'!$C$2:$AC$806,14,FALSE)="",-1000,VLOOKUP($D24,'All-WERTH'!$C$2:$AC$806,14,FALSE)),-1000)) -> -1000 | AA24: =IF($D24="Unlisted Player",-1001,IFERROR(IF(VLOOKUP($D24,'All-WERTH'!$C$2:$AC$806,15,FALSE)="",-1000,VLOOKUP($D24,'All-WERTH'!$C$2:$AC$806,15,FALSE)),-1000)) -> -1000 | AB24: =IF($D24="Unlisted Player",-1001,IFERROR(IF(VLOOKUP($D24,'All-WERTH'!$C$2:$AC$806,16,FALSE)="",-1000,VLOOKUP($D24,'All-WERTH'!$C$2:$AC$806,16,FALSE)),-1000)) -> 0.137549098 | AC24: =IF($D24="Unlisted Player",-1001,IFERROR(IF(VLOOKUP($D24,'All-WERTH'!$C$2:$AC$806,17,FALSE)="",-1000,VLOOKUP($D24,'All-WERTH'!$C$2:$AC$806,17,FALSE)),-1000)) -> -0.5915858028 | AD24: =IF($D24="Unlisted Player",-1001,IFERROR(IF(VLOOKUP($D24,'All-WERTH'!$C$2:$AC$806,18,FALSE)="",-1000,VLOOKUP($D24,'All-WERTH'!$C$2:$AC$806,18,FALSE)),-1000)) -> -0.3210741703 | AE24: =IF($D24="Unlisted Player",-1001,IFERROR(IF(VLOOKUP($D24,'All-WERTH'!$C$2:$AC$806,19,FALSE)="",-1000,VLOOKUP($D24,'All-WERTH'!$C$2:$AC$806,19,FALSE)),-1000)) -> -2.761998732 | AF24: =IF($D24="Unlisted Player",-1001,IFERROR(IF(VLOOKUP($D24,'All-WERTH'!$C$2:$AC$806,20,FALSE)="",-1000,VLOOKUP($D24,'All-WERTH'!$C$2:$AC$806,20,FALSE)),-1000)) -> -1.625136198 | AG24: =IF($D24="Unlisted Player",-1001,IFERROR(IF(VLOOKUP($D24,'All-WERTH'!$C$2:$AC$806,21,FALSE)="",-1000,VLOOKUP($D24,'All-WERTH'!$C$2:$AC$806,21,FALSE)),-1000)) -> -1000 | AH24: =IF($D24="Unlisted Player",-1001,IFERROR(IF(VLOOKUP($D24,'All-WERTH'!$C$2:$AC$806,22,FALSE)="",-1000,VLOOKUP($D24,'All-WERTH'!$C$2:$AC$806,22,FALSE)),-1000)) -> -1000 | AI24: =IF($D24="Unlisted Player",-1001,IFERROR(IF(VLOOKUP($D24,'All-WERTH'!$C$2:$AC$806,23,FALSE)="",-1000,VLOOKUP($D24,'All-WERTH'!$C$2:$AC$806,23,FALSE)),-1000)) -> -1000 | AJ24: =IF($D24="Unlisted Player",-1001,IFERROR(IF(VLOOKUP($D24,'All-WERTH'!$C$2:$AC$806,24,FALSE)="",-1000,VLOOKUP($D24,'All-WERTH'!$C$2:$AC$806,24,FALSE)),-1000)) -> -1000 | AK24: =IF($D24="Unlisted Player",-1001,IFERROR(IF(VLOOKUP($D24,'All-WERTH'!$C$2:$AC$806,25,FALSE)="",-1000,VLOOKUP($D24,'All-WERTH'!$C$2:$AC$806,25,FALSE)),-1000)) -> -1000 | AL24: =IF($D24="Unlisted Player",-1001,IFERROR(IF(VLOOKUP($D24,'All-WERTH'!$C$2:$AC$806,26,FALSE)="",-1000,VLOOKUP($D24,'All-WERTH'!$C$2:$AC$806,26,FALSE)),-1000)) -> -1000 | AM24: =IF($D24="Unlisted Player",-1001,IFERROR(IF(VLOOKUP($D24,'All-WERTH'!$C$2:$AC$806,27,FALSE)="",-1000,VLOOKUP($D24,'All-WERTH'!$C$2:$AC$806,27,FALSE)),-1000)) -> -1000
